Workbook

Sheet 作成手順 (hidden)
B2: ●共通の注意事項
B3: ・各帳票は、一般送配電事業者が管轄するエリア毎に本表を作成する。
B4: ・設備がないまたは契約が無い部分については「空白」とすること（「０」と表記しないこと）。
B5: ・記載対象でないシート（記載対象がないシートも含む）は、帳票表示切替シートにてシートの表示／非表示を切り替えると作成が容易となる。
B6: ・青セル部分のうち対象箇所について入力する。（青セル部分以外は、他帳票からのリンク又は自動計算により入力対象外。）
B7: ・エクセル上での入力は小数点第一位(小数点第２位を切り捨て）までとする。（最終の届出書については弊機関でＰＤＦ化を実施し、その際に整数表記に変更する。）
B11: 手順 | C11: ●配電事業者における基本的な作成手順 | D11: ●各作成手順における注意事項
B13: ① | C13: 供給計画届出書様式の「表紙」シートに住所・事業者名・代表者名・事業者コード等を記載 | D13: ・ ・ ・ | E13: 事業者名については、事業者リスト一覧から検索し選択すること。なお、事業者名がない場合は、最新の事業者リスト一覧を広域機関HPよりダウンロードし、「表紙」シートの「事業者リスト一覧最新化」ボタンを押下し、事業者リスト一覧を最新化すること。 「保存」ボタンは、ファイル名称を自動付与するためのボタンであり、自動作成されるファイル名称は変更しないこと。 「保存」ボタンは、手順の途中の仕掛保存で使用することも可能。
B14: ② | C14: 補正（ｋW）指定１、補正（ｋW）指定２、補正（ｋＷｈ）について、必要項目を入力 | E14: 受電・送電取引帳票を入力した場合は、補正（ｋW）指定１シートにて「補正（ｋＷ）指定１”へ”転記」を実行すること。
B15: ③ | C15: 【供給力の契約がある場合（調達先未定の場合は不要）】 入力支援シートの「受電取引帳票」に発電事業者等から受電する分を契約に基づいて記載し、「帳票作成」ボタンを押下 | D15: ・ ・ ・ ・ | E15: 相手先の事業者については、事業者リスト一覧から検索し選択すること。なお、事業者がない場合は、最新の事業者リスト一覧を広域機関HPよりダウンロードし、「表紙」シートの「事業者リスト一覧最新化」ボタンを押下し、事業者リスト一覧を最新化すること。 「販売電力」については、供給電力等の記載断面における安定的な供給電力の範囲内で計上すること。 他の事業者から調達し、小売電気事業者等に転売する予定のある事業者は、受電取引帳票についても記載すること。 シート内の記載が完了したら、シート内上部の「帳票作成」ボタンを押下し、⑥以降に進む。
B16: ④ | C16: 【供給力の契約がある場合（調達先未定の場合は不要）】 入力支援シートの「送電取引帳票」に小売電気事業者等に販売する分を契約に基づいて記載し、「帳票作成」ボタンを押下 | D16: ・ ・ ・ ・ | E16: 相手先の事業者については、事業者リスト一覧から検索し選択すること。なお、事業者がない場合は、最新の事業者リスト一覧を広域機関HPよりダウンロードし、「表紙」シートの「事業者リスト一覧最新化」ボタンを押下し、事業者リスト一覧を最新化すること。 「販売電力」については、供給電力等の記載断面における安定的な供給電力の範囲内で計上すること。 他の事業者から調達し、小売電気事業者等に転売する予定のある事業者は、受電取引帳票についても記載すること。 シート内の記載が完了したら、シート内上部の「帳票作成」ボタンを押下し、⑥以降に進む。
B17: ⑤ | C17: 様式第３２第８表（送電・受電）および様式第３６表（送電・受電）について、記載内容を確認する。特に右端の備考欄も記載されていることを確認する
B18: ⑧ | C18: 様式第３２第６の１表、２表を記載
B19: ⑨ | C19: 様式第３３表、第３７表を記載
B20: ⑩ | C20: 様式第３８表を記載。
B21: ⑪ | C21: 【需給調整市場への参加要件を満たす電源等を保有する場合】 様式第３３の３ 第１表・第２表について、保有電源欄に当該設備の出力変動幅等と、H列にその最大値を記載 （様式第３３の３ 第２表から先に作成する。） | D21: ・ ・ | E21: 発電設備等の可能出力と最低出力の差分について補修による減少分を考慮した月平均値を記載すること。 なお、自端制御において周波数偏差にもとづく出力変化をする場合は、10秒以内に供出可能な電力の最大値を出力変動幅等として記載すること。
B22: ⑫ | C22: 【需給調整市場への参加要件を満たす非電気事業者の電源等を調達している場合】 様式第３３の３ 第１表・第２表について、調達分欄にその契約最大値と、H列にその最大値を記載 （様式第３３の３ 第２表から先に作成する。） | D22: ・ ・ | E22: 電気事業者（発電事業者等）からの調達分は記載不要。 ネガワット・ポジワットをアグリゲーションする場合は、種類等の欄を「その他」とすること。
B23: ⑬ | C23: 【容量市場で発動指令電源として契約した契約容量の全量または一部を安定的な供給力として見込んでいる場合】 様式第３２第１表・第３表の発動指令電源供給力（再掲）欄に、その供給電力を記載する。 | D23: ・ | E23: 発動指令電源として契約した契約容量の全量を計上するのではなく、様式第３２第１表・第３表において安定的に見込める供給力として記載した供給電力の内、発動指令電源の契約分を計上している場合に、その量を記載する。
B24: ⑭ | C24: 「チェックシート」にて、×がないことを確認。また、△項目について確認内容を記載 （×項目があっても、正当な理由がある場合はそれを記載すること）
B25: ⑮ | C25: 「表紙」シート右上部の「保存」ボタンを押下してファイルを保存し、電子メールにより供給計画案を提出する。なお、非電気事業者内訳表（非電気事業者から調達がある場合、1年度目の調達分を記載する表）も作成している場合は、併せて提出する。 供給計画案 提出先 初回提出時はメール件名の先頭に【提出_ ＋（※供計用 事業者コード_＋貴社名】と記載頂くようお願いします。 ※供計用 事業者コード＝表紙シートのＡＢ18セル メール件名の例：【提出_Ｄ○○○_貴社名】○○○○○・・・・・○○ | D25: ・ ・ | E25: 「保存」ボタンは、ファイル名称を自動付与するためのボタンであり、自動作成されるファイル名称は変更しないこと。 「保存」ボタンは、手順の途中の仕掛保存で使用することも可能。
C28: お問い合わせ先：
C29: ○初回お問い合わせ時はメール件名の先頭に【問合せ_ ＋（※供計用 事業者コード）＋_貴社名】と記載頂くようお願いします。 ※供計用 事業者コード＝表紙シートのＡＢ18セル
C30: メール件名の例：【問合せ_Ｄ○○○_貴社名】○○○○○・・・・・○○

Sheet チェックシート
B1: 提出前に、下記チェックシートにて「×」がないことを確認すること。また、「△」については確認内容について記載すること。
B2: （「×」項目でも正当な理由がある場合はその内容を記載すること。例：前年度には事業を開始していない等、その旨を記載）
B3: なお、不整合箇所の詳細については、各帳票シートの印刷範囲外の右側に記載あり。
X4: 指定断面 | Z4: 4月 | AA4: 4月 | AB4: 5月 | AC4: 5月 | AD4: 6月 | AE4: 6月 | AF4: 7月 | AG4: 7月 | AH4: 8月 | AI4: 8月 | AJ4: 9月 | AK4: 9月 | AL4: 10月 | AM4: 10月 | AN4: 11月 | AO4: 11月 | AP4: 12月 | AQ4: 12月 | AR4: 1月 | AS4: 1月 | AT4: 2月 | AU4: 2月 | AV4: 3月 | AW4: 3月 | AX4: 年度計画
B5: シート名 | C5: 確認項目 | D5: チェック | E5: カテゴリ | F5: 内容 | G5: △or×の確認内容を記載 | Z5: 前半 | AA5: 後半 | AB5: 前半 | AC5: 後半 | AD5: 前半 | AE5: 後半 | AF5: 前半 | AG5: 後半 | AH5: 前半 | AI5: 後半 | AJ5: 前半 | AK5: 後半 | AL5: 前半 | AM5: 後半 | AN5: 前半 | AO5: 後半 | AP5: 前半 | AQ5: 後半 | AR5: 前半 | AS5: 後半 | AT5: 前半 | AU5: 後半 | AV5: 前半 | AW5: 後半 | AX5: 8月 | AY5: 1月
B6: 表紙 | C6: 表紙の記載 | D6: =表紙!$AC$26 -> × | F6: =IF(D6="×","住所・代表者名・供計用事業者コード・事業者コード・メールアドレスを記入ください。変更供計の場合は、変更の内容も記載ください。","") -> 住所・代表者名・供計用事業者コード・事業者コード・メールアドレスを記入ください。変更供計の場合は、変更の内容も記載ください。 | Y6: 北海道 | Z6: 19 | AA6: 19 | AB6: 12 | AC6: 12 | AD6: 12 | AE6: 12 | AF6: 12 | AG6: 12 | AH6: 15 | AI6: 15 | AJ6: 19 | AK6: 19 | AL6: 18 | AM6: 18 | AN6: 17 | AO6: 17 | AP6: 17 | AQ6: 17 | AR6: 10 | AS6: 10 | AT6: 10 | AU6: 10 | AV6: 19 | AW6: 19 | AX6: 15 | AY6: 10
B7: 受電取引帳票 | C7: 備考欄に種別が選択されているか | D7: =受電取引帳票!BX12 -> ○ | F7: =IF(D7="×","備考欄にプルダウンより種別を選択してください。","") ->  | Y7: 東北 | Z7: 10 | AA7: 10 | AB7: 12 | AC7: 12 | AD7: 12 | AE7: 15 | AF7: 15 | AG7: 15 | AH7: 15 | AI7: 15 | AJ7: 15 | AK7: 15 | AL7: 18 | AM7: 18 | AN7: 18 | AO7: 18 | AP7: 18 | AQ7: 18 | AR7: 10 | AS7: 10 | AT7: 10 | AU7: 10 | AV7: 10 | AW7: 10 | AX7: 15 | AY7: 10
B8: 送電取引帳票 | C8: 備考欄に種別が選択されているか | D8: =送電取引帳票!BX12 -> ○ | F8: =IF(D8="×","備考欄にプルダウンより種別を選択してください。","") ->  | Y8: 東京 | Z8: 19 | AA8: 19 | AB8: 15 | AC8: 15 | AD8: 14 | AE8: 15 | AF8: 15 | AG8: 15 | AH8: 15 | AI8: 15 | AJ8: 15 | AK8: 15 | AL8: 15 | AM8: 15 | AN8: 18 | AO8: 18 | AP8: 10 | AQ8: 10 | AR8: 10 | AS8: 10 | AT8: 10 | AU8: 10 | AV8: 19 | AW8: 19 | AX8: 15
Y9: 中部 | Z9: 10 | AA9: 10 | AB9: 15 | AC9: 15 | AD9: 15 | AE9: 15 | AF9: 15 | AG9: 15 | AH9: 15 | AI9: 15 | AJ9: 15 | AK9: 15 | AL9: 15 | AM9: 15 | AN9: 18 | AO9: 18 | AP9: 10 | AQ9: 10 | AR9: 10 | AS9: 10 | AT9: 10 | AU9: 10 | AV9: 10 | AW9: 10 | AX9: 15
Y10: 北陸 | Z10: 10 | AA10: 10 | AB10: 12 | AC10: 15 | AD10: 15 | AE10: 15 | AF10: 15 | AG10: 15 | AH10: 15 | AI10: 15 | AJ10: 15 | AK10: 12 | AL10: 15 | AM10: 15 | AN10: 10 | AO10: 10 | AP10: 10 | AQ10: 10 | AR10: 10 | AS10: 10 | AT10: 10 | AU10: 10 | AV10: 10 | AW10: 10 | AX10: 15 | AY10: 10
Y11: 関西 | Z11: 11 | AA11: 11 | AB11: 15 | AC11: 15 | AD11: 15 | AE11: 15 | AF11: 15 | AG11: 15 | AH11: 15 | AI11: 15 | AJ11: 15 | AK11: 15 | AL11: 15 | AM11: 11 | AN11: 10 | AO11: 10 | AP11: 10 | AQ11: 10 | AR11: 10 | AS11: 10 | AT11: 10 | AU11: 10 | AV11: 10 | AW11: 10 | AX11: 15
Y12: 中国 | Z12: 10 | AA12: 10 | AB12: 15 | AC12: 15 | AD12: 15 | AE12: 15 | AF12: 15 | AG12: 15 | AH12: 15 | AI12: 15 | AJ12: 15 | AK12: 15 | AL12: 15 | AM12: 15 | AN12: 10 | AO12: 10 | AP12: 10 | AQ12: 10 | AR12: 10 | AS12: 10 | AT12: 10 | AU12: 10 | AV12: 10 | AW12: 10 | AX12: 15
Y13: 四国 | Z13: 10 | AA13: 10 | AB13: 14 | AC13: 14 | AD13: 15 | AE13: 15 | AF13: 15 | AG13: 15 | AH13: 15 | AI13: 15 | AJ13: 15 | AK13: 15 | AL13: 14 | AM13: 14 | AN13: 10 | AO13: 10 | AP13: 10 | AQ13: 10 | AR13: 10 | AS13: 10 | AT13: 10 | AU13: 10 | AV13: 10 | AW13: 10 | AX13: 15
Y14: 九州 | Z14: 20 | AA14: 19 | AB14: 17 | AC14: 14 | AD14: 15 | AE14: 15 | AF14: 15 | AG14: 15 | AH14: 14 | AI14: 15 | AJ14: 15 | AK14: 15 | AL14: 15 | AM14: 19 | AN14: 19 | AO14: 19 | AP14: 19 | AQ14: 19 | AR14: 19 | AS14: 19 | AT14: 10 | AU14: 19 | AV14: 20 | AW14: 19 | AX14: 15
Y15: 沖縄 | Z15: 20 | AA15: 20 | AB15: 15 | AC15: 15 | AD15: 15 | AE15: 15 | AF15: 15 | AG15: 15 | AH15: 12 | AI15: 12 | AJ15: 15 | AK15: 15 | AL15: 15 | AM15: 15 | AN15: 19 | AO15: 19 | AP15: 19 | AQ15: 19 | AR15: 20 | AS15: 20 | AT15: 20 | AU15: 20 | AV15: 20 | AW15: 20 | AX15: 12
B18: ●更新履歴
C19: 日付 | E19: バージョン | F19: 更新内容
C20: 2025-11-28 | E20: format1 | F20: 初版

Sheet 昨年度取込 (hidden)
F2: データ転記 実行済み | G2: 移行対象シート | H2: 移行対象のセル範囲 | I2: 帳票表示切替 入力チェック用セル | J2: ロック行スキップ | K2: 移行元シート | L2: 移行元のセル範囲 | M2: 帳票表示切替 移行判定セル | O2: 入力チェック対象シート | P2: 値チェックセルと値 | R2: 必須入力セル | S2: エラーメッセージ
G3: 表紙 | H3: N17,N19,AB18,AB21 | K3: 表紙 | L3: N17,N19,AB18,AB21 | O3: 事業者リスト一覧 | P3: B3 | Q3: =事業者リスト一覧!B3-1 -> 2025 | S3: ="選択したファイルが"&Q3&"年度の供給計画届出書ではありません。移行元ファイルが正しいか確認してください。" -> 選択したファイルが2025年度の供給計画届出書ではありません。移行元ファイルが正しいか確認してください。
O4: 表紙 | R4: AB18 | S4: 選択したファイルの表紙シートが空になっています。データを入力した供給計画届出書ファイルを選択してください。
O5: 表紙 | P5: W20 | Q5: =表紙!W20 -> 配電事業者 | S5: ="選択したファイルが"&Q5&"用の供給計画届出書ではありません。移行元ファイルが正しいか確認してください。" -> 選択したファイルが配電事業者用の供給計画届出書ではありません。移行元ファイルが正しいか確認してください。
B8: 前年度の供給計画を準備し、↑のボタンを押下しマクロを実行する。 昨年度の供給計画を選択する。 G列の移行対象シートについて、昨年度供給計画に記載がある場合、取り込みを行う。 （注意事項等） 取り込み箇所は太陽光、風力シートは送電相手先欄、保有電源シート他は基本情報等の欄、32-5,32-7表はすべて。 表紙シート以外に記載がある場合、取り込みは行わない。
J24: ロックした行（他シートからの転記行）のデータ取り込みをスキップするフラグ | O24: M列以降は入力チェック定義用設定列
J25: 水力と新エネを想定 | P25: ↑移行元ファイルのシートに特定のセルの入力値チェック用の設定
R26: ↑移行元ファイルの特定のセルに入力がない場合に入力エラーとなるセル
O27: 入力チェックのルールも届出書の区分に合わせて、広域機関でメンテする想定
O28: 対応しているのは昨年度側の入力値のチェック、必須入力チェック
I29: I列は届出書にデータ入力済みの場合にエラーとするためのチェック用の設定列
I30: I列に指定した範囲がすべて空白ではない場合はデータ入力済みでエラーとする | M30: M列は移行元の届出書にデータ入力済みかどうか判定するための判定セル
I31: I列に入力がないシート（表紙）は入力チェックを実行しない | M31: M列に指定した範囲の値がすべて空白の場合、データ入力無しで取り込みをスキップする
M32: M列に入力がないシート（表紙）はスキップ判定を実行しない(強制的に取込む)
M33: I列と別枠にしたのは、様式の追加や削除で帳票表示切替のフォーマットが変わったときのため

Sheet 調整係数 (hidden)
O2: 2025年11月11日 | AD2: 2025年11月11日 | AS2: 2025年11月11日 | BH2: 2025年11月11日 | BW2: 2025年11月11日 | CL2: 2025年11月11日 | DA2: 2025年11月11日 | DP2: 2025年11月11日 | EE2: 2025年11月11日 | ET2: 2025年11月11日
O3: 電力広域的運営推進機関 | AD3: 電力広域的運営推進機関 | AS3: 電力広域的運営推進機関 | BH3: 電力広域的運営推進機関 | BW3: 電力広域的運営推進機関 | CL3: 電力広域的運営推進機関 | DA3: 電力広域的運営推進機関 | DP3: 電力広域的運営推進機関 | EE3: 電力広域的運営推進機関 | ET3: 電力広域的運営推進機関
B5: 以下の値は、電力広域的運営推進機関による算出値 | Q5: 以下の値は、電力広域的運営推進機関による算出値 | AF5: 以下の値は、電力広域的運営推進機関による算出値 | AU5: 以下の値は、電力広域的運営推進機関による算出値 | BJ5: 以下の値は、電力広域的運営推進機関による算出値 | BY5: 以下の値は、電力広域的運営推進機関による算出値 | CN5: 以下の値は、電力広域的運営推進機関による算出値 | DC5: 以下の値は、電力広域的運営推進機関による算出値 | DR5: 以下の値は、電力広域的運営推進機関による算出値 | EG5: 以下の値は、電力広域的運営推進機関による算出値
B7: エリア：北海道 | Q7: エリア：東北 | AF7: エリア：東京 | AU7: エリア：中部 | BJ7: エリア：北陸 | BY7: エリア：関西 | CN7: エリア：中国 | DC7: エリア：四国 | DR7: エリア：九州 | EG7: エリア：沖縄
B10: 太陽光 調整係数（％） | Q10: 太陽光 調整係数（％） | AF10: 太陽光 調整係数（％） | AU10: 太陽光 調整係数（％） | BJ10: 太陽光 調整係数（％） | BY10: 太陽光 調整係数（％） | CN10: 太陽光 調整係数（％） | DC10: 太陽光 調整係数（％） | DR10: 太陽光 調整係数（％） | EG10: 太陽光 調整係数（％）
C11: 4月 | D11: 5月 | E11: 6月 | F11: 7月 | G11: 8月 | H11: 9月 | I11: 10月 | J11: 11月 | K11: 12月 | L11: 1月 | M11: 2月 | N11: 3月 | O11: (参考)年間 | R11: 4月 | S11: 5月 | T11: 6月 | U11: 7月 | V11: 8月 | W11: 9月 | X11: 10月 | Y11: 11月 | Z11: 12月 | AA11: 1月 | AB11: 2月 | AC11: 3月 | AD11: (参考)年間 | AG11: 4月 | AH11: 5月 | AI11: 6月 | AJ11: 7月 | AK11: 8月 | AL11: 9月 | AM11: 10月 | AN11: 11月 | AO11: 12月 | AP11: 1月 | AQ11: 2月 | AR11: 3月 | AS11: (参考)年間 | AV11: 4月 | AW11: 5月 | AX11: 6月 | AY11: 7月 | AZ11: 8月 | BA11: 9月 | BB11: 10月 | BC11: 11月 | BD11: 12月 | BE11: 1月 | BF11: 2月 | BG11: 3月 | BH11: (参考)年間 | BK11: 4月 | BL11: 5月 | BM11: 6月 | BN11: 7月 | BO11: 8月 | BP11: 9月 | BQ11: 10月 | BR11: 11月 | BS11: 12月 | BT11: 1月 | BU11: 2月 | BV11: 3月 | BW11: (参考)年間 | BZ11: 4月 | CA11: 5月 | CB11: 6月 | CC11: 7月 | CD11: 8月 | CE11: 9月 | CF11: 10月 | CG11: 11月 | CH11: 12月 | CI11: 1月 | CJ11: 2月 | CK11: 3月 | CL11: (参考)年間 | CO11: 4月 | CP11: 5月 | CQ11: 6月 | CR11: 7月 | CS11: 8月 | CT11: 9月 | CU11: 10月 | CV11: 11月 | CW11: 12月 | CX11: 1月 | CY11: 2月 | CZ11: 3月 | DA11: (参考)年間 | DD11: 4月 | DE11: 5月 | DF11: 6月 | DG11: 7月 | DH11: 8月 | DI11: 9月 | DJ11: 10月 | DK11: 11月 | DL11: 12月 | DM11: 1月 | DN11: 2月 | DO11: 3月 | DP11: (参考)年間 | DS11: 4月 | DT11: 5月 | DU11: 6月 | DV11: 7月 | DW11: 8月 | DX11: 9月 | DY11: 10月 | DZ11: 11月 | EA11: 12月 | EB11: 1月 | EC11: 2月 | ED11: 3月 | EE11: (参考)年間 | EH11: 4月 | EI11: 5月 | EJ11: 6月 | EK11: 7月 | EL11: 8月 | EM11: 9月 | EN11: 10月 | EO11: 11月 | EP11: 12月 | EQ11: 1月 | ER11: 2月 | ES11: 3月 | ET11: (参考)年間
B12: 2026年度 | C12: 1.394929616 | D12: 4.570046029 | E12: 5.733835144 | F12: 8.745879141 | G12: 8.554250438 | H12: 3.238334101 | I12: 0.9480526351 | J12: 0.9486977466 | K12: 0.5231447649 | L12: 1.342970811 | M12: 1.09598277 | N12: 0.8228957777 | Q12: 2026年度 | R12: 2.711048866 | S12: 16.7818421 | T12: 20.80941754 | U12: 21.74534947 | V12: 25.54389589 | W12: 16.85877467 | X12: 9.478747342 | Y12: 2.612600653 | Z12: 0.5243228283 | AA12: 3.667071887 | AB12: 1.375123897 | AC12: 2.399091624 | AF12: 2026年度 | AG12: 1.389773677 | AH12: 11.02433005 | AI12: 17.51563422 | AJ12: 21.37582979 | AK12: 22.94267175 | AL12: 15.20483128 | AM12: 8.352956867 | AN12: 1.173006213 | AO12: 0.3466289095 | AP12: 2.533296574 | AQ12: 0.8367414548 | AR12: 1.021437959 | AU12: 2026年度 | AV12: 2.952986967 | AW12: 10.74640718 | AX12: 19.33678896 | AY12: 23.00862477 | AZ12: 21.64972688 | BA12: 16.72778624 | BB12: 9.953434798 | BC12: 0.05258311584 | BD12: 2.472963682 | BE12: 5.750454543 | BF12: 3.401145237 | BG12: 2.469733317 | BJ12: 2026年度 | BK12: 11.13007525 | BL12: 27.09324449 | BM12: 27.92491656 | BN12: 33.17214685 | BO12: 33.05894093 | BP12: 23.47723044 | BQ12: 14.40184311 | BR12: 0.3463970067 | BS12: 1.391779496 | BT12: 3.059137856 | BU12: 2.155500225 | BV12: 6.588375252 | BY12: 2026年度 | BZ12: 4.175098927 | CA12: 14.21463729 | CB12: 20.63520281 | CC12: 25.93952609 | CD12: 26.77663507 | CE12: 19.00001466 | CF12: 12.18067495 | CG12: 0.07406245562 | CH12: 2.296011622 | CI12: 4.470221349 | CJ12: 4.044629102 | CK12: 3.156923855 | CN12: 2026年度 | CO12: 4.024511698 | CP12: 16.56145088 | CQ12: 20.55167731 | CR12: 28.45900989 | CS12: 29.75568974 | CT12: 18.72872272 | CU12: 13.18734302 | CV12: 0.07743541284 | CW12: 2.501643905 | CX12: 4.988481234 | CY12: 3.155818125 | CZ12: 2.964590274 | DC12: 2026年度 | DD12: 7.541580285 | DE12: 17.73445184 | DF12: 25.22402627 | DG12: 30.74613921 | DH12: 32.14730315 | DI12: 23.06862265 | DJ12: 15.40450649 | DK12: 0.1428013966 | DL12: 2.673587897 | DM12: 5.666165128 | DN12: 4.639798663 | DO12: 4.943599855 | DR12: 2026年度 | DS12: 1.365579984 | DT12: 6.840534828 | DU12: 13.70981514 | DV12: 14.78109537 | DW12: 12.94412476 | DX12: 14.85937923 | DY12: 7.581328004 | DZ12: 0.4323881833 | EA12: 1.576407067 | EB12: 2.582901376 | EC12: 1.862612066 | ED12: 1.560371024 | EG12: 2026年度 | EH12: 11.19832288 | EI12: 16.17563381 | EJ12: 20.75164235 | EK12: 18.84149488 | EL12: 20.47382242 | EM12: 19.80393248 | EN12: 16.48902479 | EO12: 10.67660716 | EP12: 5.233199572 | EQ12: 4.626753271 | ER12: 5.290273315 | ES12: 7.90407367
B13: 2027年度 | C13: 1.459727696 | D13: 3.523732111 | E13: 5.570877594 | F13: 8.268059173 | G13: 8.06881659 | H13: 3.386348481 | I13: 0.7645492863 | J13: 0.9362518811 | K13: 0.4925925791 | L13: 1.191021142 | M13: 0.9385206784 | N13: 0.6881002656 | Q13: 2027年度 | R13: 2.038942966 | S13: 15.51940857 | T13: 20.74497718 | U13: 21.34506807 | V13: 24.93825954 | W13: 16.28097122 | X13: 9.243901559 | Y13: 2.732436087 | Z13: 0.3631378414 | AA13: 3.75203656 | AB13: 1.443641011 | AC13: 2.708152852 | AF13: 2027年度 | AG13: 1.153389562 | AH13: 9.97525148 | AI13: 17.50975517 | AJ13: 20.99390115 | AK13: 22.26006914 | AL13: 14.8232586 | AM13: 8.122269902 | AN13: 1.0333549 | AO13: 0.2377219965 | AP13: 2.634431782 | AQ13: 0.9816318982 | AR13: 1.328368671 | AU13: 2027年度 | AV13: 2.797131332 | AW13: 10.98466391 | AX13: 19.41988584 | AY13: 22.98194821 | AZ13: 20.51781083 | BA13: 16.4611759 | BB13: 9.902816744 | BC13: 0.03546865061 | BD13: 2.247602331 | BE13: 5.7472727 | BF13: 3.253734587 | BG13: 2.339446065 | BJ13: 2027年度 | BK13: 12.50662481 | BL13: 27.99173312 | BM13: 27.06875516 | BN13: 33.65249991 | BO13: 32.04741415 | BP13: 23.34420719 | BQ13: 13.67787865 | BR13: 0.1504210141 | BS13: 1.21703937 | BT13: 3.040365904 | BU13: 1.876758664 | BV13: 5.633342046 | BY13: 2027年度 | BZ13: 4.05795718 | CA13: 13.82972849 | CB13: 20.46423659 | CC13: 25.68450681 | CD13: 26.08965236 | CE13: 18.69348453 | CF13: 12.02435399 | CG13: 0.06220722182 | CH13: 2.066294267 | CI13: 4.617371589 | CJ13: 3.697014241 | CK13: 3.151923655 | CN13: 2027年度 | CO13: 4.102352213 | CP13: 16.44174572 | CQ13: 20.12693777 | CR13: 28.1032422 | CS13: 28.85416177 | CT13: 18.42076481 | CU13: 13.18158183 | CV13: 0.07048318241 | CW13: 2.283263373 | CX13: 5.63207714 | CY13: 3.117286572 | CZ13: 3.462951085 | DC13: 2027年度 | DD13: 7.563215247 | DE13: 16.97269064 | DF13: 24.81994679 | DG13: 30.77772706 | DH13: 31.49600836 | DI13: 22.80702004 | DJ13: 14.82548545 | DK13: 0.1238016751 | DL13: 2.480303324 | DM13: 5.826880445 | DN13: 4.526631969 | DO13: 4.589796076 | DR13: 2027年度 | DS13: 1.403444896 | DT13: 6.179575263 | DU13: 13.21111708 | DV13: 14.38854427 | DW13: 13.00168737 | DX13: 14.1361521 | DY13: 7.608415761 | DZ13: 0.3629041229 | EA13: 1.425466255 | EB13: 2.812687633 | EC13: 1.764917471 | ED13: 1.51283746 | EG13: 2027年度 | EH13: 11.12312851 | EI13: 16.06271359 | EJ13: 20.56000655 | EK13: 18.84009848 | EL13: 20.4658063 | EM13: 19.43890012 | EN13: 16.3347583 | EO13: 10.49427867 | EP13: 5.202624856 | EQ13: 4.584919149 | ER13: 5.213046874 | ES13: 7.823644644
B14: 2028年度 | G14: 5.055014077 | L14: 5.055014077 | O14: 5.055014077 | Q14: 2028年度 | V14: 11.37262772 | AA14: 11.37262772 | AD14: 11.37262772 | AF14: 2028年度 | AK14: 9.738721254 | AP14: 9.738721254 | AS14: 9.738721254 | AU14: 2028年度 | AZ14: 11.5993149 | BE14: 11.5993149 | BH14: 11.5993149 | BJ14: 2028年度 | BO14: 17.26543513 | BT14: 17.26543513 | BW14: 17.26543513 | BY14: 2028年度 | CD14: 12.70677236 | CI14: 12.70677236 | CL14: 12.70677236 | CN14: 2028年度 | CS14: 13.51833943 | CX14: 13.51833943 | DA14: 13.51833943 | DC14: 2028年度 | DH14: 15.48381592 | DM14: 15.48381592 | DP14: 15.48381592 | DR14: 2028年度 | DW14: 5.358744617 | EB14: 5.358744617 | EE14: 5.358744617 | EG14: 2028年度 | EL14: 16.64925218 | EQ14: 16.64925218 | ET14: 16.64925218
B15: 2029年度 | G15: 5.257048611 | L15: 5.257048611 | O15: 5.257048611 | Q15: 2029年度 | V15: 10.86918475 | AA15: 10.86918475 | AD15: 10.86918475 | AF15: 2029年度 | AK15: 9.547063528 | AP15: 9.547063528 | AS15: 9.547063528 | AU15: 2029年度 | AZ15: 11.09515808 | BE15: 11.09515808 | BH15: 11.09515808 | BJ15: 2029年度 | BO15: 16.5896694 | BT15: 16.5896694 | BW15: 16.5896694 | BY15: 2029年度 | CD15: 11.94579241 | CI15: 11.94579241 | CL15: 11.94579241 | CN15: 2029年度 | CS15: 12.45788355 | CX15: 12.45788355 | DA15: 12.45788355 | DC15: 2029年度 | DH15: 14.24168307 | DM15: 14.24168307 | DP15: 14.24168307 | DR15: 2029年度 | DW15: 4.967806448 | EB15: 4.967806448 | EE15: 4.967806448 | EG15: 2029年度 | EL15: 16.63113876 | EQ15: 16.63113876 | ET15: 16.63113876
B16: 2030年度 | G16: 4.939916695 | L16: 4.939916695 | O16: 4.939916695 | Q16: 2030年度 | V16: 10.81936833 | AA16: 10.81936833 | AD16: 10.81936833 | AF16: 2030年度 | AK16: 9.354034373 | AP16: 9.354034373 | AS16: 9.354034373 | AU16: 2030年度 | AZ16: 10.79133291 | BE16: 10.79133291 | BH16: 10.79133291 | BJ16: 2030年度 | BO16: 15.92152532 | BT16: 15.92152532 | BW16: 15.92152532 | BY16: 2030年度 | CD16: 11.74682111 | CI16: 11.74682111 | CL16: 11.74682111 | CN16: 2030年度 | CS16: 12.75425555 | CX16: 12.75425555 | DA16: 12.75425555 | DC16: 2030年度 | DH16: 14.79176387 | DM16: 14.79176387 | DP16: 14.79176387 | DR16: 2030年度 | DW16: 4.811524069 | EB16: 4.811524069 | EE16: 4.811524069 | EG16: 2030年度 | EL16: 16.39086411 | EQ16: 16.39086411 | ET16: 16.39086411
B17: 2031年度 | G17: 4.71110889 | L17: 4.71110889 | O17: 4.71110889 | Q17: 2031年度 | V17: 10.3913811 | AA17: 10.3913811 | AD17: 10.3913811 | AF17: 2031年度 | AK17: 9.050304328 | AP17: 9.050304328 | AS17: 9.050304328 | AU17: 2031年度 | AZ17: 11.01729497 | BE17: 11.01729497 | BH17: 11.01729497 | BJ17: 2031年度 | BO17: 15.73520842 | BT17: 15.73520842 | BW17: 15.73520842 | BY17: 2031年度 | CD17: 11.51634098 | CI17: 11.51634098 | CL17: 11.51634098 | CN17: 2031年度 | CS17: 12.30334555 | CX17: 12.30334555 | DA17: 12.30334555 | DC17: 2031年度 | DH17: 14.40442077 | DM17: 14.40442077 | DP17: 14.40442077 | DR17: 2031年度 | DW17: 5.01743274 | EB17: 5.01743274 | EE17: 5.01743274 | EG17: 2031年度 | EL17: 16.32175085 | EQ17: 16.32175085 | ET17: 16.32175085
B18: 2032年度 | G18: 4.456329412 | L18: 4.456329412 | O18: 4.456329412 | Q18: 2032年度 | V18: 9.948893378 | AA18: 9.948893378 | AD18: 9.948893378 | AF18: 2032年度 | AK18: 9.070826156 | AP18: 9.070826156 | AS18: 9.070826156 | AU18: 2032年度 | AZ18: 10.64197432 | BE18: 10.64197432 | BH18: 10.64197432 | BJ18: 2032年度 | BO18: 15.77117979 | BT18: 15.77117979 | BW18: 15.77117979 | BY18: 2032年度 | CD18: 11.28198762 | CI18: 11.28198762 | CL18: 11.28198762 | CN18: 2032年度 | CS18: 11.84306372 | CX18: 11.84306372 | DA18: 11.84306372 | DC18: 2032年度 | DH18: 14.17761888 | DM18: 14.17761888 | DP18: 14.17761888 | DR18: 2032年度 | DW18: 4.580898055 | EB18: 4.580898055 | EE18: 4.580898055 | EG18: 2032年度 | EL18: 16.02021112 | EQ18: 16.02021112 | ET18: 16.02021112
B19: 2033年度 | G19: 4.315788717 | L19: 4.315788717 | O19: 4.315788717 | Q19: 2033年度 | V19: 9.701342584 | AA19: 9.701342584 | AD19: 9.701342584 | AF19: 2033年度 | AK19: 8.725628079 | AP19: 8.725628079 | AS19: 8.725628079 | AU19: 2033年度 | AZ19: 10.35346097 | BE19: 10.35346097 | BH19: 10.35346097 | BJ19: 2033年度 | BO19: 16.56094244 | BT19: 16.56094244 | BW19: 16.56094244 | BY19: 2033年度 | CD19: 11.40298465 | CI19: 11.40298465 | CL19: 11.40298465 | CN19: 2033年度 | CS19: 11.96750629 | CX19: 11.96750629 | DA19: 11.96750629 | DC19: 2033年度 | DH19: 13.63247526 | DM19: 13.63247526 | DP19: 13.63247526 | DR19: 2033年度 | DW19: 4.661738404 | EB19: 4.661738404 | EE19: 4.661738404 | EG19: 2033年度 | EL19: 16.11644284 | EQ19: 16.11644284 | ET19: 16.11644284
B20: 2034年度 | G20: 4.247563201 | L20: 4.247563201 | O20: 4.247563201 | Q20: 2034年度 | V20: 9.674531382 | AA20: 9.674531382 | AD20: 9.674531382 | AF20: 2034年度 | AK20: 8.713619452 | AP20: 8.713619452 | AS20: 8.713619452 | AU20: 2034年度 | AZ20: 10.09972599 | BE20: 10.09972599 | BH20: 10.09972599 | BJ20: 2034年度 | BO20: 15.17754326 | BT20: 15.17754326 | BW20: 15.17754326 | BY20: 2034年度 | CD20: 10.73883298 | CI20: 10.73883298 | CL20: 10.73883298 | CN20: 2034年度 | CS20: 11.3879365 | CX20: 11.3879365 | DA20: 11.3879365 | DC20: 2034年度 | DH20: 13.70147834 | DM20: 13.70147834 | DP20: 13.70147834 | DR20: 2034年度 | DW20: 4.456117536 | EB20: 4.456117536 | EE20: 4.456117536 | EG20: 2034年度 | EL20: 15.98776386 | EQ20: 15.98776386 | ET20: 15.98776386
B21: 2035年度 | G21: 4.247563201 | L21: 4.247563201 | O21: 4.247563201 | Q21: 2035年度 | V21: 9.674531382 | AA21: 9.674531382 | AD21: 9.674531382 | AF21: 2035年度 | AK21: 8.713619452 | AP21: 8.713619452 | AS21: 8.713619452 | AU21: 2035年度 | AZ21: 10.09972599 | BE21: 10.09972599 | BH21: 10.09972599 | BJ21: 2035年度 | BO21: 15.17754326 | BT21: 15.17754326 | BW21: 15.17754326 | BY21: 2035年度 | CD21: 10.73883298 | CI21: 10.73883298 | CL21: 10.73883298 | CN21: 2035年度 | CS21: 11.3879365 | CX21: 11.3879365 | DA21: 11.3879365 | DC21: 2035年度 | DH21: 13.70147834 | DM21: 13.70147834 | DP21: 13.70147834 | DR21: 2035年度 | DW21: 4.456117536 | EB21: 4.456117536 | EE21: 4.456117536 | EG21: 2035年度 | EL21: 15.98776386 | EQ21: 15.98776386 | ET21: 15.98776386
B23: 風力 調整係数（％） | Q23: 風力 調整係数（％） | AF23: 風力 調整係数（％） | AU23: 風力 調整係数（％） | BJ23: 風力 調整係数（％） | BY23: 風力 調整係数（％） | CN23: 風力 調整係数（％） | DC23: 風力 調整係数（％） | DR23: 風力 調整係数（％） | EG23: 風力 調整係数（％）
C24: 4月 | D24: 5月 | E24: 6月 | F24: 7月 | G24: 8月 | H24: 9月 | I24: 10月 | J24: 11月 | K24: 12月 | L24: 1月 | M24: 2月 | N24: 3月 | O24: (参考)年間 | R24: 4月 | S24: 5月 | T24: 6月 | U24: 7月 | V24: 8月 | W24: 9月 | X24: 10月 | Y24: 11月 | Z24: 12月 | AA24: 1月 | AB24: 2月 | AC24: 3月 | AD24: (参考)年間 | AG24: 4月 | AH24: 5月 | AI24: 6月 | AJ24: 7月 | AK24: 8月 | AL24: 9月 | AM24: 10月 | AN24: 11月 | AO24: 12月 | AP24: 1月 | AQ24: 2月 | AR24: 3月 | AS24: (参考)年間 | AV24: 4月 | AW24: 5月 | AX24: 6月 | AY24: 7月 | AZ24: 8月 | BA24: 9月 | BB24: 10月 | BC24: 11月 | BD24: 12月 | BE24: 1月 | BF24: 2月 | BG24: 3月 | BH24: (参考)年間 | BK24: 4月 | BL24: 5月 | BM24: 6月 | BN24: 7月 | BO24: 8月 | BP24: 9月 | BQ24: 10月 | BR24: 11月 | BS24: 12月 | BT24: 1月 | BU24: 2月 | BV24: 3月 | BW24: (参考)年間 | BZ24: 4月 | CA24: 5月 | CB24: 6月 | CC24: 7月 | CD24: 8月 | CE24: 9月 | CF24: 10月 | CG24: 11月 | CH24: 12月 | CI24: 1月 | CJ24: 2月 | CK24: 3月 | CL24: (参考)年間 | CO24: 4月 | CP24: 5月 | CQ24: 6月 | CR24: 7月 | CS24: 8月 | CT24: 9月 | CU24: 10月 | CV24: 11月 | CW24: 12月 | CX24: 1月 | CY24: 2月 | CZ24: 3月 | DA24: (参考)年間 | DD24: 4月 | DE24: 5月 | DF24: 6月 | DG24: 7月 | DH24: 8月 | DI24: 9月 | DJ24: 10月 | DK24: 11月 | DL24: 12月 | DM24: 1月 | DN24: 2月 | DO24: 3月 | DP24: (参考)年間 | DS24: 4月 | DT24: 5月 | DU24: 6月 | DV24: 7月 | DW24: 8月 | DX24: 9月 | DY24: 10月 | DZ24: 11月 | EA24: 12月 | EB24: 1月 | EC24: 2月 | ED24: 3月 | EE24: (参考)年間 | EH24: 4月 | EI24: 5月 | EJ24: 6月 | EK24: 7月 | EL24: 8月 | EM24: 9月 | EN24: 10月 | EO24: 11月 | EP24: 12月 | EQ24: 1月 | ER24: 2月 | ES24: 3月 | ET24: (参考)年間
B25: 2026年度 | C25: 23.27555141 | D25: 16.77480981 | E25: 15.79851 | F25: 13.16477319 | G25: 8.876076417 | H25: 11.36315733 | I25: 19.60117738 | J25: 27.47648181 | K25: 32.7492162 | L25: 26.38209621 | M25: 30.21190903 | N25: 17.92740404 | Q25: 2026年度 | R25: 37.0555973 | S25: 18.305824 | T25: 12.34318809 | U25: 10.54368495 | V25: 10.48758507 | W25: 15.07567866 | X25: 21.88356437 | Y25: 29.26580008 | Z25: 52.7431564 | AA25: 46.58609743 | AB25: 46.29034483 | AC25: 22.42845786 | AF25: 2026年度 | AG25: 37.21133486 | AH25: 12.71989409 | AI25: 15.0591472 | AJ25: 17.13978474 | AK25: 7.660301104 | AL25: 17.30341319 | AM25: 24.68314235 | AN25: 12.5842424 | AO25: 17.33184643 | AP25: 24.37122132 | AQ25: 18.81133974 | AR25: 22.43765231 | AU25: 2026年度 | AV25: 24.47758782 | AW25: 10.47437688 | AX25: 9.410205007 | AY25: 11.20948452 | AZ25: 12.99493321 | BA25: 12.04548202 | BB25: 16.47127215 | BC25: 29.13855081 | BD25: 36.29450618 | BE25: 39.60722567 | BF25: 43.53608002 | BG25: 35.80186447 | BJ25: 2026年度 | BK25: 15.38106813 | BL25: 13.97097823 | BM25: 8.282187419 | BN25: 7.823982929 | BO25: 7.831326029 | BP25: 12.20130721 | BQ25: 15.83383142 | BR25: 26.50187026 | BS25: 31.74142196 | BT25: 36.9466879 | BU25: 26.89740546 | BV25: 19.41778629 | BY25: 2026年度 | BZ25: 25.67092095 | CA25: 17.2105755 | CB25: 19.47108377 | CC25: 10.30286106 | CD25: 11.13829234 | CE25: 15.35541627 | CF25: 15.12394295 | CG25: 26.21655856 | CH25: 33.86378959 | CI25: 40.10924865 | CJ25: 35.04575981 | CK25: 27.59819465 | CN25: 2026年度 | CO25: 19.01145727 | CP25: 11.12167355 | CQ25: 11.69209808 | CR25: 7.21673497 | CS25: 8.163195606 | CT25: 11.0738669 | CU25: 12.71275265 | CV25: 21.5955729 | CW25: 25.9672245 | CX25: 31.74942803 | CY25: 22.70193663 | CZ25: 20.10788105 | DC25: 2026年度 | DD25: 23.92923031 | DE25: 16.4791974 | DF25: 18.98249313 | DG25: 10.23412336 | DH25: 10.75194122 | DI25: 16.00919255 | DJ25: 17.82745852 | DK25: 35.63247809 | DL25: 43.35654649 | DM25: 45.33082991 | DN25: 40.60692898 | DO25: 42.05237856 | DR25: 2026年度 | DS25: 15.1735638 | DT25: 8.432313497 | DU25: 11.48404576 | DV25: 5.455008882 | DW25: 4.83325978 | DX25: 10.29746562 | DY25: 10.33102043 | DZ25: 21.17713395 | EA25: 22.36785701 | EB25: 23.45126799 | EC25: 23.02185497 | ED25: 19.52393802 | EG25: 2026年度 | EH25: 24.04310967 | EI25: 19.36035956 | EJ25: 26.12057489 | EK25: 16.88174051 | EL25: 14.87278807 | EM25: 13.43305585 | EN25: 27.43731817 | EO25: 24.94291284 | EP25: 38.31750339 | EQ25: 35.72455672 | ER25: 34.32644334 | ES25: 26.13636364
B26: 2027年度 | C26: 22.56792569 | D26: 16.1088806 | E26: 15.09174073 | F26: 11.92050694 | G26: 9.045664782 | H26: 12.00933814 | I26: 18.32212966 | J26: 27.1410061 | K26: 32.08229255 | L26: 26.48694712 | M26: 26.46800002 | N26: 18.42751868 | Q26: 2027年度 | R26: 34.4678604 | S26: 17.03763207 | T26: 12.6515255 | U26: 10.92432754 | V26: 10.41378382 | W26: 15.14621648 | X26: 22.1969883 | Y26: 31.87559943 | Z26: 50.91433614 | AA26: 48.23296793 | AB26: 44.57085508 | AC26: 20.28810896 | AF26: 2027年度 | AG26: 37.51877274 | AH26: 14.18214991 | AI26: 14.79759988 | AJ26: 17.38685129 | AK26: 7.56210565 | AL26: 17.72447741 | AM26: 24.04136739 | AN26: 14.06270169 | AO26: 18.0674131 | AP26: 23.26836387 | AQ26: 20.35617042 | AR26: 23.33461171 | AU26: 2027年度 | AV26: 24.57363644 | AW26: 12.84779148 | AX26: 9.201539695 | AY26: 10.72698941 | AZ26: 13.3157901 | BA26: 12.07724373 | BB26: 14.7034109 | BC26: 29.88505328 | BD26: 37.1294757 | BE26: 39.97508693 | BF26: 43.12277018 | BG26: 36.61005391 | BJ26: 2027年度 | BK26: 16.29035219 | BL26: 14.25250049 | BM26: 8.093067675 | BN26: 8.238754715 | BO26: 7.739347886 | BP26: 12.10849246 | BQ26: 15.04462503 | BR26: 26.52067358 | BS26: 31.77677221 | BT26: 34.67720016 | BU26: 26.79077228 | BV26: 19.4280841 | BY26: 2027年度 | BZ26: 27.61199032 | CA26: 19.10310461 | CB26: 19.93725066 | CC26: 10.00472611 | CD26: 10.70410092 | CE26: 15.20814239 | CF26: 14.17725223 | CG26: 24.67233844 | CH26: 34.79924742 | CI26: 40.48308189 | CJ26: 35.77406995 | CK26: 29.18431589 | CN26: 2027年度 | CO26: 20.09881952 | CP26: 12.6394447 | CQ26: 11.62163145 | CR26: 7.476774484 | CS26: 7.7634275 | CT26: 10.81454966 | CU26: 12.95159659 | CV26: 21.36372803 | CW26: 25.91774434 | CX26: 29.66745926 | CY26: 22.70921376 | CZ26: 23.44838848 | DC26: 2027年度 | DD26: 26.72242824 | DE26: 19.32757605 | DF26: 18.68985956 | DG26: 9.406810948 | DH26: 9.746573507 | DI26: 16.36218277 | DJ26: 17.63079481 | DK26: 34.56942027 | DL26: 42.75540302 | DM26: 46.87374458 | DN26: 40.16205576 | DO26: 44.6015412 | DR26: 2027年度 | DS26: 15.00345482 | DT26: 6.813657208 | DU26: 11.63721979 | DV26: 5.529181069 | DW26: 4.690769531 | DX26: 10.00313308 | DY26: 9.44242733 | DZ26: 23.13356526 | EA26: 22.23076242 | EB26: 24.16440041 | EC26: 22.04097611 | ED26: 20.48759749 | EG26: 2027年度 | EH26: 25.23578737 | EI26: 18.28571429 | EJ26: 25.91559272 | EK26: 14.9724026 | EL26: 15 | EM26: 15.71428571 | EN26: 25.90519255 | EO26: 26.14285714 | EP26: 37.72057535 | EQ26: 36.85714286 | ER26: 34.14285714 | ES26: 26.78973035
B27: 2028年度 | G27: 23.19642124 | L27: 23.19642124 | O27: 23.19642124 | Q27: 2028年度 | V27: 31.80012531 | AA27: 31.80012531 | AD27: 31.80012531 | AF27: 2028年度 | AK27: 24.00536029 | AP27: 24.00536029 | AS27: 24.00536029 | AU27: 2028年度 | AZ27: 29.07532717 | BE27: 29.07532717 | BH27: 29.07532717 | BJ27: 2028年度 | BO27: 20.31424736 | BT27: 20.31424736 | BW27: 20.31424736 | BY27: 2028年度 | CD27: 28.61973115 | CI27: 28.61973115 | CL27: 28.61973115 | CN27: 2028年度 | CS27: 19.28760385 | CX27: 19.28760385 | DA27: 19.28760385 | DC27: 2028年度 | DH27: 32.20076218 | DM27: 32.20076218 | DP27: 32.20076218 | DR27: 2028年度 | DW27: 17.73012641 | EB27: 17.73012641 | EE27: 17.73012641 | EG27: 2028年度 | EL27: 30.86728221 | EQ27: 30.86728221 | ET27: 30.86728221
B28: 2029年度 | G28: 23.17292401 | L28: 23.17292401 | O28: 23.17292401 | Q28: 2029年度 | V28: 31.1229462 | AA28: 31.1229462 | AD28: 31.1229462 | AF28: 2029年度 | AK28: 23.1365491 | AP28: 23.1365491 | AS28: 23.1365491 | AU28: 2029年度 | AZ28: 28.92476332 | BE28: 28.92476332 | BH28: 28.92476332 | BJ28: 2029年度 | BO28: 20.09570069 | BT28: 20.09570069 | BW28: 20.09570069 | BY28: 2029年度 | CD28: 29.15774877 | CI28: 29.15774877 | CL28: 29.15774877 | CN28: 2029年度 | CS28: 19.23647036 | CX28: 19.23647036 | DA28: 19.23647036 | DC28: 2029年度 | DH28: 31.88611932 | DM28: 31.88611932 | DP28: 31.88611932 | DR28: 2029年度 | DW28: 17.11121046 | EB28: 17.11121046 | EE28: 17.11121046 | EG28: 2029年度 | EL28: 33.13797994 | EQ28: 33.13797994 | ET28: 33.13797994
B29: 2030年度 | G29: 20.97174427 | L29: 20.97174427 | O29: 20.97174427 | Q29: 2030年度 | V29: 29.72808452 | AA29: 29.72808452 | AD29: 29.72808452 | AF29: 2030年度 | AK29: 24.50465512 | AP29: 24.50465512 | AS29: 24.50465512 | AU29: 2030年度 | AZ29: 28.72256021 | BE29: 28.72256021 | BH29: 28.72256021 | BJ29: 2030年度 | BO29: 18.55070761 | BT29: 18.55070761 | BW29: 18.55070761 | BY29: 2030年度 | CD29: 31.02524121 | CI29: 31.02524121 | CL29: 31.02524121 | CN29: 2030年度 | CS29: 20.7846298 | CX29: 20.7846298 | DA29: 20.7846298 | DC29: 2030年度 | DH29: 31.16447985 | DM29: 31.16447985 | DP29: 31.16447985 | DR29: 2030年度 | DW29: 16.84883554 | EB29: 16.84883554 | EE29: 16.84883554 | EG29: 2030年度 | EL29: 31.94856388 | EQ29: 31.94856388 | ET29: 31.94856388
B30: 2031年度 | G30: 20.94523816 | L30: 20.94523816 | O30: 20.94523816 | Q30: 2031年度 | V30: 27.12113631 | AA30: 27.12113631 | AD30: 27.12113631 | AF30: 2031年度 | AK30: 24.11641006 | AP30: 24.11641006 | AS30: 24.11641006 | AU30: 2031年度 | AZ30: 29.90666801 | BE30: 29.90666801 | BH30: 29.90666801 | BJ30: 2031年度 | BO30: 19.88088937 | BT30: 19.88088937 | BW30: 19.88088937 | BY30: 2031年度 | CD30: 29.81300287 | CI30: 29.81300287 | CL30: 29.81300287 | CN30: 2031年度 | CS30: 20.36117381 | CX30: 20.36117381 | DA30: 20.36117381 | DC30: 2031年度 | DH30: 31.86141021 | DM30: 31.86141021 | DP30: 31.86141021 | DR30: 2031年度 | DW30: 17.06521633 | EB30: 17.06521633 | EE30: 17.06521633 | EG30: 2031年度 | EL30: 32.62052691 | EQ30: 32.62052691 | ET30: 32.62052691
B31: 2032年度 | G31: 20.06149475 | L31: 20.06149475 | O31: 20.06149475 | Q31: 2032年度 | V31: 28.73888762 | AA31: 28.73888762 | AD31: 28.73888762 | AF31: 2032年度 | AK31: 23.7955857 | AP31: 23.7955857 | AS31: 23.7955857 | AU31: 2032年度 | AZ31: 28.87375647 | BE31: 28.87375647 | BH31: 28.87375647 | BJ31: 2032年度 | BO31: 19.88755053 | BT31: 19.88755053 | BW31: 19.88755053 | BY31: 2032年度 | CD31: 29.22013575 | CI31: 29.22013575 | CL31: 29.22013575 | CN31: 2032年度 | CS31: 19.30420699 | CX31: 19.30420699 | DA31: 19.30420699 | DC31: 2032年度 | DH31: 32.80530118 | DM31: 32.80530118 | DP31: 32.80530118 | DR31: 2032年度 | DW31: 16.65677861 | EB31: 16.65677861 | EE31: 16.65677861 | EG31: 2032年度 | EL31: 32.62052691 | EQ31: 32.62052691 | ET31: 32.62052691
B32: 2033年度 | G32: 20.35926466 | L32: 20.35926466 | O32: 20.35926466 | Q32: 2033年度 | V32: 27.82183643 | AA32: 27.82183643 | AD32: 27.82183643 | AF32: 2033年度 | AK32: 23.5577725 | AP32: 23.5577725 | AS32: 23.5577725 | AU32: 2033年度 | AZ32: 28.03363717 | BE32: 28.03363717 | BH32: 28.03363717 | BJ32: 2033年度 | BO32: 19.99899192 | BT32: 19.99899192 | BW32: 19.99899192 | BY32: 2033年度 | CD32: 27.39834009 | CI32: 27.39834009 | CL32: 27.39834009 | CN32: 2033年度 | CS32: 18.99245433 | CX32: 18.99245433 | DA32: 18.99245433 | DC32: 2033年度 | DH32: 32.54378998 | DM32: 32.54378998 | DP32: 32.54378998 | DR32: 2033年度 | DW32: 16.1776521 | EB32: 16.1776521 | EE32: 16.1776521 | EG32: 2033年度 | EL32: 32.18434402 | EQ32: 32.18434402 | ET32: 32.18434402
B33: 2034年度 | G33: 20.17259996 | L33: 20.17259996 | O33: 20.17259996 | Q33: 2034年度 | V33: 26.91784903 | AA33: 26.91784903 | AD33: 26.91784903 | AF33: 2034年度 | AK33: 23.0658127 | AP33: 23.0658127 | AS33: 23.0658127 | AU33: 2034年度 | AZ33: 28.17186658 | BE33: 28.17186658 | BH33: 28.17186658 | BJ33: 2034年度 | BO33: 20.0667761 | BT33: 20.0667761 | BW33: 20.0667761 | BY33: 2034年度 | CD33: 27.29691452 | CI33: 27.29691452 | CL33: 27.29691452 | CN33: 2034年度 | CS33: 19.71308753 | CX33: 19.71308753 | DA33: 19.71308753 | DC33: 2034年度 | DH33: 31.87977644 | DM33: 31.87977644 | DP33: 31.87977644 | DR33: 2034年度 | DW33: 15.69593854 | EB33: 15.69593854 | EE33: 15.69593854 | EG33: 2034年度 | EL33: 32.9762108 | EQ33: 32.9762108 | ET33: 32.9762108
B34: 2035年度 | G34: 20.17259996 | L34: 20.17259996 | O34: 20.17259996 | Q34: 2035年度 | V34: 26.91784903 | AA34: 26.91784903 | AD34: 26.91784903 | AF34: 2035年度 | AK34: 23.0658127 | AP34: 23.0658127 | AS34: 23.0658127 | AU34: 2035年度 | AZ34: 28.17186658 | BE34: 28.17186658 | BH34: 28.17186658 | BJ34: 2035年度 | BO34: 20.0667761 | BT34: 20.0667761 | BW34: 20.0667761 | BY34: 2035年度 | CD34: 27.29691452 | CI34: 27.29691452 | CL34: 27.29691452 | CN34: 2035年度 | CS34: 19.71308753 | CX34: 19.71308753 | DA34: 19.71308753 | DC34: 2035年度 | DH34: 31.87977644 | DM34: 31.87977644 | DP34: 31.87977644 | DR34: 2035年度 | DW34: 15.69593854 | EB34: 15.69593854 | EE34: 15.69593854 | EG34: 2035年度 | EL34: 32.9762108 | EQ34: 32.9762108 | ET34: 32.9762108
A36: ↑これより上はマクロ貼り付け箇所
A37: ↓これより下は数式
B40: 太陽光余剰_自家消費率 | Q40: 太陽光余剰_自家消費率 | AF40: 太陽光余剰_自家消費率 | AU40: 太陽光余剰_自家消費率 | BJ40: 太陽光余剰_自家消費率 | BY40: 太陽光余剰_自家消費率 | CN40: 太陽光余剰_自家消費率 | DC40: 太陽光余剰_自家消費率 | DR40: 太陽光余剰_自家消費率 | EG40: 太陽光余剰_自家消費率
C41: 4 | D41: 5 | E41: 6 | F41: 7 | G41: 8 | H41: 9 | I41: 10 | J41: 11 | K41: 12 | L41: 1 | M41: 2 | N41: 3 | R41: 4 | S41: 5 | T41: 6 | U41: 7 | V41: 8 | W41: 9 | X41: 10 | Y41: 11 | Z41: 12 | AA41: 1 | AB41: 2 | AC41: 3 | AG41: 4 | AH41: 5 | AI41: 6 | AJ41: 7 | AK41: 8 | AL41: 9 | AM41: 10 | AN41: 11 | AO41: 12 | AP41: 1 | AQ41: 2 | AR41: 3 | AV41: 4 | AW41: 5 | AX41: 6 | AY41: 7 | AZ41: 8 | BA41: 9 | BB41: 10 | BC41: 11 | BD41: 12 | BE41: 1 | BF41: 2 | BG41: 3 | BK41: 4 | BL41: 5 | BM41: 6 | BN41: 7 | BO41: 8 | BP41: 9 | BQ41: 10 | BR41: 11 | BS41: 12 | BT41: 1 | BU41: 2 | BV41: 3 | BZ41: 4 | CA41: 5 | CB41: 6 | CC41: 7 | CD41: 8 | CE41: 9 | CF41: 10 | CG41: 11 | CH41: 12 | CI41: 1 | CJ41: 2 | CK41: 3 | CO41: 4 | CP41: 5 | CQ41: 6 | CR41: 7 | CS41: 8 | CT41: 9 | CU41: 10 | CV41: 11 | CW41: 12 | CX41: 1 | CY41: 2 | CZ41: 3 | DD41: 4 | DE41: 5 | DF41: 6 | DG41: 7 | DH41: 8 | DI41: 9 | DJ41: 10 | DK41: 11 | DL41: 12 | DM41: 1 | DN41: 2 | DO41: 3 | DS41: 4 | DT41: 5 | DU41: 6 | DV41: 7 | DW41: 8 | DX41: 9 | DY41: 10 | DZ41: 11 | EA41: 12 | EB41: 1 | EC41: 2 | ED41: 3 | EH41: 4 | EI41: 5 | EJ41: 6 | EK41: 7 | EL41: 8 | EM41: 9 | EN41: 10 | EO41: 11 | EP41: 12 | EQ41: 1 | ER41: 2 | ES41: 3
B42: =MID(B7,5,3) -> 北海道 | C42: =IFERROR(VLOOKUP($B42,'③太陽光（余剰）'!$G$44:$S$44,IF(C41>3,C41-2,C41+10),FALSE),"") ->  | D42: =IFERROR(VLOOKUP($B42,'③太陽光（余剰）'!$G$44:$S$44,IF(D41>3,D41-2,D41+10),FALSE),"") ->  | E42: =IFERROR(VLOOKUP($B42,'③太陽光（余剰）'!$G$44:$S$44,IF(E41>3,E41-2,E41+10),FALSE),"") ->  | F42: =IFERROR(VLOOKUP($B42,'③太陽光（余剰）'!$G$44:$S$44,IF(F41>3,F41-2,F41+10),FALSE),"") ->  | G42: =IFERROR(VLOOKUP($B42,'③太陽光（余剰）'!$G$44:$S$44,IF(G41>3,G41-2,G41+10),FALSE),"") ->  | H42: =IFERROR(VLOOKUP($B42,'③太陽光（余剰）'!$G$44:$S$44,IF(H41>3,H41-2,H41+10),FALSE),"") ->  | I42: =IFERROR(VLOOKUP($B42,'③太陽光（余剰）'!$G$44:$S$44,IF(I41>3,I41-2,I41+10),FALSE),"") ->  | J42: =IFERROR(VLOOKUP($B42,'③太陽光（余剰）'!$G$44:$S$44,IF(J41>3,J41-2,J41+10),FALSE),"") ->  | K42: =IFERROR(VLOOKUP($B42,'③太陽光（余剰）'!$G$44:$S$44,IF(K41>3,K41-2,K41+10),FALSE),"") ->  | L42: =IFERROR(VLOOKUP($B42,'③太陽光（余剰）'!$G$44:$S$44,IF(L41>3,L41-2,L41+10),FALSE),"") ->  | M42: =IFERROR(VLOOKUP($B42,'③太陽光（余剰）'!$G$44:$S$44,IF(M41>3,M41-2,M41+10),FALSE),"") ->  | N42: =IFERROR(VLOOKUP($B42,'③太陽光（余剰）'!$G$44:$S$44,IF(N41>3,N41-2,N41+10),FALSE),"") ->  | Q42: =MID(Q7,5,3) -> 東北 | R42: =IFERROR(VLOOKUP($Q42,'③太陽光（余剰）'!$G$44:$S$44,IF(R41>3,R41-2,R41+10),FALSE),"") ->  | S42: =IFERROR(VLOOKUP($Q42,'③太陽光（余剰）'!$G$44:$S$44,IF(S41>3,S41-2,S41+10),FALSE),"") ->  | T42: =IFERROR(VLOOKUP($Q42,'③太陽光（余剰）'!$G$44:$S$44,IF(T41>3,T41-2,T41+10),FALSE),"") ->  | U42: =IFERROR(VLOOKUP($Q42,'③太陽光（余剰）'!$G$44:$S$44,IF(U41>3,U41-2,U41+10),FALSE),"") ->  | V42: =IFERROR(VLOOKUP($Q42,'③太陽光（余剰）'!$G$44:$S$44,IF(V41>3,V41-2,V41+10),FALSE),"") ->  | W42: =IFERROR(VLOOKUP($Q42,'③太陽光（余剰）'!$G$44:$S$44,IF(W41>3,W41-2,W41+10),FALSE),"") ->  | X42: =IFERROR(VLOOKUP($Q42,'③太陽光（余剰）'!$G$44:$S$44,IF(X41>3,X41-2,X41+10),FALSE),"") ->  | Y42: =IFERROR(VLOOKUP($Q42,'③太陽光（余剰）'!$G$44:$S$44,IF(Y41>3,Y41-2,Y41+10),FALSE),"") ->  | Z42: =IFERROR(VLOOKUP($Q42,'③太陽光（余剰）'!$G$44:$S$44,IF(Z41>3,Z41-2,Z41+10),FALSE),"") ->  | AA42: =IFERROR(VLOOKUP($Q42,'③太陽光（余剰）'!$G$44:$S$44,IF(AA41>3,AA41-2,AA41+10),FALSE),"") ->  | AB42: =IFERROR(VLOOKUP($Q42,'③太陽光（余剰）'!$G$44:$S$44,IF(AB41>3,AB41-2,AB41+10),FALSE),"") ->  | AC42: =IFERROR(VLOOKUP($Q42,'③太陽光（余剰）'!$G$44:$S$44,IF(AC41>3,AC41-2,AC41+10),FALSE),"") ->  | AF42: =MID(AF7,5,3) -> 東京 | AG42: =IFERROR(VLOOKUP($AF42,'③太陽光（余剰）'!$G$44:$S$44,IF(AG41>3,AG41-2,AG41+10),FALSE),"") ->  | AH42: =IFERROR(VLOOKUP($AF42,'③太陽光（余剰）'!$G$44:$S$44,IF(AH41>3,AH41-2,AH41+10),FALSE),"") ->  | AI42: =IFERROR(VLOOKUP($AF42,'③太陽光（余剰）'!$G$44:$S$44,IF(AI41>3,AI41-2,AI41+10),FALSE),"") ->  | AJ42: =IFERROR(VLOOKUP($AF42,'③太陽光（余剰）'!$G$44:$S$44,IF(AJ41>3,AJ41-2,AJ41+10),FALSE),"") ->  | AK42: =IFERROR(VLOOKUP($AF42,'③太陽光（余剰）'!$G$44:$S$44,IF(AK41>3,AK41-2,AK41+10),FALSE),"") ->  | AL42: =IFERROR(VLOOKUP($AF42,'③太陽光（余剰）'!$G$44:$S$44,IF(AL41>3,AL41-2,AL41+10),FALSE),"") ->  | AM42: =IFERROR(VLOOKUP($AF42,'③太陽光（余剰）'!$G$44:$S$44,IF(AM41>3,AM41-2,AM41+10),FALSE),"") ->  | AN42: =IFERROR(VLOOKUP($AF42,'③太陽光（余剰）'!$G$44:$S$44,IF(AN41>3,AN41-2,AN41+10),FALSE),"") ->  | AO42: =IFERROR(VLOOKUP($AF42,'③太陽光（余剰）'!$G$44:$S$44,IF(AO41>3,AO41-2,AO41+10),FALSE),"") ->  | AP42: =IFERROR(VLOOKUP($AF42,'③太陽光（余剰）'!$G$44:$S$44,IF(AP41>3,AP41-2,AP41+10),FALSE),"") ->  | AQ42: =IFERROR(VLOOKUP($AF42,'③太陽光（余剰）'!$G$44:$S$44,IF(AQ41>3,AQ41-2,AQ41+10),FALSE),"") ->  | AR42: =IFERROR(VLOOKUP($AF42,'③太陽光（余剰）'!$G$44:$S$44,IF(AR41>3,AR41-2,AR41+10),FALSE),"") ->  | AU42: =MID(AU7,5,3) -> 中部 | AV42: =IFERROR(VLOOKUP($AU42,'③太陽光（余剰）'!$G$44:$S$44,IF(AV41>3,AV41-2,AV41+10),FALSE),"") ->  | AW42: =IFERROR(VLOOKUP($AU42,'③太陽光（余剰）'!$G$44:$S$44,IF(AW41>3,AW41-2,AW41+10),FALSE),"") ->  | AX42: =IFERROR(VLOOKUP($AU42,'③太陽光（余剰）'!$G$44:$S$44,IF(AX41>3,AX41-2,AX41+10),FALSE),"") ->  | AY42: =IFERROR(VLOOKUP($AU42,'③太陽光（余剰）'!$G$44:$S$44,IF(AY41>3,AY41-2,AY41+10),FALSE),"") ->  | AZ42: =IFERROR(VLOOKUP($AU42,'③太陽光（余剰）'!$G$44:$S$44,IF(AZ41>3,AZ41-2,AZ41+10),FALSE),"") ->  | BA42: =IFERROR(VLOOKUP($AU42,'③太陽光（余剰）'!$G$44:$S$44,IF(BA41>3,BA41-2,BA41+10),FALSE),"") ->  | BB42: =IFERROR(VLOOKUP($AU42,'③太陽光（余剰）'!$G$44:$S$44,IF(BB41>3,BB41-2,BB41+10),FALSE),"") ->  | BC42: =IFERROR(VLOOKUP($AU42,'③太陽光（余剰）'!$G$44:$S$44,IF(BC41>3,BC41-2,BC41+10),FALSE),"") ->  | BD42: =IFERROR(VLOOKUP($AU42,'③太陽光（余剰）'!$G$44:$S$44,IF(BD41>3,BD41-2,BD41+10),FALSE),"") ->  | BE42: =IFERROR(VLOOKUP($AU42,'③太陽光（余剰）'!$G$44:$S$44,IF(BE41>3,BE41-2,BE41+10),FALSE),"") ->  | BF42: =IFERROR(VLOOKUP($AU42,'③太陽光（余剰）'!$G$44:$S$44,IF(BF41>3,BF41-2,BF41+10),FALSE),"") ->  | BG42: =IFERROR(VLOOKUP($AU42,'③太陽光（余剰）'!$G$44:$S$44,IF(BG41>3,BG41-2,BG41+10),FALSE),"") ->  | BJ42: =MID(BJ7,5,3) -> 北陸 | BK42: =IFERROR(VLOOKUP($BJ42,'③太陽光（余剰）'!$G$44:$S$44,IF(BK41>3,BK41-2,BK41+10),FALSE),"") ->  | BL42: =IFERROR(VLOOKUP($BJ42,'③太陽光（余剰）'!$G$44:$S$44,IF(BL41>3,BL41-2,BL41+10),FALSE),"") ->  | BM42: =IFERROR(VLOOKUP($BJ42,'③太陽光（余剰）'!$G$44:$S$44,IF(BM41>3,BM41-2,BM41+10),FALSE),"") ->  | BN42: =IFERROR(VLOOKUP($BJ42,'③太陽光（余剰）'!$G$44:$S$44,IF(BN41>3,BN41-2,BN41+10),FALSE),"") ->  | BO42: =IFERROR(VLOOKUP($BJ42,'③太陽光（余剰）'!$G$44:$S$44,IF(BO41>3,BO41-2,BO41+10),FALSE),"") ->  | BP42: =IFERROR(VLOOKUP($BJ42,'③太陽光（余剰）'!$G$44:$S$44,IF(BP41>3,BP41-2,BP41+10),FALSE),"") ->  | BQ42: =IFERROR(VLOOKUP($BJ42,'③太陽光（余剰）'!$G$44:$S$44,IF(BQ41>3,BQ41-2,BQ41+10),FALSE),"") ->  | BR42: =IFERROR(VLOOKUP($BJ42,'③太陽光（余剰）'!$G$44:$S$44,IF(BR41>3,BR41-2,BR41+10),FALSE),"") ->  | BS42: =IFERROR(VLOOKUP($BJ42,'③太陽光（余剰）'!$G$44:$S$44,IF(BS41>3,BS41-2,BS41+10),FALSE),"") ->  | BT42: =IFERROR(VLOOKUP($BJ42,'③太陽光（余剰）'!$G$44:$S$44,IF(BT41>3,BT41-2,BT41+10),FALSE),"") ->  | BU42: =IFERROR(VLOOKUP($BJ42,'③太陽光（余剰）'!$G$44:$S$44,IF(BU41>3,BU41-2,BU41+10),FALSE),"") ->  | BV42: =IFERROR(VLOOKUP($BJ42,'③太陽光（余剰）'!$G$44:$S$44,IF(BV41>3,BV41-2,BV41+10),FALSE),"") ->  | BY42: =MID(BY7,5,3) -> 関西 | BZ42: =IFERROR(VLOOKUP($BY42,'③太陽光（余剰）'!$G$44:$S$44,IF(BZ41>3,BZ41-2,BZ41+10),FALSE),"") ->  | CA42: =IFERROR(VLOOKUP($BY42,'③太陽光（余剰）'!$G$44:$S$44,IF(CA41>3,CA41-2,CA41+10),FALSE),"") ->  | CB42: =IFERROR(VLOOKUP($BY42,'③太陽光（余剰）'!$G$44:$S$44,IF(CB41>3,CB41-2,CB41+10),FALSE),"") ->  | CC42: =IFERROR(VLOOKUP($BY42,'③太陽光（余剰）'!$G$44:$S$44,IF(CC41>3,CC41-2,CC41+10),FALSE),"") ->  | CD42: =IFERROR(VLOOKUP($BY42,'③太陽光（余剰）'!$G$44:$S$44,IF(CD41>3,CD41-2,CD41+10),FALSE),"") ->  | CE42: =IFERROR(VLOOKUP($BY42,'③太陽光（余剰）'!$G$44:$S$44,IF(CE41>3,CE41-2,CE41+10),FALSE),"") ->  | CF42: =IFERROR(VLOOKUP($BY42,'③太陽光（余剰）'!$G$44:$S$44,IF(CF41>3,CF41-2,CF41+10),FALSE),"") ->  | CG42: =IFERROR(VLOOKUP($BY42,'③太陽光（余剰）'!$G$44:$S$44,IF(CG41>3,CG41-2,CG41+10),FALSE),"") ->  | CH42: =IFERROR(VLOOKUP($BY42,'③太陽光（余剰）'!$G$44:$S$44,IF(CH41>3,CH41-2,CH41+10),FALSE),"") ->  | CI42: =IFERROR(VLOOKUP($BY42,'③太陽光（余剰）'!$G$44:$S$44,IF(CI41>3,CI41-2,CI41+10),FALSE),"") ->  | CJ42: =IFERROR(VLOOKUP($BY42,'③太陽光（余剰）'!$G$44:$S$44,IF(CJ41>3,CJ41-2,CJ41+10),FALSE),"") ->  | CK42: =IFERROR(VLOOKUP($BY42,'③太陽光（余剰）'!$G$44:$S$44,IF(CK41>3,CK41-2,CK41+10),FALSE),"") ->  | CN42: =MID(CN7,5,3) -> 中国 | CO42: =IFERROR(VLOOKUP($CN42,'③太陽光（余剰）'!$G$44:$S$44,IF(CO41>3,CO41-2,CO41+10),FALSE),"") ->  | CP42: =IFERROR(VLOOKUP($CN42,'③太陽光（余剰）'!$G$44:$S$44,IF(CP41>3,CP41-2,CP41+10),FALSE),"") ->  | CQ42: =IFERROR(VLOOKUP($CN42,'③太陽光（余剰）'!$G$44:$S$44,IF(CQ41>3,CQ41-2,CQ41+10),FALSE),"") ->  | CR42: =IFERROR(VLOOKUP($CN42,'③太陽光（余剰）'!$G$44:$S$44,IF(CR41>3,CR41-2,CR41+10),FALSE),"") ->  | CS42: =IFERROR(VLOOKUP($CN42,'③太陽光（余剰）'!$G$44:$S$44,IF(CS41>3,CS41-2,CS41+10),FALSE),"") ->  | CT42: =IFERROR(VLOOKUP($CN42,'③太陽光（余剰）'!$G$44:$S$44,IF(CT41>3,CT41-2,CT41+10),FALSE),"") ->  | CU42: =IFERROR(VLOOKUP($CN42,'③太陽光（余剰）'!$G$44:$S$44,IF(CU41>3,CU41-2,CU41+10),FALSE),"") ->  | CV42: =IFERROR(VLOOKUP($CN42,'③太陽光（余剰）'!$G$44:$S$44,IF(CV41>3,CV41-2,CV41+10),FALSE),"") ->  | CW42: =IFERROR(VLOOKUP($CN42,'③太陽光（余剰）'!$G$44:$S$44,IF(CW41>3,CW41-2,CW41+10),FALSE),"") ->  | CX42: =IFERROR(VLOOKUP($CN42,'③太陽光（余剰）'!$G$44:$S$44,IF(CX41>3,CX41-2,CX41+10),FALSE),"") ->  | CY42: =IFERROR(VLOOKUP($CN42,'③太陽光（余剰）'!$G$44:$S$44,IF(CY41>3,CY41-2,CY41+10),FALSE),"") ->  | CZ42: =IFERROR(VLOOKUP($CN42,'③太陽光（余剰）'!$G$44:$S$44,IF(CZ41>3,CZ41-2,CZ41+10),FALSE),"") ->  | DC42: =MID(DC7,5,3) -> 四国 | DD42: =IFERROR(VLOOKUP($DC42,'③太陽光（余剰）'!$G$44:$S$44,IF(DD41>3,DD41-2,DD41+10),FALSE),"") ->  | DE42: =IFERROR(VLOOKUP($DC42,'③太陽光（余剰）'!$G$44:$S$44,IF(DE41>3,DE41-2,DE41+10),FALSE),"") ->  | DF42: =IFERROR(VLOOKUP($DC42,'③太陽光（余剰）'!$G$44:$S$44,IF(DF41>3,DF41-2,DF41+10),FALSE),"") ->  | DG42: =IFERROR(VLOOKUP($DC42,'③太陽光（余剰）'!$G$44:$S$44,IF(DG41>3,DG41-2,DG41+10),FALSE),"") ->  | DH42: =IFERROR(VLOOKUP($DC42,'③太陽光（余剰）'!$G$44:$S$44,IF(DH41>3,DH41-2,DH41+10),FALSE),"") ->  | DI42: =IFERROR(VLOOKUP($DC42,'③太陽光（余剰）'!$G$44:$S$44,IF(DI41>3,DI41-2,DI41+10),FALSE),"") ->  | DJ42: =IFERROR(VLOOKUP($DC42,'③太陽光（余剰）'!$G$44:$S$44,IF(DJ41>3,DJ41-2,DJ41+10),FALSE),"") ->  | DK42: =IFERROR(VLOOKUP($DC42,'③太陽光（余剰）'!$G$44:$S$44,IF(DK41>3,DK41-2,DK41+10),FALSE),"") ->  | DL42: =IFERROR(VLOOKUP($DC42,'③太陽光（余剰）'!$G$44:$S$44,IF(DL41>3,DL41-2,DL41+10),FALSE),"") ->  | DM42: =IFERROR(VLOOKUP($DC42,'③太陽光（余剰）'!$G$44:$S$44,IF(DM41>3,DM41-2,DM41+10),FALSE),"") ->  | DN42: =IFERROR(VLOOKUP($DC42,'③太陽光（余剰）'!$G$44:$S$44,IF(DN41>3,DN41-2,DN41+10),FALSE),"") ->  | DO42: =IFERROR(VLOOKUP($DC42,'③太陽光（余剰）'!$G$44:$S$44,IF(DO41>3,DO41-2,DO41+10),FALSE),"") ->  | DR42: =MID(DR7,5,3) -> 九州 | DS42: =IFERROR(VLOOKUP($DR42,'③太陽光（余剰）'!$G$44:$S$44,IF(DS41>3,DS41-2,DS41+10),FALSE),"") ->  | DT42: =IFERROR(VLOOKUP($DR42,'③太陽光（余剰）'!$G$44:$S$44,IF(DT41>3,DT41-2,DT41+10),FALSE),"") ->  | DU42: =IFERROR(VLOOKUP($DR42,'③太陽光（余剰）'!$G$44:$S$44,IF(DU41>3,DU41-2,DU41+10),FALSE),"") ->  | DV42: =IFERROR(VLOOKUP($DR42,'③太陽光（余剰）'!$G$44:$S$44,IF(DV41>3,DV41-2,DV41+10),FALSE),"") ->  | DW42: =IFERROR(VLOOKUP($DR42,'③太陽光（余剰）'!$G$44:$S$44,IF(DW41>3,DW41-2,DW41+10),FALSE),"") ->  | DX42: =IFERROR(VLOOKUP($DR42,'③太陽光（余剰）'!$G$44:$S$44,IF(DX41>3,DX41-2,DX41+10),FALSE),"") ->  | DY42: =IFERROR(VLOOKUP($DR42,'③太陽光（余剰）'!$G$44:$S$44,IF(DY41>3,DY41-2,DY41+10),FALSE),"") ->  | DZ42: =IFERROR(VLOOKUP($DR42,'③太陽光（余剰）'!$G$44:$S$44,IF(DZ41>3,DZ41-2,DZ41+10),FALSE),"") ->  | EA42: =IFERROR(VLOOKUP($DR42,'③太陽光（余剰）'!$G$44:$S$44,IF(EA41>3,EA41-2,EA41+10),FALSE),"") ->  | EB42: =IFERROR(VLOOKUP($DR42,'③太陽光（余剰）'!$G$44:$S$44,IF(EB41>3,EB41-2,EB41+10),FALSE),"") ->  | EC42: =IFERROR(VLOOKUP($DR42,'③太陽光（余剰）'!$G$44:$S$44,IF(EC41>3,EC41-2,EC41+10),FALSE),"") ->  | ED42: =IFERROR(VLOOKUP($DR42,'③太陽光（余剰）'!$G$44:$S$44,IF(ED41>3,ED41-2,ED41+10),FALSE),"") ->  | EG42: =MID(EG7,5,3) -> 沖縄 | EH42: =IFERROR(VLOOKUP($EG42,'③太陽光（余剰）'!$G$44:$S$44,IF(EH41>3,EH41-2,EH41+10),FALSE),"") ->  | EI42: =IFERROR(VLOOKUP($EG42,'③太陽光（余剰）'!$G$44:$S$44,IF(EI41>3,EI41-2,EI41+10),FALSE),"") ->  | EJ42: =IFERROR(VLOOKUP($EG42,'③太陽光（余剰）'!$G$44:$S$44,IF(EJ41>3,EJ41-2,EJ41+10),FALSE),"") ->  | EK42: =IFERROR(VLOOKUP($EG42,'③太陽光（余剰）'!$G$44:$S$44,IF(EK41>3,EK41-2,EK41+10),FALSE),"") ->  | EL42: =IFERROR(VLOOKUP($EG42,'③太陽光（余剰）'!$G$44:$S$44,IF(EL41>3,EL41-2,EL41+10),FALSE),"") ->  | EM42: =IFERROR(VLOOKUP($EG42,'③太陽光（余剰）'!$G$44:$S$44,IF(EM41>3,EM41-2,EM41+10),FALSE),"") ->  | EN42: =IFERROR(VLOOKUP($EG42,'③太陽光（余剰）'!$G$44:$S$44,IF(EN41>3,EN41-2,EN41+10),FALSE),"") ->  | EO42: =IFERROR(VLOOKUP($EG42,'③太陽光（余剰）'!$G$44:$S$44,IF(EO41>3,EO41-2,EO41+10),FALSE),"") ->  | EP42: =IFERROR(VLOOKUP($EG42,'③太陽光（余剰）'!$G$44:$S$44,IF(EP41>3,EP41-2,EP41+10),FALSE),"") ->  | EQ42: =IFERROR(VLOOKUP($EG42,'③太陽光（余剰）'!$G$44:$S$44,IF(EQ41>3,EQ41-2,EQ41+10),FALSE),"") ->  | ER42: =IFERROR(VLOOKUP($EG42,'③太陽光（余剰）'!$G$44:$S$44,IF(ER41>3,ER41-2,ER41+10),FALSE),"") ->  | ES42: =IFERROR(VLOOKUP($EG42,'③太陽光（余剰）'!$G$44:$S$44,IF(ES41>3,ES41-2,ES41+10),FALSE),"") -> 
B44: 太陽光 調整係数（％） 余剰 ※該当エリアの自家消費率分を減じた値 | Q44: 太陽光 調整係数（％） 余剰 ※該当エリアの自家消費率分を減じた値 | AF44: 太陽光 調整係数（％） 余剰 ※該当エリアの自家消費率分を減じた値 | AU44: 太陽光 調整係数（％） 余剰 ※該当エリアの自家消費率分を減じた値 | BJ44: 太陽光 調整係数（％） 余剰 ※該当エリアの自家消費率分を減じた値 | BY44: 太陽光 調整係数（％） 余剰 ※該当エリアの自家消費率分を減じた値 | CN44: 太陽光 調整係数（％） 余剰 ※該当エリアの自家消費率分を減じた値 | DC44: 太陽光 調整係数（％） 余剰 ※該当エリアの自家消費率分を減じた値 | DR44: 太陽光 調整係数（％） 余剰 ※該当エリアの自家消費率分を減じた値 | EG44: 太陽光 調整係数（％） 余剰 ※該当エリアの自家消費率分を減じた値
C45: 4月 | D45: 5月 | E45: 6月 | F45: 7月 | G45: 8月 | H45: 9月 | I45: 10月 | J45: 11月 | K45: 12月 | L45: 1月 | M45: 2月 | N45: 3月 | R45: 4月 | S45: 5月 | T45: 6月 | U45: 7月 | V45: 8月 | W45: 9月 | X45: 10月 | Y45: 11月 | Z45: 12月 | AA45: 1月 | AB45: 2月 | AC45: 3月 | AG45: 4月 | AH45: 5月 | AI45: 6月 | AJ45: 7月 | AK45: 8月 | AL45: 9月 | AM45: 10月 | AN45: 11月 | AO45: 12月 | AP45: 1月 | AQ45: 2月 | AR45: 3月 | AV45: 4月 | AW45: 5月 | AX45: 6月 | AY45: 7月 | AZ45: 8月 | BA45: 9月 | BB45: 10月 | BC45: 11月 | BD45: 12月 | BE45: 1月 | BF45: 2月 | BG45: 3月 | BK45: 4月 | BL45: 5月 | BM45: 6月 | BN45: 7月 | BO45: 8月 | BP45: 9月 | BQ45: 10月 | BR45: 11月 | BS45: 12月 | BT45: 1月 | BU45: 2月 | BV45: 3月 | BZ45: 4月 | CA45: 5月 | CB45: 6月 | CC45: 7月 | CD45: 8月 | CE45: 9月 | CF45: 10月 | CG45: 11月 | CH45: 12月 | CI45: 1月 | CJ45: 2月 | CK45: 3月 | CO45: 4月 | CP45: 5月 | CQ45: 6月 | CR45: 7月 | CS45: 8月 | CT45: 9月 | CU45: 10月 | CV45: 11月 | CW45: 12月 | CX45: 1月 | CY45: 2月 | CZ45: 3月 | DD45: 4月 | DE45: 5月 | DF45: 6月 | DG45: 7月 | DH45: 8月 | DI45: 9月 | DJ45: 10月 | DK45: 11月 | DL45: 12月 | DM45: 1月 | DN45: 2月 | DO45: 3月 | DS45: 4月 | DT45: 5月 | DU45: 6月 | DV45: 7月 | DW45: 8月 | DX45: 9月 | DY45: 10月 | DZ45: 11月 | EA45: 12月 | EB45: 1月 | EC45: 2月 | ED45: 3月 | EH45: 4月 | EI45: 5月 | EJ45: 6月 | EK45: 7月 | EL45: 8月 | EM45: 9月 | EN45: 10月 | EO45: 11月 | EP45: 12月 | EQ45: 1月 | ER45: 2月 | ES45: 3月
B46: 2025年度 | C46: =IFERROR(C12*(1-C$42),C12) -> 1.394929616 | D46: =IFERROR(D12*(1-D$42),D12) -> 4.570046029 | E46: 5.733835144 | F46: 8.745879141 | G46: 8.554250438 | H46: 3.238334101 | I46: 0.9480526351 | J46: 0.9486977466 | K46: 0.5231447649 | L46: 1.342970811 | M46: 1.09598277 | N46: 0.8228957777 | Q46: 2025年度 | R46: =IFERROR(R12*(1-R$42),R12) -> 2.711048866 | S46: =IFERROR(S12*(1-S$42),S12) -> 16.7818421 | T46: 20.80941754 | U46: 21.74534947 | V46: 25.54389589 | W46: 16.85877467 | X46: 9.478747342 | Y46: 2.612600653 | Z46: 0.5243228283 | AA46: 3.667071887 | AB46: 1.375123897 | AC46: 2.399091624 | AF46: 2025年度 | AG46: =IFERROR(AG12*(1-AG$42),AG12) -> 1.389773677 | AH46: =IFERROR(AH12*(1-AH$42),AH12) -> 11.02433005 | AI46: 17.51563422 | AJ46: 21.37582979 | AK46: 22.94267175 | AL46: 15.20483128 | AM46: 8.352956867 | AN46: 1.173006213 | AO46: 0.3466289095 | AP46: 2.533296574 | AQ46: 0.8367414548 | AR46: 1.021437959 | AU46: 2025年度 | AV46: =IFERROR(AV12*(1-AV$42),AV12) -> 2.952986967 | AW46: =IFERROR(AW12*(1-AW$42),AW12) -> 10.74640718 | AX46: 19.33678896 | AY46: 23.00862477 | AZ46: 21.64972688 | BA46: 16.72778624 | BB46: 9.953434798 | BC46: 0.05258311584 | BD46: 2.472963682 | BE46: 5.750454543 | BF46: 3.401145237 | BG46: 2.469733317 | BJ46: 2025年度 | BK46: =IFERROR(BK12*(1-BK$42),BK12) -> 11.13007525 | BL46: =IFERROR(BL12*(1-BL$42),BL12) -> 27.09324449 | BM46: 27.92491656 | BN46: 33.17214685 | BO46: 33.05894093 | BP46: 23.47723044 | BQ46: 14.40184311 | BR46: 0.3463970067 | BS46: 1.391779496 | BT46: 3.059137856 | BU46: 2.155500225 | BV46: 6.588375252 | BY46: 2025年度 | BZ46: =IFERROR(BZ12*(1-BZ$42),BZ12) -> 4.175098927 | CA46: =IFERROR(CA12*(1-CA$42),CA12) -> 14.21463729 | CB46: 20.63520281 | CC46: 25.93952609 | CD46: 26.77663507 | CE46: 19.00001466 | CF46: 12.18067495 | CG46: 0.07406245562 | CH46: 2.296011622 | CI46: 4.470221349 | CJ46: 4.044629102 | CK46: 3.156923855 | CN46: 2025年度 | CO46: =IFERROR(CO12*(1-CO$42),CO12) -> 4.024511698 | CP46: =IFERROR(CP12*(1-CP$42),CP12) -> 16.56145088 | CQ46: 20.55167731 | CR46: 28.45900989 | CS46: 29.75568974 | CT46: 18.72872272 | CU46: 13.18734302 | CV46: 0.07743541284 | CW46: 2.501643905 | CX46: 4.988481234 | CY46: 3.155818125 | CZ46: 2.964590274 | DC46: 2025年度 | DD46: =IFERROR(DD12*(1-DD$42),DD12) -> 7.541580285 | DE46: =IFERROR(DE12*(1-DE$42),DE12) -> 17.73445184 | DF46: 25.22402627 | DG46: 30.74613921 | DH46: 32.14730315 | DI46: 23.06862265 | DJ46: 15.40450649 | DK46: 0.1428013966 | DL46: 2.673587897 | DM46: 5.666165128 | DN46: 4.639798663 | DO46: 4.943599855 | DR46: 2025年度 | DS46: =IFERROR(DS12*(1-DS$42),DS12) -> 1.365579984 | DT46: =IFERROR(DT12*(1-DT$42),DT12) -> 6.840534828 | DU46: 13.70981514 | DV46: 14.78109537 | DW46: 12.94412476 | DX46: 14.85937923 | DY46: 7.581328004 | DZ46: 0.4323881833 | EA46: 1.576407067 | EB46: 2.582901376 | EC46: 1.862612066 | ED46: 1.560371024 | EG46: 2025年度 | EH46: =IFERROR(EH12*(1-EH$42),EH12) -> 11.19832288 | EI46: =IFERROR(EI12*(1-EI$42),EI12) -> 16.17563381 | EJ46: 20.75164235 | EK46: 18.84149488 | EL46: 20.47382242 | EM46: 19.80393248 | EN46: 16.48902479 | EO46: 10.67660716 | EP46: 5.233199572 | EQ46: 4.626753271 | ER46: 5.290273315 | ES46: 7.90407367
B47: 2026年度 | C47: =IFERROR(C13*(1-C$42),C13) -> 1.459727696 | D47: 3.523732111 | E47: 5.570877594 | F47: 8.268059173 | G47: 8.06881659 | H47: 3.386348481 | I47: 0.7645492863 | J47: 0.9362518811 | K47: 0.4925925791 | L47: 1.191021142 | M47: 0.9385206784 | N47: 0.6881002656 | Q47: 2026年度 | R47: =IFERROR(R13*(1-R$42),R13) -> 2.038942966 | S47: 15.51940857 | T47: 20.74497718 | U47: 21.34506807 | V47: 24.93825954 | W47: 16.28097122 | X47: 9.243901559 | Y47: 2.732436087 | Z47: 0.3631378414 | AA47: 3.75203656 | AB47: 1.443641011 | AC47: 2.708152852 | AF47: 2026年度 | AG47: =IFERROR(AG13*(1-AG$42),AG13) -> 1.153389562 | AH47: 9.97525148 | AI47: 17.50975517 | AJ47: 20.99390115 | AK47: 22.26006914 | AL47: 14.8232586 | AM47: 8.122269902 | AN47: 1.0333549 | AO47: 0.2377219965 | AP47: 2.634431782 | AQ47: 0.9816318982 | AR47: 1.328368671 | AU47: 2026年度 | AV47: =IFERROR(AV13*(1-AV$42),AV13) -> 2.797131332 | AW47: 10.98466391 | AX47: 19.41988584 | AY47: 22.98194821 | AZ47: 20.51781083 | BA47: 16.4611759 | BB47: 9.902816744 | BC47: 0.03546865061 | BD47: 2.247602331 | BE47: 5.7472727 | BF47: 3.253734587 | BG47: 2.339446065 | BJ47: 2026年度 | BK47: =IFERROR(BK13*(1-BK$42),BK13) -> 12.50662481 | BL47: 27.99173312 | BM47: 27.06875516 | BN47: 33.65249991 | BO47: 32.04741415 | BP47: 23.34420719 | BQ47: 13.67787865 | BR47: 0.1504210141 | BS47: 1.21703937 | BT47: 3.040365904 | BU47: 1.876758664 | BV47: 5.633342046 | BY47: 2026年度 | BZ47: =IFERROR(BZ13*(1-BZ$42),BZ13) -> 4.05795718 | CA47: 13.82972849 | CB47: 20.46423659 | CC47: 25.68450681 | CD47: 26.08965236 | CE47: 18.69348453 | CF47: 12.02435399 | CG47: 0.06220722182 | CH47: 2.066294267 | CI47: 4.617371589 | CJ47: 3.697014241 | CK47: 3.151923655 | CN47: 2026年度 | CO47: =IFERROR(CO13*(1-CO$42),CO13) -> 4.102352213 | CP47: 16.44174572 | CQ47: 20.12693777 | CR47: 28.1032422 | CS47: 28.85416177 | CT47: 18.42076481 | CU47: 13.18158183 | CV47: 0.07048318241 | CW47: 2.283263373 | CX47: 5.63207714 | CY47: 3.117286572 | CZ47: 3.462951085 | DC47: 2026年度 | DD47: =IFERROR(DD13*(1-DD$42),DD13) -> 7.563215247 | DE47: 16.97269064 | DF47: 24.81994679 | DG47: 30.77772706 | DH47: 31.49600836 | DI47: 22.80702004 | DJ47: 14.82548545 | DK47: 0.1238016751 | DL47: 2.480303324 | DM47: 5.826880445 | DN47: 4.526631969 | DO47: 4.589796076 | DR47: 2026年度 | DS47: =IFERROR(DS13*(1-DS$42),DS13) -> 1.403444896 | DT47: 6.179575263 | DU47: 13.21111708 | DV47: 14.38854427 | DW47: 13.00168737 | DX47: 14.1361521 | DY47: 7.608415761 | DZ47: 0.3629041229 | EA47: 1.425466255 | EB47: 2.812687633 | EC47: 1.764917471 | ED47: 1.51283746 | EG47: 2026年度 | EH47: =IFERROR(EH13*(1-EH$42),EH13) -> 11.12312851 | EI47: 16.06271359 | EJ47: 20.56000655 | EK47: 18.84009848 | EL47: 20.4658063 | EM47: 19.43890012 | EN47: 16.3347583 | EO47: 10.49427867 | EP47: 5.202624856 | EQ47: 4.584919149 | ER47: 5.213046874 | ES47: 7.823644644
B48: 2027年度 | G48: =IFERROR(G14*(1-G$42),G14) -> 5.055014077 | L48: =IFERROR(L14*(1-L$42),L14) -> 5.055014077 | Q48: 2027年度 | V48: 11.37262772 | AA48: 11.37262772 | AF48: 2027年度 | AK48: 9.738721254 | AP48: 9.738721254 | AU48: 2027年度 | AZ48: 11.5993149 | BE48: 11.5993149 | BJ48: 2027年度 | BO48: 17.26543513 | BT48: 17.26543513 | BY48: 2027年度 | CD48: =IFERROR(CD14*(1-CD$42),CD14) -> 12.70677236 | CI48: =IFERROR(CI14*(1-CI$42),CI14) -> 12.70677236 | CN48: 2027年度 | CS48: =IFERROR(CS14*(1-CS$42),CS14) -> 13.51833943 | CX48: =IFERROR(CX14*(1-CX$42),CX14) -> 13.51833943 | DC48: 2027年度 | DH48: 15.48381592 | DM48: 15.48381592 | DR48: 2027年度 | DW48: =IFERROR(DW14*(1-DW$42),DW14) -> 5.358744617 | EB48: =IFERROR(EB14*(1-EB$42),EB14) -> 5.358744617 | EG48: 2027年度 | EL48: =IFERROR(EL14*(1-EL$42),EL14) -> 16.64925218 | EQ48: =IFERROR(EQ14*(1-EQ$42),EQ14) -> 16.64925218
B49: 2028年度 | G49: 5.257048611 | L49: 5.257048611 | Q49: 2028年度 | V49: 10.86918475 | AA49: 10.86918475 | AF49: 2028年度 | AK49: 9.547063528 | AP49: 9.547063528 | AU49: 2028年度 | AZ49: 11.09515808 | BE49: 11.09515808 | BJ49: 2028年度 | BO49: 16.5896694 | BT49: 16.5896694 | BY49: 2028年度 | CD49: =IFERROR(CD15*(1-CD$42),CD15) -> 11.94579241 | CI49: =IFERROR(CI15*(1-CI$42),CI15) -> 11.94579241 | CN49: 2028年度 | CS49: =IFERROR(CS15*(1-CS$42),CS15) -> 12.45788355 | CX49: =IFERROR(CX15*(1-CX$42),CX15) -> 12.45788355 | DC49: 2028年度 | DH49: 14.24168307 | DM49: 14.24168307 | DR49: 2028年度 | DW49: =IFERROR(DW15*(1-DW$42),DW15) -> 4.967806448 | EB49: =IFERROR(EB15*(1-EB$42),EB15) -> 4.967806448 | EG49: 2028年度 | EL49: =IFERROR(EL15*(1-EL$42),EL15) -> 16.63113876 | EQ49: =IFERROR(EQ15*(1-EQ$42),EQ15) -> 16.63113876
B50: 2029年度 | G50: 4.939916695 | L50: 4.939916695 | Q50: 2029年度 | V50: 10.81936833 | AA50: 10.81936833 | AF50: 2029年度 | AK50: 9.354034373 | AP50: 9.354034373 | AU50: 2029年度 | AZ50: 10.79133291 | BE50: 10.79133291 | BJ50: 2029年度 | BO50: 15.92152532 | BT50: 15.92152532 | BY50: 2029年度 | CD50: =IFERROR(CD16*(1-CD$42),CD16) -> 11.74682111 | CI50: =IFERROR(CI16*(1-CI$42),CI16) -> 11.74682111 | CN50: 2029年度 | CS50: =IFERROR(CS16*(1-CS$42),CS16) -> 12.75425555 | CX50: =IFERROR(CX16*(1-CX$42),CX16) -> 12.75425555 | DC50: 2029年度 | DH50: 14.79176387 | DM50: 14.79176387 | DR50: 2029年度 | DW50: =IFERROR(DW16*(1-DW$42),DW16) -> 4.811524069 | EB50: =IFERROR(EB16*(1-EB$42),EB16) -> 4.811524069 | EG50: 2029年度 | EL50: =IFERROR(EL16*(1-EL$42),EL16) -> 16.39086411 | EQ50: =IFERROR(EQ16*(1-EQ$42),EQ16) -> 16.39086411
B51: 2030年度 | G51: 4.71110889 | L51: 4.71110889 | Q51: 2030年度 | V51: 10.3913811 | AA51: 10.3913811 | AF51: 2030年度 | AK51: 9.050304328 | AP51: 9.050304328 | AU51: 2030年度 | AZ51: 11.01729497 | BE51: 11.01729497 | BJ51: 2030年度 | BO51: 15.73520842 | BT51: 15.73520842 | BY51: 2030年度 | CD51: =IFERROR(CD17*(1-CD$42),CD17) -> 11.51634098 | CI51: =IFERROR(CI17*(1-CI$42),CI17) -> 11.51634098 | CN51: 2030年度 | CS51: =IFERROR(CS17*(1-CS$42),CS17) -> 12.30334555 | CX51: =IFERROR(CX17*(1-CX$42),CX17) -> 12.30334555 | DC51: 2030年度 | DH51: 14.40442077 | DM51: 14.40442077 | DR51: 2030年度 | DW51: =IFERROR(DW17*(1-DW$42),DW17) -> 5.01743274 | EB51: =IFERROR(EB17*(1-EB$42),EB17) -> 5.01743274 | EG51: 2030年度 | EL51: =IFERROR(EL17*(1-EL$42),EL17) -> 16.32175085 | EQ51: =IFERROR(EQ17*(1-EQ$42),EQ17) -> 16.32175085
B52: 2031年度 | G52: 4.456329412 | L52: 4.456329412 | Q52: 2031年度 | V52: 9.948893378 | AA52: 9.948893378 | AF52: 2031年度 | AK52: 9.070826156 | AP52: 9.070826156 | AU52: 2031年度 | AZ52: 10.64197432 | BE52: 10.64197432 | BJ52: 2031年度 | BO52: 15.77117979 | BT52: 15.77117979 | BY52: 2031年度 | CD52: =IFERROR(CD18*(1-CD$42),CD18) -> 11.28198762 | CI52: =IFERROR(CI18*(1-CI$42),CI18) -> 11.28198762 | CN52: 2031年度 | CS52: =IFERROR(CS18*(1-CS$42),CS18) -> 11.84306372 | CX52: =IFERROR(CX18*(1-CX$42),CX18) -> 11.84306372 | DC52: 2031年度 | DH52: 14.17761888 | DM52: 14.17761888 | DR52: 2031年度 | DW52: =IFERROR(DW18*(1-DW$42),DW18) -> 4.580898055 | EB52: =IFERROR(EB18*(1-EB$42),EB18) -> 4.580898055 | EG52: 2031年度 | EL52: =IFERROR(EL18*(1-EL$42),EL18) -> 16.02021112 | EQ52: =IFERROR(EQ18*(1-EQ$42),EQ18) -> 16.02021112
B53: 2032年度 | G53: 4.315788717 | L53: 4.315788717 | Q53: 2032年度 | V53: 9.701342584 | AA53: 9.701342584 | AF53: 2032年度 | AK53: 8.725628079 | AP53: 8.725628079 | AU53: 2032年度 | AZ53: 10.35346097 | BE53: 10.35346097 | BJ53: 2032年度 | BO53: 16.56094244 | BT53: 16.56094244 | BY53: 2032年度 | CD53: =IFERROR(CD19*(1-CD$42),CD19) -> 11.40298465 | CI53: =IFERROR(CI19*(1-CI$42),CI19) -> 11.40298465 | CN53: 2032年度 | CS53: =IFERROR(CS19*(1-CS$42),CS19) -> 11.96750629 | CX53: =IFERROR(CX19*(1-CX$42),CX19) -> 11.96750629 | DC53: 2032年度 | DH53: 13.63247526 | DM53: 13.63247526 | DR53: 2032年度 | DW53: =IFERROR(DW19*(1-DW$42),DW19) -> 4.661738404 | EB53: =IFERROR(EB19*(1-EB$42),EB19) -> 4.661738404 | EG53: 2032年度 | EL53: =IFERROR(EL19*(1-EL$42),EL19) -> 16.11644284 | EQ53: =IFERROR(EQ19*(1-EQ$42),EQ19) -> 16.11644284
B54: 2033年度 | G54: 4.247563201 | L54: 4.247563201 | Q54: 2033年度 | V54: 9.674531382 | AA54: 9.674531382 | AF54: 2033年度 | AK54: 8.713619452 | AP54: 8.713619452 | AU54: 2033年度 | AZ54: 10.09972599 | BE54: 10.09972599 | BJ54: 2033年度 | BO54: 15.17754326 | BT54: 15.17754326 | BY54: 2033年度 | CD54: =IFERROR(CD20*(1-CD$42),CD20) -> 10.73883298 | CI54: =IFERROR(CI20*(1-CI$42),CI20) -> 10.73883298 | CN54: 2033年度 | CS54: =IFERROR(CS20*(1-CS$42),CS20) -> 11.3879365 | CX54: =IFERROR(CX20*(1-CX$42),CX20) -> 11.3879365 | DC54: 2033年度 | DH54: 13.70147834 | DM54: 13.70147834 | DR54: 2033年度 | DW54: =IFERROR(DW20*(1-DW$42),DW20) -> 4.456117536 | EB54: =IFERROR(EB20*(1-EB$42),EB20) -> 4.456117536 | EG54: 2033年度 | EL54: =IFERROR(EL20*(1-EL$42),EL20) -> 15.98776386 | EQ54: =IFERROR(EQ20*(1-EQ$42),EQ20) -> 15.98776386
B55: 2034年度 | G55: 4.247563201 | L55: 4.247563201 | Q55: 2034年度 | V55: 9.674531382 | AA55: 9.674531382 | AF55: 2034年度 | AK55: 8.713619452 | AP55: 8.713619452 | AU55: 2034年度 | AZ55: 10.09972599 | BE55: 10.09972599 | BJ55: 2034年度 | BO55: 15.17754326 | BT55: 15.17754326 | BY55: 2034年度 | CD55: =IFERROR(CD21*(1-CD$42),CD21) -> 10.73883298 | CI55: =IFERROR(CI21*(1-CI$42),CI21) -> 10.73883298 | CN55: 2034年度 | CS55: =IFERROR(CS21*(1-CS$42),CS21) -> 11.3879365 | CX55: =IFERROR(CX21*(1-CX$42),CX21) -> 11.3879365 | DC55: 2034年度 | DH55: 13.70147834 | DM55: 13.70147834 | DR55: 2034年度 | DW55: =IFERROR(DW21*(1-DW$42),DW21) -> 4.456117536 | EB55: =IFERROR(EB21*(1-EB$42),EB21) -> 4.456117536 | EG55: 2034年度 | EL55: =IFERROR(EL21*(1-EL$42),EL21) -> 15.98776386 | EQ55: =IFERROR(EQ21*(1-EQ$42),EQ21) -> 15.98776386

Sheet 事業者リスト一覧
B1: 電力広域的運営推進機関
B2: 計画年度選択 | D2: 発電事業者 | G2: 一般送配電事業者 | J2: 小売電気事業者 | M2: 配電事業者 | P2: 特定卸供給事業者 | S2: 送電事業者 | V2: 特定送配電事業者 | Y2: 登録特定送配電事業者
B3: 2026
D4: H001 | E4: 北海道電力株式会社 | G4: I01 | H4: 北海道電力ネットワーク株式会社 | J4: K001 | K4: 北海道電力株式会社 | M4: D001 | P4: A001 | Q4: 株式会社エナリス | S4: S01 | T4: 電源開発送変電ネットワーク株式会社 | V4: TT01 | W4: 欠番 | Y4: TR01 | Z4: Ｄａｉｇａｓエナジー株式会社
B5: ライセンス区分 | D5: H002 | E5: 東北電力株式会社 | G5: I02 | H5: 東北電力ネットワーク株式会社 | J5: K002 | K5: 東北電力株式会社 | M5: D002 | P5: A002 | Q5: 株式会社タクマエナジー | S5: S02 | T5: 北海道北部風力送電株式会社 | V5: TT02 | W5: 欠番 | Y5: TR02 | Z5: ＪＦＥスチール株式会社
D6: H003 | E6: 東京電力ホールディングス株式会社 | G6: I03 | H6: 東京電力パワーグリッド株式会社 | J6: K003 | K6: 東京電力エナジーパートナー株式会社 | M6: D003 | P6: A003 | Q6: 欠番 | S6: S03 | T6: 福島送電株式会社 | V6: TT03 | W6: 欠番 | Y6: TR03 | Z6: 住友共同電力株式会社
B7: 一般送配電事業者 | D7: H004 | E7: 株式会社ＪＥＲＡ | G7: I04 | H7: 中部電力パワーグリッド株式会社 | J7: K004 | K7: 中部電力ミライズ株式会社 | M7: D004 | P7: A004 | Q7: オリックス株式会社 | S7: S04 | V7: TT04 | W7: 日本ファシリティ・ソリューション株式会社 | Y7: TR04 | Z7: 東日本旅客鉄道株式会社
B8: 配電事業者 | D8: H005 | E8: 東京電力パワーグリッド株式会社 | G8: I05 | H8: 北陸電力送配電株式会社 | J8: K005 | K8: 北陸電力株式会社 | M8: D005 | P8: A005 | Q8: パシフィックパワー株式会社 | S8: S05 | V8: TT05 | W8: 欠番 | Y8: TR05 | Z8: 六本木エネルギーサービス株式会社
B9: 発電事業者 | D9: H006 | E9: 中部電力株式会社 | G9: I06 | H9: 関西電力送配電株式会社 | J9: K006 | K9: 関西電力株式会社 | M9: D006 | P9: A006 | Q9: アズビル株式会社 | S9: S06 | V9: TT06 | W9: 欠番 | Y9: TR06 | Z9: 株式会社ＪＮＣパワー
B10: 特定卸供給事業者 | D10: H007 | E10: 北陸電力株式会社 | G10: I07 | H10: 中国電力ネットワーク株式会社 | J10: K007 | K10: 中国電力株式会社 | M10: D007 | P10: A007 | Q10: 東北電力株式会社 | S10: S07 | V10: TT07 | W10: 欠番 | Y10: TR07 | Z10: 王子製紙株式会社
B11: 小売電気事業者 | D11: H008 | E11: 関西電力株式会社 | G11: I08 | H11: 四国電力送配電株式会社 | J11: K008 | K11: 四国電力株式会社 | M11: D008 | P11: A008 | Q11: 大阪瓦斯株式会社 | S11: S08 | V11: TT08 | W11: 欠番 | Y11: TR08 | Z11: 株式会社グリーンサークル
B12: 登録特定送配電事業者 | D12: H009 | E12: 中国電力株式会社 | G12: I09 | H12: 九州電力送配電株式会社 | J12: K009 | K12: 九州電力株式会社 | M12: D009 | P12: A009 | Q12: 欠番 | S12: S09 | V12: TT09 | W12: 利久株式会社 | Y12: TR09 | Z12: 欠番
B13: 送電事業者 | D13: H010 | E13: 四国電力株式会社 | G13: I10 | H13: 沖縄電力株式会社 | J13: K010 | K13: 沖縄電力株式会社 | M13: D010 | P13: A010 | Q13: Ｇｏａｌ Ｃｏｎｎｅｃｔ株式会社 | S13: S10 | V13: TT10 | W13: 欠番 | Y13: TR10 | Z13: 欠番
B14: 特定送配電事業者 | D14: H011 | E14: 九州電力株式会社 | J14: K011 | K14: 欠番 | M14: D011 | P14: A011 | Q14: 株式会社グローバルエンジニアリング | S14: S11 | V14: TT11 | W14: 欠番 | Y14: TR11 | Z14: 株式会社フォレストパワー
B15: その他事業者 | D15: H012 | E15: 沖縄電力株式会社 | G15: その他事業者 | J15: K012 | K15: イーレックス株式会社 | M15: D012 | P15: A012 | Q15: 欠番 | S15: S12 | V15: TT12 | W15: ヤクデン商事株式会社 | Y15: TR12 | Z15: 宮崎パワーライン株式会社
D16: H013 | E16: 電源開発株式会社 | J16: K013 | K16: リエスパワー株式会社 | M16: D013 | P16: A013 | Q16: 九州電力株式会社 | S16: S13 | V16: TT13 | W16: 株式会社祥和コーポレーション | Y16: TR13 | Z16: 欠番
B17: エリア | D17: H014 | E17: 日本原子力発電株式会社 | G17: ST01 | H17: 風力 | J17: K014 | K17: エバーグリーン・リテイリング株式会社 | M17: D014 | P17: A014 | Q17: 電源開発株式会社 | S17: S14 | V17: TT14 | W17: 欠番 | Y17: TR14 | Z17: 丸紅株式会社
D18: H015 | E18: 日本テクノ株式会社 | G18: ST02 | H18: 太陽光（全量買取） | J18: K015 | K18: 欠番 | M18: D015 | P18: A015 | Q18: テス・エンジニアリング株式会社 | S18: S15 | V18: TT15 | W18: 欠番 | Y18: TR15 | Z18: イーレックス株式会社
B19: 北海道 | D19: H016 | E19: ＳＯＬＡＲ ＥＮＥＲＧＹ 真壁合同会社 | G19: ST03 | H19: 太陽光（余剰買取） | J19: K016 | K19: エバーグリーン・マーケティング株式会社 | M19: D016 | P19: A016 | Q19: アーバンエナジー株式会社 | S19: S16 | V19: TT16 | W19: 株式会社シーエナジー | Y19: TR16 | Z19: 一般社団法人東松島みらいとし機構
B20: 東北 | D20: H017 | E20: 大牟田リサイクル発電株式会社 | G20: ST04 | H20: 日本卸電力取引所（約定分） | J20: K017 | K20: 株式会社ＳＥウイングズ | M20: D017 | P20: A017 | Q20: ＭＣリテールエナジー株式会社 | S20: S17 | V20: TT17 | W20: 欠番 | Y20: TR17 | Z20: 森の電力株式会社
B21: 東京 | D21: H018 | E21: サミット明星パワー株式会社 | G21: ST05 | H21: 非電気事業者 | J21: K018 | K21: 株式会社イーセル | M21: D018 | P21: A018 | Q21: エネルエックス・ジャパン株式会社 | S21: S18 | V21: TT18 | W21: 欠番 | Y21: TR18 | Z21: 欠番
B22: 中部 | D22: H019 | E22: 欠番 | G22: ST06 | H22: 非電気事業者（10万kW以下事業者） | J22: K019 | K22: 株式会社エネット | M22: D019 | P22: A019 | Q22: 株式会社ＵＰＤＡＴＥＲ | S22: S19 | V22: TT19 | W22: 欠番 | Y22: TR19 | Z22: ジェーシーパワーサプライ株式会社
B23: 北陸 | D23: H020 | E23: 西つがる風力発電株式会社 | G23: ST07 | J23: K020 | K23: 欠番 | M23: D020 | P23: A020 | Q23: 東邦ガス株式会社 | S23: S20 | V23: TT20 | W23: 欠番 | Y23: TR20 | Z23: そうまＩグリッド合同会社
B24: 関西 | D24: H021 | E24: まほろば風力発電株式会社 | G24: ST08 | J24: K021 | K24: 須賀川瓦斯株式会社 | M24: D021 | P24: A021 | Q24: カスタマイズドエナジーソリューションズジャパン株式会社 | S24: S21 | V24: TT21 | W24: 欠番 | Y24: TR21 | Z24: 三井不動産ＴＧスマートエナジー株式会社
B25: 中国 | D25: H022 | E25: エイブルエナジー合同会社 | G25: ST09 | J25: K022 | K25: 出光興産株式会社 | M25: D022 | P25: A022 | Q25: 東京電力エナジーパートナー株式会社 | S25: S22 | V25: TT22 | W25: 欠番 | Y25: TR22 | Z25: ＭＣＰＤ株式会社
B26: 四国 | D26: H023 | E26: 欠番 | G26: ST10 | J26: K023 | K26: 株式会社オプテージ | M26: D023 | P26: A023 | Q26: 北陸電力株式会社 | S26: S23 | V26: TT23 | W26: 陸前高田しみんエネルギー株式会社 | Y26: TR23 | Z26: ひおき地域エネルギー株式会社
B27: 九州 | D27: H024 | E27: 株式会社ＩＨＩ原動機 | J27: K024 | K27: エネサーブ株式会社 | M27: D024 | P27: A024 | Q27: 欠番 | S27: S24 | V27: TT24 | W27: ヒメジ理化株式会社 | Y27: TR24 | Z27: 欠番
B28: 沖縄 | D28: H025 | E28: 株式会社新中袖発電所 | J28: K025 | K28: 株式会社エネワンでんき | M28: D025 | P28: A025 | Q28: 北海道電力株式会社 | S28: S25 | V28: TT25 | W28: 株式会社町おこしエネルギー | Y28: TR25 | Z28: 株式会社タクマエナジー
D29: H026 | E29: 株式会社那須南エコファーム | J29: K026 | K29: ミツウロコグリーンエネルギー株式会社 | M29: D026 | P29: A026 | Q29: 四国電力株式会社 | S29: S26 | V29: TT26 | W29: あきたみらい共生電力株式会社 | Y29: TR26 | Z29: 欠番
B30: チェック用 | D30: H027 | E30: 株式会社ＡＣエナジー | J30: K027 | K30: 株式会社リエネ | M30: D027 | P30: A027 | Q30: 中部電力ミライズ株式会社 | S30: S27 | V30: TT27 | W30: 株式会社原興産 | Y30: TR27 | Z30: 欠番
D31: H028 | E31: 株式会社イースクエア | J31: K028 | K31: ネクストパワーやまと株式会社 | M31: D028 | P31: A028 | Q31: 東京瓦斯株式会社 | S31: S28 | V31: TT28 | W31: せきかわふるさとエネルギー株式会社 | Y31: TR28 | Z31: 虎ノ門エネルギーネットワーク株式会社
B32: 1 | D32: H029 | E32: 合同会社ノーバル・ソーラー | J32: K029 | K32: 日本テクノ株式会社 | M32: D029 | P32: A029 | Q32: 株式会社工営エナジー | S32: S29 | V32: TT29 | W32: 株式会社いくさかてらす | Y32: TR29 | Z32: 旭化成水力テクノサービス株式会社
D33: H030 | E33: 住友共同電力株式会社 | J33: K030 | K33: 中央電力エナジー株式会社 | M33: D030 | P33: A030 | Q33: ＮＴＴアノードエナジー株式会社 | S33: S30 | V33: TT30 | Y33: TR30 | Z33: 株式会社ウッドエナジー
B34: 提出区分 | D34: H031 | E34: 六本木エネルギーサービス株式会社 | J34: K031 | K34: 株式会社Ｌｏｏｏｐ | M34: D031 | P34: A031 | Q34: 欠番 | S34: S31 | V34: TT31 | Y34: TR31 | Z34: 真庭バイオエネルギー株式会社
B35: 新規 | D35: H032 | E35: 東日本旅客鉄道株式会社 | J35: K032 | K35: 欠番 | M35: D032 | P35: A032 | Q35: 東京電力ホールディングス株式会社 | S35: S32 | V35: TT32 | Y35: TR32 | Z35: 葛尾創生電力株式会社
B36: 変更1 | D36: H033 | E36: 鴨川みらいソーラー合同会社 | J36: K033 | K36: 欠番 | M36: D033 | P36: A033 | Q36: カナデビア株式会社 | S36: S33 | V36: TT33 | Y36: TR33 | Z36: 株式会社Ｌｏｏｏｐ
B37: 変更2 | D37: H034 | E37: 東北自然エネルギー株式会社 | J37: K034 | K37: 静岡ガス＆パワー株式会社 | M37: D034 | P37: A034 | Q37: 中国電力株式会社 | S37: S34 | V37: TT34 | Y37: TR34 | Z37: 株式会社ＦＰＳ
B38: 変更3 | D38: H035 | E38: 川崎市役所 | J38: K035 | K38: 荏原環境プラント株式会社 | M38: D035 | P38: A035 | Q38: デジタルグリッド株式会社 | S38: S35 | V38: TT35 | Y38: TR35 | Z38: 関西電力株式会社
B39: 変更4 | D39: H036 | E39: ＢＳＲＡ Ａｌｐｈａ１ 合同会社 | J39: K036 | K39: 東京エコサービス株式会社 | M39: D036 | P39: A036 | Q39: 伊藤忠商事株式会社 | S39: S36 | V39: TT36 | Y39: TR36 | Z39: 広島ガス株式会社
B40: 変更5 | D40: H037 | E40: 五井コーストエナジー株式会社 | J40: K037 | K40: ダイヤモンドパワー株式会社 | M40: D037 | P40: A037 | Q40: Ｇｒｅｅｎｅｓｔ Ｅｎｅｒｇｙ株式会社 | S40: S37 | V40: TT37 | Y40: TR37 | Z40: ウーブン・バイ・トヨタ株式会社
B41: 変更6 | D41: H038 | E41: 秋田県 | J41: K038 | K41: 欠番 | M41: D038 | P41: A038 | Q41: リニューアブル・ジャパン株式会社 | S41: S38 | V41: TT38 | Y41: TR38 | Z41: ＥＮＥＯＳ Ｐｏｗｅｒ株式会社
B42: 変更7 | D42: H039 | E42: 東埼玉資源環境組合 | J42: K039 | K42: 欠番 | M42: D039 | P42: A039 | Q42: Ｑ．ＥＮＥＳＴでんき株式会社 | S42: S39 | V42: TT39 | Y42: TR39 | Z42: 浦添分散型エネルギー株式会社
D43: H040 | E43: 頴娃風力発電株式会社 | J43: K040 | K43: 欠番 | M43: D040 | P43: A040 | Q43: カワサキグリーンエナジー株式会社 | S43: S40 | V43: TT40 | Y43: TR40 | Z43: 株式会社エヌディエス
B44: 種別 | D44: H041 | E44: パシフィコ・エナジー山形合同会社 | J44: K041 | K44: 株式会社新出光 | M44: D041 | P44: A041 | Q44: ＨＳＥ株式会社 | S44: S41 | V44: TT41 | Y44: TR41 | Z44: 三井不動産ＴＥＰＣＯエナジー株式会社
D45: H042 | E45: 三菱製紙株式会社 | J45: K042 | K45: セントラル石油瓦斯株式会社 | M45: D042 | P45: A042 | Q45: 株式会社再生可能エネルギー推進機構 | S45: S42 | V45: TT42 | Y45: TR42 | Z45: 相鉄クリーンエナジー株式会社
B46: 常時バックアップ | D46: H043 | E46: 欠番 | J46: K043 | K46: にちほクラウド電力株式会社 | M46: D043 | P46: A043 | Q46: ダイヤモンドパワー株式会社 | S46: S43 | V46: TT43 | Y46: TR43 | Z46: 大熊るるるん電力株式会社
B47: 水力 | D47: H044 | E47: 欠番 | J47: K044 | K47: 一般財団法人泉佐野電力 | M47: D044 | P47: A044 | Q47: イーレックス株式会社 | S47: S44 | V47: TT44 | Y47: TR44 | Z47: 株式会社グリーンエナジーぐんま
B48: 火力 | D48: H045 | E48: 株式会社フジックス | J48: K045 | K48: コスモエネルギーソリューションズ株式会社 | M48: D045 | P48: A045 | Q48: 株式会社シムックスイニシアティブ | S48: S45 | V48: TT45 | Y48: TR45 | Z48: スマート電気株式会社
B49: 原子力 | D49: H046 | E49: Ｄａｉｇａｓ大分みらいソーラー株式会社 | J49: K046 | K49: 株式会社グリーンサークル | M49: D046 | P49: A046 | Q49: 東芝エネルギーシステムズ株式会社 | S49: S46 | V49: TT46 | Y49: TR46
B50: 風力 | D50: H047 | E50: 京葉ガスエナジーソリューション株式会社 | J50: K047 | K50: 欠番 | M50: D047 | P50: A047 | Q50: ElectroRoute Japan株式会社 | S50: S47 | V50: TT47 | Y50: TR47
B51: 太陽光（全量） | D51: H048 | E51: 株式会社グリーンエナジー津 | J51: K048 | K51: 欠番 | M51: D048 | P51: A048 | Q51: 豊田通商株式会社 | S51: S48 | V51: TT48 | Y51: TR48
B52: 太陽光（余剰） | D52: H049 | E52: パシフィコ・エナジー細江合同会社 | J52: K049 | K52: 北海道瓦斯株式会社 | M52: D049 | P52: A049 | Q52: ENEOSリニューアブル・エナジー・ソリューションズ株式会社 | S52: S49 | V52: TT49 | Y52: TR49
B53: 地熱 | D53: H050 | E53: 九州おひさま発電株式会社 | J53: K050 | K53: アルカナエナジー株式会社 | M53: D050 | P53: A050 | Q53: ＵＮＩＶＥＲＧＹ株式会社 | S53: S50 | V53: TT50 | Y53: TR50
B54: バイオマス | D54: H051 | E54: 富山県企業局 | J54: K051 | K54: 株式会社エナジーバンクパートナーズ | M54: D051 | P54: A051 | Q54: 株式会社まち未来製作所 | S54: S51 | V54: TT51 | Y54: TR51
B55: 廃棄物 | D55: H052 | E55: 欠番 | J55: K052 | K55: 新エネルギー開発株式会社 | M55: D052 | P55: A052 | Q55: エナジープールジャパン株式会社 | S55: S52 | V55: TT52 | Y55: TR52
B56: その他（電源種別混同等） | D56: H053 | E56: 株式会社高田屋 | J56: K053 | K56: 伊藤忠エネクス株式会社 | M56: D053 | P56: A053 | Q56: Ｅ－Ｆｌｏｗ合同会社 | S56: S53 | V56: TT53 | Y56: TR53
B57: ネガワット | D57: H054 | E57: 住友大阪セメント株式会社 | J57: K054 | K57: 欠番 | M57: D054 | P57: A054 | Q57: ＧｒｉｄＢｅｙｏｎｄ合同会社 | S57: S54 | V57: TT54 | Y57: TR54
B58: 蓄電池 | D58: H055 | E58: 京都府電気事業 | J58: K055 | K58: 株式会社Ｖ－Ｐｏｗｅｒ | M58: D055 | P58: A055 | Q58: 丸紅新電力株式会社 | S58: S55 | V58: TT55 | Y58: TR55
B59: 水素 | D59: H056 | E59: 株式会社アサヒコーポレーション | J59: K056 | K59: 大和エネルギー株式会社 | M59: D056 | P59: A056 | Q59: ＲＥ１００電力株式会社 | S59: S56 | V59: TT56 | Y59: TR56
B60: アンモニア | D60: H057 | E60: パシフィコ・エナジー美作武蔵合同会社 | J60: K057 | K60: 欠番 | M60: D057 | P60: A057 | Q60: Ｖａｌｈａｌｌ合同会社 | S60: S57 | V60: TT57 | Y60: TR57
D61: H058 | E61: パシフィコ・エナジー久米南合同会社 | J61: K058 | K61: 大阪瓦斯株式会社 | M61: D058 | P61: A058 | Q61: 株式会社ユーラスグリーンエナジー | S61: S58 | V61: TT58 | Y61: TR58
B62: 桁数設定 | D62: H059 | E62: サミット美浜パワー株式会社 | J62: K059 | K62: エフビットコミュニケーションズ株式会社 | M62: D059 | P62: A059 | Q62: ハイパワー合同会社 | S62: S59 | V62: TT59 | Y62: TR59
B63: 1 | D63: H060 | E63: 金沢エナジー株式会社 | J63: K060 | K63: 欠番 | M63: D060 | P63: A060 | Q63: 株式会社Ｓｈｉｚｅｎ Ｃｏｎｎｅｃｔ | S63: S60 | V63: TT60 | Y63: TR60
D64: H061 | E64: 鹿児島メガソーラー発電株式会社 | J64: K061 | K64: 真庭バイオエネルギー株式会社 | M64: D061 | P64: A061 | Q64: 株式会社サンヴィレッジ | S64: S61 | V64: TT61 | Y64: TR61
B65: 桁数設定（新エネ供給力） | D65: H062 | E65: 出光興産株式会社 | J65: K062 | K65: 三井物産株式会社 | M65: D062 | P65: A062 | Q65: しろくま電力株式会社 | S65: S62 | V65: TT62 | Y65: TR62
B66: 1 | D66: H063 | E66: ＭＩＲＡＲＴＨホールディングス株式会社 | J66: K063 | K66: オリックス株式会社 | M66: D063 | P66: A063 | Q66: ミツウロコグリーンエネルギー株式会社 | S66: S63 | V66: TT63 | Y66: TR63
D67: H064 | E67: 株式会社レスター | J67: K064 | K67: 株式会社エネサンス関東 | M67: D064 | P67: A064 | Q67: 欠番 | S67: S64 | V67: TT64 | Y67: TR64
D68: H065 | E68: 欠番 | J68: K065 | K68: 株式会社ＵＰＤＡＴＥＲ | M68: D065 | P68: A065 | Q68: オムロンソーシアルソリューションズ株式会社 | S68: S65 | V68: TT65 | Y68: TR65
D69: H066 | E69: 徳島県企業局 | J69: K066 | K69: シン・エナジー株式会社 | M69: D066 | P69: A066 | Q69: Ｓｅｃｏｎｄ Ｆｏｕｎｄａｔｉｏｎ Ｊａｐａｎ合同会社 | S69: S66 | V69: TT66 | Y69: TR66
D70: H067 | E70: 欠番 | J70: K067 | K70: 欠番 | M70: D067 | P70: A067 | Q70: 日鉄エンジニアリング株式会社 | S70: S67 | V70: TT67 | Y70: TR67
D71: H068 | E71: 高知県公営企業局 | J71: K068 | K71: 株式会社コンシェルジュ | M71: D068 | P71: A068 | Q71: 京セラ株式会社 | S71: S68 | V71: TT68 | Y71: TR68
D72: H069 | E72: 王子マテリア株式会社 | J72: K069 | K72: 欠番 | M72: D069 | P72: A069 | Q72: 出光興産株式会社 | S72: S69 | V72: TT69 | Y72: TR69
D73: H070 | E73: 沖縄新エネ開発株式会社 | J73: K070 | K73: 株式会社アイ・グリッド・ソリューションズ | M73: D070 | P73: A070 | Q73: オムロンフィールドエンジニアリング株式会社 | S73: S70 | V73: TT70 | Y73: TR70
D74: H071 | E74: 株式会社福岡クリーンエナジー | J74: K071 | K74: サミットエナジー株式会社 | M74: D071 | P74: A071 | Q74: 株式会社大崎クリエーション | S74: S71 | V74: TT71 | Y74: TR71
D75: H072 | E75: 株式会社関電工 | J75: K072 | K75: リコージャパン株式会社 | M75: D072 | P75: A072 | Q75: 株式会社ＩＱｇ | S75: S72 | V75: TT72 | Y75: TR72
D76: H073 | E76: 丸住製紙株式会社 | J76: K073 | K76: 株式会社エネルギア・ソリューション・アンド・サービス | M76: D073 | P76: A073 | Q76: ＥＮＥＯＳ Ｐｏｗｅｒ株式会社 | S76: S73 | V76: TT73 | Y76: TR73
D77: H074 | E77: 長野県企業局 | J77: K074 | K77: 東京ガス株式会社 | M77: D074 | P77: A074 | Q77: ａｕエネルギー＆ライフ株式会社 | S77: S74 | V77: TT74 | Y77: TR74
D78: H075 | E78: 白馬ウインドファーム株式会社 | J78: K075 | K78: テス・エンジニアリング株式会社 | M78: D075 | P78: A075 | Q78: 株式会社ＪＥＲＡ Ｃｒｏｓｓ | S78: S75 | V78: TT75 | Y78: TR75
D79: H076 | E79: 白滝山ウインドファーム株式会社 | J79: K076 | K79: 青梅ガス株式会社 | M79: D076 | P79: A076 | Q79: 株式会社パワーエックス | S79: S76 | V79: TT76 | Y79: TR76
D80: H077 | E80: 合同会社バイテック・漁火館滝沢市メガソーラー | J80: K077 | K80: 株式会社イーネットワークシステムズ | M80: D077 | P80: A077 | Q80: ＮＥｘＴーｅ Ｓｏｌｕｔｉｏｎｓ株式会社 | S80: S77 | V80: TT77 | Y80: TR77
D81: H078 | E81: 鈴川エネルギーセンター株式会社 | J81: K078 | K81: 株式会社エネアーク関東 | M81: D078 | P81: A078 | Q81: 株式会社Ｓｕｓｔｅｃｈ | S81: S78 | V81: TT78 | Y81: TR78
D82: H079 | E82: カナデビア株式会社 | J82: K079 | K82: 株式会社東急パワーサプライ | M82: D079 | P82: A079 | Q82: 株式会社Ｑｖｏｕ | S82: S79 | V82: TT79 | Y82: TR79
D83: H080 | E83: 江津ウィンドパワー株式会社 | J83: K080 | K83: 王子・伊藤忠エネクス電力販売株式会社 | M83: D080 | P83: A080 | Q83: ゼロワットパワー株式会社 | S83: S80 | V83: TT80 | Y83: TR80
D84: H081 | E84: 株式会社野田バイオパワーＪＰ | J84: K081 | K84: 伊藤忠商事株式会社 | M84: D081 | P84: A081 | Q84: 株式会社ヒュージモリ商事 | S84: S81 | V84: TT81 | Y84: TR81
D85: H082 | E85: 株式会社南九 | J85: K082 | K85: 株式会社エコスタイル | M85: D082 | P85: A082 | Q85: 株式会社東急パワーサプライ | S85: S82 | V85: TT82 | Y85: TR82
D86: H083 | E86: 株式会社ＳＪソーラーつくば | J86: K083 | K86: 入間ガス株式会社 | M86: D083 | P86: A083 | Q86: エンジー・エナジー・マーケティング・ジャパン株式会社 | S86: S83 | V86: TT83 | Y86: TR83
D87: H084 | E87: 中国木材株式会社 | J87: K084 | K87: テプコカスタマーサービス株式会社 | M87: D084 | P87: A084 | Q87: 株式会社グリーンパワー大東 | S87: S84 | V87: TT84 | Y87: TR84
D88: H085 | E88: 北越コーポレーション株式会社 | J88: K085 | K88: 株式会社とんでんホールディングス | M88: D085 | P88: A085 | Q88: 株式会社Ｌｏｏｏｐ | S88: S85 | V88: TT85 | Y88: TR85
D89: H086 | E89: ほくでんエコエナジー株式会社 | J89: K086 | K89: 日鉄エンジニアリング株式会社 | M89: D086 | P89: A086 | Q89: Ｏｐｅｎ Ｑｕａｎｔ株式会社 | S89: S86 | V89: TT86 | Y89: TR86
D90: H087 | E90: 欠番 | J90: K087 | K90: ａｕエネルギー＆ライフ株式会社 | M90: D087 | P90: A087 | Q90: 株式会社ＦＰＳ | S90: S87 | V90: TT87 | Y90: TR87
D91: H088 | E91: 大分県企業局 | J91: K088 | K91: 欠番 | M91: D088 | P91: A088 | Q91: 株式会社アイ・グリッド・ソリューションズ | S91: S88 | V91: TT88 | Y91: TR88
D92: H089 | E92: 多可町安田郷メガソーラ―発電合同会社 | J92: K089 | K92: イワタニ関東株式会社 | M92: D089 | P92: A089 | Q92: エフィシエント株式会社 | S92: S89 | V92: TT89 | Y92: TR89
D93: H090 | E93: 長崎ソーラーエナジー合同会社 | J93: K090 | K93: イワタニ首都圏株式会社 | M93: D090 | P93: A090 | Q93: 株式会社クリーンエナジーコネクト | S93: S90 | V93: TT90 | Y93: TR90
D94: H091 | E94: ＪＦＥソーラーパワー株式会社 | J94: K091 | K94: サーラｅエナジー株式会社 | M94: D091 | P94: A091 | Q94: 東京センチュリー株式会社 | S94: S91 | V94: TT91 | Y94: TR91
D95: H092 | E95: 株式会社カネカ | J95: K092 | K95: 株式会社地球クラブ | M95: D092 | P95: A092 | Q95: エクセルギー・パワー・システムズ株式会社 | S95: S92 | V95: TT92 | Y95: TR92
D96: H093 | E96: 親和開発株式会社 | J96: K093 | K96: 株式会社エコア | M96: D093 | P96: A093 | Q96: Tensor Energy株式会社 | S96: S93 | V96: TT93 | Y96: TR93
D97: H094 | E97: 株式会社エナリス | J97: K094 | K97: 西部瓦斯株式会社 | M97: D094 | P97: A094 | Q97: 欠番 | S97: S94 | V97: TT94 | Y97: TR94
D98: H095 | E98: ＪＦＥスチール株式会社 | J98: K095 | K98: 東邦ガス株式会社 | M98: D095 | P98: A095 | Q98: コスモエコパワー株式会社 | S98: S95 | V98: TT95 | Y98: TR95
D99: H096 | E99: 酒田共同火力発電株式会社 | J99: K096 | K99: シナネン株式会社 | M99: D096 | P99: A096 | Q99: 株式会社リエネ | S99: S96 | V99: TT96 | Y99: TR96
D100: H097 | E100: 岩手県企業局 | J100: K097 | K100: 欠番 | M100: D097 | P100: A097 | Q100: 欠番 | S100: S97 | V100: TT97 | Y100: TR97
D101: H098 | E101: 新潟県企業局 | J101: K098 | K101: カワサキグリーンエナジー株式会社 | M101: D098 | P101: A098 | Q101: ヒラソル・エナジー株式会社 | S101: S98 | V101: TT98 | Y101: TR98
D102: H099 | E102: 仙台市 | J102: K099 | K102: 大一ガス株式会社 | M102: D099 | P102: A099 | Q102: フローティング・ウィンド・アグリゲーション株式会社 | S102: S99 | V102: TT99 | Y102: TR99
D103: H100 | E103: 愛媛県公営企業管理局 | J103: K100 | K103: 株式会社リミックスポイント | M103: D100 | P103: A100 | Q103: ENEXIA合同会社 | S103: S100 | V103: TT100 | Y103: TR100
D104: H101 | E104: 株式会社グリーンパワー浜田 | J104: K101 | K104: 大阪いずみ市民生活協同組合 | M104: D101 | P104: A101 | Q104: TAOKE ENERGY株式会社
D105: H102 | E105: 三菱重工業株式会社 | J105: K102 | K105: 株式会社中海テレビ放送 | M105: D102 | P105: A102 | Q105: 株式会社永輝商事
D106: H103 | E106: 欠番 | J106: K103 | K106: パシフィックパワー株式会社 | M106: D103 | P106: A103 | Q106: 株式会社グリーングロース
D107: H104 | E107: ユナイテッドリニューアブルエナジー株式会社 | J107: K104 | K107: 欠番 | M107: D104 | P107: A104 | Q107: ローカルエナジー株式会社
D108: H105 | E108: 合同会社茂原ソーラーパーク | J108: K105 | K108: 欠番 | M108: D105 | P108: A105 | Q108: 欠番
D109: H106 | E109: 欠番 | J109: K106 | K109: 欠番 | M109: D106 | P109: A106 | Q109: 株式会社リ・パワー
D110: H107 | E110: 紋別バイオマス発電株式会社 | J110: K107 | K110: 欠番 | M110: D107 | P110: A107 | Q110: パワープール株式会社
D111: H108 | E111: 市原グリーン電力株式会社 | J111: K108 | K111: 株式会社ジェイコムウエスト | M111: D108 | P111: A108 | Q111: ＢＰエナジージャパン株式会社
D112: H109 | E112: プロロジス・グリーン有限会社 | J112: K109 | K112: 欠番 | M112: D109 | P112: A109 | Q112: 株式会社Ｎｉｋａ商事
D113: H110 | E113: 欠番 | J113: K110 | K113: 欠番 | M113: D110 | P113: A110 | Q113: 燈・アンド・カンパニー株式会社
D114: H111 | E114: 合同会社新潟島見ソーラーパーク | J114: K111 | K114: 欠番 | M114: D111 | P114: A111 | Q114: 株式会社エネルギーポイント
D115: H112 | E115: 九州共同発電株式会社 | J115: K112 | K115: 欠番 | M115: D112 | P115: A112 | Q115: 株式会社ＲＵＴＩＬＥＡ
D116: H113 | E116: 日本軽金属株式会社 | J116: K113 | K116: 株式会社ジェイコム埼玉・東日本 | M116: D113 | P116: A113 | Q116: 株式会社ユーラスエナジーホールディングス
D117: H114 | E117: 欠番 | J117: K114 | K117: 株式会社ジェイコム札幌 | M117: D114 | P117: A114 | Q117: Ｂｌｕｅｆｉｅｌｄ Ｅｎｅｒｇｙ株式会社
D118: H115 | E118: 川崎バイオマス発電株式会社 | J118: K115 | K118: 株式会社ジェイコム湘南・神奈川 | M118: D115 | P118: A115 | Q118: ＨｅＬＭ Ａｇｇｒｅｇａｔｉｏｎ株式会社
D119: H116 | E119: 常磐共同火力株式会社 | J119: K116 | K119: 欠番 | M119: D116 | P119: A116 | Q119: Ｄａｉｇａｓエナジー株式会社
D120: H117 | E120: 合同会社DMM.com | J120: K117 | K120: 株式会社ジェイコム千葉 | M120: D117 | P120: A117 | Q120: 伊藤忠エネクス株式会社
D121: H118 | E121: 堺市 | J121: K118 | K121: 欠番 | M121: D118 | P121: A118 | Q121: 株式会社ＲＥフォワード
D122: H119 | E122: 大阪瓦斯株式会社 | J122: K119 | K122: 欠番 | M122: D119 | P122: A119 | Q122: 株式会社リミックスポイント
D123: H120 | E123: 株式会社ヨンコーソーラー | J123: K120 | K123: 株式会社ジェイコム東京 | M123: D120 | P123: A120 | Q123: グローシップ株式会社
D124: H121 | E124: 相馬共同火力発電株式会社 | J124: K121 | K124: 欠番 | M124: D121 | P124: A121 | Q124: 北海道再エネアグリゲーション株式会社
D125: H122 | E125: 福岡都市圏南部環境事業組合 | J125: K122 | K125: 欠番 | M125: D122 | P125: A122 | Q125: 株式会社Ｓａｓｓｏｒ
D126: H123 | E126: 株式会社チョープロ | J126: K123 | K126: 欠番 | M126: D123 | P126: A123 | Q126: ＮＵＶＶＥ ＪＡＰＡＮ株式会社
D127: H124 | E127: エネ・シードひびき株式会社 | J127: K124 | K127: 欠番 | M127: D124 | P127: A124 | Q127: 九電みらいエナジー株式会社
D128: H125 | E128: 欠番 | J128: K125 | K128: 欠番 | M128: D125 | P128: A125 | Q128: 石油資源開発株式会社
D129: H126 | E129: ＥＮＥＯＳ株式会社 | J129: K126 | K129: 欠番 | M129: D126 | P129: A126 | Q129: 株式会社オーラパワー
D130: H127 | E130: 欠番 | J130: K127 | K130: 欠番 | M130: D127 | P130: A127 | Q130: 株式会社ふるなび電力
D131: H128 | E131: 欠番 | J131: K128 | K131: 欠番 | M131: D128 | P131: A128 | Q131: エレビスタ株式会社
D132: H129 | E132: 御船ホールディングス株式会社 | J132: K129 | K132: 土浦ケーブルテレビ株式会社 | M132: D129 | P132: A129 | Q132: 株式会社操電
D133: H130 | E133: 幌延風力発電株式会社 | J133: K130 | K133: 鹿児島電力株式会社 | M133: D130 | P133: A130 | Q133: 株式会社スマートパワーシステム
D134: H131 | E134: 三交不動産株式会社 | J134: K131 | K134: 太陽ガス株式会社 | M134: D131 | P134: A131 | Q134: 株式会社クローバー・テクノロジーズ
D135: H132 | E135: 東京発電株式会社 | J135: K132 | K135: アーバンエナジー株式会社 | M135: D132 | P135: A132 | Q135: 株式会社エコスタイル
D136: H133 | E136: 株式会社エフビット横須賀パワー | J136: K133 | K136: パワーネクスト株式会社 | M136: D133 | P136: A133 | Q136: 東京リズエナジ株式会社
D137: H134 | E137: 有限責任事業組合テックエナジー | J137: K134 | K137: 合同会社北上新電力 | M137: D134 | P137: A134 | Q137: 鈴与商事株式会社
D138: H135 | E138: 王子グリーンエナジー日南株式会社 | J138: K135 | K138: 欠番 | M138: D135 | P138: A135 | Q138: ユニバーサルエコロジー株式会社
D139: H136 | E139: 王子グリーンエナジー江別株式会社 | J139: K136 | K139: 株式会社タクマエナジー | M139: D136 | P139: A136 | Q139: 株式会社ファミリーネット・ジャパン
D140: H137 | E140: サミット酒田パワー株式会社 | J140: K137 | K140: 欠番 | M140: D137 | P140: A137 | Q140: 株式会社GREEN ACTION
D141: H138 | E141: 株式会社神戸物産 | J141: K138 | K141: 水戸電力株式会社 | M141: D138 | P141: A138 | Q141: テプコカスタマーサービス株式会社
D142: H139 | E142: 合同会社グリーンパワー富津 | J142: K139 | K142: 欠番 | M142: D139 | P142: A139 | Q142: 一般社団法人北広島町地域エネルギー会社
D143: H140 | E143: 合同会社大月ウィンドパワー | J143: K140 | K143: 丸紅新電力株式会社 | M143: D140 | P143: A140
D144: H141 | E144: 三崎ウィンド・パワー株式会社 | J144: K141 | K144: 欠番 | M144: D141 | P144: A141
D145: H142 | E145: ジャパンメガソーラー合同会社 | J145: K142 | K145: 欠番 | M145: D142 | P145: A142
D146: H143 | E146: 山梨県企業局 | J146: K143 | K146: 奈良電力株式会社 | M146: D143 | P146: A143
D147: H144 | E147: 黒部川電力株式会社 | J147: K144 | K147: カナデビア株式会社 | M147: D144 | P147: A144
D148: H145 | E148: ＪＮＣ株式会社 | J148: K145 | K148: 大東ガス株式会社 | M148: D145 | P148: A145
D149: H146 | E149: 株式会社エコパワーＪＰ | J149: K146 | K149: パナソニックオペレーショナルエクセレンス株式会社 | M149: D146 | P149: A146
D150: H147 | E150: 王子製紙株式会社 | J150: K147 | K150: アストモスエネルギー株式会社 | M150: D147 | P150: A147
D151: H148 | E151: 株式会社共栄エナジー | J151: K148 | K151: 株式会社関電エネルギーソリューション | M151: D148 | P151: A148
D152: H149 | E152: 神奈川電力株式会社 | J152: K149 | K152: マッコーリーエナジージャパン株式会社 | M152: D149 | P152: A149
D153: H150 | E153: ユーエスパワー株式会社 | J153: K150 | K153: ＭＣリテールエナジー株式会社 | M153: D150 | P153: A150
D154: H151 | E154: 合同会社ＢＨ志生木 | J154: K151 | K154: 株式会社北九州パワー | M154: D151 | P154: A151
D155: H152 | E155: 株式会社サニックスエナジー | J155: K152 | K155: 武州瓦斯株式会社 | M155: D152 | P155: A152
D156: H153 | E156: 株式会社レゾナック | J156: K153 | K156: リニューアブル・ジャパン株式会社 | M156: D153 | P156: A153
D157: H154 | E157: 山口県企業局 | J157: K154 | K157: 大垣ガス株式会社 | M157: D154 | P157: A154
D158: H155 | E158: サミットウインドパワー株式会社 | J158: K155 | K158: 株式会社藤田商店 | M158: D155 | P158: A155
D159: H156 | E159: グリーンパワーつがる合同会社 | J159: K156 | K159: 株式会社ケーブルネット下関 | M159: D156 | P159: A156
D160: H157 | E160: 北海道パワーエンジニアリング株式会社 | J160: K157 | K160: 株式会社ジェイコム九州 | M160: D157 | P160: A157
D161: H158 | E161: 男鹿風力発電株式会社 | J161: K158 | K161: 欠番 | M161: D158 | P161: A158
D162: H159 | E162: 市原パワー株式会社 | J162: K159 | K162: 株式会社グローバルエンジニアリング | M162: D159 | P162: A159
D163: H160 | E163: 泉北天然ガス発電株式会社 | J163: K160 | K163: 九州エナジー株式会社 | M163: D160 | P163: A160
D164: H161 | E164: 鳥取県 | J164: K161 | K164: 株式会社トヨタエナジーソリューションズ | M164: D161 | P164: A161
D165: H162 | E165: 富山地区広域圏事務組合 | J165: K162 | K165: 欠番 | M165: D162 | P165: A162
D166: H163 | E166: 株式会社シーテック | J166: K163 | K166: 株式会社エナリス・パワー・マーケティング | M166: D163 | P166: A163
D167: H164 | E167: 株式会社シグマパワー有明 | J167: K164 | K167: 歌舞伎エナジー株式会社 | M167: D164 | P167: A164
D168: H165 | E168: コスモエコパワー株式会社 | J168: K165 | K168: みやまスマートエネルギー株式会社 | M168: D165 | P168: A165
D169: H166 | E169: 神奈川県企業庁 | J169: K166 | K169: エフィシエント株式会社 | M169: D166 | P169: A166
D170: H167 | E170: コスモ石油株式会社 | J170: K167 | K170: 株式会社生活クラブエナジー | M170: D167 | P170: A167
D171: H168 | E171: 北陸パワーステーション株式会社 | J171: K168 | K171: 生活協同組合コープこうべ | M171: D168 | P171: A168
D172: H169 | E172: 九電みらいエナジー株式会社 | J172: K169 | K172: 株式会社シーエナジー | M172: D169 | P172: A169
D173: H170 | E173: 静岡ガス＆パワー株式会社 | J173: K170 | K173: 角栄ガス株式会社 | M173: D170 | P173: A170
D174: H171 | E174: 島根県企業局 | J174: K171 | K174: 京葉瓦斯株式会社 | M174: D171 | P174: A171
D175: H172 | E175: 熊本県企業局 | J175: K172 | K175: ＴＯＰＰＡＮホールディングス株式会社 | M175: D172 | P175: A172
D176: H173 | E176: 欠番 | J176: K173 | K176: 伊勢崎ガス株式会社 | M176: D173 | P176: A173
D177: H174 | E177: 欠番 | J177: K174 | K177: キヤノンマーケティングジャパン株式会社 | M177: D174 | P177: A174
D178: H175 | E178: 株式会社淡路貴船太陽光発電所 | J178: K175 | K178: 株式会社とっとり市民電力 | M178: D175 | P178: A175
D179: H176 | E179: 株式会社トーエネック | J179: K176 | K179: 欠番 | M179: D176 | P179: A176
D180: H177 | E180: 山形県企業局 | J180: K177 | K180: 佐野瓦斯株式会社 | M180: D177 | P180: A177
D181: H178 | E181: 欠番 | J181: K178 | K181: 桐生瓦斯株式会社 | M181: D178 | P181: A178
D182: H179 | E182: 株式会社青山高原ウインドファーム | J182: K179 | K182: 森の電力株式会社 | M182: D179 | P182: A179
D183: H180 | E183: 楢葉新電力合同会社 | J183: K180 | K183: 大和ハウス工業株式会社 | M183: D180 | P183: A180
D184: H181 | E184: 合同会社大津ソーラー | J184: K181 | K184: 欠番 | M184: D181 | P184: A181
D185: H182 | E185: 鷲尾岳風力発電株式会社 | J185: K182 | K185: ＨＴＢエナジー株式会社 | M185: D182 | P185: A182
D186: H183 | E186: 大阪広域環境施設組合 | J186: K183 | K186: 株式会社アシストワンエナジー | M186: D183 | P186: A183
D187: H184 | E187: 欠番 | J187: K184 | K187: 欠番 | M187: D184 | P187: A184
D188: H185 | E188: 東京二十三区清掃一部事務組合 | J188: K185 | K188: 株式会社フソウ・エナジー | M188: D185 | P188: A185
D189: H186 | E189: 日本太陽光発電２０１３合同会社 | J189: K186 | K189: 株式会社日本エコシステム | M189: D186 | P189: A186
D190: H187 | E190: 日本太陽光発電２０１４合同会社 | J190: K187 | K190: 湘南電力株式会社 | M190: D187 | P190: A187
D191: H188 | E191: 合同会社クリスタル・クリア・ソーラー | J191: K188 | K191: 大東建託パートナーズ株式会社 | M191: D188 | P191: A188
D192: H189 | E192: 欠番 | J192: K189 | K192: Ｊａｐａｎ電力株式会社 | M192: D189 | P192: A189
D193: H190 | E193: 石狩バイオエナジー合同会社 | J193: K190 | K193: 電源開発株式会社 | M193: D190 | P193: A190
D194: H191 | E194: 日本再生可能エネルギー株式会社 | J194: K191 | K194: 鈴与商事株式会社 | M194: D191 | P194: A191
D195: H192 | E195: 株式会社広川明神山風力発電所 | J195: K192 | K195: 欠番 | M195: D192 | P195: A192
D196: H193 | E196: 株式会社葉山風力発電所 | J196: K193 | K196: 欠番 | M196: D193 | P196: A193
D197: H194 | E197: 肥前風力発電株式会社 | J197: K194 | K197: ワタミエナジー株式会社 | M197: D194 | P197: A194
D198: H195 | E198: エルエムサンパワー株式会社 | J198: K195 | K198: 株式会社パルシステム電力 | M198: D195 | P198: A195
D199: H196 | E199: 日本海発電株式会社 | J199: K196 | K199: ＳＢパワー株式会社 | M199: D196 | P199: A196
D200: H197 | E200: シグマパワージャネックス株式会社 | J200: K197 | K200: ＮＦパワーサービス株式会社 | M200: D197 | P200: A197
... 1803 more rows

Sheet シート保護解除事業者リスト (hidden)
A1: ●一般送配電事業者+旧一般電気事業者 | E1: ●シート保護設定
A2: 供計用事業者コード | B2: 事業者名 | C2: 区分 | E2: フォーマット | G2: 配電事業者用 | I2: 一般送配電事業者用はシート保護解除版のみ作成
A3: 対象なし | B3: 対象なし | C3: ― | E3: NO | F3: シート一覧 | G3: シート表示/非表示 | H3: シートの保護 | R3: ●シート保護設定パターン
I4: セルの書式設定 | J4: 列の書式設定 | K4: 行の書式設定 | L4: 列の挿入 | M4: 行の挿入 | N4: 列の削除 | O4: 行の削除 | P4: 設定パターン （オブジェクトの編集DrawingObjectsについてはすべて編集可=False） | R4: セルの書式設定 | S4: 列の書式設定 | T4: 行の書式設定 | U4: 列の挿入 | V4: 行の挿入 | W4: 列の削除 | X4: 行の削除
G6: xlSheetVisible | H6: Protect | I6: AllowFormattingCells | J6: AllowFormattingColumns | K6: AllowFormattingRows | L6: AllowInsertingColumns | M6: AllowInsertingRows | N6: AllowDeletingColumns | O6: AllowDeletingRows | R6: AllowFormattingCells | S6: AllowFormattingColumns | T6: AllowFormattingRows | U6: AllowInsertingColumns | V6: AllowInsertingRows | W6: AllowDeletingColumns | X6: AllowDeletingRows
E8: 1 | F8: 作成手順 | G8: xlSheetHidden | H8: True | I8: False | J8: False | K8: False | L8: False | M8: False | N8: False | O8: False | P8: 全て不可 | R8: False | S8: False | T8: False | U8: False | V8: False | W8: False | X8: False | Y8: =R8&S8&T8&U8&V8&W8&X8 -> FalseFalseFalseFalseFalseFalseFalse | Z8: 全て不可
E9: 2 | F9: チェックシート | G9: xlSheetVisible | H9: True | I9: False | J9: False | K9: False | L9: False | M9: False | N9: False | O9: False | P9: 全て不可 | R9: True | S9: False | T9: False | U9: False | V9: False | W9: False | X9: False | Y9: TrueFalseFalseFalseFalseFalseFalse | Z9: 行高さ、列幅変更不可
E10: 3 | F10: 昨年度取込 | G10: xlSheetHidden | H10: True | I10: False | J10: False | K10: False | L10: False | M10: False | N10: False | O10: False | P10: =IF(ISERROR(VLOOKUP(I10&J10&K10&L10&M10&N10&O10,$Y$8:$Z$15,2,FALSE)),"",VLOOKUP(I10&J10&K10&L10&M10&N10&O10,$Y$8:$Z$15,2,FALSE)) -> 全て不可 | R10: True | S10: False | T10: False | U10: False | V10: True | W10: False | X10: True | Y10: TrueFalseFalseFalseTrueFalseTrue | Z10: 行挿入、削除可
E11: 4 | F11: 事業者リスト一覧 | G11: xlSheetVisible | H11: True | I11: True | J11: False | K11: False | L11: False | M11: False | N11: False | O11: False | P11: =IF(ISERROR(VLOOKUP(I11&J11&K11&L11&M11&N11&O11,$Y$8:$Z$15,2,FALSE)),"",VLOOKUP(I11&J11&K11&L11&M11&N11&O11,$Y$8:$Z$15,2,FALSE)) -> 行高さ、列幅変更不可 | R11: True | S11: False | T11: True | U11: False | V11: False | W11: False | X11: False | Y11: TrueFalseTrueFalseFalseFalseFalse | Z11: 行書式設定可
E12: 5 | F12: シート保護解除事業者リスト | G12: xlSheetHidden | H12: True | I12: True | J12: True | K12: True | L12: True | M12: True | N12: True | O12: True | P12: 全て可 | R12: True | S12: False | T12: True | U12: False | V12: True | W12: False | X12: True | Y12: TrueFalseTrueFalseTrueFalseTrue | Z12: 行挿入、削除可、書式設定可
E13: 6 | F13: 帳票表示切替 | G13: xlSheetVisible | H13: True | I13: False | J13: False | K13: False | L13: False | M13: False | N13: False | O13: False | P13: 全て不可 | R13: True | S13: True | T13: True | U13: False | V13: False | W13: False | X13: False | Y13: TrueTrueTrueFalseFalseFalseFalse | Z13: 行、列書式設定可
E14: 7 | F14: エリア表示切替 | G14: xlSheetVisible | H14: True | I14: False | J14: False | K14: False | L14: False | M14: False | N14: False | O14: False | P14: 全て不可 | R14: True | S14: True | T14: True | U14: False | V14: True | W14: False | X14: True | Y14: TrueTrueTrueFalseTrueFalseTrue | Z14: 行挿入、削除可、行列書式設定可
E15: 8 | F15: 入力支援シート→ | G15: xlSheetVisible | H15: True | I15: False | J15: False | K15: False | L15: False | M15: False | N15: False | O15: False | P15: 全て不可 | R15: True | S15: True | T15: True | U15: True | V15: True | W15: True | X15: True | Y15: TrueTrueTrueTrueTrueTrueTrue | Z15: 全て可
E16: 9 | F16: ①風力 | G16: xlSheetHidden | H16: True | I16: False | J16: False | K16: False | L16: False | M16: False | N16: False | O16: False | P16: 全て不可
E17: 10 | F17: ②太陽光（全量） | G17: xlSheetHidden | H17: True | I17: False | J17: False | K17: False | L17: False | M17: False | N17: False | O17: False | P17: 全て不可
E18: 11 | F18: ③太陽光（余剰） | G18: xlSheetHidden | H18: True | I18: False | J18: False | K18: False | L18: False | M18: False | N18: False | O18: False | P18: 全て不可
E19: 12 | F19: 風力 | G19: xlSheetHidden | H19: True | I19: False | J19: False | K19: False | L19: False | M19: False | N19: False | O19: False | P19: 全て不可
E20: 13 | F20: 太陽光（全量） | G20: xlSheetHidden | H20: True | I20: False | J20: False | K20: False | L20: False | M20: False | N20: False | O20: False | P20: 全て不可
E21: 14 | F21: 太陽光（余剰） | G21: xlSheetHidden | H21: True | I21: False | J21: False | K21: False | L21: False | M21: False | N21: False | O21: False | P21: 全て不可
E22: 15 | F22: 水力保有電源 | G22: xlSheetHidden | H22: True | I22: False | J22: False | K22: False | L22: False | M22: False | N22: False | O22: False | P22: 全て不可
E23: 16 | F23: 自流式 | G23: xlSheetHidden | H23: True | I23: False | J23: False | K23: False | L23: False | M23: False | N23: False | O23: False | P23: 全て不可
E24: 17 | F24: 揚水 | G24: xlSheetHidden | H24: True | I24: False | J24: False | K24: False | L24: False | M24: False | N24: False | O24: False | P24: 全て不可
E25: 18 | F25: 調整係数 | G25: xlSheetHidden | H25: True | I25: False | J25: False | K25: False | L25: False | M25: False | N25: False | O25: False | P25: 全て不可
E26: 19 | F26: 火力保有電源 | G26: xlSheetHidden | H26: True | I26: False | J26: False | K26: False | L26: False | M26: False | N26: False | O26: False | P26: 全て不可
E27: 20 | F27: 原子力保有電源 | G27: xlSheetHidden | H27: True | I27: False | J27: False | K27: False | L27: False | M27: False | N27: False | O27: False | P27: 全て不可
E28: 21 | F28: 新エネルギー等保有電源 | G28: xlSheetHidden | H28: True | I28: False | J28: False | K28: False | L28: False | M28: False | N28: False | O28: False | P28: 全て不可
E29: 22 | F29: 蓄電池 | G29: xlSheetHidden | H29: True | I29: False | J29: False | K29: False | L29: False | M29: False | N29: False | O29: False | P29: 全て不可
E30: 23 | F30: 調整力 | G30: xlSheetHidden | H30: True | I30: False | J30: False | K30: False | L30: False | M30: False | N30: False | O30: False | P30: 全て不可
E31: 24 | F31: 保有電源 | G31: xlSheetHidden | H31: True | I31: True | J31: False | K31: False | L31: False | M31: False | N31: False | O31: False | P31: =IF(ISERROR(VLOOKUP(I31&J31&K31&L31&M31&N31&O31,$Y$8:$Z$15,2,FALSE)),"",VLOOKUP(I31&J31&K31&L31&M31&N31&O31,$Y$8:$Z$15,2,FALSE)) -> 行高さ、列幅変更不可
E32: 25 | F32: 保有電源電力量 | G32: xlSheetHidden | H32: True | I32: True | J32: False | K32: False | L32: False | M32: False | N32: False | O32: False | P32: 行高さ、列幅変更不可
E33: 26 | F33: 受電取引帳票 | G33: xlSheetVisible | H33: False | I33: True | J33: True | K33: True | L33: True | M33: True | N33: True | O33: True | P33: 全て可
E34: 27 | F34: 送電取引帳票 | G34: xlSheetVisible | H34: False | I34: True | J34: True | K34: True | L34: True | M34: True | N34: True | O34: True | P34: 全て可
E35: 28 | F35: 自者間取引帳票 | G35: xlSheetHidden | H35: True | I35: False | J35: False | K35: False | L35: False | M35: False | N35: False | O35: False | P35: =IF(ISERROR(VLOOKUP(I35&J35&K35&L35&M35&N35&O35,$Y$8:$Z$15,2,FALSE)),"",VLOOKUP(I35&J35&K35&L35&M35&N35&O35,$Y$8:$Z$15,2,FALSE)) -> 全て不可
E36: 29 | F36: 補正シート→ | G36: xlSheetVisible | H36: True | I36: True | J36: False | K36: False | L36: False | M36: False | N36: False | O36: False | P36: =IF(ISERROR(VLOOKUP(I36&J36&K36&L36&M36&N36&O36,$Y$8:$Z$15,2,FALSE)),"",VLOOKUP(I36&J36&K36&L36&M36&N36&O36,$Y$8:$Z$15,2,FALSE)) -> 行高さ、列幅変更不可
E37: 30 | F37: 補正（ｋW）指定１ | G37: xlSheetVisible | H37: False | I37: True | J37: True | K37: True | L37: True | M37: True | N37: True | O37: True | P37: =IF(ISERROR(VLOOKUP(I37&J37&K37&L37&M37&N37&O37,$Y$8:$Z$15,2,FALSE)),"",VLOOKUP(I37&J37&K37&L37&M37&N37&O37,$Y$8:$Z$15,2,FALSE)) -> 全て可
E38: 31 | F38: 補正（ｋW）指定２ | G38: xlSheetVisible | H38: False | I38: True | J38: True | K38: True | L38: True | M38: True | N38: True | O38: True | P38: 全て可
E39: 32 | F39: 補正（ｋWｈ） | G39: xlSheetVisible | H39: False | I39: True | J39: True | K39: True | L39: True | M39: True | N39: True | O39: True | P39: 全て可
E40: 33 | F40: 補正（太陽光）指定１ | G40: xlSheetHidden | H40: True | I40: False | J40: False | K40: False | L40: False | M40: False | N40: False | O40: False | P40: 全て不可
E41: 34 | F41: 補正（太陽光）指定２ | G41: xlSheetHidden | H41: True | I41: False | J41: False | K41: False | L41: False | M41: False | N41: False | O41: False | P41: 全て不可
E42: 35 | F42: 補正（風力）指定１ | G42: xlSheetHidden | H42: True | I42: False | J42: False | K42: False | L42: False | M42: False | N42: False | O42: False | P42: 全て不可
E43: 36 | F43: 補正（風力）指定２ | G43: xlSheetHidden | H43: True | I43: False | J43: False | K43: False | L43: False | M43: False | N43: False | O43: False | P43: 全て不可
E44: 37 | F44: 時間帯別供給力（１２ｈ） | G44: xlSheetHidden | H44: True | I44: False | J44: False | K44: False | L44: False | M44: False | N44: False | O44: False | P44: 全て不可
E45: 38 | F45: 厳気象対応供給力 | G45: xlSheetHidden | H45: True | I45: False | J45: False | K45: False | L45: False | M45: False | N45: False | O45: False | P45: 全て不可
E46: 39 | F46: 供給計画届出書様式→ | G46: xlSheetVisible | H46: True | I46: False | J46: False | K46: False | L46: False | M46: False | N46: False | O46: False | P46: =IF(ISERROR(VLOOKUP(I46&J46&K46&L46&M46&N46&O46,$Y$8:$Z$15,2,FALSE)),"",VLOOKUP(I46&J46&K46&L46&M46&N46&O46,$Y$8:$Z$15,2,FALSE)) -> 全て不可
E47: 40 | F47: 表紙 | G47: xlSheetVisible | H47: True | I47: True | J47: False | K47: False | L47: False | M47: False | N47: False | O47: False | P47: 行高さ、列幅変更不可
E48: 41 | F48: 別紙（変更供計用） | G48: xlSheetHidden | H48: False | I48: True | J48: False | K48: False | L48: False | M48: False | N48: False | O48: False | P48: 行高さ、列幅変更不可
E49: 42 | F49: 目次 | G49: xlSheetVisible | H49: True | I49: False | J49: False | K49: False | L49: False | M49: False | N49: False | O49: False | P49: 全て不可
E50: 43 | F50: 様式第32第1表（指定１） | G50: xlSheetVisible | H50: True | I50: True | J50: False | K50: False | L50: False | M50: False | N50: False | O50: False | P50: 行高さ、列幅変更不可
E51: 44 | F51: 様式第32第1表（指定２） | G51: xlSheetVisible | H51: True | I51: True | J51: False | K51: False | L51: False | M51: False | N51: False | O51: False | P51: 行高さ、列幅変更不可
E52: 45 | F52: 様式第32第2表 | G52: xlSheetVisible | H52: True | I52: True | J52: False | K52: False | L52: False | M52: False | N52: False | O52: False | P52: 行高さ、列幅変更不可
E53: 46 | F53: 様式第32第3表（指定） | G53: xlSheetVisible | H53: True | I53: True | J53: False | K53: False | L53: False | M53: False | N53: False | O53: False | P53: 行高さ、列幅変更不可
E54: 47 | F54: 様式第32第3表（指定） (2年度目) | G54: xlSheetVisible | H54: True | I54: True | J54: False | K54: False | L54: False | M54: False | N54: False | O54: False | P54: 行高さ、列幅変更不可
E55: 48 | F55: 様式第32第4表 | G55: xlSheetVisible | H55: True | I55: True | J55: False | K55: False | L55: False | M55: False | N55: False | O55: False | P55: 行高さ、列幅変更不可
E56: 49 | F56: 様式第32第5表（水力） | G56: xlSheetHidden | H56: True | I56: True | J56: False | K56: False | L56: False | M56: False | N56: False | O56: False | P56: 行高さ、列幅変更不可
E57: 50 | F57: 様式第32第5表（火力） | G57: xlSheetHidden | H57: True | I57: True | J57: False | K57: False | L57: False | M57: False | N57: False | O57: False | P57: 行高さ、列幅変更不可
E58: 51 | F58: 様式第32第5表（原子力） | G58: xlSheetHidden | H58: True | I58: True | J58: False | K58: False | L58: False | M58: False | N58: False | O58: False | P58: 行高さ、列幅変更不可
E59: 52 | F59: 様式第32第5表（新エネ） | G59: xlSheetHidden | H59: True | I59: True | J59: False | K59: False | L59: False | M59: False | N59: False | O59: False | P59: 行高さ、列幅変更不可
E60: 53 | F60: 様式第32第6の1表 | G60: xlSheetVisible | H60: False | I60: True | J60: False | K60: False | L60: False | M60: False | N60: False | O60: False | P60: 行高さ、列幅変更不可
E61: 54 | F61: 様式第32第6の2表 | G61: xlSheetVisible | H61: False | I61: True | J61: False | K61: False | L61: False | M61: False | N61: False | O61: False | P61: 行高さ、列幅変更不可
E62: 55 | F62: 様式第32第6の3表 | G62: xlSheetVisible | H62: False | I62: True | J62: False | K62: False | L62: False | M62: False | N62: False | O62: False | P62: 行高さ、列幅変更不可
E63: 56 | F63: 様式第32第7表（水力） | G63: xlSheetHidden | H63: True | I63: True | J63: False | K63: False | L63: False | M63: True | N63: False | O63: True | P63: 行挿入、削除可
E64: 57 | F64: 様式第32第7表（火力） | G64: xlSheetHidden | H64: True | I64: True | J64: False | K64: False | L64: False | M64: True | N64: False | O64: True | P64: 行挿入、削除可
E65: 58 | F65: 様式第32第7表（原子力） | G65: xlSheetHidden | H65: True | I65: True | J65: False | K65: False | L65: False | M65: True | N65: False | O65: True | P65: 行挿入、削除可
E66: 59 | F66: 様式第32第7表（新エネ） | G66: xlSheetHidden | H66: True | I66: True | J66: False | K66: False | L66: False | M66: True | N66: False | O66: True | P66: 行挿入、削除可
E67: 60 | F67: 様式第32第8表（指定１）_受電 | G67: xlSheetVisible | H67: True | I67: True | J67: False | K67: False | L67: False | M67: False | N67: False | O67: False | P67: 行高さ、列幅変更不可
E68: 61 | F68: 様式第32第8表（指定１）_送電 | G68: xlSheetVisible | H68: True | I68: True | J68: False | K68: False | L68: False | M68: False | N68: False | O68: False | P68: 行高さ、列幅変更不可
E69: 62 | F69: 様式第32第8表（指定２）_受電 | G69: xlSheetVisible | H69: True | I69: True | J69: False | K69: False | L69: False | M69: False | N69: False | O69: False | P69: 行高さ、列幅変更不可
E70: 63 | F70: 様式第32第8表（指定２）_送電 | G70: xlSheetVisible | H70: True | I70: True | J70: False | K70: False | L70: False | M70: False | N70: False | O70: False | P70: 行高さ、列幅変更不可
E71: 64 | F71: 添付書類 | G71: xlSheetVisible | H71: True | I71: False | J71: False | K71: False | L71: False | M71: False | N71: False | O71: False | P71: 全て不可
E72: 65 | F72: 様式第33表（指定１） | G72: xlSheetVisible | H72: False | I72: True | J72: False | K72: False | L72: False | M72: False | N72: False | O72: False | P72: 行高さ、列幅変更不可
E73: 66 | F73: 様式第33表（指定２） | G73: xlSheetVisible | H73: False | I73: True | J73: False | K73: False | L73: False | M73: False | N73: False | O73: False | P73: 行高さ、列幅変更不可
E74: 67 | F74: 様式第33の2（指定１） | G74: xlSheetVisible | H74: True | I74: True | J74: False | K74: False | L74: False | M74: False | N74: False | O74: False | P74: 行高さ、列幅変更不可
E75: 68 | F75: 様式第33の2（指定２） | G75: xlSheetVisible | H75: True | I75: True | J75: False | K75: False | L75: False | M75: False | N75: False | O75: False | P75: 行高さ、列幅変更不可
E76: 69 | F76: 様式第33の3第1表（指定１） | G76: xlSheetVisible | H76: True | I76: True | J76: False | K76: False | L76: False | M76: False | N76: False | O76: False | P76: 行高さ、列幅変更不可
E77: 70 | F77: 様式第33の3第1表（指定２） | G77: xlSheetVisible | H77: True | I77: True | J77: False | K77: False | L77: False | M77: False | N77: False | O77: False | P77: 行高さ、列幅変更不可
E78: 71 | F78: 様式第33の3第2表 | G78: xlSheetHidden | H78: True | I78: True | J78: False | K78: False | L78: False | M78: False | N78: False | O78: False | P78: 行高さ、列幅変更不可
E79: 72 | F79: 様式第33の3第2表 (2年度目) | G79: xlSheetHidden | H79: True | I79: True | J79: False | K79: False | L79: False | M79: False | N79: False | O79: False | P79: 行高さ、列幅変更不可
E80: 73 | F80: 様式第34第1表 | G80: xlSheetHidden | H80: True | I80: True | J80: False | K80: False | L80: False | M80: False | N80: False | O80: False | P80: 行高さ、列幅変更不可
E81: 74 | F81: 様式第34第1表 (2年度目) | G81: xlSheetHidden | H81: True | I81: True | J81: False | K81: False | L81: False | M81: False | N81: False | O81: False | P81: 行高さ、列幅変更不可
E82: 75 | F82: 様式第34第2表 | G82: xlSheetHidden | H82: True | I82: True | J82: False | K82: False | L82: False | M82: False | N82: False | O82: False | P82: 行高さ、列幅変更不可
E83: 76 | F83: 様式第34第2表 (2年度目) | G83: xlSheetHidden | H83: True | I83: True | J83: False | K83: False | L83: False | M83: False | N83: False | O83: False | P83: 行高さ、列幅変更不可
E84: 77 | F84: 様式第34第3表 | G84: xlSheetHidden | H84: True | I84: True | J84: False | K84: False | L84: False | M84: False | N84: False | O84: False | P84: =IF(ISERROR(VLOOKUP(I84&J84&K84&L84&M84&N84&O84,$Y$8:$Z$15,2,FALSE)),"",VLOOKUP(I84&J84&K84&L84&M84&N84&O84,$Y$8:$Z$15,2,FALSE)) -> 行高さ、列幅変更不可
E85: 78 | F85: 様式第34第3表 (2年度目) | G85: xlSheetHidden | H85: True | I85: True | J85: False | K85: False | L85: False | M85: False | N85: False | O85: False | P85: =IF(ISERROR(VLOOKUP(I85&J85&K85&L85&M85&N85&O85,$Y$8:$Z$15,2,FALSE)),"",VLOOKUP(I85&J85&K85&L85&M85&N85&O85,$Y$8:$Z$15,2,FALSE)) -> 行高さ、列幅変更不可
E86: 79 | F86: 様式第34第4表 | G86: xlSheetHidden | H86: True | I86: True | J86: False | K86: False | L86: False | M86: False | N86: False | O86: False | P86: 行高さ、列幅変更不可
E87: 80 | F87: 様式第34第4表 (2年度目) | G87: xlSheetHidden | H87: True | I87: True | J87: False | K87: False | L87: False | M87: False | N87: False | O87: False | P87: 行高さ、列幅変更不可
E88: 81 | F88: 様式第35第1表 | G88: xlSheetHidden | H88: True | I88: True | J88: False | K88: False | L88: False | M88: False | N88: False | O88: False | P88: 行高さ、列幅変更不可
E89: 82 | F89: 様式第35第2表 | G89: xlSheetHidden | H89: True | I89: True | J89: False | K89: False | L89: False | M89: False | N89: False | O89: False | P89: 行高さ、列幅変更不可
E90: 83 | F90: 様式第35第3表 | G90: xlSheetHidden | H90: True | I90: True | J90: False | K90: False | L90: False | M90: False | N90: False | O90: False | P90: 行高さ、列幅変更不可
E91: 84 | F91: 様式第36表（指定）_受電 | G91: xlSheetVisible | H91: True | I91: True | J91: False | K91: False | L91: False | M91: False | N91: False | O91: False | P91: 行高さ、列幅変更不可
E92: 85 | F92: 様式第36表（指定）_受電 (2年度目) | G92: xlSheetVisible | H92: True | I92: True | J92: False | K92: False | L92: False | M92: False | N92: False | O92: False | P92: 行高さ、列幅変更不可
E93: 86 | F93: 様式第36表（指定）_送電 | G93: xlSheetVisible | H93: True | I93: True | J93: False | K93: False | L93: False | M93: False | N93: False | O93: False | P93: 行高さ、列幅変更不可
E94: 87 | F94: 様式第36表（指定）_送電 (2年度目) | G94: xlSheetVisible | H94: True | I94: True | J94: False | K94: False | L94: False | M94: False | N94: False | O94: False | P94: 行高さ、列幅変更不可
E95: 88 | F95: 様式第37表 | G95: xlSheetVisible | H95: False | I95: True | J95: False | K95: False | L95: False | M95: False | N95: False | O95: False | P95: 行高さ、列幅変更不可
E96: 89 | F96: 様式第38表（電力系統の状況） | G96: xlSheetVisible | H96: False | I96: False | J96: False | K96: False | L96: False | M96: False | N96: False | O96: False | P96: 全て不可
E97: 90 | F97: 様式第38表（電力潮流の状況） | G97: xlSheetHidden | H97: True | I97: False | J97: False | K97: False | L97: False | M97: False | N97: False | O97: False | P97: 全て不可
E98: 91 | F98: 様式第38の2表（指定１） | G98: xlSheetHidden | H98: True | I98: False | J98: False | K98: False | L98: False | M98: False | N98: False | O98: False | P98: 全て不可
E99: 92 | F99: 様式第38の2表（指定２） | G99: xlSheetHidden | H99: True | I99: False | J99: False | K99: False | L99: False | M99: False | N99: False | O99: False | P99: 全て不可
E100: 93 | F100: 見え消し版用表紙（変更供計用） | G100: xlSheetHidden | H100: True | I100: False | J100: False | K100: False | L100: False | M100: False | N100: False | O100: False | P100: 全て不可

Sheet 帳票表示切替
G1: 供給計画の各様式及びエリアの記載状況確認表
G2: （○印が入っている箇所が記載のある表） | AT2: 届出書 | AV2: 発 | AW2: 卸 | AX2: 小 | AY2: 登 | AZ2: 送 | BA2: 一 | BB2: 配 | BF2: 発 | BG2: 卸 | BH2: 小 | BI2: 登 | BJ2: 送 | BK2: 一 | BL2: 配
B3: 表示切替フラグ | C3: 1 | E3: 1 | F3: 1 | G3: 1 | H3: 1 | I3: 1 | J3: 1 | O3: 1 | P3: 1 | Q3: 1 | V3: 1 | W3: 1 | X3: 1 | Y3: 1 | Z3: 1 | AA3: 1 | AB3: 1 | AC3: 1 | AD3: 1 | AE3: 1 | AF3: 1 | AT3: ① | AU3: 表紙 | AV3: ◎ | AW3: ◎ | AX3: ◎ | AY3: ◎ | AZ3: ◎ | BA3: ◎ | BB3: ◎ | BD3: ㊶ | BE3: 様式第35第1表 | BF3: ○
C4: ① | D4: ② | E4: ③ | F4: ④ | G4: ⑤ | H4: ⑥ | I4: ⑦ | J4: ⑧ | K4: ⑨ | L4: ⑩ | M4: ⑪ | N4: ⑫ | O4: ⑬ | P4: ⑭ | Q4: ⑮ | R4: ⑯ | S4: ⑰ | T4: ⑱ | U4: ⑲ | V4: ⑳ | W4: ㉑ | X4: ㉒ | Y4: ㉓ | Z4: ㉔ | AA4: ㉕ | AB4: ㉖ | AC4: ㉗ | AD4: ㉘ | AE4: ㉙ | AF4: ㉚ | AG4: ㉛ | AH4: ㉜ | AI4: ㉝ | AJ4: ㉞ | AK4: ㉟ | AL4: ㊱ | AM4: ㊲ | AN4: ㊳ | AO4: ㊴ | AP4: ㊵ | AT4: ② | AU4: 別紙（変更供計用） | AV4: △ | AW4: △ | AX4: △ | AY4: △ | AZ4: △ | BA4: △ | BB4: △ | BD4: ㊷ | BE4: 様式第35第2表 | BF4: ○
B5: 共通 | C5: =表紙!AC27 ->  | D5: ='別紙（変更供計用）'!AP16 ->  | O5: =様式第32第6の1表!Q7 ->  | P5: =様式第32第6の2表!S7 ->  | Q5: =様式第32第6の3表!K7 ->  | Z5: =IF(COUNTIF(AB5:AJ15,"○")+COUNTIF(C19:O29,"○")>0,"○","") -> ○ | AT5: ③ | AU5: 様式第32第1表（指定１） | AV5: ◎ | AW5: ◎ | AX5: ◎ | AY5: ◎ | BA5: ◎ | BB5: ◎ | BD5: ㊸ | BE5: 様式第35第3表 | BF5: ○
B6: 北海道 | E6: ='様式第32第1表（指定１）'!AA9 ->  | F6: ='様式第32第1表（指定２）'!AA9 ->  | G6: =様式第32第2表!AA9 ->  | H6: ='様式第32第3表（指定）'!AN9 ->  | I6: ='様式第32第3表（指定） (2年度目)'!AN9 ->  | J6: =様式第32第4表!AE9 ->  | V6: ='様式第32第8表（指定１）_受電'!Z9 ->  | W6: ='様式第32第8表（指定１）_送電'!Z9 ->  | X6: ='様式第32第8表（指定２）_受電'!Z9 ->  | Y6: ='様式第32第8表（指定２）_送電'!Z9 ->  | AA6: ='様式第33表（指定１）'!W20 ->  | AB6: ='様式第33表（指定２）'!W20 ->  | AC6: ='様式第33の2（指定１）'!T9 ->  | AD6: ='様式第33の2（指定２）'!T9 ->  | AE6: ='様式第33の3第1表（指定１）'!AB11 ->  | AF6: ='様式第33の3第1表（指定２）'!AB11 ->  | AT6: ④ | AU6: 様式第32第1表（指定２） | AV6: ○ | AW6: ○ | AX6: ○ | AY6: ○ | BA6: ○ | BB6: ○ | BD6: ㊹ | BE6: 様式第36表（指定）_受電 | BF6: ○ | BG6: ○ | BH6: ○ | BI6: ○ | BK6: ○ | BL6: ○
B7: 東北 | E7: ='様式第32第1表（指定１）'!AA10 ->  | F7: ='様式第32第1表（指定２）'!AA10 ->  | G7: =様式第32第2表!AA10 ->  | H7: ='様式第32第3表（指定）'!AN10 ->  | I7: ='様式第32第3表（指定） (2年度目)'!AN10 ->  | J7: =様式第32第4表!AE10 ->  | V7: ='様式第32第8表（指定１）_受電'!Z10 ->  | W7: ='様式第32第8表（指定１）_送電'!Z10 ->  | X7: ='様式第32第8表（指定２）_受電'!Z10 ->  | Y7: ='様式第32第8表（指定２）_送電'!Z10 ->  | AA7: ='様式第33表（指定１）'!W21 ->  | AB7: ='様式第33表（指定２）'!W21 ->  | AC7: ='様式第33の2（指定１）'!T10 ->  | AD7: ='様式第33の2（指定２）'!T10 ->  | AE7: ='様式第33の3第1表（指定１）'!AB12 ->  | AF7: ='様式第33の3第1表（指定２）'!AB12 ->  | AT7: ⑤ | AU7: 様式第32第2表 | AV7: ◎ | AW7: ◎ | AX7: ◎ | AY7: ◎ | BA7: ◎ | BB7: ◎ | BD7: ㊺ | BE7: 様式第36表（指定）_受電 (2年度目) | BF7: ○ | BG7: ○ | BH7: ○ | BI7: ○ | BK7: ○ | BL7: ○
B8: 東京 | E8: ='様式第32第1表（指定１）'!AA11 ->  | G8: =様式第32第2表!AA11 ->  | H8: ='様式第32第3表（指定）'!AN11 ->  | I8: ='様式第32第3表（指定） (2年度目)'!AN11 ->  | J8: =様式第32第4表!AE11 ->  | V8: ='様式第32第8表（指定１）_受電'!Z11 ->  | W8: ='様式第32第8表（指定１）_送電'!Z11 ->  | AA8: ='様式第33表（指定１）'!W22 ->  | AC8: ='様式第33の2（指定１）'!T11 ->  | AE8: ='様式第33の3第1表（指定１）'!AB13 ->  | AT8: ⑥ | AU8: 様式第32第3表（指定） | AV8: ◎ | AW8: ◎ | AX8: ◎ | AY8: ◎ | BA8: ◎ | BB8: ◎ | BD8: ㊻ | BE8: 様式第36表（指定）_送電 | BF8: ○ | BG8: ○ | BH8: ○ | BI8: ○ | BK8: ○ | BL8: ○
B9: 中部 | E9: ='様式第32第1表（指定１）'!AA12 ->  | G9: =様式第32第2表!AA12 ->  | H9: ='様式第32第3表（指定）'!AN12 ->  | I9: ='様式第32第3表（指定） (2年度目)'!AN12 ->  | J9: =様式第32第4表!AE12 ->  | V9: ='様式第32第8表（指定１）_受電'!Z12 ->  | W9: ='様式第32第8表（指定１）_送電'!Z12 ->  | AA9: ='様式第33表（指定１）'!W23 ->  | AC9: ='様式第33の2（指定１）'!T12 ->  | AE9: ='様式第33の3第1表（指定１）'!AB14 ->  | AT9: ⑦ | AU9: 様式第32第3表（指定） (2年度目) | AV9: ◎ | AW9: ◎ | AX9: ◎ | AY9: ◎ | BA9: ◎ | BB9: ◎ | BD9: ㊼ | BE9: 様式第36表（指定）_送電 (2年度目) | BF9: ○ | BG9: ○ | BH9: ○ | BI9: ○ | BK9: ○ | BL9: ○
B10: 北陸 | E10: ='様式第32第1表（指定１）'!AA13 ->  | F10: ='様式第32第1表（指定２）'!AA13 ->  | G10: =様式第32第2表!AA13 ->  | H10: ='様式第32第3表（指定）'!AN13 ->  | I10: ='様式第32第3表（指定） (2年度目)'!AN13 ->  | J10: =様式第32第4表!AE13 ->  | V10: ='様式第32第8表（指定１）_受電'!Z13 ->  | W10: ='様式第32第8表（指定１）_送電'!Z13 ->  | X10: ='様式第32第8表（指定２）_受電'!Z13 ->  | Y10: ='様式第32第8表（指定２）_送電'!Z13 ->  | AA10: ='様式第33表（指定１）'!W24 ->  | AB10: ='様式第33表（指定２）'!W24 ->  | AC10: ='様式第33の2（指定１）'!T13 ->  | AD10: ='様式第33の2（指定２）'!T13 ->  | AE10: ='様式第33の3第1表（指定１）'!AB15 ->  | AF10: ='様式第33の3第1表（指定２）'!AB15 ->  | AT10: ⑧ | AU10: 様式第32第4表 | AV10: ◎ | AW10: ◎ | AX10: ◎ | AY10: ◎ | BA10: ◎ | BB10: ◎ | BD10: ㊽ | BE10: 様式第37表 | BK10: ◎ | BL10: ◎
B11: 関西 | E11: ='様式第32第1表（指定１）'!AA14 ->  | G11: =様式第32第2表!AA14 ->  | H11: ='様式第32第3表（指定）'!AN14 ->  | I11: ='様式第32第3表（指定） (2年度目)'!AN14 ->  | J11: =様式第32第4表!AE14 ->  | V11: ='様式第32第8表（指定１）_受電'!Z14 ->  | W11: ='様式第32第8表（指定１）_送電'!Z14 ->  | AA11: ='様式第33表（指定１）'!W25 ->  | AC11: ='様式第33の2（指定１）'!T14 ->  | AE11: ='様式第33の3第1表（指定１）'!AB16 ->  | AT11: ⑨ | AU11: 様式第32第5表（水力） | AV11: ○ | BD11: ㊾ | BE11: 様式第38表（電力系統の状況） | BI11: ◎ | BJ11: ◎ | BK11: ◎ | BL11: ◎
B12: 中国 | E12: ='様式第32第1表（指定１）'!AA15 ->  | G12: =様式第32第2表!AA15 ->  | H12: ='様式第32第3表（指定）'!AN15 ->  | I12: ='様式第32第3表（指定） (2年度目)'!AN15 ->  | J12: =様式第32第4表!AE15 ->  | V12: ='様式第32第8表（指定１）_受電'!Z15 ->  | W12: ='様式第32第8表（指定１）_送電'!Z15 ->  | AA12: ='様式第33表（指定１）'!W26 ->  | AC12: ='様式第33の2（指定１）'!T15 ->  | AE12: ='様式第33の3第1表（指定１）'!AB17 ->  | AT12: ⑩ | AU12: 様式第32第5表（火力） | AV12: ○ | BD12: ㊿ | BE12: 様式第38表（電力潮流の状況） | BK12: ◎
B13: 四国 | E13: ='様式第32第1表（指定１）'!AA16 ->  | G13: =様式第32第2表!AA16 ->  | H13: ='様式第32第3表（指定）'!AN16 ->  | I13: ='様式第32第3表（指定） (2年度目)'!AN16 ->  | J13: =様式第32第4表!AE16 ->  | V13: ='様式第32第8表（指定１）_受電'!Z16 ->  | W13: ='様式第32第8表（指定１）_送電'!Z16 ->  | AA13: ='様式第33表（指定１）'!W27 ->  | AC13: ='様式第33の2（指定１）'!T16 ->  | AE13: ='様式第33の3第1表（指定１）'!AB18 ->  | AT13: ⑪ | AU13: 様式第32第5表（原子力） | AV13: ○ | BD13: 51 | BE13: 様式第38の2表（指定１） | BK13: ◎
B14: 九州 | E14: ='様式第32第1表（指定１）'!AA17 ->  | G14: =様式第32第2表!AA17 ->  | H14: ='様式第32第3表（指定）'!AN17 ->  | I14: ='様式第32第3表（指定） (2年度目)'!AN17 ->  | J14: =様式第32第4表!AE17 ->  | V14: ='様式第32第8表（指定１）_受電'!Z17 ->  | W14: ='様式第32第8表（指定１）_送電'!Z17 ->  | AA14: ='様式第33表（指定１）'!W28 ->  | AC14: ='様式第33の2（指定１）'!T17 ->  | AE14: ='様式第33の3第1表（指定１）'!AB19 ->  | AT14: ⑫ | AU14: 様式第32第5表（新エネ） | AV14: ○ | BD14: 52 | BE14: 様式第38の2表（指定２） | BK14: ◎
B15: 沖縄 | E15: ='様式第32第1表（指定１）'!AA18 ->  | G15: =様式第32第2表!AA18 ->  | H15: ='様式第32第3表（指定）'!AN18 ->  | I15: ='様式第32第3表（指定） (2年度目)'!AN18 ->  | J15: =様式第32第4表!AE18 ->  | V15: ='様式第32第8表（指定１）_受電'!Z18 ->  | W15: ='様式第32第8表（指定１）_送電'!Z18 ->  | AA15: ='様式第33表（指定１）'!W29 ->  | AC15: ='様式第33の2（指定１）'!T18 ->  | AE15: ='様式第33の3第1表（指定１）'!AB20 ->  | AT15: ⑬ | AU15: 様式第32第6の1表 | AY15: ○ | AZ15: ○ | BA15: ○ | BB15: ○ | BD15: 53 | BE15: 見え消し版用表紙（変更供計用） | BF15: △ | BG15: △ | BH15: △ | BI15: △ | BJ15: △ | BK15: △ | BL15: △
AT16: ⑭ | AU16: 様式第32第6の2表 | AY16: ○ | AZ16: ○ | BA16: ○ | BB16: ○ | BD16: 別紙
B17: 表示切替フラグ | F17: 1 | G17: 1 | H17: 1 | I17: 1 | J17: 1 | K17: 1 | AF17: 1 | AG17: 1 | AT17: ⑮ | AU17: 様式第32第6の3表 | AZ17: ○ | BA17: ○ | BD17: 1 | BE17: 厳気象対応供給力 | BF17: ○ | BK17: ○
C18: ㊶ | D18: ㊷ | E18: ㊸ | F18: ㊹ | G18: ㊺ | H18: ㊻ | I18: ㊼ | J18: ㊽ | K18: ㊾ | L18: ㊿ | M18: 51 | N18: 52 | O18: 53 | Q18: 1 | S18: ⑴ | T18: ⑵ | U18: ⑶ | V18: ⑷ | W18: ⑸ | X18: ⑹ | Y18: ⑺ | Z18: ⑻ | AA18: ⑼ | AB18: ⑽ | AC18: ⑾ | AD18: ⑿ | AE18: ⒀ | AF18: ⒁ | AG18: ⒂ | AH18: ⒃ | AT18: ⑯ | AU18: 様式第32第7表（水力） | AV18: ○ | BD18: 入力支援シート
B19: 共通 | J19: =様式第37表!W3 ->  | K19: =IF(AND(表紙!W20<>"小売電気事業者",表紙!W20<>"発電事業者",表紙!W20<>"特定卸供給事業者"),"○","") -> ○ | L19: =IF(表紙!W20="一般送配電事業者","○","") ->  | M19: ='様式第38の2表（指定１）'!M6 ->  | N19: ='様式第38の2表（指定２）'!M6 ->  | O19: =IF(表紙!AB24<>"新規","○","") ->  | AH19: =自者間取引帳票!BR570 ->  | AT19: ⑰ | AU19: 様式第32第7表（火力） | AV19: ○ | BD19: ⑴ | BE19: 風力 | BF19: ○ | BG19: ○ | BH19: ○ | BI19: ○
B20: 北海道 | F20: ='様式第36表（指定）_受電'!AQ9 ->  | G20: ='様式第36表（指定）_受電 (2年度目)'!AQ9 ->  | H20: ='様式第36表（指定）_送電'!AQ9 ->  | I20: ='様式第36表（指定）_送電 (2年度目)'!AQ9 ->  | Q20: =厳気象対応供給力!D73 ->  | AF20: =受電取引帳票!BZ30 ->  | AG20: =送電取引帳票!BZ30 ->  | AT20: ⑱ | AU20: 様式第32第7表（原子力） | AV20: ○ | BD20: ⑵ | BE20: 太陽光（全量） | BF20: ○ | BG20: ○ | BH20: ○ | BI20: ○
B21: 東北 | F21: ='様式第36表（指定）_受電'!AQ10 ->  | G21: ='様式第36表（指定）_受電 (2年度目)'!AQ10 ->  | H21: ='様式第36表（指定）_送電'!AQ10 ->  | I21: ='様式第36表（指定）_送電 (2年度目)'!AQ10 ->  | Q21: =厳気象対応供給力!D74 ->  | AF21: =受電取引帳票!BZ31 ->  | AG21: =送電取引帳票!BZ31 ->  | AT21: ⑲ | AU21: 様式第32第7表（新エネ） | AV21: ○ | BD21: ⑶ | BE21: 太陽光（余剰） | BF21: ○ | BG21: ○ | BH21: ○ | BI21: ○
B22: 東京 | F22: ='様式第36表（指定）_受電'!AQ11 ->  | G22: ='様式第36表（指定）_受電 (2年度目)'!AQ11 ->  | H22: ='様式第36表（指定）_送電'!AQ11 ->  | I22: ='様式第36表（指定）_送電 (2年度目)'!AQ11 ->  | Q22: =厳気象対応供給力!D75 ->  | AF22: =受電取引帳票!BZ32 ->  | AG22: =送電取引帳票!BZ32 ->  | AT22: ⑳ | AU22: 様式第32第8表（指定１）_受電 | AV22: ○ | AW22: ○ | AX22: ○ | AY22: ○ | BA22: ○ | BB22: ○ | BD22: ⑷ | BE22: 水力保有電源 | BF22: ○
B23: 中部 | F23: ='様式第36表（指定）_受電'!AQ12 ->  | G23: ='様式第36表（指定）_受電 (2年度目)'!AQ12 ->  | H23: ='様式第36表（指定）_送電'!AQ12 ->  | I23: ='様式第36表（指定）_送電 (2年度目)'!AQ12 ->  | Q23: =厳気象対応供給力!D76 ->  | AF23: =受電取引帳票!BZ33 ->  | AG23: =送電取引帳票!BZ33 ->  | AT23: ㉑ | AU23: 様式第32第8表（指定１）_送電 | AV23: ○ | AW23: ○ | AX23: ○ | AY23: ○ | BA23: ○ | BB23: ○ | BD23: ⑸ | BE23: 自流式 | BF23: ○
B24: 北陸 | F24: ='様式第36表（指定）_受電'!AQ13 ->  | G24: ='様式第36表（指定）_受電 (2年度目)'!AQ13 ->  | H24: ='様式第36表（指定）_送電'!AQ13 ->  | I24: ='様式第36表（指定）_送電 (2年度目)'!AQ13 ->  | Q24: =厳気象対応供給力!D77 ->  | AF24: =受電取引帳票!BZ34 ->  | AG24: =送電取引帳票!BZ34 ->  | AT24: ㉒ | AU24: 様式第32第8表（指定２）_受電 | AV24: ○ | AW24: ○ | AX24: ○ | AY24: ○ | BA24: ○ | BB24: ○ | BD24: ⑹ | BE24: 揚水 | BF24: ○
B25: 関西 | F25: ='様式第36表（指定）_受電'!AQ14 ->  | G25: ='様式第36表（指定）_受電 (2年度目)'!AQ14 ->  | H25: ='様式第36表（指定）_送電'!AQ14 ->  | I25: ='様式第36表（指定）_送電 (2年度目)'!AQ14 ->  | Q25: =厳気象対応供給力!D78 ->  | AF25: =受電取引帳票!BZ35 ->  | AG25: =送電取引帳票!BZ35 ->  | AT25: ㉓ | AU25: 様式第32第8表（指定２）_送電 | AV25: ○ | AW25: ○ | AX25: ○ | AY25: ○ | BA25: ○ | BB25: ○ | BD25: ⑺ | BE25: 火力保有電源 | BF25: ○
B26: 中国 | F26: ='様式第36表（指定）_受電'!AQ15 ->  | G26: ='様式第36表（指定）_受電 (2年度目)'!AQ15 ->  | H26: ='様式第36表（指定）_送電'!AQ15 ->  | I26: ='様式第36表（指定）_送電 (2年度目)'!AQ15 ->  | Q26: =厳気象対応供給力!D79 ->  | AF26: =受電取引帳票!BZ36 ->  | AG26: =送電取引帳票!BZ36 ->  | AT26: ㉔ | AU26: 添付書類 | AV26: － | AW26: － | AX26: － | AY26: － | AZ26: － | BA26: － | BB26: － | BD26: ⑻ | BE26: 原子力保有電源 | BF26: ○
B27: 四国 | F27: ='様式第36表（指定）_受電'!AQ16 ->  | G27: ='様式第36表（指定）_受電 (2年度目)'!AQ16 ->  | H27: ='様式第36表（指定）_送電'!AQ16 ->  | I27: ='様式第36表（指定）_送電 (2年度目)'!AQ16 ->  | Q27: =厳気象対応供給力!D80 ->  | AF27: =受電取引帳票!BZ37 ->  | AG27: =送電取引帳票!BZ37 ->  | AT27: ㉕ | AU27: 様式第33表（指定１） | BA27: ◎ | BB27: ◎ | BD27: ⑼ | BE27: 新エネルギー等保有電源 | BF27: ○
B28: 九州 | F28: ='様式第36表（指定）_受電'!AQ17 ->  | G28: ='様式第36表（指定）_受電 (2年度目)'!AQ17 ->  | H28: ='様式第36表（指定）_送電'!AQ17 ->  | I28: ='様式第36表（指定）_送電 (2年度目)'!AQ17 ->  | Q28: =厳気象対応供給力!D81 ->  | AF28: =受電取引帳票!BZ38 ->  | AG28: =送電取引帳票!BZ38 ->  | AT28: ㉖ | AU28: 様式第33表（指定２） | BA28: ○ | BB28: ○ | BD28: ⑽ | BE28: 蓄電池 | BF28: ○
B29: 沖縄 | F29: ='様式第36表（指定）_受電'!AQ18 ->  | G29: ='様式第36表（指定）_受電 (2年度目)'!AQ18 ->  | H29: ='様式第36表（指定）_送電'!AQ18 ->  | I29: ='様式第36表（指定）_送電 (2年度目)'!AQ18 ->  | Q29: =厳気象対応供給力!D82 ->  | AF29: =受電取引帳票!BZ39 ->  | AG29: =送電取引帳票!BZ39 ->  | AT29: ㉗ | AU29: 様式第33の2（指定１） | BA29: ○ | BB29: ○ | BD29: ⑾ | BE29: 調整力 | BF29: ○
AT30: ㉘ | AU30: 様式第33の2（指定２） | BA30: ○ | BB30: ○ | BD30: ⑿ | BE30: 保有電源 | BG30: ○ | BH30: ○ | BI30: ○
AT31: ㉙ | AU31: 様式第33の3第1表（指定１） | AV31: ○ | AW31: ○ | AX31: ○ | AY31: ○ | BA31: ○ | BB31: ○ | BD31: ⒀ | BE31: 保有電源電力量 | BF31: ○ | BG31: ○ | BH31: ○ | BI31: ○
AT32: ㉚ | AU32: 様式第33の3第1表（指定２） | AV32: ○ | AW32: ○ | AX32: ○ | AY32: ○ | BA32: ○ | BB32: ○ | BD32: ⒁ | BE32: 受電取引帳票 | BF32: ○ | BG32: ○ | BH32: ○ | BI32: ○ | BK32: ○ | BL32: ○
AT33: ㉛ | AU33: 様式第33の3第2表 | BD33: ⒂ | BE33: 送電取引帳票 | BF33: ○ | BG33: ○ | BH33: ○ | BI33: ○ | BK33: ○ | BL33: ○
AT34: ㉜ | AU34: 様式第33の3第2表 (2年度目) | BD34: ⒃ | BE34: 自者間取引帳票 | BH34: ○
AT35: ㉝ | AU35: 様式第34第1表 | AV35: ○ | BD35: 凡例
AT36: ㉞ | AU36: 様式第34第1表 (2年度目) | AV36: ○ | BD36: ◎：記載必須 ○：場合により記載必要
AT37: ㉟ | AU37: 様式第34第2表 | AV37: ○ | BD37: △：変更供計時に記載必須 空白：記載不要
AT38: ㊱ | AU38: 様式第34第2表 (2年度目) | AV38: ○ | BD38: 発：発電事業者 卸：特定卸供給事業者 小：小売電気事業者
AT39: ㊲ | AU39: 様式第34第3表 | AV39: ○ | BD39: 登：登録特定送配電事業者 送：特定送配電事業者、送電事業者
AT40: ㊳ | AU40: 様式第34第3表 (2年度目) | AV40: ○ | BD40: 一：一般送配電事業者 配：配電事業者
AT41: ㊴ | AU41: 様式第34第4表 | AV41: ○
AT42: ㊵ | AU42: 様式第34第4表 (2年度目) | AV42: ○

Sheet エリア表示切替
H2: エリア表示切替対象帳票
C3: 表示切替フラグ | H3: 供給計画 | I3: 様式第32第1表（指定１） | J3: 入力支援 シート | K3: 風力
B4: 北海道 | C4: 1 | I4: 様式第32第1表（指定２） | K4: 太陽光（全量）
B5: 東北 | C5: 1 | I5: 様式第32第2表 | K5: 太陽光（余剰）
B6: 東京 | C6: 1 | I6: 様式第32第3表（指定） | K6: 保有電源
B7: 中部 | C7: 1 | I7: 様式第32第3表（指定） (2年度目) | K7: 保有電源電力量
B8: 北陸 | C8: 1 | I8: 様式第32第4表
B9: 関西 | C9: 1 | I9: 様式第32第8表（指定１）_受電
B10: 中国 | C10: 1 | I10: 様式第32第8表（指定１）_送電
B11: 四国 | C11: 1 | I11: 様式第32第8表（指定２）_受電
B12: 九州 | C12: 1 | I12: 様式第32第8表（指定２）_送電
B13: 沖縄 | C13: 1 | I13: 様式第33表（指定１）
I14: 様式第33表（指定２）
I15: 様式第33の3第1表（指定１）
I16: 様式第33の3第1表（指定２）
I17: 様式第33の3第2表
I18: 様式第33の3第2表 (2年度目)
I19: 様式第34第1表
I20: 様式第34第1表 (2年度目)
I21: 様式第34第2表
I22: 様式第34第2表 (2年度目)
I23: 様式第34第3表
I24: 様式第34第3表 (2年度目)
I25: 様式第34第4表
I26: 様式第34第4表 (2年度目)
I27: 様式第36表（指定）_受電
I28: 様式第36表（指定）_受電 (2年度目)
I29: 様式第36表（指定）_送電
I30: 様式第36表（指定）_送電 (2年度目)

Sheet 補正シート→

Sheet 補正（ｋW）指定１
A2: 供給区域 | D2: エリア | E2: =IF(C2="北海道",1,IF(C2="東北",2,IF(C2="東京",3,IF(C2="中部",4,IF(C2="北陸",5,IF(C2="関西",6,IF(C2="中国",7,IF(C2="四国",8,IF(C2="九州",9,IF(C2="沖縄",10,IF(C2="","","正しいエリア名を入力してください"))))))))))) -> 
F3: 入力箇所 | I3: リンク箇所 | L3: 自動計算 | N3: 記載要領 | O3: 各項目については、至近２ヶ年分は各月で、第３～１０年度分は最大発生月分を記載すること。
A4: 補正前供給電力 | BK4: 【ＭＷ】
A5: 項目 | E5: =DATE(事業者リスト一覧!$B$3,1,1) -> 2026-01-01 | AC5: =E5+366 -> 2027-01-02 | BA5: =E5-365 -> 2025-01-01 | BB5: =E5 -> 2026-01-01 | BC5: =AC5 -> 2027-01-02 | BD5: =BC5+366 -> 2028-01-03 | BE5: =BD5+366 -> 2029-01-03 | BF5: =BE5+366 -> 2030-01-04 | BG5: =BF5+366 -> 2031-01-05 | BH5: =BG5+366 -> 2032-01-06 | BI5: =BH5+366 -> 2033-01-06 | BJ5: =BI5+366 -> 2034-01-07 | BK5: =BJ5+366 -> 2035-01-08
E6: 4月 | G6: 5月 | I6: 6月 | K6: 7月 | M6: 8月 | O6: 9月 | Q6: 10月 | S6: 11月 | U6: 12月 | W6: 1月 | Y6: 2月 | AA6: 3月 | AC6: 4月 | AE6: 5月 | AG6: 6月 | AI6: 7月 | AK6: 8月 | AM6: 9月 | AO6: 10月 | AQ6: 11月 | AS6: 12月 | AU6: 1月 | AW6: 2月 | AY6: 3月
E7: 前半 | F7: 後半 | G7: 前半 | H7: 後半 | I7: 前半 | J7: 後半 | K7: 前半 | L7: 後半 | M7: 前半 | N7: 後半 | O7: 前半 | P7: 後半 | Q7: 前半 | R7: 後半 | S7: 前半 | T7: 後半 | U7: 前半 | V7: 後半 | W7: 前半 | X7: 後半 | Y7: 前半 | Z7: 後半 | AA7: 前半 | AB7: 後半 | AC7: 前半 | AD7: 後半 | AE7: 前半 | AF7: 後半 | AG7: 前半 | AH7: 後半 | AI7: 前半 | AJ7: 後半 | AK7: 前半 | AL7: 後半 | AM7: 前半 | AN7: 後半 | AO7: 前半 | AP7: 後半 | AQ7: 前半 | AR7: 後半 | AS7: 前半 | AT7: 後半 | AU7: 前半 | AV7: 後半 | AW7: 前半 | AX7: 後半 | AY7: 前半 | AZ7: 後半 | BA7: 実績
A8: 供給電力 | B8: 保有 電力 | C8: 水力発電所（送電端） | BB8: =IF(COUNT(M8,N8)=0,"",ROUND(SUM(IFERROR(M8*15,0),IFERROR(N8*16,0))/31,事業者リスト一覧!$B$63)) ->  | BC8: =IF(COUNT(AK8,AL8)=0,"",ROUND(SUM(IFERROR(AK8*15,0),IFERROR(AL8*16,0))/31,事業者リスト一覧!$B$63)) -> 
C9: 火力発電所（送電端） | BB9: =IF(COUNT(M9,N9)=0,"",ROUND(SUM(IFERROR(M9*15,0),IFERROR(N9*16,0))/31,事業者リスト一覧!$B$63)) ->  | BC9: =IF(COUNT(AK9,AL9)=0,"",ROUND(SUM(IFERROR(AK9*15,0),IFERROR(AL9*16,0))/31,事業者リスト一覧!$B$63)) -> 
C10: 原子力発電所（送電端） | BB10: =IF(COUNT(M10,N10)=0,"",ROUND(SUM(IFERROR(M10*15,0),IFERROR(N10*16,0))/31,事業者リスト一覧!$B$63)) ->  | BC10: =IF(COUNT(AK10,AL10)=0,"",ROUND(SUM(IFERROR(AK10*15,0),IFERROR(AL10*16,0))/31,事業者リスト一覧!$B$63)) -> 
C11: 新エネルギー等発電所等（送電端） | BB11: =IF(COUNT(M11,N11)=0,"",ROUND(SUM(IFERROR(M11*15,0),IFERROR(N11*16,0))/31,事業者リスト一覧!$B$63)) ->  | BC11: =IF(COUNT(AK11,AL11)=0,"",ROUND(SUM(IFERROR(AK11*15,0),IFERROR(AL11*16,0))/31,事業者リスト一覧!$B$63)) -> 
C12: 合計（送電端） | E12: =IF(COUNT(E8:E11)=0,"",SUM(E8:E11)) ->  | F12: =IF(COUNT(F8:F11)=0,"",SUM(F8:F11)) ->  | AC12: =IF(COUNT(AC8:AC11)=0,"",SUM(AC8:AC11)) ->  | AD12: =IF(COUNT(AD8:AD11)=0,"",SUM(AD8:AD11)) ->  | BE12: =IF(COUNT(BE8:BE11)=0,"",SUM(BE8:BE11)) -> 
B13: 調達分 | C13: 発電事業者 | BB13: =IF(COUNT(M13,N13)=0,"",ROUND(SUM(IFERROR(M13*15,0),IFERROR(N13*16,0))/31,事業者リスト一覧!$B$63)) ->  | BC13: =IF(COUNT(AK13,AL13)=0,"",ROUND(SUM(IFERROR(AK13*15,0),IFERROR(AL13*16,0))/31,事業者リスト一覧!$B$63)) -> 
C14: 特定卸供給事業者 | BB14: =IF(COUNT(M14,N14)=0,"",ROUND(SUM(IFERROR(M14*15,0),IFERROR(N14*16,0))/31,事業者リスト一覧!$B$63)) ->  | BC14: =IF(COUNT(AK14,AL14)=0,"",ROUND(SUM(IFERROR(AK14*15,0),IFERROR(AL14*16,0))/31,事業者リスト一覧!$B$63)) -> 
C15: 一般送配電事業者 | BB15: =IF(COUNT(M15,N15)=0,"",ROUND(SUM(IFERROR(M15*15,0),IFERROR(N15*16,0))/31,事業者リスト一覧!$B$63)) ->  | BC15: =IF(COUNT(AK15,AL15)=0,"",ROUND(SUM(IFERROR(AK15*15,0),IFERROR(AL15*16,0))/31,事業者リスト一覧!$B$63)) -> 
C16: 配電事業者 | BB16: =IF(COUNT(M16,N16)=0,"",ROUND(SUM(IFERROR(M16*15,0),IFERROR(N16*16,0))/31,事業者リスト一覧!$B$63)) ->  | BC16: =IF(COUNT(AK16,AL16)=0,"",ROUND(SUM(IFERROR(AK16*15,0),IFERROR(AL16*16,0))/31,事業者リスト一覧!$B$63)) -> 
C17: 小売電気事業者 | BB17: =IF(COUNT(M17,N17)=0,"",ROUND(SUM(IFERROR(M17*15,0),IFERROR(N17*16,0))/31,事業者リスト一覧!$B$63)) ->  | BC17: =IF(COUNT(AK17,AL17)=0,"",ROUND(SUM(IFERROR(AK17*15,0),IFERROR(AL17*16,0))/31,事業者リスト一覧!$B$63)) -> 
C18: その他 | D18: 取引所 | BB18: =IF(COUNT(M18,N18)=0,"",ROUND(SUM(IFERROR(M18*15,0),IFERROR(N18*16,0))/31,事業者リスト一覧!$B$63)) ->  | BC18: =IF(COUNT(AK18,AL18)=0,"",ROUND(SUM(IFERROR(AK18*15,0),IFERROR(AL18*16,0))/31,事業者リスト一覧!$B$63)) -> 
D19: その他 | BB19: =IF(COUNT(M19,N19)=0,"",ROUND(SUM(IFERROR(M19*15,0),IFERROR(N19*16,0))/31,事業者リスト一覧!$B$63)) ->  | BC19: =IF(COUNT(AK19,AL19)=0,"",ROUND(SUM(IFERROR(AK19*15,0),IFERROR(AL19*16,0))/31,事業者リスト一覧!$B$63)) -> 
B20: 調達先未定 | BB20: =IF(COUNT(M20,N20)=0,"",ROUND(SUM(IFERROR(M20*15,0),IFERROR(N20*16,0))/31,事業者リスト一覧!$B$63)) ->  | BC20: =IF(COUNT(AK20,AL20)=0,"",ROUND(SUM(IFERROR(AK20*15,0),IFERROR(AL20*16,0))/31,事業者リスト一覧!$B$63)) -> 
B21: （上段：取引所、下段：その他） | BB21: =IF(COUNT(M21,N21)=0,"",ROUND(SUM(IFERROR(M21*15,0),IFERROR(N21*16,0))/31,事業者リスト一覧!$B$63)) ->  | BC21: =IF(COUNT(AK21,AL21)=0,"",ROUND(SUM(IFERROR(AK21*15,0),IFERROR(AL21*16,0))/31,事業者リスト一覧!$B$63)) -> 
B22: 【送配電】合計（送電端） | E22: =IF(COUNT(E12:E21)=0,"",SUM(E12:E21)) ->  | F22: =IF(COUNT(F12:F21)=0,"",SUM(F12:F21)) ->  | AC22: =IF(COUNT(AC12:AC21)=0,"",SUM(AC12:AC21)) ->  | AD22: =IF(COUNT(AD12:AD21)=0,"",SUM(AD12:AD21)) ->  | BA22: =IF(COUNT(BA12:BA21)=0,"",SUM(BA12:BA21)) ->  | BB22: =IF(COUNT(BB12:BB21)=0,"",SUM(BB12:BB21)) ->  | BC22: =IF(COUNT(BC12:BC21)=0,"",SUM(BC12:BC21)) ->  | BD22: =IF(COUNT(BD12:BD21)=0,"",SUM(BD12:BD21)) ->  | BE22: =IF(COUNT(BE12:BE21)=0,"",SUM(BE12:BE21)) -> 
B23: 発動指令電源供給力（再掲） | BB23: =IF(COUNT(M23,N23)=0,"",ROUND(SUM(IFERROR(M23*15,0),IFERROR(N23*16,0))/31,事業者リスト一覧!$B$63)) ->  | BC23: =IF(COUNT(AK23,AL23)=0,"",ROUND(SUM(IFERROR(AK23*15,0),IFERROR(AL23*16,0))/31,事業者リスト一覧!$B$63)) -> 
B24: 【ｴﾘｱ】合計（送電端） | BB24: =IF(COUNT(M24,N24)=0,"",ROUND(SUM(IFERROR(M24*15,0),IFERROR(N24*16,0))/31,事業者リスト一覧!$B$63)) ->  | BC24: =IF(COUNT(AK24,AL24)=0,"",ROUND(SUM(IFERROR(AK24*15,0),IFERROR(AL24*16,0))/31,事業者リスト一覧!$B$63)) -> 
A25: 需要電力（送電端） | D25: エリア全体 | BB25: =IF($E$2="","",IF(COUNT(CHOOSE($E$2,'様式第33表（指定１）'!H14,'様式第33表（指定１）'!H44,'様式第33表（指定１）'!H74,'様式第33表（指定１）'!H104,'様式第33表（指定１）'!H134,'様式第33表（指定１）'!H164,'様式第33表（指定１）'!H194,'様式第33表（指定１）'!H224,'様式第33表（指定１）'!H254,'様式第33表（指定１）'!H284))=0,"",CHOOSE($E$2,'様式第33表（指定１）'!H14,'様式第33表（指定１）'!H44,'様式第33表（指定１）'!H74,'様式第33表（指定１）'!H104,'様式第33表（指定１）'!H134,'様式第33表（指定１）'!H164,'様式第33表（指定１）'!H194,'様式第33表（指定１）'!H224,'様式第33表（指定１）'!H254,'様式第33表（指定１）'!H284))) ->  | BC25: =IF($E$2="","",IF(COUNT(CHOOSE($E$2,'様式第33表（指定１）'!I14,'様式第33表（指定１）'!I44,'様式第33表（指定１）'!I74,'様式第33表（指定１）'!I104,'様式第33表（指定１）'!I134,'様式第33表（指定１）'!I164,'様式第33表（指定１）'!I194,'様式第33表（指定１）'!I224,'様式第33表（指定１）'!I254,'様式第33表（指定１）'!I284))=0,"",CHOOSE($E$2,'様式第33表（指定１）'!I14,'様式第33表（指定１）'!I44,'様式第33表（指定１）'!I74,'様式第33表（指定１）'!I104,'様式第33表（指定１）'!I134,'様式第33表（指定１）'!I164,'様式第33表（指定１）'!I194,'様式第33表（指定１）'!I224,'様式第33表（指定１）'!I254,'様式第33表（指定１）'!I284))) ->  | BD25: =IF($E$2="","",IF(COUNT(CHOOSE($E$2,'様式第33表（指定１）'!J14,'様式第33表（指定１）'!J44,'様式第33表（指定１）'!J74,'様式第33表（指定１）'!J104,'様式第33表（指定１）'!J134,'様式第33表（指定１）'!J164,'様式第33表（指定１）'!J194,'様式第33表（指定１）'!J224,'様式第33表（指定１）'!J254,'様式第33表（指定１）'!J284))=0,"",CHOOSE($E$2,'様式第33表（指定１）'!J14,'様式第33表（指定１）'!J44,'様式第33表（指定１）'!J74,'様式第33表（指定１）'!J104,'様式第33表（指定１）'!J134,'様式第33表（指定１）'!J164,'様式第33表（指定１）'!J194,'様式第33表（指定１）'!J224,'様式第33表（指定１）'!J254,'様式第33表（指定１）'!J284))) ->  | BE25: =IF($E$2="","",IF(COUNT(CHOOSE($E$2,'様式第33表（指定１）'!K14,'様式第33表（指定１）'!K44,'様式第33表（指定１）'!K74,'様式第33表（指定１）'!K104,'様式第33表（指定１）'!K134,'様式第33表（指定１）'!K164,'様式第33表（指定１）'!K194,'様式第33表（指定１）'!K224,'様式第33表（指定１）'!K254,'様式第33表（指定１）'!K284))=0,"",CHOOSE($E$2,'様式第33表（指定１）'!K14,'様式第33表（指定１）'!K44,'様式第33表（指定１）'!K74,'様式第33表（指定１）'!K104,'様式第33表（指定１）'!K134,'様式第33表（指定１）'!K164,'様式第33表（指定１）'!K194,'様式第33表（指定１）'!K224,'様式第33表（指定１）'!K254,'様式第33表（指定１）'!K284))) ->  | BF25: =IF($E$2="","",IF(COUNT(CHOOSE($E$2,'様式第33表（指定１）'!L14,'様式第33表（指定１）'!L44,'様式第33表（指定１）'!L74,'様式第33表（指定１）'!L104,'様式第33表（指定１）'!L134,'様式第33表（指定１）'!L164,'様式第33表（指定１）'!L194,'様式第33表（指定１）'!L224,'様式第33表（指定１）'!L254,'様式第33表（指定１）'!L284))=0,"",CHOOSE($E$2,'様式第33表（指定１）'!L14,'様式第33表（指定１）'!L44,'様式第33表（指定１）'!L74,'様式第33表（指定１）'!L104,'様式第33表（指定１）'!L134,'様式第33表（指定１）'!L164,'様式第33表（指定１）'!L194,'様式第33表（指定１）'!L224,'様式第33表（指定１）'!L254,'様式第33表（指定１）'!L284))) ->  | BG25: =IF($E$2="","",IF(COUNT(CHOOSE($E$2,'様式第33表（指定１）'!M14,'様式第33表（指定１）'!M44,'様式第33表（指定１）'!M74,'様式第33表（指定１）'!M104,'様式第33表（指定１）'!M134,'様式第33表（指定１）'!M164,'様式第33表（指定１）'!M194,'様式第33表（指定１）'!M224,'様式第33表（指定１）'!M254,'様式第33表（指定１）'!M284))=0,"",CHOOSE($E$2,'様式第33表（指定１）'!M14,'様式第33表（指定１）'!M44,'様式第33表（指定１）'!M74,'様式第33表（指定１）'!M104,'様式第33表（指定１）'!M134,'様式第33表（指定１）'!M164,'様式第33表（指定１）'!M194,'様式第33表（指定１）'!M224,'様式第33表（指定１）'!M254,'様式第33表（指定１）'!M284))) ->  | BH25: =IF($E$2="","",IF(COUNT(CHOOSE($E$2,'様式第33表（指定１）'!N14,'様式第33表（指定１）'!N44,'様式第33表（指定１）'!N74,'様式第33表（指定１）'!N104,'様式第33表（指定１）'!N134,'様式第33表（指定１）'!N164,'様式第33表（指定１）'!N194,'様式第33表（指定１）'!N224,'様式第33表（指定１）'!N254,'様式第33表（指定１）'!N284))=0,"",CHOOSE($E$2,'様式第33表（指定１）'!N14,'様式第33表（指定１）'!N44,'様式第33表（指定１）'!N74,'様式第33表（指定１）'!N104,'様式第33表（指定１）'!N134,'様式第33表（指定１）'!N164,'様式第33表（指定１）'!N194,'様式第33表（指定１）'!N224,'様式第33表（指定１）'!N254,'様式第33表（指定１）'!N284))) ->  | BI25: =IF($E$2="","",IF(COUNT(CHOOSE($E$2,'様式第33表（指定１）'!O14,'様式第33表（指定１）'!O44,'様式第33表（指定１）'!O74,'様式第33表（指定１）'!O104,'様式第33表（指定１）'!O134,'様式第33表（指定１）'!O164,'様式第33表（指定１）'!O194,'様式第33表（指定１）'!O224,'様式第33表（指定１）'!O254,'様式第33表（指定１）'!O284))=0,"",CHOOSE($E$2,'様式第33表（指定１）'!O14,'様式第33表（指定１）'!O44,'様式第33表（指定１）'!O74,'様式第33表（指定１）'!O104,'様式第33表（指定１）'!O134,'様式第33表（指定１）'!O164,'様式第33表（指定１）'!O194,'様式第33表（指定１）'!O224,'様式第33表（指定１）'!O254,'様式第33表（指定１）'!O284))) ->  | BJ25: =IF($E$2="","",IF(COUNT(CHOOSE($E$2,'様式第33表（指定１）'!P14,'様式第33表（指定１）'!P44,'様式第33表（指定１）'!P74,'様式第33表（指定１）'!P104,'様式第33表（指定１）'!P134,'様式第33表（指定１）'!P164,'様式第33表（指定１）'!P194,'様式第33表（指定１）'!P224,'様式第33表（指定１）'!P254,'様式第33表（指定１）'!P284))=0,"",CHOOSE($E$2,'様式第33表（指定１）'!P14,'様式第33表（指定１）'!P44,'様式第33表（指定１）'!P74,'様式第33表（指定１）'!P104,'様式第33表（指定１）'!P134,'様式第33表（指定１）'!P164,'様式第33表（指定１）'!P194,'様式第33表（指定１）'!P224,'様式第33表（指定１）'!P254,'様式第33表（指定１）'!P284))) ->  | BK25: =IF($E$2="","",IF(COUNT(CHOOSE($E$2,'様式第33表（指定１）'!Q14,'様式第33表（指定１）'!Q44,'様式第33表（指定１）'!Q74,'様式第33表（指定１）'!Q104,'様式第33表（指定１）'!Q134,'様式第33表（指定１）'!Q164,'様式第33表（指定１）'!Q194,'様式第33表（指定１）'!Q224,'様式第33表（指定１）'!Q254,'様式第33表（指定１）'!Q284))=0,"",CHOOSE($E$2,'様式第33表（指定１）'!Q14,'様式第33表（指定１）'!Q44,'様式第33表（指定１）'!Q74,'様式第33表（指定１）'!Q104,'様式第33表（指定１）'!Q134,'様式第33表（指定１）'!Q164,'様式第33表（指定１）'!Q194,'様式第33表（指定１）'!Q224,'様式第33表（指定１）'!Q254,'様式第33表（指定１）'!Q284))) -> 
D26: （内訳）本土分 | E26: =IF(E25="","",E25-E27) ->  | F26: =IF(F25="","",F25-F27) ->  | AC26: =IF(AC25="","",AC25-AC27) ->  | AD26: =IF(AD25="","",AD25-AD27) ->  | BD26: =IF(BD25="","",BD25-BD27) -> 
D27: （内訳）離島分
A28: ひっ迫時需要抑制電力 （送電端） | D28: 小売電気事業者 | BB28: =IF(COUNT(M28,N28)=0,"",ROUND(SUM(IFERROR(M28*15,0),IFERROR(N28*16,0))/31,事業者リスト一覧!$B$63)) ->  | BC28: =IF(COUNT(AK28,AL28)=0,"",ROUND(SUM(IFERROR(AK28*15,0),IFERROR(AL28*16,0))/31,事業者リスト一覧!$B$63)) -> 
D29: 一般送配電事業者 | BB29: =IF(COUNT(M29,N29)=0,"",ROUND(SUM(IFERROR(M29*15,0),IFERROR(N29*16,0))/31,事業者リスト一覧!$B$63)) ->  | BC29: =IF(COUNT(AK29,AL29)=0,"",ROUND(SUM(IFERROR(AK29*15,0),IFERROR(AL29*16,0))/31,事業者リスト一覧!$B$63)) -> 
A30: 供給予備力送電端 | E30: =IF(E24="","",IF(E25="","",E24-E25)) ->  | F30: =IF(F24="","",IF(F25="","",F24-F25)) ->  | AC30: =IF(AC24="","",IF(AC25="","",AC24-AC25)) ->  | AD30: =IF(AD24="","",IF(AD25="","",AD24-AD25)) ->  | BA30: =IF(BA24="","",IF(BA25="","",BA24-BA25)) ->  | BB30: =IF(BB24="","",IF(BB25="","",BB24-BB25)) ->  | BD30: =IF(BD24="","",IF(BD25="","",BD24-BD25)) -> 
A31: 下段：ひっ迫時需要抑制電力反映時 | E31: =IF(E24="","",IF(E25="","",E24-(E25-SUM(E28:E29)))) ->  | F31: =IF(F24="","",IF(F25="","",F24-(F25-SUM(F28:F29)))) ->  | AC31: =IF(AC24="","",IF(AC25="","",AC24-(AC25-SUM(AC28:AC29)))) ->  | AD31: =IF(AD24="","",IF(AD25="","",AD24-(AD25-SUM(AD28:AD29)))) ->  | BA31: =IF(BA24="","",IF(BA25="","",BA24-(BA25-SUM(BA28:BA29)))) ->  | BB31: =IF(BB24="","",IF(BB25="","",BB24-(BB25-SUM(BB28:BB29)))) ->  | BD31: =IF(BD24="","",IF(BD25="","",BD24-(BD25-SUM(BD28:BD29)))) -> 
A32: 供給予備率（％） | E32: =IF(E30="","",E30/E25*100) ->  | F32: =IF(F30="","",F30/F25*100) ->  | AC32: =IF(AC30="","",AC30/AC25*100) ->  | AD32: =IF(AD30="","",AD30/AD25*100) ->  | BA32: =IF(BA30="","",BA30/BA25*100) ->  | BB32: =IF(BB30="","",BB30/BB25*100) ->  | BD32: =IF(BD30="","",BD30/BD25*100) -> 
A33: 下段：ひっ迫時需要抑制電力反映時 | E33: =IF(E31="","",E31/(E25)*100) ->  | F33: =IF(F31="","",F31/(F25)*100) ->  | AC33: =IF(AC31="","",AC31/(AC25)*100) ->  | AD33: =IF(AD31="","",AD31/(AD25)*100) ->  | BA33: =IF(BA31="","",BA31/(BA25)*100) -> 
A34: 調整力確保量 | BB34: =IF(COUNT(M34,N34)=0,"",ROUND(SUM(IFERROR(M34*15,0),IFERROR(N34*16,0))/31,事業者リスト一覧!$B$63)) ->  | BC34: =IF(COUNT(AK34,AL34)=0,"",ROUND(SUM(IFERROR(AK34*15,0),IFERROR(AL34*16,0))/31,事業者リスト一覧!$B$63)) -> 
A35: 調整力（％） | E35: =IF(E26="","",IF(E34="","",E34/E26*100)) ->  | F35: =IF(F26="","",IF(F34="","",F34/F26*100)) ->  | AC35: =IF(AC26="","",IF(AC34="","",AC34/AC26*100)) ->  | AD35: =IF(AD26="","",IF(AD34="","",AD34/AD26*100)) ->  | BA35: =IF(BA26="","",IF(BA34="","",BA34/BA26*100)) ->  | BB35: =IF(BB26="","",IF(BB34="","",BB34/BB26*100)) -> 
A36: 年度末電源構成 | B36: 水力発電所 | BA36: =IF(COUNT(BA37:BA38)=0,"",SUM(BA37:BA38)) ->  | BB36: =IF(COUNT(BB37:BB38)=0,"",SUM(BB37:BB38)) ->  | BC36: =IF(BC37="",IF(BC38="","",SUM(BC37:BC38)),SUM(BC37:BC38)) ->  | BF36: =IF(COUNT(BF37:BF38)=0,"",SUM(BF37:BF38)) ->  | BG36: =IF(BG37="",IF(BG38="","",SUM(BG37:BG38)),SUM(BG37:BG38)) ->  | BK36: =IF(COUNT(BK37:BK38)=0,"",SUM(BK37:BK38)) -> 
D37: 一般
D38: 揚水
B39: 火力発電所 | BA39: =IF(COUNT(BA40:BA46)=0,"",SUM(BA40:BA46)) ->  | BB39: =IF(COUNT(BB40:BB46)=0,"",SUM(BB40:BB46)) ->  | BF39: =IF(COUNT(BF40:BF46)=0,"",SUM(BF40:BF46)) ->  | BK39: =IF(COUNT(BK40:BK46)=0,"",SUM(BK40:BK46)) -> 
D40: 石炭
D41: ＬＮＧ
D42: 石油
D43: ＬＰＧ
D44: その他ガス
D45: 瀝青質混合物
D46: その他火力
B47: 原子力発電所
B48: 新エネルギー等発電所等 | BA48: =IF(COUNT(BA49:BA56)=0,"",SUM(BA49:BA56)) ->  | BB48: =IF(COUNT(BB49:BB56)=0,"",SUM(BB49:BB56)) ->  | BF48: =IF(COUNT(BF49:BF56)=0,"",SUM(BF49:BF56)) ->  | BK48: =IF(COUNT(BK49:BK56)=0,"",SUM(BK49:BK56)) -> 
D49: 風力
D50: 太陽光
D51: 地熱
D52: バイオマス
D53: 廃棄物
D54: 蓄電池
D55: 水素
D56: アンモニア
B57: その他
B58: 合計 | BA58: =IF(COUNT(BA36,BA39,BA47,BA48,BA57)=0,"",SUM(BA36,BA39,BA47,BA48,BA57)) ->  | BB58: =IF(COUNT(BB36,BB39,BB47,BB48,BB57)=0,"",SUM(BB36,BB39,BB47,BB48,BB57)) ->  | BF58: =IF(COUNT(BF36,BF39,BF47,BF48,BF57)=0,"",SUM(BF36,BF39,BF47,BF48,BF57)) ->  | BK58: =IF(COUNT(BK36,BK39,BK47,BK48,BK57)=0,"",SUM(BK36,BK39,BK47,BK48,BK57)) -> 
E60: 記載要領 | G60: 【目的】各エリアの供給電力は、発電事業者を主とした電気事業者が保有する電源等の供給電力に非電気事業者と取引する（調達分から販売分を差し引く）供給電力を足し合わせたものから、登録特定送配電事業者と取引する供給電力を除いたものを基礎とする
G61: 一般送配電事業者の保有電源供給電力、非電気事業者との取引から、登録特定送配電事業者と取引する供給電力を除いたものに、エリア内の各事業者の供給電力を合計し、加えて必要な補正等を行い、エリア供給電力を算定するため、以下入力を行う。
G62: ・各事業者の保有電源欄は、エリア内の各事業者の32-1,32-3表の保有電源-合計（送電端）欄の合計値を入力する。
G63: ・各事業者の非電気調達欄は、整合性一覧ファイルより、各事業者がエリア内の非電気事業者より受電する取引分から、各事業者がエリア内の非電気事業者へ送電する取引分を除いた非電気事業者との取引分（送受電分）の合計値を入力する。
G64: ・登録特定送配電送受電補正欄は、整合性一覧ファイルの受電シートより、登録特定送配電から発電･小売･特定卸受電分、発電･小売･特定事業者から登録特定送配電が受電する合計値をそれぞれ入力する（前年度値は広域機関からの提供する値を入力する）。
G65: ・ダブルカウント（突合せ確認）欄は、突合せ確認漏れ等の修正として使用すること（非電気事業者取引の重複等）。
G66: ・補修調整欄は、各事業者の供給計画提出以降、補修調整を実施し、供給電力の増減がある場合に使用すること。
G67: ・系統運用電力補正欄は、常時、系統運用電力により、接続エリアの変更を行っている電源等について発電事業者等に供給電力の計上値を確認し、実際の接続エリアの供給電力となるように入力すること（入力に当たっては、相手エリアの一般送配電事業者と入力値の確認を行うこと）。
G68: なお、発電機単体ではなく、需要も含め系統運用電力の対象となっている場合は、発電と需要の差分入力する。加えて、対象発電所が極めて多数となる場合や、対象が太陽光風力の場合は、事業者への確認を行わず、一般送配電事業者にて系統運用電力の想定をすることも可とする。
G69: 系統運用電力を供給計画で補正する場合は、送受電の整合性に留意する必要があり、記載方法が複雑となる可能性があるため、不明点は広域機関の供給計画担当に問い合わせること。
G70: ・離島補正欄は、離島分の供給電力（一般送配電事業者買取の再エネ分も含む）から離島需要を除いた、離島の余力分をマイナス値で入力すること。
G71: ・その他補正欄は、供給計画内容の誤り（誤記等）の修正として使用すること。
A72: エリア供給電力算定 | G72: ・広域機関補正欄、均平化潮流欄は、広域機関から提供する値を入力する。なお、均平化潮流は受電をプラス、送電をマイナスで入力する。 | BK72: 【ＭＷ】
A73: =A5 -> 項目 | E73: =E5 -> 2026-01-01 | AC73: =AC5 -> 2027-01-02 | BA73: =BA5 -> 2025-01-01 | BB73: =BB5 -> 2026-01-01 | BC73: =BC5 -> 2027-01-02 | BD73: 2028-01-03 | BE73: 2029-01-03 | BF73: 2030-01-04 | BG73: 2031-01-05 | BH73: 2032-01-06 | BI73: 2033-01-06 | BJ73: 2034-01-07 | BK73: 2035-01-08
E74: 4月 | G74: 5月 | I74: 6月 | K74: 7月 | M74: 8月 | O74: 9月 | Q74: 10月 | S74: 11月 | U74: 12月 | W74: 1月 | Y74: 2月 | AA74: 3月 | AC74: 4月 | AE74: 5月 | AG74: 6月 | AI74: 7月 | AK74: 8月 | AM74: 9月 | AO74: 10月 | AQ74: 11月 | AS74: 12月 | AU74: 1月 | AW74: 2月 | AY74: 3月
E75: 前半 | F75: 後半 | G75: 前半 | H75: 後半 | I75: 前半 | J75: 後半 | K75: 前半 | L75: 後半 | M75: 前半 | N75: 後半 | O75: 前半 | P75: 後半 | Q75: 前半 | R75: 後半 | S75: 前半 | T75: 後半 | U75: 前半 | V75: 後半 | W75: 前半 | X75: 後半 | Y75: 前半 | Z75: 後半 | AA75: 前半 | AB75: 後半 | AC75: 前半 | AD75: 後半 | AE75: 前半 | AF75: 後半 | AG75: 前半 | AH75: 後半 | AI75: 前半 | AJ75: 後半 | AK75: 前半 | AL75: 後半 | AM75: 前半 | AN75: 後半 | AO75: 前半 | AP75: 後半 | AQ75: 前半 | AR75: 後半 | AS75: 前半 | AT75: 後半 | AU75: 前半 | AV75: 後半 | AW75: 前半 | AX75: 後半 | AY75: 前半 | AZ75: 後半 | BA75: 実績
A76: 発電事業者 | D76: 保有電源 | BB76: =IF(COUNT(M76,N76)=0,"",ROUND(SUM(IFERROR(M76*15,0),IFERROR(N76*16,0))/31,事業者リスト一覧!$B$63)) ->  | BC76: =IF(COUNT(AK76,AL76)=0,"",ROUND(SUM(IFERROR(AK76*15,0),IFERROR(AL76*16,0))/31,事業者リスト一覧!$B$63)) -> 
D77: 非電気調達 | BB77: =IF(COUNT(M77,N77)=0,"",ROUND(SUM(IFERROR(M77*15,0),IFERROR(N77*16,0))/31,事業者リスト一覧!$B$63)) ->  | BC77: =IF(COUNT(AK77,AL77)=0,"",ROUND(SUM(IFERROR(AK77*15,0),IFERROR(AL77*16,0))/31,事業者リスト一覧!$B$63)) -> 
A78: 小売電気事業者 | D78: 保有電源 | BB78: =IF(COUNT(M78,N78)=0,"",ROUND(SUM(IFERROR(M78*15,0),IFERROR(N78*16,0))/31,事業者リスト一覧!$B$63)) ->  | BC78: =IF(COUNT(AK78,AL78)=0,"",ROUND(SUM(IFERROR(AK78*15,0),IFERROR(AL78*16,0))/31,事業者リスト一覧!$B$63)) -> 
D79: 非電気調達 | BB79: =IF(COUNT(M79,N79)=0,"",ROUND(SUM(IFERROR(M79*15,0),IFERROR(N79*16,0))/31,事業者リスト一覧!$B$63)) ->  | BC79: =IF(COUNT(AK79,AL79)=0,"",ROUND(SUM(IFERROR(AK79*15,0),IFERROR(AL79*16,0))/31,事業者リスト一覧!$B$63)) -> 
A80: 特定卸供給事業者 | D80: 保有電源 | BB80: =IF(COUNT(M80,N80)=0,"",ROUND(SUM(IFERROR(M80*15,0),IFERROR(N80*16,0))/31,事業者リスト一覧!$B$63)) ->  | BC80: =IF(COUNT(AK80,AL80)=0,"",ROUND(SUM(IFERROR(AK80*15,0),IFERROR(AL80*16,0))/31,事業者リスト一覧!$B$63)) -> 
D81: 非電気調達 | BB81: =IF(COUNT(M81,N81)=0,"",ROUND(SUM(IFERROR(M81*15,0),IFERROR(N81*16,0))/31,事業者リスト一覧!$B$63)) ->  | BC81: =IF(COUNT(AK81,AL81)=0,"",ROUND(SUM(IFERROR(AK81*15,0),IFERROR(AL81*16,0))/31,事業者リスト一覧!$B$63)) -> 
A82: 補正 | B82: 登録特定送配電 送受電補正 | D82: 発電･小売･特定卸受電分 | BB82: =IF(COUNT(M82,N82)=0,"",ROUND(SUM(IFERROR(M82*15,0),IFERROR(N82*16,0))/31,事業者リスト一覧!$B$63)) ->  | BC82: =IF(COUNT(AK82,AL82)=0,"",ROUND(SUM(IFERROR(AK82*15,0),IFERROR(AL82*16,0))/31,事業者リスト一覧!$B$63)) -> 
D83: 登録特定受電分 | BB83: =IF(COUNT(M83,N83)=0,"",ROUND(SUM(IFERROR(M83*15,0),IFERROR(N83*16,0))/31,事業者リスト一覧!$B$63)) ->  | BC83: =IF(COUNT(AK83,AL83)=0,"",ROUND(SUM(IFERROR(AK83*15,0),IFERROR(AL83*16,0))/31,事業者リスト一覧!$B$63)) -> 
D84: 差 | E84: =IF(COUNT(E82:E83)=0,"",SUM(E82)-SUM(E83)) ->  | F84: =IF(COUNT(F82:F83)=0,"",SUM(F82)-SUM(F83)) ->  | BA84: =IF(COUNT(BA82:BA83)=0,"",SUM(BA82)-SUM(BA83)) ->  | BD84: =IF(COUNT(BD82:BD83)=0,"",SUM(BD82)-SUM(BD83)) -> 
B85: ダブルカウント（突合せ確認）分 （内訳： ） | BB85: =IF(COUNT(M85,N85)=0,"",ROUND(SUM(IFERROR(M85*15,0),IFERROR(N85*16,0))/31,事業者リスト一覧!$B$63)) ->  | BC85: =IF(COUNT(AK85,AL85)=0,"",ROUND(SUM(IFERROR(AK85*15,0),IFERROR(AL85*16,0))/31,事業者リスト一覧!$B$63)) -> 
B86: 補修調整分 | BB86: =IF(COUNT(M86,N86)=0,"",ROUND(SUM(IFERROR(M86*15,0),IFERROR(N86*16,0))/31,事業者リスト一覧!$B$63)) ->  | BC86: =IF(COUNT(AK86,AL86)=0,"",ROUND(SUM(IFERROR(AK86*15,0),IFERROR(AL86*16,0))/31,事業者リスト一覧!$B$63)) -> 
B87: 系統運用電力補正 | BB87: =IF(COUNT(M87,N87)=0,"",ROUND(SUM(IFERROR(M87*15,0),IFERROR(N87*16,0))/31,事業者リスト一覧!$B$63)) ->  | BC87: =IF(COUNT(AK87,AL87)=0,"",ROUND(SUM(IFERROR(AK87*15,0),IFERROR(AL87*16,0))/31,事業者リスト一覧!$B$63)) -> 
B88: 離島補正 | BB88: =IF(COUNT(M88,N88)=0,"",ROUND(SUM(IFERROR(M88*15,0),IFERROR(N88*16,0))/31,事業者リスト一覧!$B$63)) ->  | BC88: =IF(COUNT(AK88,AL88)=0,"",ROUND(SUM(IFERROR(AK88*15,0),IFERROR(AL88*16,0))/31,事業者リスト一覧!$B$63)) -> 
B89: その他補正 （補正内容： ） | BB89: =IF(COUNT(M89,N89)=0,"",ROUND(SUM(IFERROR(M89*15,0),IFERROR(N89*16,0))/31,事業者リスト一覧!$B$63)) ->  | BC89: =IF(COUNT(AK89,AL89)=0,"",ROUND(SUM(IFERROR(AK89*15,0),IFERROR(AL89*16,0))/31,事業者リスト一覧!$B$63)) -> 
B90: 広域機関補正 | BB90: =IF(COUNT(M90,N90)=0,"",ROUND(SUM(IFERROR(M90*15,0),IFERROR(N90*16,0))/31,事業者リスト一覧!$B$63)) ->  | BC90: =IF(COUNT(AK90,AL90)=0,"",ROUND(SUM(IFERROR(AK90*15,0),IFERROR(AL90*16,0))/31,事業者リスト一覧!$B$63)) -> 
B91: 均平化潮流 | BB91: =IF(COUNT(M91,N91)=0,"",ROUND(SUM(IFERROR(M91*15,0),IFERROR(N91*16,0))/31,事業者リスト一覧!$B$63)) ->  | BC91: =IF(COUNT(AK91,AL91)=0,"",ROUND(SUM(IFERROR(AK91*15,0),IFERROR(AL91*16,0))/31,事業者リスト一覧!$B$63)) -> 
B92: 合計 | E92: =IF((COUNT(E76:E81)+COUNT(E84:E91))=0,"",SUM(E76:E81,E84:E91)) ->  | F92: =IF((COUNT(F76:F81)+COUNT(F84:F91))=0,"",SUM(F76:F81,F84:F91)) ->  | BB92: =IF(M92="","",M92) ->  | BC92: =IF(AK92="","",AK92) ->  | BD92: =IF((COUNT(BD76:BD81)+COUNT(BD84:BD91))=0,"",SUM(BD76:BD81,BD84:BD91)) -> 

Sheet 補正（ｋW）指定２
A2: 供給区域 | C2: =IF('補正（ｋW）指定１'!$C$2="","",'補正（ｋW）指定１'!$C$2) ->  | D2: エリア | E2: =IF(C2="北海道",1,IF(C2="東北",2,IF(C2="北陸",5,IF(C2="","","作成不要")))) -> 
F3: 入力箇所 | I3: リンク箇所 | L3: 自動計算
A4: 補正前供給電力 | O4: 【ＭＷ】
A5: 項目 | E5: ='補正（ｋW）指定１'!BA5 -> 2025-01-01 | F5: ='補正（ｋW）指定１'!BB5 -> 2026-01-01 | G5: ='補正（ｋW）指定１'!BC5 -> 2027-01-02 | H5: ='補正（ｋW）指定１'!BD5 -> 2028-01-03 | I5: ='補正（ｋW）指定１'!BE5 -> 2029-01-03 | J5: ='補正（ｋW）指定１'!BF5 -> 2030-01-04 | K5: ='補正（ｋW）指定１'!BG5 -> 2031-01-05 | L5: ='補正（ｋW）指定１'!BH5 -> 2032-01-06 | M5: ='補正（ｋW）指定１'!BI5 -> 2033-01-06 | N5: ='補正（ｋW）指定１'!BJ5 -> 2034-01-07 | O5: ='補正（ｋW）指定１'!BK5 -> 2035-01-08
E7: 実績
A8: 供給電力 | B8: 保有 電力 | C8: 水力発電所（送電端） | F8: =IF(OR($E$2="作成不要",COUNT('補正（ｋW）指定１'!$W8,'補正（ｋW）指定１'!$X8)=0),"",ROUND(SUM(IFERROR('補正（ｋW）指定１'!$W8*15,0),IFERROR('補正（ｋW）指定１'!$X8*16,0))/31,事業者リスト一覧!$B$63)) ->  | G8: =IF(OR($E$2="作成不要",COUNT('補正（ｋW）指定１'!$AU8,'補正（ｋW）指定１'!$AV8)=0),"",ROUND(SUM(IFERROR('補正（ｋW）指定１'!$AU8*15,0),IFERROR('補正（ｋW）指定１'!$AV8*16,0))/31,事業者リスト一覧!$B$63)) -> 
C9: 火力発電所（送電端） | F9: =IF(OR($E$2="作成不要",COUNT('補正（ｋW）指定１'!$W9,'補正（ｋW）指定１'!$X9)=0),"",ROUND(SUM(IFERROR('補正（ｋW）指定１'!$W9*15,0),IFERROR('補正（ｋW）指定１'!$X9*16,0))/31,事業者リスト一覧!$B$63)) ->  | G9: =IF(OR($E$2="作成不要",COUNT('補正（ｋW）指定１'!$AU9,'補正（ｋW）指定１'!$AV9)=0),"",ROUND(SUM(IFERROR('補正（ｋW）指定１'!$AU9*15,0),IFERROR('補正（ｋW）指定１'!$AV9*16,0))/31,事業者リスト一覧!$B$63)) -> 
C10: 原子力発電所（送電端） | F10: =IF(OR($E$2="作成不要",COUNT('補正（ｋW）指定１'!$W10,'補正（ｋW）指定１'!$X10)=0),"",ROUND(SUM(IFERROR('補正（ｋW）指定１'!$W10*15,0),IFERROR('補正（ｋW）指定１'!$X10*16,0))/31,事業者リスト一覧!$B$63)) ->  | G10: =IF(OR($E$2="作成不要",COUNT('補正（ｋW）指定１'!$AU10,'補正（ｋW）指定１'!$AV10)=0),"",ROUND(SUM(IFERROR('補正（ｋW）指定１'!$AU10*15,0),IFERROR('補正（ｋW）指定１'!$AV10*16,0))/31,事業者リスト一覧!$B$63)) -> 
C11: 新エネルギー等発電所等（送電端） | F11: =IF(OR($E$2="作成不要",COUNT('補正（ｋW）指定１'!$W11,'補正（ｋW）指定１'!$X11)=0),"",ROUND(SUM(IFERROR('補正（ｋW）指定１'!$W11*15,0),IFERROR('補正（ｋW）指定１'!$X11*16,0))/31,事業者リスト一覧!$B$63)) ->  | G11: =IF(OR($E$2="作成不要",COUNT('補正（ｋW）指定１'!$AU11,'補正（ｋW）指定１'!$AV11)=0),"",ROUND(SUM(IFERROR('補正（ｋW）指定１'!$AU11*15,0),IFERROR('補正（ｋW）指定１'!$AV11*16,0))/31,事業者リスト一覧!$B$63)) -> 
C12: 合計（送電端） | E12: =IF(COUNT(E8:E11)=0,"",SUM(E8:E11)) ->  | F12: =IF(COUNT(F8:F11)=0,"",SUM(F8:F11)) ->  | G12: =IF(COUNT(G8:G11)=0,"",SUM(G8:G11)) ->  | H12: =IF(COUNT(H8:H11)=0,"",SUM(H8:H11)) -> 
B13: 調達分 | C13: 発電事業者 | F13: =IF(OR($E$2="作成不要",COUNT('補正（ｋW）指定１'!$W13,'補正（ｋW）指定１'!$X13)=0),"",ROUND(SUM(IFERROR('補正（ｋW）指定１'!$W13*15,0),IFERROR('補正（ｋW）指定１'!$X13*16,0))/31,事業者リスト一覧!$B$63)) ->  | G13: =IF(OR($E$2="作成不要",COUNT('補正（ｋW）指定１'!$AU13,'補正（ｋW）指定１'!$AV13)=0),"",ROUND(SUM(IFERROR('補正（ｋW）指定１'!$AU13*15,0),IFERROR('補正（ｋW）指定１'!$AV13*16,0))/31,事業者リスト一覧!$B$63)) -> 
C14: 特定卸供給事業者 | F14: =IF(OR($E$2="作成不要",COUNT('補正（ｋW）指定１'!$W14,'補正（ｋW）指定１'!$X14)=0),"",ROUND(SUM(IFERROR('補正（ｋW）指定１'!$W14*15,0),IFERROR('補正（ｋW）指定１'!$X14*16,0))/31,事業者リスト一覧!$B$63)) ->  | G14: =IF(OR($E$2="作成不要",COUNT('補正（ｋW）指定１'!$AU14,'補正（ｋW）指定１'!$AV14)=0),"",ROUND(SUM(IFERROR('補正（ｋW）指定１'!$AU14*15,0),IFERROR('補正（ｋW）指定１'!$AV14*16,0))/31,事業者リスト一覧!$B$63)) -> 
C15: 一般送配電事業者 | F15: =IF(OR($E$2="作成不要",COUNT('補正（ｋW）指定１'!$W15,'補正（ｋW）指定１'!$X15)=0),"",ROUND(SUM(IFERROR('補正（ｋW）指定１'!$W15*15,0),IFERROR('補正（ｋW）指定１'!$X15*16,0))/31,事業者リスト一覧!$B$63)) ->  | G15: =IF(OR($E$2="作成不要",COUNT('補正（ｋW）指定１'!$AU15,'補正（ｋW）指定１'!$AV15)=0),"",ROUND(SUM(IFERROR('補正（ｋW）指定１'!$AU15*15,0),IFERROR('補正（ｋW）指定１'!$AV15*16,0))/31,事業者リスト一覧!$B$63)) -> 
C16: 配電事業者 | F16: =IF(OR($E$2="作成不要",COUNT('補正（ｋW）指定１'!$W16,'補正（ｋW）指定１'!$X16)=0),"",ROUND(SUM(IFERROR('補正（ｋW）指定１'!$W16*15,0),IFERROR('補正（ｋW）指定１'!$X16*16,0))/31,事業者リスト一覧!$B$63)) ->  | G16: =IF(OR($E$2="作成不要",COUNT('補正（ｋW）指定１'!$AU16,'補正（ｋW）指定１'!$AV16)=0),"",ROUND(SUM(IFERROR('補正（ｋW）指定１'!$AU16*15,0),IFERROR('補正（ｋW）指定１'!$AV16*16,0))/31,事業者リスト一覧!$B$63)) -> 
C17: 小売電気事業者 | F17: =IF(OR($E$2="作成不要",COUNT('補正（ｋW）指定１'!$W17,'補正（ｋW）指定１'!$X17)=0),"",ROUND(SUM(IFERROR('補正（ｋW）指定１'!$W17*15,0),IFERROR('補正（ｋW）指定１'!$X17*16,0))/31,事業者リスト一覧!$B$63)) ->  | G17: =IF(OR($E$2="作成不要",COUNT('補正（ｋW）指定１'!$AU17,'補正（ｋW）指定１'!$AV17)=0),"",ROUND(SUM(IFERROR('補正（ｋW）指定１'!$AU17*15,0),IFERROR('補正（ｋW）指定１'!$AV17*16,0))/31,事業者リスト一覧!$B$63)) -> 
C18: その他 | D18: 取引所 | F18: =IF(OR($E$2="作成不要",COUNT('補正（ｋW）指定１'!$W18,'補正（ｋW）指定１'!$X18)=0),"",ROUND(SUM(IFERROR('補正（ｋW）指定１'!$W18*15,0),IFERROR('補正（ｋW）指定１'!$X18*16,0))/31,事業者リスト一覧!$B$63)) ->  | G18: =IF(OR($E$2="作成不要",COUNT('補正（ｋW）指定１'!$AU18,'補正（ｋW）指定１'!$AV18)=0),"",ROUND(SUM(IFERROR('補正（ｋW）指定１'!$AU18*15,0),IFERROR('補正（ｋW）指定１'!$AV18*16,0))/31,事業者リスト一覧!$B$63)) -> 
D19: その他 | F19: =IF(OR($E$2="作成不要",COUNT('補正（ｋW）指定１'!$W19,'補正（ｋW）指定１'!$X19)=0),"",ROUND(SUM(IFERROR('補正（ｋW）指定１'!$W19*15,0),IFERROR('補正（ｋW）指定１'!$X19*16,0))/31,事業者リスト一覧!$B$63)) ->  | G19: =IF(OR($E$2="作成不要",COUNT('補正（ｋW）指定１'!$AU19,'補正（ｋW）指定１'!$AV19)=0),"",ROUND(SUM(IFERROR('補正（ｋW）指定１'!$AU19*15,0),IFERROR('補正（ｋW）指定１'!$AV19*16,0))/31,事業者リスト一覧!$B$63)) -> 
B20: 調達先未定 | F20: =IF(OR($E$2="作成不要",COUNT('補正（ｋW）指定１'!$W20,'補正（ｋW）指定１'!$X20)=0),"",ROUND(SUM(IFERROR('補正（ｋW）指定１'!$W20*15,0),IFERROR('補正（ｋW）指定１'!$X20*16,0))/31,事業者リスト一覧!$B$63)) ->  | G20: =IF(OR($E$2="作成不要",COUNT('補正（ｋW）指定１'!$AU20,'補正（ｋW）指定１'!$AV20)=0),"",ROUND(SUM(IFERROR('補正（ｋW）指定１'!$AU20*15,0),IFERROR('補正（ｋW）指定１'!$AV20*16,0))/31,事業者リスト一覧!$B$63)) -> 
B21: （上段：取引所、下段：その他） | F21: =IF(OR($E$2="作成不要",COUNT('補正（ｋW）指定１'!$W21,'補正（ｋW）指定１'!$X21)=0),"",ROUND(SUM(IFERROR('補正（ｋW）指定１'!$W21*15,0),IFERROR('補正（ｋW）指定１'!$X21*16,0))/31,事業者リスト一覧!$B$63)) ->  | G21: =IF(OR($E$2="作成不要",COUNT('補正（ｋW）指定１'!$AU21,'補正（ｋW）指定１'!$AV21)=0),"",ROUND(SUM(IFERROR('補正（ｋW）指定１'!$AU21*15,0),IFERROR('補正（ｋW）指定１'!$AV21*16,0))/31,事業者リスト一覧!$B$63)) -> 
B22: 【送配電】合計（送電端） | E22: =IF(COUNT(E12:E21)=0,"",SUM(E12:E21)) ->  | F22: =IF(COUNT(F12:F21)=0,"",SUM(F12:F21)) ->  | G22: =IF(COUNT(G12:G21)=0,"",SUM(G12:G21)) -> 
B23: 発動指令電源供給力（再掲） | F23: =IF(OR($E$2="作成不要",COUNT('補正（ｋW）指定１'!$W23,'補正（ｋW）指定１'!$X23)=0),"",ROUND(SUM(IFERROR('補正（ｋW）指定１'!$W23*15,0),IFERROR('補正（ｋW）指定１'!$X23*16,0))/31,事業者リスト一覧!$B$63)) ->  | G23: =IF(OR($E$2="作成不要",COUNT('補正（ｋW）指定１'!$AU23,'補正（ｋW）指定１'!$AV23)=0),"",ROUND(SUM(IFERROR('補正（ｋW）指定１'!$AU23*15,0),IFERROR('補正（ｋW）指定１'!$AV23*16,0))/31,事業者リスト一覧!$B$63)) -> 
B24: 【ｴﾘｱ】合計（送電端） | F24: =IF(OR($E$2="作成不要",COUNT('補正（ｋW）指定１'!$W24,'補正（ｋW）指定１'!$X24)=0),"",ROUND(SUM(IFERROR('補正（ｋW）指定１'!$W24*15,0),IFERROR('補正（ｋW）指定１'!$X24*16,0))/31,事業者リスト一覧!$B$63)) ->  | G24: =IF(OR($E$2="作成不要",COUNT('補正（ｋW）指定１'!$AU24,'補正（ｋW）指定１'!$AV24)=0),"",ROUND(SUM(IFERROR('補正（ｋW）指定１'!$AU24*15,0),IFERROR('補正（ｋW）指定１'!$AV24*16,0))/31,事業者リスト一覧!$B$63)) -> 
A25: 需要電力（送電端） | D25: エリア全体 | F25: =IF($E$2="","",IF($E$2="作成不要","",IF(COUNT(CHOOSE($E$2,'様式第33表（指定２）'!H14,'様式第33表（指定２）'!H44,"","",'様式第33表（指定２）'!H134))=0,"",CHOOSE($E$2,'様式第33表（指定２）'!H14,'様式第33表（指定２）'!H44,"","",'様式第33表（指定２）'!H134)))) ->  | G25: =IF($E$2="","",IF($E$2="作成不要","",IF(COUNT(CHOOSE($E$2,'様式第33表（指定２）'!I14,'様式第33表（指定２）'!I44,"","",'様式第33表（指定２）'!I134))=0,"",CHOOSE($E$2,'様式第33表（指定２）'!I14,'様式第33表（指定２）'!I44,"","",'様式第33表（指定２）'!I134)))) ->  | H25: =IF($E$2="","",IF($E$2="作成不要","",IF(COUNT(CHOOSE($E$2,'様式第33表（指定２）'!J14,'様式第33表（指定２）'!J44,"","",'様式第33表（指定２）'!J134))=0,"",CHOOSE($E$2,'様式第33表（指定２）'!J14,'様式第33表（指定２）'!J44,"","",'様式第33表（指定２）'!J134)))) ->  | I25: =IF($E$2="","",IF($E$2="作成不要","",IF(COUNT(CHOOSE($E$2,'様式第33表（指定２）'!K14,'様式第33表（指定２）'!K44,"","",'様式第33表（指定２）'!K134))=0,"",CHOOSE($E$2,'様式第33表（指定２）'!K14,'様式第33表（指定２）'!K44,"","",'様式第33表（指定２）'!K134)))) ->  | J25: =IF($E$2="","",IF($E$2="作成不要","",IF(COUNT(CHOOSE($E$2,'様式第33表（指定２）'!L14,'様式第33表（指定２）'!L44,"","",'様式第33表（指定２）'!L134))=0,"",CHOOSE($E$2,'様式第33表（指定２）'!L14,'様式第33表（指定２）'!L44,"","",'様式第33表（指定２）'!L134)))) ->  | K25: =IF($E$2="","",IF($E$2="作成不要","",IF(COUNT(CHOOSE($E$2,'様式第33表（指定２）'!M14,'様式第33表（指定２）'!M44,"","",'様式第33表（指定２）'!M134))=0,"",CHOOSE($E$2,'様式第33表（指定２）'!M14,'様式第33表（指定２）'!M44,"","",'様式第33表（指定２）'!M134)))) ->  | L25: =IF($E$2="","",IF($E$2="作成不要","",IF(COUNT(CHOOSE($E$2,'様式第33表（指定２）'!N14,'様式第33表（指定２）'!N44,"","",'様式第33表（指定２）'!N134))=0,"",CHOOSE($E$2,'様式第33表（指定２）'!N14,'様式第33表（指定２）'!N44,"","",'様式第33表（指定２）'!N134)))) ->  | M25: =IF($E$2="","",IF($E$2="作成不要","",IF(COUNT(CHOOSE($E$2,'様式第33表（指定２）'!O14,'様式第33表（指定２）'!O44,"","",'様式第33表（指定２）'!O134))=0,"",CHOOSE($E$2,'様式第33表（指定２）'!O14,'様式第33表（指定２）'!O44,"","",'様式第33表（指定２）'!O134)))) ->  | N25: =IF($E$2="","",IF($E$2="作成不要","",IF(COUNT(CHOOSE($E$2,'様式第33表（指定２）'!P14,'様式第33表（指定２）'!P44,"","",'様式第33表（指定２）'!P134))=0,"",CHOOSE($E$2,'様式第33表（指定２）'!P14,'様式第33表（指定２）'!P44,"","",'様式第33表（指定２）'!P134)))) ->  | O25: =IF($E$2="","",IF($E$2="作成不要","",IF(COUNT(CHOOSE($E$2,'様式第33表（指定２）'!Q14,'様式第33表（指定２）'!Q44,"","",'様式第33表（指定２）'!Q134))=0,"",CHOOSE($E$2,'様式第33表（指定２）'!Q14,'様式第33表（指定２）'!Q44,"","",'様式第33表（指定２）'!Q134)))) -> 
D26: （内訳）本土分 | E26: =IF(E25="","",E25-E27) ->  | G26: =IF(G25="","",G25-G27) ->  | H26: =IF(H25="","",H25-H27) -> 
D27: （内訳）離島分
A28: ひっ迫時需要抑制電力 （送電端） | D28: 小売電気事業者 | F28: =IF(OR($E$2="作成不要",COUNT('補正（ｋW）指定１'!$W28,'補正（ｋW）指定１'!$X28)=0),"",ROUND(SUM(IFERROR('補正（ｋW）指定１'!$W28*15,0),IFERROR('補正（ｋW）指定１'!$X28*16,0))/31,事業者リスト一覧!$B$63)) ->  | G28: =IF(OR($E$2="作成不要",COUNT('補正（ｋW）指定１'!$AU28,'補正（ｋW）指定１'!$AV28)=0),"",ROUND(SUM(IFERROR('補正（ｋW）指定１'!$AU28*15,0),IFERROR('補正（ｋW）指定１'!$AV28*16,0))/31,事業者リスト一覧!$B$63)) -> 
D29: 一般送配電事業者 | F29: =IF(OR($E$2="作成不要",COUNT('補正（ｋW）指定１'!$W29,'補正（ｋW）指定１'!$X29)=0),"",ROUND(SUM(IFERROR('補正（ｋW）指定１'!$W29*15,0),IFERROR('補正（ｋW）指定１'!$X29*16,0))/31,事業者リスト一覧!$B$63)) ->  | G29: =IF(OR($E$2="作成不要",COUNT('補正（ｋW）指定１'!$AU29,'補正（ｋW）指定１'!$AV29)=0),"",ROUND(SUM(IFERROR('補正（ｋW）指定１'!$AU29*15,0),IFERROR('補正（ｋW）指定１'!$AV29*16,0))/31,事業者リスト一覧!$B$63)) -> 
A30: 供給予備力送電端 | E30: =IF(E24="","",IF(E25="","",E24-E25)) ->  | F30: =IF(OR($E$2="作成不要",COUNT('補正（ｋW）指定１'!$W30,'補正（ｋW）指定１'!$X30)=0),"",ROUND(SUM(IFERROR('補正（ｋW）指定１'!$W30*15,0),IFERROR('補正（ｋW）指定１'!$X30*16,0))/31,事業者リスト一覧!$B$63)) ->  | G30: =IF(OR($E$2="作成不要",COUNT('補正（ｋW）指定１'!$AU30,'補正（ｋW）指定１'!$AV30)=0),"",ROUND(SUM(IFERROR('補正（ｋW）指定１'!$AU30*15,0),IFERROR('補正（ｋW）指定１'!$AV30*16,0))/31,事業者リスト一覧!$B$63)) ->  | H30: =IF(H24="","",IF(H25="","",H24-H25)) -> 
A31: 下段：ひっ迫時需要抑制電力反映時 | E31: =IF(E24="","",IF(E25="","",E24-(E25-SUM(E28:E29)))) ->  | F31: =IF(OR($E$2="作成不要",COUNT('補正（ｋW）指定１'!$W31,'補正（ｋW）指定１'!$X31)=0),"",ROUND(SUM(IFERROR('補正（ｋW）指定１'!$W31*15,0),IFERROR('補正（ｋW）指定１'!$X31*16,0))/31,事業者リスト一覧!$B$63)) ->  | G31: =IF(OR($E$2="作成不要",COUNT('補正（ｋW）指定１'!$AU31,'補正（ｋW）指定１'!$AV31)=0),"",ROUND(SUM(IFERROR('補正（ｋW）指定１'!$AU31*15,0),IFERROR('補正（ｋW）指定１'!$AV31*16,0))/31,事業者リスト一覧!$B$63)) ->  | H31: =IF(H24="","",IF(H25="","",H24-(H25-SUM(H28:H29)))) -> 
A32: 供給予備率（％） | E32: =IF(E30="","",E30/E25*100) ->  | F32: =IF(F30="","",F30/F25*100) ->  | G32: =IF(G30="","",G30/G25*100) ->  | H32: =IF(H30="","",H30/H25*100) -> 
A33: 下段：ひっ迫時需要抑制電力反映時 | E33: =IF(E31="","",E31/(E25)*100) ->  | F33: =IF(F31="","",F31/(F25)*100) ->  | G33: =IF(G31="","",G31/(G25)*100) ->  | H33: =IF(H31="","",H31/(H25)*100) ->  | I33: =IF(I31="","",I31/(I25)*100) -> 
A34: 調整力確保量 | F34: =IF(OR($E$2="作成不要",COUNT('補正（ｋW）指定１'!$W34,'補正（ｋW）指定１'!$X34)=0),"",ROUND(SUM(IFERROR('補正（ｋW）指定１'!$W34*15,0),IFERROR('補正（ｋW）指定１'!$X34*16,0))/31,事業者リスト一覧!$B$63)) ->  | G34: =IF(OR($E$2="作成不要",COUNT('補正（ｋW）指定１'!$AU34,'補正（ｋW）指定１'!$AV34)=0),"",ROUND(SUM(IFERROR('補正（ｋW）指定１'!$AU34*15,0),IFERROR('補正（ｋW）指定１'!$AV34*16,0))/31,事業者リスト一覧!$B$63)) -> 
A35: 調整力（％） | E35: =IF(E25="","",IF(E34="","",E34/E25*100)) ->  | F35: =IF(F25="","",IF(F34="","",F34/F25*100)) -> 
A36: 年度末電源構成 | B36: 水力発電所 | E36: =IF('補正（ｋW）指定１'!BA36="","",IF($E$2="作成不要","",'補正（ｋW）指定１'!BA36)) ->  | F36: =IF('補正（ｋW）指定１'!BB36="","",IF($E$2="作成不要","",'補正（ｋW）指定１'!BB36)) ->  | G36: =IF(G37="",IF(G38="","",SUM(G37:G38)),SUM(G37:G38)) ->  | J36: =IF('補正（ｋW）指定１'!BF36="","",IF($E$2="作成不要","",'補正（ｋW）指定１'!BF36)) ->  | K36: =IF(K37="",IF(K38="","",SUM(K37:K38)),SUM(K37:K38)) ->  | O36: =IF('補正（ｋW）指定１'!BK36="","",IF($E$2="作成不要","",'補正（ｋW）指定１'!BK36)) -> 
D37: 一般 | E37: =IF('補正（ｋW）指定１'!BA37="","",IF($E$2="作成不要","",'補正（ｋW）指定１'!BA37)) ->  | F37: =IF('補正（ｋW）指定１'!BB37="","",IF($E$2="作成不要","",'補正（ｋW）指定１'!BB37)) ->  | J37: =IF('補正（ｋW）指定１'!BF37="","",IF($E$2="作成不要","",'補正（ｋW）指定１'!BF37)) ->  | O37: =IF('補正（ｋW）指定１'!BK37="","",IF($E$2="作成不要","",'補正（ｋW）指定１'!BK37)) -> 
D38: 揚水 | E38: =IF('補正（ｋW）指定１'!BA38="","",IF($E$2="作成不要","",'補正（ｋW）指定１'!BA38)) ->  | F38: =IF('補正（ｋW）指定１'!BB38="","",IF($E$2="作成不要","",'補正（ｋW）指定１'!BB38)) ->  | J38: =IF('補正（ｋW）指定１'!BF38="","",IF($E$2="作成不要","",'補正（ｋW）指定１'!BF38)) ->  | O38: =IF('補正（ｋW）指定１'!BK38="","",IF($E$2="作成不要","",'補正（ｋW）指定１'!BK38)) -> 
B39: 火力発電所 | E39: =IF('補正（ｋW）指定１'!BA39="","",IF($E$2="作成不要","",'補正（ｋW）指定１'!BA39)) ->  | F39: =IF('補正（ｋW）指定１'!BB39="","",IF($E$2="作成不要","",'補正（ｋW）指定１'!BB39)) ->  | J39: =IF('補正（ｋW）指定１'!BF39="","",IF($E$2="作成不要","",'補正（ｋW）指定１'!BF39)) ->  | O39: =IF('補正（ｋW）指定１'!BK39="","",IF($E$2="作成不要","",'補正（ｋW）指定１'!BK39)) -> 
D40: 石炭 | E40: =IF('補正（ｋW）指定１'!BA40="","",IF($E$2="作成不要","",'補正（ｋW）指定１'!BA40)) ->  | F40: =IF('補正（ｋW）指定１'!BB40="","",IF($E$2="作成不要","",'補正（ｋW）指定１'!BB40)) ->  | J40: =IF('補正（ｋW）指定１'!BF40="","",IF($E$2="作成不要","",'補正（ｋW）指定１'!BF40)) ->  | O40: =IF('補正（ｋW）指定１'!BK40="","",IF($E$2="作成不要","",'補正（ｋW）指定１'!BK40)) -> 
D41: ＬＮＧ | E41: =IF('補正（ｋW）指定１'!BA41="","",IF($E$2="作成不要","",'補正（ｋW）指定１'!BA41)) ->  | F41: =IF('補正（ｋW）指定１'!BB41="","",IF($E$2="作成不要","",'補正（ｋW）指定１'!BB41)) ->  | J41: =IF('補正（ｋW）指定１'!BF41="","",IF($E$2="作成不要","",'補正（ｋW）指定１'!BF41)) ->  | O41: =IF('補正（ｋW）指定１'!BK41="","",IF($E$2="作成不要","",'補正（ｋW）指定１'!BK41)) -> 
D42: 石油 | E42: =IF('補正（ｋW）指定１'!BA42="","",IF($E$2="作成不要","",'補正（ｋW）指定１'!BA42)) ->  | F42: =IF('補正（ｋW）指定１'!BB42="","",IF($E$2="作成不要","",'補正（ｋW）指定１'!BB42)) ->  | J42: =IF('補正（ｋW）指定１'!BF42="","",IF($E$2="作成不要","",'補正（ｋW）指定１'!BF42)) ->  | O42: =IF('補正（ｋW）指定１'!BK42="","",IF($E$2="作成不要","",'補正（ｋW）指定１'!BK42)) -> 
D43: ＬＰＧ | E43: =IF('補正（ｋW）指定１'!BA43="","",IF($E$2="作成不要","",'補正（ｋW）指定１'!BA43)) ->  | F43: =IF('補正（ｋW）指定１'!BB43="","",IF($E$2="作成不要","",'補正（ｋW）指定１'!BB43)) ->  | J43: =IF('補正（ｋW）指定１'!BF43="","",IF($E$2="作成不要","",'補正（ｋW）指定１'!BF43)) ->  | O43: =IF('補正（ｋW）指定１'!BK43="","",IF($E$2="作成不要","",'補正（ｋW）指定１'!BK43)) -> 
D44: その他ガス | E44: =IF('補正（ｋW）指定１'!BA44="","",IF($E$2="作成不要","",'補正（ｋW）指定１'!BA44)) ->  | F44: =IF('補正（ｋW）指定１'!BB44="","",IF($E$2="作成不要","",'補正（ｋW）指定１'!BB44)) ->  | J44: =IF('補正（ｋW）指定１'!BF44="","",IF($E$2="作成不要","",'補正（ｋW）指定１'!BF44)) ->  | O44: =IF('補正（ｋW）指定１'!BK44="","",IF($E$2="作成不要","",'補正（ｋW）指定１'!BK44)) -> 
D45: 瀝青質混合物 | E45: =IF('補正（ｋW）指定１'!BA45="","",IF($E$2="作成不要","",'補正（ｋW）指定１'!BA45)) ->  | F45: =IF('補正（ｋW）指定１'!BB45="","",IF($E$2="作成不要","",'補正（ｋW）指定１'!BB45)) ->  | J45: =IF('補正（ｋW）指定１'!BF45="","",IF($E$2="作成不要","",'補正（ｋW）指定１'!BF45)) ->  | O45: =IF('補正（ｋW）指定１'!BK45="","",IF($E$2="作成不要","",'補正（ｋW）指定１'!BK45)) -> 
D46: その他火力 | E46: =IF('補正（ｋW）指定１'!BA46="","",IF($E$2="作成不要","",'補正（ｋW）指定１'!BA46)) ->  | F46: =IF('補正（ｋW）指定１'!BB46="","",IF($E$2="作成不要","",'補正（ｋW）指定１'!BB46)) ->  | J46: =IF('補正（ｋW）指定１'!BF46="","",IF($E$2="作成不要","",'補正（ｋW）指定１'!BF46)) ->  | O46: =IF('補正（ｋW）指定１'!BK46="","",IF($E$2="作成不要","",'補正（ｋW）指定１'!BK46)) -> 
B47: 原子力発電所 | E47: =IF('補正（ｋW）指定１'!BA47="","",IF($E$2="作成不要","",'補正（ｋW）指定１'!BA47)) ->  | F47: =IF('補正（ｋW）指定１'!BB47="","",IF($E$2="作成不要","",'補正（ｋW）指定１'!BB47)) ->  | J47: =IF('補正（ｋW）指定１'!BF47="","",IF($E$2="作成不要","",'補正（ｋW）指定１'!BF47)) ->  | O47: =IF('補正（ｋW）指定１'!BK47="","",IF($E$2="作成不要","",'補正（ｋW）指定１'!BK47)) -> 
B48: 新エネルギー等発電所等 | E48: =IF('補正（ｋW）指定１'!BA48="","",IF($E$2="作成不要","",'補正（ｋW）指定１'!BA48)) ->  | F48: =IF('補正（ｋW）指定１'!BB48="","",IF($E$2="作成不要","",'補正（ｋW）指定１'!BB48)) ->  | J48: =IF('補正（ｋW）指定１'!BF48="","",IF($E$2="作成不要","",'補正（ｋW）指定１'!BF48)) ->  | O48: =IF('補正（ｋW）指定１'!BK48="","",IF($E$2="作成不要","",'補正（ｋW）指定１'!BK48)) -> 
D49: 風力 | E49: =IF('補正（ｋW）指定１'!BA49="","",IF($E$2="作成不要","",'補正（ｋW）指定１'!BA49)) ->  | F49: =IF('補正（ｋW）指定１'!BB49="","",IF($E$2="作成不要","",'補正（ｋW）指定１'!BB49)) ->  | J49: =IF('補正（ｋW）指定１'!BF49="","",IF($E$2="作成不要","",'補正（ｋW）指定１'!BF49)) ->  | O49: =IF('補正（ｋW）指定１'!BK49="","",IF($E$2="作成不要","",'補正（ｋW）指定１'!BK49)) -> 
D50: 太陽光 | E50: =IF('補正（ｋW）指定１'!BA50="","",IF($E$2="作成不要","",'補正（ｋW）指定１'!BA50)) ->  | F50: =IF('補正（ｋW）指定１'!BB50="","",IF($E$2="作成不要","",'補正（ｋW）指定１'!BB50)) ->  | J50: =IF('補正（ｋW）指定１'!BF50="","",IF($E$2="作成不要","",'補正（ｋW）指定１'!BF50)) ->  | O50: =IF('補正（ｋW）指定１'!BK50="","",IF($E$2="作成不要","",'補正（ｋW）指定１'!BK50)) -> 
D51: 地熱 | E51: =IF('補正（ｋW）指定１'!BA51="","",IF($E$2="作成不要","",'補正（ｋW）指定１'!BA51)) ->  | F51: =IF('補正（ｋW）指定１'!BB51="","",IF($E$2="作成不要","",'補正（ｋW）指定１'!BB51)) ->  | J51: =IF('補正（ｋW）指定１'!BF51="","",IF($E$2="作成不要","",'補正（ｋW）指定１'!BF51)) ->  | O51: =IF('補正（ｋW）指定１'!BK51="","",IF($E$2="作成不要","",'補正（ｋW）指定１'!BK51)) -> 
D52: バイオマス | E52: =IF('補正（ｋW）指定１'!BA52="","",IF($E$2="作成不要","",'補正（ｋW）指定１'!BA52)) ->  | F52: =IF('補正（ｋW）指定１'!BB52="","",IF($E$2="作成不要","",'補正（ｋW）指定１'!BB52)) ->  | J52: =IF('補正（ｋW）指定１'!BF52="","",IF($E$2="作成不要","",'補正（ｋW）指定１'!BF52)) ->  | O52: =IF('補正（ｋW）指定１'!BK52="","",IF($E$2="作成不要","",'補正（ｋW）指定１'!BK52)) -> 
D53: 廃棄物 | E53: =IF('補正（ｋW）指定１'!BA53="","",IF($E$2="作成不要","",'補正（ｋW）指定１'!BA53)) ->  | F53: =IF('補正（ｋW）指定１'!BB53="","",IF($E$2="作成不要","",'補正（ｋW）指定１'!BB53)) ->  | J53: =IF('補正（ｋW）指定１'!BF53="","",IF($E$2="作成不要","",'補正（ｋW）指定１'!BF53)) ->  | O53: =IF('補正（ｋW）指定１'!BK53="","",IF($E$2="作成不要","",'補正（ｋW）指定１'!BK53)) -> 
D54: 蓄電池 | E54: =IF('補正（ｋW）指定１'!BA54="","",IF($E$2="作成不要","",'補正（ｋW）指定１'!BA54)) ->  | F54: =IF('補正（ｋW）指定１'!BB54="","",IF($E$2="作成不要","",'補正（ｋW）指定１'!BB54)) ->  | J54: =IF('補正（ｋW）指定１'!BF54="","",IF($E$2="作成不要","",'補正（ｋW）指定１'!BF54)) ->  | O54: =IF('補正（ｋW）指定１'!BK54="","",IF($E$2="作成不要","",'補正（ｋW）指定１'!BK54)) -> 
D55: 水素 | E55: =IF('補正（ｋW）指定１'!BA55="","",IF($E$2="作成不要","",'補正（ｋW）指定１'!BA55)) ->  | F55: =IF('補正（ｋW）指定１'!BB55="","",IF($E$2="作成不要","",'補正（ｋW）指定１'!BB55)) ->  | J55: =IF('補正（ｋW）指定１'!BF55="","",IF($E$2="作成不要","",'補正（ｋW）指定１'!BF55)) ->  | O55: =IF('補正（ｋW）指定１'!BK55="","",IF($E$2="作成不要","",'補正（ｋW）指定１'!BK55)) -> 
D56: アンモニア | E56: =IF('補正（ｋW）指定１'!BA56="","",IF($E$2="作成不要","",'補正（ｋW）指定１'!BA56)) ->  | F56: =IF('補正（ｋW）指定１'!BB56="","",IF($E$2="作成不要","",'補正（ｋW）指定１'!BB56)) ->  | J56: =IF('補正（ｋW）指定１'!BF56="","",IF($E$2="作成不要","",'補正（ｋW）指定１'!BF56)) ->  | O56: =IF('補正（ｋW）指定１'!BK56="","",IF($E$2="作成不要","",'補正（ｋW）指定１'!BK56)) -> 
B57: その他 | E57: =IF('補正（ｋW）指定１'!BA57="","",IF($E$2="作成不要","",'補正（ｋW）指定１'!BA57)) ->  | F57: =IF('補正（ｋW）指定１'!BB57="","",IF($E$2="作成不要","",'補正（ｋW）指定１'!BB57)) ->  | J57: =IF('補正（ｋW）指定１'!BF57="","",IF($E$2="作成不要","",'補正（ｋW）指定１'!BF57)) ->  | O57: =IF('補正（ｋW）指定１'!BK57="","",IF($E$2="作成不要","",'補正（ｋW）指定１'!BK57)) -> 
B58: 合計 | E58: =IF('補正（ｋW）指定１'!BA58="","",IF($E$2="作成不要","",'補正（ｋW）指定１'!BA58)) ->  | F58: =IF('補正（ｋW）指定１'!BB58="","",IF($E$2="作成不要","",'補正（ｋW）指定１'!BB58)) ->  | J58: =IF('補正（ｋW）指定１'!BF58="","",IF($E$2="作成不要","",'補正（ｋW）指定１'!BF58)) ->  | O58: =IF('補正（ｋW）指定１'!BK58="","",IF($E$2="作成不要","",'補正（ｋW）指定１'!BK58)) -> 
E60: 記載要領 | F60: 【目的】各エリアの供給電力は、小売電気事業者及び一般送配電事業者が各エリア向けに確保した供給電力と、発電事業者、特定卸供給事業者の発電余力を足し合わせたものとする
F61: 一般送配電事業者の確保済み供給電力に、エリア内の小売電気事業者の確保済み供給電力、発電・特定卸供給事業者の余力を合計し、加えて必要な補正等を行い、エリア供給電力を算定するため、以下入力を行う。
F62: 指定１断面は全エリアの供給電力が必要となるため、指定２は供給電力の積み上げ方が異なる。そのため、補正等の内容も異なる。
F63: ・小売電気事業者の保有電源＋調達欄は、エリア内の小売電気事業者の32-1表（指定2）の保有電源-合計（送電端）欄の合計値と、整合性一覧より小売電気事業者の取引分（送受電分）の合計値を入力する。
F64: 発電事業者、特定卸供給事業者の余力欄は、発電事業者、特定卸供給事業者の32-1表（指定2）の調達先未定欄（取引所、その他欄）の合計値を入力する。
F65: ・常時BU欄は、小売送電分（発電の場合もある）はプラス、小売受電分をマイナスで入力する（送配電からみると小売送電分は供給電力からマイナスされており、小売送電分が受電分を上回ることで供給電力が増加したこととなるため）。
F66: ・ダブルカウント（突合せ確認）欄は、突合せ確認漏れ等の修正として使用すること（非電気事業者取引の重複等）。
F67: ・補修調整欄は、各事業者の供給計画提出以降、補修調整を実施し、供給電力の増減がある場合に使用すること。
F68: ・離島補正欄は、離島分の供給電力（一般送配電事業者買取の再エネ分も含む）から離島需要を除いた、離島分の余力合計をマイナス値で入力すること。
F69: ・その他補正欄は、供給計画内容の誤り（誤記等）の修正として使用すること。
F70: ・広域機関補正欄は、広域機関から提供する値を入力する。
A72: エリア供給電力算定 | O72: 【ＭＷ】
A73: =A5 -> 項目 | E73: =E5 -> 2025-01-01 | F73: 2026-01-01 | G73: 2027-01-02 | H73: 2028-01-03 | I73: 2029-01-03 | J73: 2030-01-04 | K73: 2031-01-05 | L73: 2032-01-06 | M73: 2033-01-06 | N73: 2034-01-07 | O73: 2035-01-08
E74: 実績
A75: 発電事業者 | D75: 余力
A76: 小売電気事業者 | D76: 保有電源＋調達分
A77: 特定卸供給事業者 | D77: 余力
A78: 補正 | B78: 常時ＢＵ | D78: 小売送電分
D79: 小売受電分
D80: 差 | H80: =IF(COUNT(H78:H79)=0,"",SUM(H78)-SUM(H79)) ->  | I80: =IF(COUNT(I78:I79)=0,"",SUM(I78)-SUM(I79)) -> 
B81: ダブルカウント（突合せ確認）分 （内訳： ）
B82: 補修調整分
B83: 離島補正
B84: その他補正 （補正内容： ）
B85: 広域機関補正
B86: 合計 | E86: =IF((COUNT(E75:E77)+COUNT(E80:E85))=0,"",SUM(E75:E77,E80:E85)) ->  | H86: =IF((COUNT(H75:H77)+COUNT(H80:H85))=0,"",SUM(H75:H77,H80:H85)) -> 

Sheet 補正（ｋWｈ）
A2: 供給区域 | C2: =IF('補正（ｋW）指定１'!$C$2="","",'補正（ｋW）指定１'!$C$2) ->  | D2: エリア | E2: =IF(C2="北海道",1,IF(C2="東北",2,IF(C2="東京",3,IF(C2="中部",4,IF(C2="北陸",5,IF(C2="関西",6,IF(C2="中国",7,IF(C2="四国",8,IF(C2="九州",9,IF(C2="沖縄",10,IF(C2="","","正しいエリア名を入力してください"))))))))))) -> 
F3: 入力箇所 | I3: リンク箇所 | L3: 自動計算
A5: 補正前供給力 | AC5: 【GWh】
A6: 項目 | E6: ='補正（ｋW）指定１'!E5 -> 2026-01-01 | S6: ='補正（ｋW）指定１'!BA5 -> 2025-01-01 | T6: =E6 -> 2026-01-01 | U6: ='補正（ｋW）指定１'!BC5 -> 2027-01-02 | V6: ='補正（ｋW）指定１'!BD5 -> 2028-01-03 | W6: ='補正（ｋW）指定１'!BE5 -> 2029-01-03 | X6: ='補正（ｋW）指定１'!BF5 -> 2030-01-04 | Y6: ='補正（ｋW）指定１'!BG5 -> 2031-01-05 | Z6: ='補正（ｋW）指定１'!BH5 -> 2032-01-06 | AA6: ='補正（ｋW）指定１'!BI5 -> 2033-01-06 | AB6: ='補正（ｋW）指定１'!BJ5 -> 2034-01-07 | AC6: ='補正（ｋW）指定１'!BK5 -> 2035-01-08
E7: 4月 | F7: 5月 | G7: 6月 | H7: 7月 | I7: 8月 | J7: 9月 | K7: 上期 | L7: 10月 | M7: 11月 | N7: 12月 | O7: 1月 | P7: 2月 | Q7: 3月 | R7: 下期 | S7: 実績
A8: 供給電力量 | B8: 保有 電力 | C8: 水力発電所（送電端） | K8: =IF(COUNT(E8:J8)=0,"",SUM(E8:J8)) ->  | R8: =IF(COUNT(L8:Q8)=0,"",SUM(L8:Q8)) ->  | T8: =IF(COUNT(E8:R8,"")=0,"",SUM(E8:J8,L8:Q8)) -> 
C9: 火力発電所（送電端） | K9: =IF(COUNT(E9:J9)=0,"",SUM(E9:J9)) ->  | R9: =IF(COUNT(L9:Q9)=0,"",SUM(L9:Q9)) ->  | T9: =IF(COUNT(E9:R9,"")=0,"",SUM(E9:J9,L9:Q9)) -> 
C10: 原子力発電所（送電端） | K10: =IF(COUNT(E10:J10)=0,"",SUM(E10:J10)) ->  | R10: =IF(COUNT(L10:Q10)=0,"",SUM(L10:Q10)) ->  | T10: =IF(COUNT(E10:R10,"")=0,"",SUM(E10:J10,L10:Q10)) -> 
C11: 新エネルギー等発電所等（送電端） | K11: =IF(COUNT(E11:J11)=0,"",SUM(E11:J11)) ->  | R11: =IF(COUNT(L11:Q11)=0,"",SUM(L11:Q11)) ->  | T11: =IF(COUNT(E11:R11,"")=0,"",SUM(E11:J11,L11:Q11)) -> 
C12: 合計（送電端） | E12: =IF(COUNT(E8:E11)=0,"",SUM(E8:E11)) -> 
B13: 調達分 | C13: 発電事業者 | K13: =IF(COUNT(E13:J13)=0,"",SUM(E13:J13)) ->  | R13: =IF(COUNT(L13:Q13)=0,"",SUM(L13:Q13)) ->  | T13: =IF(COUNT(E13:R13,"")=0,"",SUM(E13:J13,L13:Q13)) -> 
C14: 特定卸供給事業者 | R14: =IF(COUNT(L14:Q14)=0,"",SUM(L14:Q14)) -> 
C15: 一般送配電事業者 | R15: =IF(COUNT(L15:Q15)=0,"",SUM(L15:Q15)) -> 
C16: 配電事業者
C17: 小売電気事業者
C18: その他 | D18: 取引所
D19: その他
B20: 調達先未定 | K20: =IF(COUNT(E20:J20)=0,"",SUM(E20:J20)) -> 
B21: （上段：取引所、下段：その他） | K21: =IF(COUNT(E21:J21)=0,"",SUM(E21:J21)) -> 
B22: 揚水式発電所の揚水用動力 | K22: =IF(COUNT(E22:J22)=0,"",SUM(E22:J22)) -> 
B23: 蓄電用の電気工作物の蓄電電力量 | K23: =IF(COUNT(E23:J23)=0,"",SUM(E23:J23)) ->  | R23: =IF(COUNT(L23:Q23)=0,"",SUM(L23:Q23)) ->  | T23: =IF(COUNT(E23:R23,"")=0,"",SUM(E23:J23,L23:Q23)) -> 
B24: 【送配電】合計（送電端） | E24: =IF(COUNT(E12:E23)=0,"",SUM(E12:E23)) ->  | F24: =IF(COUNT(F12:F23)=0,"",SUM(F12:F23)) -> 
B25: 【ｴﾘｱ】合計（送電端） | K25: =IF(COUNT(E25:J25)=0,"",SUM(E25:J25)) ->  | R25: =IF(COUNT(L25:Q25)=0,"",SUM(L25:Q25)) ->  | T25: =IF(COUNT(E25:R25,"")=0,"",SUM(E25:J25,L25:Q25)) -> 
A26: 需要電力量（送電端） | D26: エリア全体 | K26: =IF(COUNT(E26:J26)=0,"",SUM(E26:J26)) ->  | R26: =IF(COUNT(L26:Q26)=0,"",SUM(L26:Q26)) ->  | T26: =IF($E$2="","",IF(COUNT(CHOOSE($E$2,'様式第33表（指定１）'!H13,'様式第33表（指定１）'!H43,'様式第33表（指定１）'!H73,'様式第33表（指定１）'!H103,'様式第33表（指定１）'!H133,'様式第33表（指定１）'!H163,'様式第33表（指定１）'!H193,'様式第33表（指定１）'!H223,'様式第33表（指定１）'!H253,'様式第33表（指定１）'!H283))=0,"",CHOOSE($E$2,'様式第33表（指定１）'!H13,'様式第33表（指定１）'!H43,'様式第33表（指定１）'!H73,'様式第33表（指定１）'!H103,'様式第33表（指定１）'!H133,'様式第33表（指定１）'!H163,'様式第33表（指定１）'!H193,'様式第33表（指定１）'!H223,'様式第33表（指定１）'!H253,'様式第33表（指定１）'!H283))) ->  | U26: =IF($E$2="","",IF(COUNT(CHOOSE($E$2,'様式第33表（指定１）'!I13,'様式第33表（指定１）'!I43,'様式第33表（指定１）'!I73,'様式第33表（指定１）'!I103,'様式第33表（指定１）'!I133,'様式第33表（指定１）'!I163,'様式第33表（指定１）'!I193,'様式第33表（指定１）'!I223,'様式第33表（指定１）'!I253,'様式第33表（指定１）'!I283))=0,"",CHOOSE($E$2,'様式第33表（指定１）'!I13,'様式第33表（指定１）'!I43,'様式第33表（指定１）'!I73,'様式第33表（指定１）'!I103,'様式第33表（指定１）'!I133,'様式第33表（指定１）'!I163,'様式第33表（指定１）'!I193,'様式第33表（指定１）'!I223,'様式第33表（指定１）'!I253,'様式第33表（指定１）'!I283))) ->  | V26: =IF($E$2="","",IF(COUNT(CHOOSE($E$2,'様式第33表（指定１）'!J13,'様式第33表（指定１）'!J43,'様式第33表（指定１）'!J73,'様式第33表（指定１）'!J103,'様式第33表（指定１）'!J133,'様式第33表（指定１）'!J163,'様式第33表（指定１）'!J193,'様式第33表（指定１）'!J223,'様式第33表（指定１）'!J253,'様式第33表（指定１）'!J283))=0,"",CHOOSE($E$2,'様式第33表（指定１）'!J13,'様式第33表（指定１）'!J43,'様式第33表（指定１）'!J73,'様式第33表（指定１）'!J103,'様式第33表（指定１）'!J133,'様式第33表（指定１）'!J163,'様式第33表（指定１）'!J193,'様式第33表（指定１）'!J223,'様式第33表（指定１）'!J253,'様式第33表（指定１）'!J283))) ->  | W26: =IF($E$2="","",IF(COUNT(CHOOSE($E$2,'様式第33表（指定１）'!K13,'様式第33表（指定１）'!K43,'様式第33表（指定１）'!K73,'様式第33表（指定１）'!K103,'様式第33表（指定１）'!K133,'様式第33表（指定１）'!K163,'様式第33表（指定１）'!K193,'様式第33表（指定１）'!K223,'様式第33表（指定１）'!K253,'様式第33表（指定１）'!K283))=0,"",CHOOSE($E$2,'様式第33表（指定１）'!K13,'様式第33表（指定１）'!K43,'様式第33表（指定１）'!K73,'様式第33表（指定１）'!K103,'様式第33表（指定１）'!K133,'様式第33表（指定１）'!K163,'様式第33表（指定１）'!K193,'様式第33表（指定１）'!K223,'様式第33表（指定１）'!K253,'様式第33表（指定１）'!K283))) ->  | X26: =IF($E$2="","",IF(COUNT(CHOOSE($E$2,'様式第33表（指定１）'!L13,'様式第33表（指定１）'!L43,'様式第33表（指定１）'!L73,'様式第33表（指定１）'!L103,'様式第33表（指定１）'!L133,'様式第33表（指定１）'!L163,'様式第33表（指定１）'!L193,'様式第33表（指定１）'!L223,'様式第33表（指定１）'!L253,'様式第33表（指定１）'!L283))=0,"",CHOOSE($E$2,'様式第33表（指定１）'!L13,'様式第33表（指定１）'!L43,'様式第33表（指定１）'!L73,'様式第33表（指定１）'!L103,'様式第33表（指定１）'!L133,'様式第33表（指定１）'!L163,'様式第33表（指定１）'!L193,'様式第33表（指定１）'!L223,'様式第33表（指定１）'!L253,'様式第33表（指定１）'!L283))) ->  | Y26: =IF($E$2="","",IF(COUNT(CHOOSE($E$2,'様式第33表（指定１）'!M13,'様式第33表（指定１）'!M43,'様式第33表（指定１）'!M73,'様式第33表（指定１）'!M103,'様式第33表（指定１）'!M133,'様式第33表（指定１）'!M163,'様式第33表（指定１）'!M193,'様式第33表（指定１）'!M223,'様式第33表（指定１）'!M253,'様式第33表（指定１）'!M283))=0,"",CHOOSE($E$2,'様式第33表（指定１）'!M13,'様式第33表（指定１）'!M43,'様式第33表（指定１）'!M73,'様式第33表（指定１）'!M103,'様式第33表（指定１）'!M133,'様式第33表（指定１）'!M163,'様式第33表（指定１）'!M193,'様式第33表（指定１）'!M223,'様式第33表（指定１）'!M253,'様式第33表（指定１）'!M283))) ->  | Z26: =IF($E$2="","",IF(COUNT(CHOOSE($E$2,'様式第33表（指定１）'!N13,'様式第33表（指定１）'!N43,'様式第33表（指定１）'!N73,'様式第33表（指定１）'!N103,'様式第33表（指定１）'!N133,'様式第33表（指定１）'!N163,'様式第33表（指定１）'!N193,'様式第33表（指定１）'!N223,'様式第33表（指定１）'!N253,'様式第33表（指定１）'!N283))=0,"",CHOOSE($E$2,'様式第33表（指定１）'!N13,'様式第33表（指定１）'!N43,'様式第33表（指定１）'!N73,'様式第33表（指定１）'!N103,'様式第33表（指定１）'!N133,'様式第33表（指定１）'!N163,'様式第33表（指定１）'!N193,'様式第33表（指定１）'!N223,'様式第33表（指定１）'!N253,'様式第33表（指定１）'!N283))) ->  | AA26: =IF($E$2="","",IF(COUNT(CHOOSE($E$2,'様式第33表（指定１）'!O13,'様式第33表（指定１）'!O43,'様式第33表（指定１）'!O73,'様式第33表（指定１）'!O103,'様式第33表（指定１）'!O133,'様式第33表（指定１）'!O163,'様式第33表（指定１）'!O193,'様式第33表（指定１）'!O223,'様式第33表（指定１）'!O253,'様式第33表（指定１）'!O283))=0,"",CHOOSE($E$2,'様式第33表（指定１）'!O13,'様式第33表（指定１）'!O43,'様式第33表（指定１）'!O73,'様式第33表（指定１）'!O103,'様式第33表（指定１）'!O133,'様式第33表（指定１）'!O163,'様式第33表（指定１）'!O193,'様式第33表（指定１）'!O223,'様式第33表（指定１）'!O253,'様式第33表（指定１）'!O283))) ->  | AB26: =IF($E$2="","",IF(COUNT(CHOOSE($E$2,'様式第33表（指定１）'!P13,'様式第33表（指定１）'!P43,'様式第33表（指定１）'!P73,'様式第33表（指定１）'!P103,'様式第33表（指定１）'!P133,'様式第33表（指定１）'!P163,'様式第33表（指定１）'!P193,'様式第33表（指定１）'!P223,'様式第33表（指定１）'!P253,'様式第33表（指定１）'!P283))=0,"",CHOOSE($E$2,'様式第33表（指定１）'!P13,'様式第33表（指定１）'!P43,'様式第33表（指定１）'!P73,'様式第33表（指定１）'!P103,'様式第33表（指定１）'!P133,'様式第33表（指定１）'!P163,'様式第33表（指定１）'!P193,'様式第33表（指定１）'!P223,'様式第33表（指定１）'!P253,'様式第33表（指定１）'!P283))) ->  | AC26: =IF($E$2="","",IF(COUNT(CHOOSE($E$2,'様式第33表（指定１）'!Q13,'様式第33表（指定１）'!Q43,'様式第33表（指定１）'!Q73,'様式第33表（指定１）'!Q103,'様式第33表（指定１）'!Q133,'様式第33表（指定１）'!Q163,'様式第33表（指定１）'!Q193,'様式第33表（指定１）'!Q223,'様式第33表（指定１）'!Q253,'様式第33表（指定１）'!Q283))=0,"",CHOOSE($E$2,'様式第33表（指定１）'!Q13,'様式第33表（指定１）'!Q43,'様式第33表（指定１）'!Q73,'様式第33表（指定１）'!Q103,'様式第33表（指定１）'!Q133,'様式第33表（指定１）'!Q163,'様式第33表（指定１）'!Q193,'様式第33表（指定１）'!Q223,'様式第33表（指定１）'!Q253,'様式第33表（指定１）'!Q283))) -> 
D27: （内訳）本土分 | E27: =IF(E26="","",E26-E28) ->  | K27: =IF(COUNT(E27:J27)=0,"",SUM(E27:J27)) ->  | L27: =IF(L26="","",L26-L28) ->  | R27: =IF(COUNT(L27:Q27)=0,"",SUM(L27:Q27)) ->  | T27: =IF(T28="","",T26-T28) ->  | U27: =IF(U28="","",U26-U28) -> 
D28: （内訳）離島分 | K28: =IF(COUNT(E28:J28)=0,"",SUM(E28:J28)) ->  | R28: =IF(COUNT(L28:Q28)=0,"",SUM(L28:Q28)) ->  | T28: =IF(COUNT(E28:R28)=0,"",SUM(E28:J28,L28:Q28)) -> 
A29: 送電端電力量 | B29: 水力発電所 | S29: =IF(COUNT(S30:S31)=0,"",SUM(S30:S31)) ->  | T29: =IF(COUNT(T30:T31)=0,"",SUM(T30:T31)) ->  | U29: =IF(U30="",IF(U31="","",SUM(U30:U31)),SUM(U30:U31)) ->  | X29: =IF(COUNT(X30:X31)=0,"",SUM(X30:X31)) ->  | Y29: =IF(Y30="",IF(Y31="","",SUM(Y30:Y31)),SUM(Y30:Y31)) ->  | AC29: =IF(COUNT(AC30:AC31)=0,"",SUM(AC30:AC31)) -> 
D30: 一般
D31: 揚水
B32: 火力発電所 | S32: =IF(COUNT(S33:S39)=0,"",SUM(S33:S39)) ->  | T32: =IF(COUNT(T33:T39)=0,"",SUM(T33:T39)) ->  | X32: =IF(COUNT(X33:X39)=0,"",SUM(X33:X39)) ->  | AC32: =IF(COUNT(AC33:AC39)=0,"",SUM(AC33:AC39)) -> 
D33: 石炭
D34: ＬＮＧ
D35: 石油
D36: ＬＰＧ
D37: その他ガス
D38: 瀝青質混合物
D39: その他火力
B40: 原子力発電所
B41: 新エネルギー等発電所等 | S41: =IF(COUNT(S42:S49)=0,"",SUM(S42:S49)) ->  | T41: =IF(COUNT(T42:T49)=0,"",SUM(T42:T49)) ->  | X41: =IF(COUNT(X42:X49)=0,"",SUM(X42:X49)) ->  | AC41: =IF(COUNT(AC42:AC49)=0,"",SUM(AC42:AC49)) -> 
D42: 風力
D43: 太陽光
D44: 地熱
D45: バイオマス
D46: 廃棄物
D47: 蓄電池
D48: 水素
D49: アンモニア
B50: その他
B51: 合計 | S51: =IF(COUNT(S29,S32,S40,S41,S50)=0,"",SUM(S29,S32,S40,S41,S50)) ->  | T51: =IF(COUNT(T29,T32,T40,T41,T50)=0,"",SUM(T29,T32,T40,T41,T50)) ->  | X51: =IF(COUNT(X29,X32,X40,X41,X50)=0,"",SUM(X29,X32,X40,X41,X50)) ->  | AC51: =IF(COUNT(AC29,AC32,AC40,AC41,AC50)=0,"",SUM(AC29,AC32,AC40,AC41,AC50)) -> 
E54: 記載要領 | F54: 【目的】各エリアの供給電力量は、発電事業者を主とした電気事業者が保有する電源等の供給電力量に非電気事業者と取引する（調達分から販売分を差し引く）供給電力量を足し合わせたものから、揚水動力量、蓄電電力量、および登録特定送配電事業者と取引する供給電力量を除いたものを基礎とする
F55: 一般送配電事業者の保有電源、非電気事業者との取引分の供給電力量から、登録特定送配電事業者と取引する供給電力量を除いたものに、エリア内の各事業者の供給力電力量を合計し、加えて必要な補正等を行い、エリア供給電力量を算定するため、以下入力を行う。
F56: ・各事業者の保有電源欄は、エリア内の各事業者の32-2,32-4表の保有電源-合計（送電端）欄の合計値を入力する。
F57: ・各事業者の非電気調達欄は、整合性一覧ファイルより、各事業者がエリア内の非電気事業者より受電する取引分から、各事業者がエリア内の非電気事業者へ送電する取引分を除いた非電気事業者との取引分（送受電分）の合計値を入力する。
F58: ・各事業者の揚水用動力欄は、エリア内の各事業者の32-2,32-4表の揚水式発電所の揚水用動力欄の合計値を入力する。
F59: ・各事業者の蓄電電力量欄は、エリア内の各事業者の32-2,32-4表の蓄電用の電気工作物の蓄電電力量欄の合計値を入力する。
F60: ・登録特定送配電送受電補正欄は、整合性一覧ファイルの受電シートより、登録特定送配電から発電･小売･特定卸受電分、発電･小売･特定事業者から登録特定送配電が受電する合計値をそれぞれ入力する（前年度値は広域機関からの提供する値を入力する）。
F61: ・ダブルカウント（突合せ確認）欄は、突合せ確認漏れ等の修正として使用すること（非電気事業者取引の重複等）。
F62: ・系統運用電力補正欄は、常時、系統運用電力により、接続エリアの変更を行っている電源等について発電事業者等に供給電力量の計上値を確認し、実際の接続エリアの供給電力となるように入力すること（入力に当たっては、相手エリアの一般送配電事業者と入力値の確認を行うこと）。
F63: なお、発電機単体ではなく、需要も含め系統運用電力の対象となっている場合は、発電と需要の差分入力する。加えて、対象発電所が極めて多数となる場合や、対象が太陽光風力の場合は、事業者への確認を行わず、一般送配電事業者にて系統運用電力の想定をすることも可とする。
F64: 系統運用電力を供給計画で補正する場合は、送受電の整合性に留意する必要があり、記載方法が複雑となる可能性があるため、不明点は広域機関の供給計画担当に問い合わせること。
F65: ・離島補正欄は、離島分の供給電力量（一般送配電事業者買取の再エネ分も含む）から離島需要電力量を除いた、離島の電力量の余力分をマイナス値で入力すること。
F66: ・その他補正欄は、供給計画内容の誤り（誤記等）の修正として使用すること。
F67: ・広域機関補正欄は、広域機関から提供する値を入力する。
A68: エリア供給電力量算定 | AC68: 【GWh】
A69: =A6 -> 項目 | E69: =E6 -> 2026-01-01 | S69: =S6 -> 2025-01-01 | T69: 2026-01-01 | U69: 2027-01-02 | V69: 2028-01-03 | W69: 2029-01-03 | X69: 2030-01-04 | Y69: 2031-01-05 | Z69: 2032-01-06 | AA69: 2033-01-06 | AB69: 2034-01-07 | AC69: 2035-01-08
E70: 4月 | F70: 5月 | G70: 6月 | H70: 7月 | I70: 8月 | J70: 9月 | K70: 上期 | L70: 10月 | M70: 11月 | N70: 12月 | O70: 1月 | P70: 2月 | Q70: 3月 | R70: 下期 | S70: 実績
A71: 発電事業者 | D71: 保有電源 | K71: =IF(COUNT(E71:J71)=0,"",SUM(E71:J71)) ->  | R71: =IF(COUNT(L71:Q71)=0,"",SUM(L71:Q71)) ->  | T71: =IF(COUNT(E71:R71,"")=0,"",SUM(E71:J71,L71:Q71)) -> 
D72: 非電気調達
D73: 揚水用動力量
D74: 蓄電電力量
A75: 小売電気事業者 | D75: 保有電源
D76: 非電気調達
D77: 揚水用動力量
D78: 蓄電電力量
A79: 特定卸供給事業者 | D79: 保有電源
D80: 非電気調達
D81: 揚水用動力量
D82: 蓄電電力量
A83: 補正 | B83: 登録特定送配電 送受電補正 | D83: 発電･小売･特定卸受電分
D84: 登録特定受電分
D85: 差 | E85: =IF(COUNT(E83:E84)=0,"",SUM(E83)-SUM(E84)) ->  | U85: =IF(COUNT(U83:U84)=0,"",SUM(U83)-SUM(U84)) ->  | V85: =IF(COUNT(V83:V84)=0,"",SUM(V83)-SUM(V84)) -> 
B86: ダブルカウント（突合せ確認）分 （内訳： ）
B87: 系統運用電力補正
B88: 離島補正
B89: その他補正 （補正内容： ）
B90: 広域機関補正
B91: 合計 | E91: =IF((COUNT(E71:E82)+COUNT(E85:E90))=0,"",SUM(E71:E82,E85:E90)) ->  | F91: =IF((COUNT(F71:F82)+COUNT(F85:F90))=0,"",SUM(F71:F82,F85:F90)) ->  | L91: =IF((COUNT(L71:L82)+COUNT(L85:L90))=0,"",SUM(L71:L82,L85:L90)) ->  | U91: =IF((COUNT(U71:U82)+COUNT(U85:U90))=0,"",SUM(U71:U82,U85:U90)) ->  | V91: =IF((COUNT(V71:V82)+COUNT(V85:V90))=0,"",SUM(V71:V82,V85:V90)) ->  | W91: =IF((COUNT(W71:W82)+COUNT(W85:W90))=0,"",SUM(W71:W82,W85:W90)) ->  | X91: =IF((COUNT(X71:X82)+COUNT(X85:X90))=0,"",SUM(X71:X82,X85:X90)) ->  | Y91: =IF((COUNT(Y71:Y82)+COUNT(Y85:Y90))=0,"",SUM(Y71:Y82,Y85:Y90)) ->  | Z91: =IF((COUNT(Z71:Z82)+COUNT(Z85:Z90))=0,"",SUM(Z71:Z82,Z85:Z90)) ->  | AA91: =IF((COUNT(AA71:AA82)+COUNT(AA85:AA90))=0,"",SUM(AA71:AA82,AA85:AA90)) ->  | AB91: =IF((COUNT(AB71:AB82)+COUNT(AB85:AB90))=0,"",SUM(AB71:AB82,AB85:AB90)) ->  | AC91: =IF((COUNT(AC71:AC82)+COUNT(AC85:AC90))=0,"",SUM(AC71:AC82,AC85:AC90)) -> 

Sheet 補正（太陽光）指定１ (hidden)
A1: 太陽光補正シート | N1: 記載要領
J2: 入力箇所 | N2: ・エリア想定欄には、エリア全体（発電・小売分を含む）の設備量想定値を記載。尚、マクロ想定を行っていない項目は個別積み上げ値を記載。
A3: 供給区域 | B3: =IF('補正（ｋW）指定１'!$C$2="","",'補正（ｋW）指定１'!$C$2) ->  | C3: エリア | D3: =IF(B3="北海道",1,IF(B3="東北",2,IF(B3="東京",3,IF(B3="中部",4,IF(B3="北陸",5,IF(B3="関西",6,IF(B3="中国",7,IF(B3="四国",8,IF(B3="九州",9,IF(B3="沖縄",10,IF(B3="","","正しいエリア名を入力してください"))))))))))) ->  | J3: リンク箇所 | N3: ・各電気事業者のエリア内保有分欄には、広域機関より提供する値を記載。
J4: 自動計算 | N4: ・各電気事業者のエリア内非電気事業者からの調達分欄には、整合性結果一覧より集約した値を記載。
A6: 受電取引帳票転記フォーマット | E6: 方式選択 | G6: Ⅰ：各月の設備量を反映 Ⅱ：当月と前月を比較し、少ない月の設備量を反映
A7: 項目 | G7: =事業者リスト一覧!$B$3 -> 2026 | AE7: =G7+1 -> 2027 | BC7: 項目 | BD7: =G7 -> 2026 | BE7: =BD7+1 -> 2027 | BF7: =BE7+1 -> 2028 | BG7: =BF7+1 -> 2029 | BH7: 2030 | BI7: 2031 | BJ7: 2032 | BK7: 2033 | BL7: 2034 | BM7: 2035 | BN7: 備考 （上中段：種別、下段：備考）
G8: 4 | I8: 5 | K8: 6 | M8: 7 | O8: 8 | Q8: 9 | S8: 10 | U8: 11 | W8: 12 | Y8: 1 | AA8: 2 | AC8: 3 | AE8: 4 | AG8: 5 | AI8: 6 | AK8: 7 | AM8: 8 | AO8: 9 | AQ8: 10 | AS8: 11 | AU8: 12 | AW8: 1 | AY8: 2 | BA8: 3
G9: (前半) | H9: (後半) | I9: (前半) | J9: (後半) | K9: (前半) | L9: (後半) | M9: (前半) | N9: (後半) | O9: (前半) | P9: (後半) | Q9: (前半) | R9: (後半) | S9: (前半) | T9: (後半) | U9: (前半) | V9: (後半) | W9: (前半) | X9: (後半) | Y9: (前半) | Z9: (後半) | AA9: (前半) | AB9: (後半) | AC9: (前半) | AD9: (後半) | AE9: (前半) | AF9: (後半) | AG9: (前半) | AH9: (後半) | AI9: (前半) | AJ9: (後半) | AK9: (前半) | AL9: (後半) | AM9: (前半) | AN9: (後半) | AO9: (前半) | AP9: (後半) | AQ9: (前半) | AR9: (後半) | AS9: (前半) | AT9: (後半) | AU9: (前半) | AV9: (後半) | AW9: (前半) | AX9: (後半) | AY9: (前半) | AZ9: (後半) | BA9: (前半) | BB9: (後半)
A10: 全量 | B10: 調達電力（MW） | G10: =IF(G51="","",ROUNDDOWN(G51,1)) ->  | H10: =IF(H51="","",ROUNDDOWN(H51,1)) ->  | AE10: =IF(AE51="","",ROUNDDOWN(AE51,1)) ->  | BC10: 8月電力 | BD10: =IF(BD51="","",ROUNDDOWN(BD51,1)) ->  | BE10: =IF(BE51="","",ROUNDDOWN(BE51,1)) ->  | BF10: =IF(BF51="","",ROUNDDOWN(BF51,1)) ->  | BN10: 太陽光（全量）
BC11: 1月電力 | BD11: =IF(OR($D$3=1,$D$3=2,$D$3=5),'補正（太陽光）指定２'!G11,"") ->  | BE11: =IF(OR($D$3=1,$D$3=2,$D$3=5),'補正（太陽光）指定２'!H11,"") ->  | BF11: =IF(OR($D$3=1,$D$3=2,$D$3=5),'補正（太陽光）指定２'!I11,"") ->  | BG11: =IF(OR($D$3=1,$D$3=2,$D$3=5),'補正（太陽光）指定２'!J11,"") ->  | BH11: =IF(OR($D$3=1,$D$3=2,$D$3=5),'補正（太陽光）指定２'!K11,"") ->  | BI11: =IF(OR($D$3=1,$D$3=2,$D$3=5),'補正（太陽光）指定２'!L11,"") ->  | BJ11: =IF(OR($D$3=1,$D$3=2,$D$3=5),'補正（太陽光）指定２'!M11,"") ->  | BK11: =IF(OR($D$3=1,$D$3=2,$D$3=5),'補正（太陽光）指定２'!N11,"") ->  | BL11: =IF(OR($D$3=1,$D$3=2,$D$3=5),'補正（太陽光）指定２'!O11,"") ->  | BM11: =IF(OR($D$3=1,$D$3=2,$D$3=5),'補正（太陽光）指定２'!P11,"") ->  | BN11: 太陽光（全量）
B12: 月間調達電力量（GWh） | G12: =IF(G63="","",ROUNDDOWN(G63,1)) ->  | I12: =IF(I63="","",ROUNDDOWN(I63,1)) ->  | K12: =IF(K63="","",ROUNDDOWN(K63,1)) ->  | M12: =IF(M63="","",ROUNDDOWN(M63,1)) ->  | O12: =IF(O63="","",ROUNDDOWN(O63,1)) ->  | Q12: =IF(Q63="","",ROUNDDOWN(Q63,1)) ->  | S12: =IF(S63="","",ROUNDDOWN(S63,1)) ->  | U12: =IF(U63="","",ROUNDDOWN(U63,1)) ->  | W12: =IF(W63="","",ROUNDDOWN(W63,1)) ->  | Y12: =IF(Y63="","",ROUNDDOWN(Y63,1)) ->  | AA12: =IF(AA63="","",ROUNDDOWN(AA63,1)) ->  | AC12: =IF(AC63="","",ROUNDDOWN(AC63,1)) ->  | BC12: 年間電力量 | BD12: =IF(BD63="","",ROUNDDOWN(BD63,1)) ->  | BE12: =IF(BE63="","",ROUNDDOWN(BE63,1)) -> 
A14: 項目 | G14: =G7 -> 2026 | AE14: =AE7 -> 2027 | BC14: 項目 | BD14: =BD7 -> 2026 | BE14: =BE7 -> 2027 | BF14: =BF7 -> 2028 | BG14: =BG7 -> 2029 | BH14: 2030 | BI14: 2031 | BJ14: 2032 | BK14: 2033 | BL14: 2034 | BM14: 2035 | BN14: 備考 （上中段：種別、下段：備考）
G15: 4 | I15: 5 | K15: 6 | M15: 7 | O15: 8 | Q15: 9 | S15: 10 | U15: 11 | W15: 12 | Y15: 1 | AA15: 2 | AC15: 3 | AE15: 4 | AG15: 5 | AI15: 6 | AK15: 7 | AM15: 8 | AO15: 9 | AQ15: 10 | AS15: 11 | AU15: 12 | AW15: 1 | AY15: 2 | BA15: 3
G16: (前半) | H16: (後半) | I16: (前半) | J16: (後半) | K16: (前半) | L16: (後半) | M16: (前半) | N16: (後半) | O16: (前半) | P16: (後半) | Q16: (前半) | R16: (後半) | S16: (前半) | T16: (後半) | U16: (前半) | V16: (後半) | W16: (前半) | X16: (後半) | Y16: (前半) | Z16: (後半) | AA16: (前半) | AB16: (後半) | AC16: (前半) | AD16: (後半) | AE16: (前半) | AF16: (後半) | AG16: (前半) | AH16: (後半) | AI16: (前半) | AJ16: (後半) | AK16: (前半) | AL16: (後半) | AM16: (前半) | AN16: (後半) | AO16: (前半) | AP16: (後半) | AQ16: (前半) | AR16: (後半) | AS16: (前半) | AT16: (後半) | AU16: (前半) | AV16: (後半) | AW16: (前半) | AX16: (後半) | AY16: (前半) | AZ16: (後半) | BA16: (前半) | BB16: (後半)
A17: 余剰 | B17: 調達電力（MW） | G17: =IF(G52="","",ROUNDDOWN(G52,1)) ->  | BC17: 8月電力 | BD17: =IF(BD52="","",ROUNDDOWN(BD52,1)) ->  | BE17: =IF(BE52="","",ROUNDDOWN(BE52,1)) ->  | BF17: =IF(BF52="","",ROUNDDOWN(BF52,1)) ->  | BN17: 太陽光（余剰）
BC18: 1月電力 | BD18: =IF(OR($D$3=1,$D$3=2,$D$3=5),'補正（太陽光）指定２'!G18,"") ->  | BE18: =IF(OR($D$3=1,$D$3=2,$D$3=5),'補正（太陽光）指定２'!H18,"") ->  | BF18: =IF(OR($D$3=1,$D$3=2,$D$3=5),'補正（太陽光）指定２'!I18,"") ->  | BG18: =IF(OR($D$3=1,$D$3=2,$D$3=5),'補正（太陽光）指定２'!J18,"") ->  | BH18: =IF(OR($D$3=1,$D$3=2,$D$3=5),'補正（太陽光）指定２'!K18,"") ->  | BI18: =IF(OR($D$3=1,$D$3=2,$D$3=5),'補正（太陽光）指定２'!L18,"") ->  | BJ18: =IF(OR($D$3=1,$D$3=2,$D$3=5),'補正（太陽光）指定２'!M18,"") ->  | BK18: =IF(OR($D$3=1,$D$3=2,$D$3=5),'補正（太陽光）指定２'!N18,"") ->  | BL18: =IF(OR($D$3=1,$D$3=2,$D$3=5),'補正（太陽光）指定２'!O18,"") ->  | BM18: =IF(OR($D$3=1,$D$3=2,$D$3=5),'補正（太陽光）指定２'!P18,"") ->  | BN18: 太陽光（余剰）
B19: 月間調達電力量（GWh） | G19: =IF(G64="","",ROUNDDOWN(G64,1)) ->  | I19: =IF(I64="","",ROUNDDOWN(I64,1)) ->  | K19: =IF(K64="","",ROUNDDOWN(K64,1)) ->  | M19: =IF(M64="","",ROUNDDOWN(M64,1)) ->  | O19: =IF(O64="","",ROUNDDOWN(O64,1)) ->  | Q19: =IF(Q64="","",ROUNDDOWN(Q64,1)) ->  | S19: =IF(S64="","",ROUNDDOWN(S64,1)) ->  | U19: =IF(U64="","",ROUNDDOWN(U64,1)) ->  | W19: =IF(W64="","",ROUNDDOWN(W64,1)) ->  | Y19: =IF(Y64="","",ROUNDDOWN(Y64,1)) ->  | AA19: =IF(AA64="","",ROUNDDOWN(AA64,1)) ->  | AC19: =IF(AC64="","",ROUNDDOWN(AC64,1)) ->  | BC19: 年間電力量 | BD19: =IF(BD64="","",ROUNDDOWN(BD64,1)) ->  | BE19: =IF(BE64="","",ROUNDDOWN(BE64,1)) -> 
A23: 太陽光（指定１） | BM23: 【ＭＷ、ＧＷｈ】
A24: 項目 | G24: =G14 -> 2026 | AE24: =AE14 -> 2027 | BD24: =BD14 -> 2026 | BE24: =BE14 -> 2027 | BF24: =BF14 -> 2028 | BG24: =BG14 -> 2029 | BH24: 2030 | BI24: 2031 | BJ24: 2032 | BK24: 2033 | BL24: 2034 | BM24: 2035
G25: 4 | I25: 5 | K25: 6 | M25: 7 | O25: 8 | Q25: 9 | S25: 10 | U25: 11 | W25: 12 | Y25: 1 | AA25: 2 | AC25: 3 | AE25: 4 | AG25: 5 | AI25: 6 | AK25: 7 | AM25: 8 | AO25: 9 | AQ25: 10 | AS25: 11 | AU25: 12 | AW25: 1 | AY25: 2 | BA25: 3
G26: (前半) | H26: (後半) | I26: (前半) | J26: (後半) | K26: (前半) | L26: (後半) | M26: (前半) | N26: (後半) | O26: (前半) | P26: (後半) | Q26: (前半) | R26: (後半) | S26: (前半) | T26: (後半) | U26: (前半) | V26: (後半) | W26: (前半) | X26: (後半) | Y26: (前半) | Z26: (後半) | AA26: (前半) | AB26: (後半) | AC26: (前半) | AD26: (後半) | AE26: (前半) | AF26: (後半) | AG26: (前半) | AH26: (後半) | AI26: (前半) | AJ26: (後半) | AK26: (前半) | AL26: (後半) | AM26: (前半) | AN26: (後半) | AO26: (前半) | AP26: (後半) | AQ26: (前半) | AR26: (後半) | AS26: (前半) | AT26: (後半) | AU26: (前半) | AV26: (後半) | AW26: (前半) | AX26: (後半) | AY26: (前半) | AZ26: (後半) | BA26: (前半) | BB26: (後半)
A27: 調整係数出力比率 | E27: 全量 | G27: =IF($D$3="","",OFFSET(調整係数!$B$12,0,($D$3-1)*15+IF(G25>3,G25-3,G25+9))) ->  | H27: =G27 ->  | I27: =IF($D$3="","",OFFSET(調整係数!$B$12,0,($D$3-1)*15+IF(I25>3,I25-3,I25+9))) ->  | J27: =I27 ->  | K27: =IF($D$3="","",OFFSET(調整係数!$B$12,0,($D$3-1)*15+IF(K25>3,K25-3,K25+9))) ->  | L27: =K27 ->  | M27: =IF($D$3="","",OFFSET(調整係数!$B$12,0,($D$3-1)*15+IF(M25>3,M25-3,M25+9))) ->  | N27: =M27 ->  | O27: =IF($D$3="","",OFFSET(調整係数!$B$12,0,($D$3-1)*15+IF(O25>3,O25-3,O25+9))) ->  | P27: =O27 ->  | Q27: =IF($D$3="","",OFFSET(調整係数!$B$12,0,($D$3-1)*15+IF(Q25>3,Q25-3,Q25+9))) ->  | R27: =Q27 ->  | S27: =IF($D$3="","",OFFSET(調整係数!$B$12,0,($D$3-1)*15+IF(S25>3,S25-3,S25+9))) ->  | T27: =S27 ->  | U27: =IF($D$3="","",OFFSET(調整係数!$B$12,0,($D$3-1)*15+IF(U25>3,U25-3,U25+9))) ->  | V27: =U27 ->  | W27: =IF($D$3="","",OFFSET(調整係数!$B$12,0,($D$3-1)*15+IF(W25>3,W25-3,W25+9))) ->  | X27: =W27 ->  | Y27: =IF($D$3="","",OFFSET(調整係数!$B$12,0,($D$3-1)*15+IF(Y25>3,Y25-3,Y25+9))) ->  | Z27: =Y27 ->  | AA27: =IF($D$3="","",OFFSET(調整係数!$B$12,0,($D$3-1)*15+IF(AA25>3,AA25-3,AA25+9))) ->  | AB27: =AA27 ->  | AC27: =IF($D$3="","",OFFSET(調整係数!$B$12,0,($D$3-1)*15+IF(AC25>3,AC25-3,AC25+9))) ->  | AD27: =AC27 ->  | AE27: =IF($D$3="","",OFFSET(調整係数!$B$12,1,($D$3-1)*15+IF(AE25>3,AE25-3,AE25+9))) ->  | AF27: =AE27 ->  | AG27: =IF($D$3="","",OFFSET(調整係数!$B$12,1,($D$3-1)*15+IF(AG25>3,AG25-3,AG25+9))) ->  | AH27: =AG27 ->  | AI27: =IF($D$3="","",OFFSET(調整係数!$B$12,1,($D$3-1)*15+IF(AI25>3,AI25-3,AI25+9))) ->  | AJ27: =AI27 ->  | AK27: =IF($D$3="","",OFFSET(調整係数!$B$12,1,($D$3-1)*15+IF(AK25>3,AK25-3,AK25+9))) ->  | AL27: =AK27 ->  | AM27: =IF($D$3="","",OFFSET(調整係数!$B$12,1,($D$3-1)*15+IF(AM25>3,AM25-3,AM25+9))) ->  | AN27: =AM27 ->  | AO27: =IF($D$3="","",OFFSET(調整係数!$B$12,1,($D$3-1)*15+IF(AO25>3,AO25-3,AO25+9))) ->  | AP27: =AO27 ->  | AQ27: =IF($D$3="","",OFFSET(調整係数!$B$12,1,($D$3-1)*15+IF(AQ25>3,AQ25-3,AQ25+9))) ->  | AR27: =AQ27 ->  | AS27: =IF($D$3="","",OFFSET(調整係数!$B$12,1,($D$3-1)*15+IF(AS25>3,AS25-3,AS25+9))) ->  | AT27: =AS27 ->  | AU27: =IF($D$3="","",OFFSET(調整係数!$B$12,1,($D$3-1)*15+IF(AU25>3,AU25-3,AU25+9))) ->  | AV27: =AU27 ->  | AW27: =IF($D$3="","",OFFSET(調整係数!$B$12,1,($D$3-1)*15+IF(AW25>3,AW25-3,AW25+9))) ->  | AX27: =AW27 ->  | AY27: =IF($D$3="","",OFFSET(調整係数!$B$12,1,($D$3-1)*15+IF(AY25>3,AY25-3,AY25+9))) ->  | AZ27: =AY27 ->  | BA27: =IF($D$3="","",OFFSET(調整係数!$B$12,1,($D$3-1)*15+IF(BA25>3,BA25-3,BA25+9))) ->  | BB27: =BA27 ->  | BF27: =IF($D$3="","",OFFSET(調整係数!$B$12,BF$24-$BD$24,($D$3-1)*15+5)) ->  | BG27: =IF($D$3="","",OFFSET(調整係数!$B$12,BG$24-$BD$24,($D$3-1)*15+5)) ->  | BH27: =IF($D$3="","",OFFSET(調整係数!$B$12,BH$24-$BD$24,($D$3-1)*15+5)) ->  | BI27: =IF($D$3="","",OFFSET(調整係数!$B$12,BI$24-$BD$24,($D$3-1)*15+5)) ->  | BJ27: =IF($D$3="","",OFFSET(調整係数!$B$12,BJ$24-$BD$24,($D$3-1)*15+5)) ->  | BK27: =IF($D$3="","",OFFSET(調整係数!$B$12,BK$24-$BD$24,($D$3-1)*15+5)) ->  | BL27: =IF($D$3="","",OFFSET(調整係数!$B$12,BL$24-$BD$24,($D$3-1)*15+5)) ->  | BM27: =IF($D$3="","",OFFSET(調整係数!$B$12,BM$24-$BD$24,($D$3-1)*15+5)) -> 
E28: 余剰 | G28: =IF($D$3="","",OFFSET(調整係数!$B$46,0,($D$3-1)*15+IF(G25>3,G25-3,G25+9))) ->  | H28: =G28 ->  | I28: =IF($D$3="","",OFFSET(調整係数!$B$46,0,($D$3-1)*15+IF(I25>3,I25-3,I25+9))) ->  | J28: =I28 ->  | K28: =IF($D$3="","",OFFSET(調整係数!$B$46,0,($D$3-1)*15+IF(K25>3,K25-3,K25+9))) ->  | L28: =K28 ->  | M28: =IF($D$3="","",OFFSET(調整係数!$B$46,0,($D$3-1)*15+IF(M25>3,M25-3,M25+9))) ->  | N28: =M28 ->  | O28: =IF($D$3="","",OFFSET(調整係数!$B$46,0,($D$3-1)*15+IF(O25>3,O25-3,O25+9))) ->  | P28: =O28 ->  | Q28: =IF($D$3="","",OFFSET(調整係数!$B$46,0,($D$3-1)*15+IF(Q25>3,Q25-3,Q25+9))) ->  | R28: =Q28 ->  | S28: =IF($D$3="","",OFFSET(調整係数!$B$46,0,($D$3-1)*15+IF(S25>3,S25-3,S25+9))) ->  | T28: =S28 ->  | U28: =IF($D$3="","",OFFSET(調整係数!$B$46,0,($D$3-1)*15+IF(U25>3,U25-3,U25+9))) ->  | V28: =U28 ->  | W28: =IF($D$3="","",OFFSET(調整係数!$B$46,0,($D$3-1)*15+IF(W25>3,W25-3,W25+9))) ->  | X28: =W28 ->  | Y28: =IF($D$3="","",OFFSET(調整係数!$B$46,0,($D$3-1)*15+IF(Y25>3,Y25-3,Y25+9))) ->  | Z28: =Y28 ->  | AA28: =IF($D$3="","",OFFSET(調整係数!$B$46,0,($D$3-1)*15+IF(AA25>3,AA25-3,AA25+9))) ->  | AB28: =AA28 ->  | AC28: =IF($D$3="","",OFFSET(調整係数!$B$46,0,($D$3-1)*15+IF(AC25>3,AC25-3,AC25+9))) ->  | AD28: =AC28 ->  | AE28: =IF($D$3="","",OFFSET(調整係数!$B$46,1,($D$3-1)*15+IF(AE25>3,AE25-3,AE25+9))) ->  | AF28: =AE28 ->  | AG28: =IF($D$3="","",OFFSET(調整係数!$B$46,1,($D$3-1)*15+IF(AG25>3,AG25-3,AG25+9))) ->  | AH28: =AG28 ->  | AI28: =IF($D$3="","",OFFSET(調整係数!$B$46,1,($D$3-1)*15+IF(AI25>3,AI25-3,AI25+9))) ->  | AJ28: =AI28 ->  | AK28: =IF($D$3="","",OFFSET(調整係数!$B$46,1,($D$3-1)*15+IF(AK25>3,AK25-3,AK25+9))) ->  | AL28: =AK28 ->  | AM28: =IF($D$3="","",OFFSET(調整係数!$B$46,1,($D$3-1)*15+IF(AM25>3,AM25-3,AM25+9))) ->  | AN28: =AM28 ->  | AO28: =IF($D$3="","",OFFSET(調整係数!$B$46,1,($D$3-1)*15+IF(AO25>3,AO25-3,AO25+9))) ->  | AP28: =AO28 ->  | AQ28: =IF($D$3="","",OFFSET(調整係数!$B$46,1,($D$3-1)*15+IF(AQ25>3,AQ25-3,AQ25+9))) ->  | AR28: =AQ28 ->  | AS28: =IF($D$3="","",OFFSET(調整係数!$B$46,1,($D$3-1)*15+IF(AS25>3,AS25-3,AS25+9))) ->  | AT28: =AS28 ->  | AU28: =IF($D$3="","",OFFSET(調整係数!$B$46,1,($D$3-1)*15+IF(AU25>3,AU25-3,AU25+9))) ->  | AV28: =AU28 ->  | AW28: =IF($D$3="","",OFFSET(調整係数!$B$46,1,($D$3-1)*15+IF(AW25>3,AW25-3,AW25+9))) ->  | AX28: =AW28 ->  | AY28: =IF($D$3="","",OFFSET(調整係数!$B$46,1,($D$3-1)*15+IF(AY25>3,AY25-3,AY25+9))) ->  | AZ28: =AY28 ->  | BA28: =IF($D$3="","",OFFSET(調整係数!$B$46,1,($D$3-1)*15+IF(BA25>3,BA25-3,BA25+9))) ->  | BB28: =BA28 ->  | BF28: =IF($D$3="","",OFFSET(調整係数!$B$46,BF$24-$BD$24,($D$3-1)*15+5)) ->  | BG28: =IF($D$3="","",OFFSET(調整係数!$B$46,BG$24-$BD$24,($D$3-1)*15+5)) ->  | BH28: =IF($D$3="","",OFFSET(調整係数!$B$46,BH$24-$BD$24,($D$3-1)*15+5)) ->  | BI28: =IF($D$3="","",OFFSET(調整係数!$B$46,BI$24-$BD$24,($D$3-1)*15+5)) ->  | BJ28: =IF($D$3="","",OFFSET(調整係数!$B$46,BJ$24-$BD$24,($D$3-1)*15+5)) ->  | BK28: =IF($D$3="","",OFFSET(調整係数!$B$46,BK$24-$BD$24,($D$3-1)*15+5)) ->  | BL28: =IF($D$3="","",OFFSET(調整係数!$B$46,BL$24-$BD$24,($D$3-1)*15+5)) ->  | BM28: =IF($D$3="","",OFFSET(調整係数!$B$46,BM$24-$BD$24,($D$3-1)*15+5)) -> 
A29: ｋＷ | B29: エリア想定 | D29: 設備量 | E29: 合計 | G29: =IF(COUNT(G30:G31)=0,"",SUM(G30:G31)) ->  | H29: =IF(COUNT(H30:H31)=0,"",SUM(H30:H31)) ->  | BF29: =IF(COUNT(BF30:BF31)=0,"",SUM(BF30:BF31)) ->  | BG29: =IF(COUNT(BG30:BG31)=0,"",SUM(BG30:BG31)) -> 
F30: 全量 | G30: =IF(D6="","",IF(D6="Ⅰ",'②太陽光（全量）'!H13,MIN('②太陽光（全量）'!S12,'②太陽光（全量）'!H13))) ->  | H30: =G30 ->  | I30: =IF(D6="","",IF(D6="Ⅰ",'②太陽光（全量）'!I13,MIN('②太陽光（全量）'!H13,'②太陽光（全量）'!I13))) ->  | J30: =I30 ->  | K30: =IF(D6="","",IF(D6="Ⅰ",'②太陽光（全量）'!J13,MIN('②太陽光（全量）'!I13,'②太陽光（全量）'!J13))) ->  | L30: =K30 ->  | M30: =IF(D6="","",IF(D6="Ⅰ",'②太陽光（全量）'!K13,MIN('②太陽光（全量）'!J13,'②太陽光（全量）'!K13))) ->  | N30: =M30 ->  | O30: =IF(D6="","",IF(D6="Ⅰ",'②太陽光（全量）'!L13,MIN('②太陽光（全量）'!K13,'②太陽光（全量）'!L13))) ->  | P30: =O30 ->  | Q30: =IF(D6="","",IF(D6="Ⅰ",'②太陽光（全量）'!M13,MIN('②太陽光（全量）'!L13,'②太陽光（全量）'!M13))) ->  | R30: =Q30 ->  | S30: =IF(D6="","",IF(D6="Ⅰ",'②太陽光（全量）'!N13,MIN('②太陽光（全量）'!M13,'②太陽光（全量）'!N13))) ->  | T30: =S30 ->  | U30: =IF(D6="","",IF(D6="Ⅰ",'②太陽光（全量）'!O13,MIN('②太陽光（全量）'!N13,'②太陽光（全量）'!O13))) ->  | V30: =U30 ->  | W30: =IF(D6="","",IF(D6="Ⅰ",'②太陽光（全量）'!P13,MIN('②太陽光（全量）'!O13,'②太陽光（全量）'!P13))) ->  | X30: =W30 ->  | Y30: =IF(D6="","",IF(D6="Ⅰ",'②太陽光（全量）'!Q13,MIN('②太陽光（全量）'!P13,'②太陽光（全量）'!Q13))) ->  | Z30: =Y30 ->  | AA30: =IF(D6="","",IF(D6="Ⅰ",'②太陽光（全量）'!R13,MIN('②太陽光（全量）'!Q13,'②太陽光（全量）'!R13))) ->  | AB30: =AA30 ->  | AC30: =IF(D6="","",IF(D6="Ⅰ",'②太陽光（全量）'!S13,MIN('②太陽光（全量）'!R13,'②太陽光（全量）'!S13))) ->  | AD30: =AC30 ->  | AE30: =IF(D6="","",IF(D6="Ⅰ",'②太陽光（全量）'!H14,MIN('②太陽光（全量）'!S13,'②太陽光（全量）'!H14))) ->  | AF30: =AE30 ->  | AG30: =IF(D6="","",IF(D6="Ⅰ",'②太陽光（全量）'!I14,MIN('②太陽光（全量）'!H14,'②太陽光（全量）'!I14))) ->  | AH30: =AG30 ->  | AI30: =IF(D6="","",IF(D6="Ⅰ",'②太陽光（全量）'!J14,MIN('②太陽光（全量）'!I14,'②太陽光（全量）'!J14))) ->  | AJ30: =AI30 ->  | AK30: =IF(D6="","",IF(D6="Ⅰ",'②太陽光（全量）'!K14,MIN('②太陽光（全量）'!J14,'②太陽光（全量）'!K14))) ->  | AL30: =AK30 ->  | AM30: =IF(D6="","",IF(D6="Ⅰ",'②太陽光（全量）'!L14,MIN('②太陽光（全量）'!K14,'②太陽光（全量）'!L14))) ->  | AN30: =AM30 ->  | AO30: =IF(D6="","",IF(D6="Ⅰ",'②太陽光（全量）'!M14,MIN('②太陽光（全量）'!L14,'②太陽光（全量）'!M14))) ->  | AP30: =AO30 ->  | AQ30: =IF(D6="","",IF(D6="Ⅰ",'②太陽光（全量）'!N14,MIN('②太陽光（全量）'!M14,'②太陽光（全量）'!N14))) ->  | AR30: =AQ30 ->  | AS30: =IF(D6="","",IF(D6="Ⅰ",'②太陽光（全量）'!O14,MIN('②太陽光（全量）'!N14,'②太陽光（全量）'!O14))) ->  | AT30: =AS30 ->  | AU30: =IF(D6="","",IF(D6="Ⅰ",'②太陽光（全量）'!P14,MIN('②太陽光（全量）'!O14,'②太陽光（全量）'!P14))) ->  | AV30: =AU30 ->  | AW30: =IF(D6="","",IF(D6="Ⅰ",'②太陽光（全量）'!Q14,MIN('②太陽光（全量）'!P14,'②太陽光（全量）'!Q14))) ->  | AX30: =AW30 ->  | AY30: =IF(D6="","",IF(D6="Ⅰ",'②太陽光（全量）'!R14,MIN('②太陽光（全量）'!Q14,'②太陽光（全量）'!R14))) ->  | AZ30: =AY30 ->  | BA30: =IF(D6="","",IF(D6="Ⅰ",'②太陽光（全量）'!S14,MIN('②太陽光（全量）'!R14,'②太陽光（全量）'!S14))) ->  | BB30: =BA30 ->  | BF30: =IF(D6="","",IF(D6="Ⅰ",'②太陽光（全量）'!L15,MIN('②太陽光（全量）'!K15,'②太陽光（全量）'!L15))) ->  | BG30: =IF(D6="","",IF(D6="Ⅰ",'②太陽光（全量）'!L16,MIN('②太陽光（全量）'!K16,'②太陽光（全量）'!L16))) ->  | BH30: =IF(D6="","",IF(D6="Ⅰ",'②太陽光（全量）'!L17,MIN('②太陽光（全量）'!K17,'②太陽光（全量）'!L17))) ->  | BI30: =IF(D6="","",IF(D6="Ⅰ",'②太陽光（全量）'!L18,MIN('②太陽光（全量）'!K18,'②太陽光（全量）'!L18))) ->  | BJ30: =IF(D6="","",IF(D6="Ⅰ",'②太陽光（全量）'!L19,MIN('②太陽光（全量）'!K19,'②太陽光（全量）'!L19))) ->  | BK30: =IF(D6="","",IF(D6="Ⅰ",'②太陽光（全量）'!L20,MIN('②太陽光（全量）'!K20,'②太陽光（全量）'!L20))) ->  | BL30: =IF(D6="","",IF(D6="Ⅰ",'②太陽光（全量）'!L21,MIN('②太陽光（全量）'!K21,'②太陽光（全量）'!L21))) ->  | BM30: =IF(D6="","",IF(D6="Ⅰ",'②太陽光（全量）'!L22,MIN('②太陽光（全量）'!K22,'②太陽光（全量）'!L22))) -> 
F31: 余剰 | G31: =IF(D6="","",IF(D6="Ⅰ",'③太陽光（余剰）'!H13,MIN('③太陽光（余剰）'!S12,'③太陽光（余剰）'!H13))) ->  | H31: =G31 ->  | I31: =IF(D6="","",IF(D6="Ⅰ",'③太陽光（余剰）'!I13,MIN('③太陽光（余剰）'!H13,'③太陽光（余剰）'!I13))) ->  | J31: =I31 ->  | K31: =IF(D6="","",IF(D6="Ⅰ",'③太陽光（余剰）'!J13,MIN('③太陽光（余剰）'!I13,'③太陽光（余剰）'!J13))) ->  | L31: =K31 ->  | M31: =IF(D6="","",IF(D6="Ⅰ",'③太陽光（余剰）'!K13,MIN('③太陽光（余剰）'!J13,'③太陽光（余剰）'!K13))) ->  | N31: =M31 ->  | O31: =IF(D6="","",IF(D6="Ⅰ",'③太陽光（余剰）'!L13,MIN('③太陽光（余剰）'!K13,'③太陽光（余剰）'!L13))) ->  | P31: =O31 ->  | Q31: =IF(D6="","",IF(D6="Ⅰ",'③太陽光（余剰）'!M13,MIN('③太陽光（余剰）'!L13,'③太陽光（余剰）'!M13))) ->  | R31: =Q31 ->  | S31: =IF(D6="","",IF(D6="Ⅰ",'③太陽光（余剰）'!N13,MIN('③太陽光（余剰）'!M13,'③太陽光（余剰）'!N13))) ->  | T31: =S31 ->  | U31: =IF(D6="","",IF(D6="Ⅰ",'③太陽光（余剰）'!O13,MIN('③太陽光（余剰）'!N13,'③太陽光（余剰）'!O13))) ->  | V31: =U31 ->  | W31: =IF(D6="","",IF(D6="Ⅰ",'③太陽光（余剰）'!P13,MIN('③太陽光（余剰）'!O13,'③太陽光（余剰）'!P13))) ->  | X31: =W31 ->  | Y31: =IF(D6="","",IF(D6="Ⅰ",'③太陽光（余剰）'!Q13,MIN('③太陽光（余剰）'!P13,'③太陽光（余剰）'!Q13))) ->  | Z31: =Y31 ->  | AA31: =IF(D6="","",IF(D6="Ⅰ",'③太陽光（余剰）'!R13,MIN('③太陽光（余剰）'!Q13,'③太陽光（余剰）'!R13))) ->  | AB31: =AA31 ->  | AC31: =IF(D6="","",IF(D6="Ⅰ",'③太陽光（余剰）'!S13,MIN('③太陽光（余剰）'!R13,'③太陽光（余剰）'!S13))) ->  | AD31: =AC31 ->  | AE31: =IF(D6="","",IF(D6="Ⅰ",'③太陽光（余剰）'!H14,MIN('③太陽光（余剰）'!S13,'③太陽光（余剰）'!H14))) ->  | AF31: =AE31 ->  | AG31: =IF(D6="","",IF(D6="Ⅰ",'③太陽光（余剰）'!I14,MIN('③太陽光（余剰）'!H14,'③太陽光（余剰）'!I14))) ->  | AH31: =AG31 ->  | AI31: =IF(D6="","",IF(D6="Ⅰ",'③太陽光（余剰）'!J14,MIN('③太陽光（余剰）'!I14,'③太陽光（余剰）'!J14))) ->  | AJ31: =AI31 ->  | AK31: =IF(D6="","",IF(D6="Ⅰ",'③太陽光（余剰）'!K14,MIN('③太陽光（余剰）'!J14,'③太陽光（余剰）'!K14))) ->  | AL31: =AK31 ->  | AM31: =IF(D6="","",IF(D6="Ⅰ",'③太陽光（余剰）'!L14,MIN('③太陽光（余剰）'!K14,'③太陽光（余剰）'!L14))) ->  | AN31: =AM31 ->  | AO31: =IF(D6="","",IF(D6="Ⅰ",'③太陽光（余剰）'!M14,MIN('③太陽光（余剰）'!L14,'③太陽光（余剰）'!M14))) ->  | AP31: =AO31 ->  | AQ31: =IF(D6="","",IF(D6="Ⅰ",'③太陽光（余剰）'!N14,MIN('③太陽光（余剰）'!M14,'③太陽光（余剰）'!N14))) ->  | AR31: =AQ31 ->  | AS31: =IF(D6="","",IF(D6="Ⅰ",'③太陽光（余剰）'!O14,MIN('③太陽光（余剰）'!N14,'③太陽光（余剰）'!O14))) ->  | AT31: =AS31 ->  | AU31: =IF(D6="","",IF(D6="Ⅰ",'③太陽光（余剰）'!P14,MIN('③太陽光（余剰）'!O14,'③太陽光（余剰）'!P14))) ->  | AV31: =AU31 ->  | AW31: =IF(D6="","",IF(D6="Ⅰ",'③太陽光（余剰）'!Q14,MIN('③太陽光（余剰）'!P14,'③太陽光（余剰）'!Q14))) ->  | AX31: =AW31 ->  | AY31: =IF(D6="","",IF(D6="Ⅰ",'③太陽光（余剰）'!R14,MIN('③太陽光（余剰）'!Q14,'③太陽光（余剰）'!R14))) ->  | AZ31: =AY31 ->  | BA31: =IF(D6="","",IF(D6="Ⅰ",'③太陽光（余剰）'!S14,MIN('③太陽光（余剰）'!R14,'③太陽光（余剰）'!S14))) ->  | BB31: =BA31 ->  | BF31: =IF(D6="","",IF(D6="Ⅰ",'③太陽光（余剰）'!L15,MIN('③太陽光（余剰）'!K15,'③太陽光（余剰）'!L15))) ->  | BG31: =IF(D6="","",IF(D6="Ⅰ",'③太陽光（余剰）'!L16,MIN('③太陽光（余剰）'!K16,'③太陽光（余剰）'!L16))) ->  | BH31: =IF(D6="","",IF(D6="Ⅰ",'③太陽光（余剰）'!L17,MIN('③太陽光（余剰）'!K17,'③太陽光（余剰）'!L17))) ->  | BI31: =IF(D6="","",IF(D6="Ⅰ",'③太陽光（余剰）'!L18,MIN('③太陽光（余剰）'!K18,'③太陽光（余剰）'!L18))) ->  | BJ31: =IF(D6="","",IF(D6="Ⅰ",'③太陽光（余剰）'!L19,MIN('③太陽光（余剰）'!K19,'③太陽光（余剰）'!L19))) ->  | BK31: =IF(D6="","",IF(D6="Ⅰ",'③太陽光（余剰）'!L20,MIN('③太陽光（余剰）'!K20,'③太陽光（余剰）'!L20))) ->  | BL31: =IF(D6="","",IF(D6="Ⅰ",'③太陽光（余剰）'!L21,MIN('③太陽光（余剰）'!K21,'③太陽光（余剰）'!L21))) ->  | BM31: =IF(D6="","",IF(D6="Ⅰ",'③太陽光（余剰）'!L22,MIN('③太陽光（余剰）'!K22,'③太陽光（余剰）'!L22))) -> 
D32: 供給電力 （調整係数） | E32: 合計 | G32: =IF(COUNT(G33:G34)=0,"",SUM(G33:G34)) ->  | H32: =IF(COUNT(H33:H34)=0,"",SUM(H33:H34)) ->  | BF32: =IF(COUNT(BF33:BF34)=0,"",SUM(BF33:BF34)) ->  | BG32: =IF(COUNT(BG33:BG34)=0,"",SUM(BG33:BG34)) -> 
F33: 全量 | G33: =IF(COUNT(G27,G30)<2,"",ROUNDDOWN(G30*G27/100,2)) ->  | H33: =IF(COUNT(H27,H30)<2,"",ROUNDDOWN(H30*H27/100,2)) ->  | BF33: =IF(COUNT(BF27,BF30)<2,"",ROUNDDOWN(BF30*BF27/100,2)) -> 
F34: 余剰 | G34: =IF(COUNT(G28,G31)<2,"",ROUNDDOWN(G31*G28/100,2)) ->  | H34: =IF(COUNT(H28,H31)<2,"",ROUNDDOWN(H31*H28/100,2)) ->  | BF34: =IF(COUNT(BF28,BF31)<2,"",ROUNDDOWN(BF31*BF28/100,2)) -> 
B35: 各電気事業者の エリア内保有分 | D35: 設備量 | E35: 合計 | G35: =IF(COUNT(G36:G37)=0,"",SUM(G36:G37)) ->  | H35: =IF(COUNT(H36:H37)=0,"",SUM(H36:H37)) ->  | BF35: =IF(COUNT(BF36:BF37)=0,"",SUM(BF36:BF37)) ->  | BG35: =IF(COUNT(BG36:BG37)=0,"",SUM(BG36:BG37)) -> 
F36: 全量 | G36: =IF(COUNT(G27,G39)<2,"",ROUNDDOWN(G39/G27*100,2)) ->  | H36: =IF(COUNT(H27,H39)<2,"",ROUNDDOWN(H39/H27*100,2)) ->  | BF36: =IF(COUNT(BF27,BF39)<2,"",ROUNDDOWN(BF39/BF27*100,2)) -> 
F37: 余剰 | G37: =IF(COUNT(G28,G40)<2,"",ROUNDDOWN(G40/G28*100,2)) ->  | H37: =IF(COUNT(H28,H40)<2,"",ROUNDDOWN(H40/H28*100,2)) ->  | BF37: =IF(COUNT(BF28,BF40)<2,"",ROUNDDOWN(BF40/BF28*100,2)) -> 
D38: 供給電力 （調整係数） | E38: 合計 | G38: =IF(COUNT(G39:G40)=0,"",SUM(G39:G40)) ->  | H38: =IF(COUNT(H39:H40)=0,"",SUM(H39:H40)) ->  | BF38: =IF(COUNT(BF39:BF40)=0,"",SUM(BF39:BF40)) ->  | BG38: =IF(COUNT(BG39:BG40)=0,"",SUM(BG39:BG40)) -> 
F39: 全量
F40: 余剰
B41: 各電気事業者の エリア内非電気事業者 からの調達分 | D41: 設備量 | E41: 合計 | G41: =IF(COUNT(G42:G43)=0,"",SUM(G42:G43)) ->  | H41: =IF(COUNT(H42:H43)=0,"",SUM(H42:H43)) ->  | BF41: =IF(COUNT(BF42:BF43)=0,"",SUM(BF42:BF43)) ->  | BG41: =IF(COUNT(BG42:BG43)=0,"",SUM(BG42:BG43)) -> 
F42: 全量 | G42: =IF(COUNT(G27,G45)<2,"",ROUNDDOWN(G45/G27*100,2)) ->  | H42: =IF(COUNT(H27,H45)<2,"",ROUNDDOWN(H45/H27*100,2)) ->  | BF42: =IF(COUNT(BF27,BF45)<2,"",ROUNDDOWN(BF45/BF27*100,2)) -> 
F43: 余剰 | G43: =IF(COUNT(G28,G46)<2,"",ROUNDDOWN(G46/G28*100,2)) ->  | H43: =IF(COUNT(H28,H46)<2,"",ROUNDDOWN(H46/H28*100,2)) ->  | BF43: =IF(COUNT(BF28,BF46)<2,"",ROUNDDOWN(BF46/BF28*100,2)) -> 
D44: 供給電力 （調整係数） | E44: 合計 | G44: =IF(COUNT(G45:G46)=0,"",SUM(G45:G46)) ->  | H44: =IF(COUNT(H45:H46)=0,"",SUM(H45:H46)) ->  | BF44: =IF(COUNT(BF45:BF46)=0,"",SUM(BF45:BF46)) ->  | BG44: =IF(COUNT(BG45:BG46)=0,"",SUM(BG45:BG46)) -> 
F45: 全量
F46: 余剰
B47: 一般送配電想定との差分 | D47: 設備量 | E47: 合計 | G47: =IF(COUNT(G48:G49)=0,"",SUM(G48:G49)) ->  | H47: =IF(COUNT(H48:H49)=0,"",SUM(H48:H49)) ->  | BF47: =IF(COUNT(BF48:BF49)=0,"",SUM(BF48:BF49)) ->  | BG47: =IF(COUNT(BG48:BG49)=0,"",SUM(BG48:BG49)) -> 
F48: 全量 | G48: =IF(AND(G30="",G36="",G42=""),"",SUM(G30)-SUM(G36)-SUM(G42)) ->  | H48: =IF(AND(H30="",H36="",H42=""),"",SUM(H30)-SUM(H36)-SUM(H42)) ->  | BF48: =IF(AND(BF30="",BF36="",BF42=""),"",SUM(BF30)-SUM(BF36)-SUM(BF42)) -> 
F49: 余剰 | G49: =IF(AND(G31="",G37="",G43=""),"",SUM(G31)-SUM(G37)-SUM(G43)) ->  | H49: =IF(AND(H31="",H37="",H43=""),"",SUM(H31)-SUM(H37)-SUM(H43)) -> 
D50: 供給電力 （調整係数） | E50: 合計 | G50: =IF(COUNT(G51:G52)=0,"",SUM(G51:G52)) ->  | H50: =IF(COUNT(H51:H52)=0,"",SUM(H51:H52)) ->  | BD50: =IF(COUNT(BD51:BD52)=0,"",SUM(BD51:BD52)) ->  | BE50: =IF(COUNT(BE51:BE52)=0,"",SUM(BE51:BE52)) ->  | BF50: =IF(COUNT(BF51:BF52)=0,"",SUM(BF51:BF52)) -> 
F51: 全量 | G51: =IF(AND(G33="",G39="",G45=""),"",ROUNDDOWN(ROUND(SUM(G33)-SUM(G39)-SUM(G45),5),事業者リスト一覧!$B$63)) ->  | H51: =IF(AND(H33="",H39="",H45=""),"",ROUNDDOWN(ROUND(SUM(H33)-SUM(H39)-SUM(H45),5),事業者リスト一覧!$B$63)) ->  | I51: =IF(AND(I33="",I39="",I45=""),"",ROUNDDOWN(ROUND(SUM(I33)-SUM(I39)-SUM(I45),5),事業者リスト一覧!$B$63)) ->  | J51: =IF(AND(J33="",J39="",J45=""),"",ROUNDDOWN(ROUND(SUM(J33)-SUM(J39)-SUM(J45),5),事業者リスト一覧!$B$63)) ->  | K51: =IF(AND(K33="",K39="",K45=""),"",ROUNDDOWN(ROUND(SUM(K33)-SUM(K39)-SUM(K45),5),事業者リスト一覧!$B$63)) ->  | L51: =IF(AND(L33="",L39="",L45=""),"",ROUNDDOWN(ROUND(SUM(L33)-SUM(L39)-SUM(L45),5),事業者リスト一覧!$B$63)) ->  | M51: =IF(AND(M33="",M39="",M45=""),"",ROUNDDOWN(ROUND(SUM(M33)-SUM(M39)-SUM(M45),5),事業者リスト一覧!$B$63)) ->  | N51: =IF(AND(N33="",N39="",N45=""),"",ROUNDDOWN(ROUND(SUM(N33)-SUM(N39)-SUM(N45),5),事業者リスト一覧!$B$63)) ->  | O51: =IF(AND(O33="",O39="",O45=""),"",ROUNDDOWN(ROUND(SUM(O33)-SUM(O39)-SUM(O45),5),事業者リスト一覧!$B$63)) ->  | P51: =IF(AND(P33="",P39="",P45=""),"",ROUNDDOWN(ROUND(SUM(P33)-SUM(P39)-SUM(P45),5),事業者リスト一覧!$B$63)) ->  | Q51: =IF(AND(Q33="",Q39="",Q45=""),"",ROUNDDOWN(ROUND(SUM(Q33)-SUM(Q39)-SUM(Q45),5),事業者リスト一覧!$B$63)) ->  | R51: =IF(AND(R33="",R39="",R45=""),"",ROUNDDOWN(ROUND(SUM(R33)-SUM(R39)-SUM(R45),5),事業者リスト一覧!$B$63)) ->  | S51: =IF(AND(S33="",S39="",S45=""),"",ROUNDDOWN(ROUND(SUM(S33)-SUM(S39)-SUM(S45),5),事業者リスト一覧!$B$63)) ->  | T51: =IF(AND(T33="",T39="",T45=""),"",ROUNDDOWN(ROUND(SUM(T33)-SUM(T39)-SUM(T45),5),事業者リスト一覧!$B$63)) ->  | U51: =IF(AND(U33="",U39="",U45=""),"",ROUNDDOWN(ROUND(SUM(U33)-SUM(U39)-SUM(U45),5),事業者リスト一覧!$B$63)) ->  | V51: =IF(AND(V33="",V39="",V45=""),"",ROUNDDOWN(ROUND(SUM(V33)-SUM(V39)-SUM(V45),5),事業者リスト一覧!$B$63)) ->  | W51: =IF(AND(W33="",W39="",W45=""),"",ROUNDDOWN(ROUND(SUM(W33)-SUM(W39)-SUM(W45),5),事業者リスト一覧!$B$63)) ->  | X51: =IF(AND(X33="",X39="",X45=""),"",ROUNDDOWN(ROUND(SUM(X33)-SUM(X39)-SUM(X45),5),事業者リスト一覧!$B$63)) ->  | Y51: =IF(AND(Y33="",Y39="",Y45=""),"",ROUNDDOWN(ROUND(SUM(Y33)-SUM(Y39)-SUM(Y45),5),事業者リスト一覧!$B$63)) ->  | Z51: =IF(AND(Z33="",Z39="",Z45=""),"",ROUNDDOWN(ROUND(SUM(Z33)-SUM(Z39)-SUM(Z45),5),事業者リスト一覧!$B$63)) ->  | AA51: =IF(AND(AA33="",AA39="",AA45=""),"",ROUNDDOWN(ROUND(SUM(AA33)-SUM(AA39)-SUM(AA45),5),事業者リスト一覧!$B$63)) ->  | AB51: =IF(AND(AB33="",AB39="",AB45=""),"",ROUNDDOWN(ROUND(SUM(AB33)-SUM(AB39)-SUM(AB45),5),事業者リスト一覧!$B$63)) ->  | AC51: =IF(AND(AC33="",AC39="",AC45=""),"",ROUNDDOWN(ROUND(SUM(AC33)-SUM(AC39)-SUM(AC45),5),事業者リスト一覧!$B$63)) ->  | AD51: =IF(AND(AD33="",AD39="",AD45=""),"",ROUNDDOWN(ROUND(SUM(AD33)-SUM(AD39)-SUM(AD45),5),事業者リスト一覧!$B$63)) ->  | AE51: =IF(AND(AE33="",AE39="",AE45=""),"",ROUNDDOWN(ROUND(SUM(AE33)-SUM(AE39)-SUM(AE45),5),事業者リスト一覧!$B$63)) ->  | AF51: =IF(AND(AF33="",AF39="",AF45=""),"",ROUNDDOWN(ROUND(SUM(AF33)-SUM(AF39)-SUM(AF45),5),事業者リスト一覧!$B$63)) ->  | AG51: =IF(AND(AG33="",AG39="",AG45=""),"",ROUNDDOWN(ROUND(SUM(AG33)-SUM(AG39)-SUM(AG45),5),事業者リスト一覧!$B$63)) ->  | AH51: =IF(AND(AH33="",AH39="",AH45=""),"",ROUNDDOWN(ROUND(SUM(AH33)-SUM(AH39)-SUM(AH45),5),事業者リスト一覧!$B$63)) ->  | AI51: =IF(AND(AI33="",AI39="",AI45=""),"",ROUNDDOWN(ROUND(SUM(AI33)-SUM(AI39)-SUM(AI45),5),事業者リスト一覧!$B$63)) ->  | AJ51: =IF(AND(AJ33="",AJ39="",AJ45=""),"",ROUNDDOWN(ROUND(SUM(AJ33)-SUM(AJ39)-SUM(AJ45),5),事業者リスト一覧!$B$63)) ->  | AK51: =IF(AND(AK33="",AK39="",AK45=""),"",ROUNDDOWN(ROUND(SUM(AK33)-SUM(AK39)-SUM(AK45),5),事業者リスト一覧!$B$63)) ->  | AL51: =IF(AND(AL33="",AL39="",AL45=""),"",ROUNDDOWN(ROUND(SUM(AL33)-SUM(AL39)-SUM(AL45),5),事業者リスト一覧!$B$63)) ->  | AM51: =IF(AND(AM33="",AM39="",AM45=""),"",ROUNDDOWN(ROUND(SUM(AM33)-SUM(AM39)-SUM(AM45),5),事業者リスト一覧!$B$63)) ->  | AN51: =IF(AND(AN33="",AN39="",AN45=""),"",ROUNDDOWN(ROUND(SUM(AN33)-SUM(AN39)-SUM(AN45),5),事業者リスト一覧!$B$63)) ->  | AO51: =IF(AND(AO33="",AO39="",AO45=""),"",ROUNDDOWN(ROUND(SUM(AO33)-SUM(AO39)-SUM(AO45),5),事業者リスト一覧!$B$63)) ->  | AP51: =IF(AND(AP33="",AP39="",AP45=""),"",ROUNDDOWN(ROUND(SUM(AP33)-SUM(AP39)-SUM(AP45),5),事業者リスト一覧!$B$63)) ->  | AQ51: =IF(AND(AQ33="",AQ39="",AQ45=""),"",ROUNDDOWN(ROUND(SUM(AQ33)-SUM(AQ39)-SUM(AQ45),5),事業者リスト一覧!$B$63)) ->  | AR51: =IF(AND(AR33="",AR39="",AR45=""),"",ROUNDDOWN(ROUND(SUM(AR33)-SUM(AR39)-SUM(AR45),5),事業者リスト一覧!$B$63)) ->  | AS51: =IF(AND(AS33="",AS39="",AS45=""),"",ROUNDDOWN(ROUND(SUM(AS33)-SUM(AS39)-SUM(AS45),5),事業者リスト一覧!$B$63)) ->  | AT51: =IF(AND(AT33="",AT39="",AT45=""),"",ROUNDDOWN(ROUND(SUM(AT33)-SUM(AT39)-SUM(AT45),5),事業者リスト一覧!$B$63)) ->  | AU51: =IF(AND(AU33="",AU39="",AU45=""),"",ROUNDDOWN(ROUND(SUM(AU33)-SUM(AU39)-SUM(AU45),5),事業者リスト一覧!$B$63)) ->  | AV51: =IF(AND(AV33="",AV39="",AV45=""),"",ROUNDDOWN(ROUND(SUM(AV33)-SUM(AV39)-SUM(AV45),5),事業者リスト一覧!$B$63)) ->  | AW51: =IF(AND(AW33="",AW39="",AW45=""),"",ROUNDDOWN(ROUND(SUM(AW33)-SUM(AW39)-SUM(AW45),5),事業者リスト一覧!$B$63)) ->  | AX51: =IF(AND(AX33="",AX39="",AX45=""),"",ROUNDDOWN(ROUND(SUM(AX33)-SUM(AX39)-SUM(AX45),5),事業者リスト一覧!$B$63)) ->  | AY51: =IF(AND(AY33="",AY39="",AY45=""),"",ROUNDDOWN(ROUND(SUM(AY33)-SUM(AY39)-SUM(AY45),5),事業者リスト一覧!$B$63)) ->  | AZ51: =IF(AND(AZ33="",AZ39="",AZ45=""),"",ROUNDDOWN(ROUND(SUM(AZ33)-SUM(AZ39)-SUM(AZ45),5),事業者リスト一覧!$B$63)) ->  | BA51: =IF(AND(BA33="",BA39="",BA45=""),"",ROUNDDOWN(ROUND(SUM(BA33)-SUM(BA39)-SUM(BA45),5),事業者リスト一覧!$B$63)) ->  | BB51: =IF(AND(BB33="",BB39="",BB45=""),"",ROUNDDOWN(ROUND(SUM(BB33)-SUM(BB39)-SUM(BB45),5),事業者リスト一覧!$B$63)) ->  | BD51: =IF(OR($D$3="",COUNT(O51,P51)=0),"",ROUND(SUM(IFERROR(O51*15,0),IFERROR(P51*16,0))/31,事業者リスト一覧!$B$63)) ->  | BE51: =IF(OR($D$3="",COUNT(AM51,AN51)=0),"",ROUND(SUM(IFERROR(AM51*15,0),IFERROR(AN51*16,0))/31,事業者リスト一覧!$B$63)) ->  | BF51: =IF(AND(BF33="",BF39="",BF45=""),"",ROUNDDOWN(ROUND(SUM(BF33)-SUM(BF39)-SUM(BF45),5),事業者リスト一覧!$B$63)) ->  | BG51: =IF(AND(BG33="",BG39="",BG45=""),"",ROUNDDOWN(ROUND(SUM(BG33)-SUM(BG39)-SUM(BG45),5),事業者リスト一覧!$B$63)) ->  | BH51: =IF(AND(BH33="",BH39="",BH45=""),"",ROUNDDOWN(ROUND(SUM(BH33)-SUM(BH39)-SUM(BH45),5),事業者リスト一覧!$B$63)) ->  | BI51: =IF(AND(BI33="",BI39="",BI45=""),"",ROUNDDOWN(ROUND(SUM(BI33)-SUM(BI39)-SUM(BI45),5),事業者リスト一覧!$B$63)) ->  | BJ51: =IF(AND(BJ33="",BJ39="",BJ45=""),"",ROUNDDOWN(ROUND(SUM(BJ33)-SUM(BJ39)-SUM(BJ45),5),事業者リスト一覧!$B$63)) ->  | BK51: =IF(AND(BK33="",BK39="",BK45=""),"",ROUNDDOWN(ROUND(SUM(BK33)-SUM(BK39)-SUM(BK45),5),事業者リスト一覧!$B$63)) ->  | BL51: =IF(AND(BL33="",BL39="",BL45=""),"",ROUNDDOWN(ROUND(SUM(BL33)-SUM(BL39)-SUM(BL45),5),事業者リスト一覧!$B$63)) ->  | BM51: =IF(AND(BM33="",BM39="",BM45=""),"",ROUNDDOWN(ROUND(SUM(BM33)-SUM(BM39)-SUM(BM45),5),事業者リスト一覧!$B$63)) -> 
F52: 余剰 | G52: =IF(AND(G34="",G40="",G46=""),"",ROUNDDOWN(ROUND(SUM(G34)-SUM(G40)-SUM(G46),5),事業者リスト一覧!$B$63)) ->  | H52: =IF(AND(H34="",H40="",H46=""),"",ROUNDDOWN(ROUND(SUM(H34)-SUM(H40)-SUM(H46),5),事業者リスト一覧!$B$63)) ->  | I52: =IF(AND(I34="",I40="",I46=""),"",ROUNDDOWN(ROUND(SUM(I34)-SUM(I40)-SUM(I46),5),事業者リスト一覧!$B$63)) ->  | J52: =IF(AND(J34="",J40="",J46=""),"",ROUNDDOWN(ROUND(SUM(J34)-SUM(J40)-SUM(J46),5),事業者リスト一覧!$B$63)) ->  | K52: =IF(AND(K34="",K40="",K46=""),"",ROUNDDOWN(ROUND(SUM(K34)-SUM(K40)-SUM(K46),5),事業者リスト一覧!$B$63)) ->  | L52: =IF(AND(L34="",L40="",L46=""),"",ROUNDDOWN(ROUND(SUM(L34)-SUM(L40)-SUM(L46),5),事業者リスト一覧!$B$63)) ->  | M52: =IF(AND(M34="",M40="",M46=""),"",ROUNDDOWN(ROUND(SUM(M34)-SUM(M40)-SUM(M46),5),事業者リスト一覧!$B$63)) ->  | N52: =IF(AND(N34="",N40="",N46=""),"",ROUNDDOWN(ROUND(SUM(N34)-SUM(N40)-SUM(N46),5),事業者リスト一覧!$B$63)) ->  | O52: =IF(AND(O34="",O40="",O46=""),"",ROUNDDOWN(ROUND(SUM(O34)-SUM(O40)-SUM(O46),5),事業者リスト一覧!$B$63)) ->  | P52: =IF(AND(P34="",P40="",P46=""),"",ROUNDDOWN(ROUND(SUM(P34)-SUM(P40)-SUM(P46),5),事業者リスト一覧!$B$63)) ->  | Q52: =IF(AND(Q34="",Q40="",Q46=""),"",ROUNDDOWN(ROUND(SUM(Q34)-SUM(Q40)-SUM(Q46),5),事業者リスト一覧!$B$63)) ->  | R52: =IF(AND(R34="",R40="",R46=""),"",ROUNDDOWN(ROUND(SUM(R34)-SUM(R40)-SUM(R46),5),事業者リスト一覧!$B$63)) ->  | S52: =IF(AND(S34="",S40="",S46=""),"",ROUNDDOWN(ROUND(SUM(S34)-SUM(S40)-SUM(S46),5),事業者リスト一覧!$B$63)) ->  | T52: =IF(AND(T34="",T40="",T46=""),"",ROUNDDOWN(ROUND(SUM(T34)-SUM(T40)-SUM(T46),5),事業者リスト一覧!$B$63)) ->  | U52: =IF(AND(U34="",U40="",U46=""),"",ROUNDDOWN(ROUND(SUM(U34)-SUM(U40)-SUM(U46),5),事業者リスト一覧!$B$63)) ->  | V52: =IF(AND(V34="",V40="",V46=""),"",ROUNDDOWN(ROUND(SUM(V34)-SUM(V40)-SUM(V46),5),事業者リスト一覧!$B$63)) ->  | W52: =IF(AND(W34="",W40="",W46=""),"",ROUNDDOWN(ROUND(SUM(W34)-SUM(W40)-SUM(W46),5),事業者リスト一覧!$B$63)) ->  | X52: =IF(AND(X34="",X40="",X46=""),"",ROUNDDOWN(ROUND(SUM(X34)-SUM(X40)-SUM(X46),5),事業者リスト一覧!$B$63)) ->  | Y52: =IF(AND(Y34="",Y40="",Y46=""),"",ROUNDDOWN(ROUND(SUM(Y34)-SUM(Y40)-SUM(Y46),5),事業者リスト一覧!$B$63)) ->  | Z52: =IF(AND(Z34="",Z40="",Z46=""),"",ROUNDDOWN(ROUND(SUM(Z34)-SUM(Z40)-SUM(Z46),5),事業者リスト一覧!$B$63)) ->  | AA52: =IF(AND(AA34="",AA40="",AA46=""),"",ROUNDDOWN(ROUND(SUM(AA34)-SUM(AA40)-SUM(AA46),5),事業者リスト一覧!$B$63)) ->  | AB52: =IF(AND(AB34="",AB40="",AB46=""),"",ROUNDDOWN(ROUND(SUM(AB34)-SUM(AB40)-SUM(AB46),5),事業者リスト一覧!$B$63)) ->  | AC52: =IF(AND(AC34="",AC40="",AC46=""),"",ROUNDDOWN(ROUND(SUM(AC34)-SUM(AC40)-SUM(AC46),5),事業者リスト一覧!$B$63)) ->  | AD52: =IF(AND(AD34="",AD40="",AD46=""),"",ROUNDDOWN(ROUND(SUM(AD34)-SUM(AD40)-SUM(AD46),5),事業者リスト一覧!$B$63)) ->  | AE52: =IF(AND(AE34="",AE40="",AE46=""),"",ROUNDDOWN(ROUND(SUM(AE34)-SUM(AE40)-SUM(AE46),5),事業者リスト一覧!$B$63)) ->  | AF52: =IF(AND(AF34="",AF40="",AF46=""),"",ROUNDDOWN(ROUND(SUM(AF34)-SUM(AF40)-SUM(AF46),5),事業者リスト一覧!$B$63)) ->  | AG52: =IF(AND(AG34="",AG40="",AG46=""),"",ROUNDDOWN(ROUND(SUM(AG34)-SUM(AG40)-SUM(AG46),5),事業者リスト一覧!$B$63)) ->  | AH52: =IF(AND(AH34="",AH40="",AH46=""),"",ROUNDDOWN(ROUND(SUM(AH34)-SUM(AH40)-SUM(AH46),5),事業者リスト一覧!$B$63)) ->  | AI52: =IF(AND(AI34="",AI40="",AI46=""),"",ROUNDDOWN(ROUND(SUM(AI34)-SUM(AI40)-SUM(AI46),5),事業者リスト一覧!$B$63)) ->  | AJ52: =IF(AND(AJ34="",AJ40="",AJ46=""),"",ROUNDDOWN(ROUND(SUM(AJ34)-SUM(AJ40)-SUM(AJ46),5),事業者リスト一覧!$B$63)) ->  | AK52: =IF(AND(AK34="",AK40="",AK46=""),"",ROUNDDOWN(ROUND(SUM(AK34)-SUM(AK40)-SUM(AK46),5),事業者リスト一覧!$B$63)) ->  | AL52: =IF(AND(AL34="",AL40="",AL46=""),"",ROUNDDOWN(ROUND(SUM(AL34)-SUM(AL40)-SUM(AL46),5),事業者リスト一覧!$B$63)) ->  | AM52: =IF(AND(AM34="",AM40="",AM46=""),"",ROUNDDOWN(ROUND(SUM(AM34)-SUM(AM40)-SUM(AM46),5),事業者リスト一覧!$B$63)) ->  | AN52: =IF(AND(AN34="",AN40="",AN46=""),"",ROUNDDOWN(ROUND(SUM(AN34)-SUM(AN40)-SUM(AN46),5),事業者リスト一覧!$B$63)) ->  | AO52: =IF(AND(AO34="",AO40="",AO46=""),"",ROUNDDOWN(ROUND(SUM(AO34)-SUM(AO40)-SUM(AO46),5),事業者リスト一覧!$B$63)) ->  | AP52: =IF(AND(AP34="",AP40="",AP46=""),"",ROUNDDOWN(ROUND(SUM(AP34)-SUM(AP40)-SUM(AP46),5),事業者リスト一覧!$B$63)) ->  | AQ52: =IF(AND(AQ34="",AQ40="",AQ46=""),"",ROUNDDOWN(ROUND(SUM(AQ34)-SUM(AQ40)-SUM(AQ46),5),事業者リスト一覧!$B$63)) ->  | AR52: =IF(AND(AR34="",AR40="",AR46=""),"",ROUNDDOWN(ROUND(SUM(AR34)-SUM(AR40)-SUM(AR46),5),事業者リスト一覧!$B$63)) ->  | AS52: =IF(AND(AS34="",AS40="",AS46=""),"",ROUNDDOWN(ROUND(SUM(AS34)-SUM(AS40)-SUM(AS46),5),事業者リスト一覧!$B$63)) ->  | AT52: =IF(AND(AT34="",AT40="",AT46=""),"",ROUNDDOWN(ROUND(SUM(AT34)-SUM(AT40)-SUM(AT46),5),事業者リスト一覧!$B$63)) ->  | AU52: =IF(AND(AU34="",AU40="",AU46=""),"",ROUNDDOWN(ROUND(SUM(AU34)-SUM(AU40)-SUM(AU46),5),事業者リスト一覧!$B$63)) ->  | AV52: =IF(AND(AV34="",AV40="",AV46=""),"",ROUNDDOWN(ROUND(SUM(AV34)-SUM(AV40)-SUM(AV46),5),事業者リスト一覧!$B$63)) ->  | AW52: =IF(AND(AW34="",AW40="",AW46=""),"",ROUNDDOWN(ROUND(SUM(AW34)-SUM(AW40)-SUM(AW46),5),事業者リスト一覧!$B$63)) ->  | AX52: =IF(AND(AX34="",AX40="",AX46=""),"",ROUNDDOWN(ROUND(SUM(AX34)-SUM(AX40)-SUM(AX46),5),事業者リスト一覧!$B$63)) ->  | AY52: =IF(AND(AY34="",AY40="",AY46=""),"",ROUNDDOWN(ROUND(SUM(AY34)-SUM(AY40)-SUM(AY46),5),事業者リスト一覧!$B$63)) ->  | AZ52: =IF(AND(AZ34="",AZ40="",AZ46=""),"",ROUNDDOWN(ROUND(SUM(AZ34)-SUM(AZ40)-SUM(AZ46),5),事業者リスト一覧!$B$63)) ->  | BA52: =IF(AND(BA34="",BA40="",BA46=""),"",ROUNDDOWN(ROUND(SUM(BA34)-SUM(BA40)-SUM(BA46),5),事業者リスト一覧!$B$63)) ->  | BB52: =IF(AND(BB34="",BB40="",BB46=""),"",ROUNDDOWN(ROUND(SUM(BB34)-SUM(BB40)-SUM(BB46),5),事業者リスト一覧!$B$63)) ->  | BD52: =IF(OR($D$3="",COUNT(O52,P52)=0),"",ROUND(SUM(IFERROR(O52*15,0),IFERROR(P52*16,0))/31,事業者リスト一覧!$B$63)) ->  | BE52: =IF(OR($D$3="",COUNT(AM52,AN52)=0),"",ROUND(SUM(IFERROR(AM52*15,0),IFERROR(AN52*16,0))/31,事業者リスト一覧!$B$63)) ->  | BF52: =IF(AND(BF34="",BF40="",BF46=""),"",ROUNDDOWN(ROUND(SUM(BF34)-SUM(BF40)-SUM(BF46),5),事業者リスト一覧!$B$63)) ->  | BG52: =IF(AND(BG34="",BG40="",BG46=""),"",ROUNDDOWN(ROUND(SUM(BG34)-SUM(BG40)-SUM(BG46),5),事業者リスト一覧!$B$63)) ->  | BH52: =IF(AND(BH34="",BH40="",BH46=""),"",ROUNDDOWN(ROUND(SUM(BH34)-SUM(BH40)-SUM(BH46),5),事業者リスト一覧!$B$63)) ->  | BI52: =IF(AND(BI34="",BI40="",BI46=""),"",ROUNDDOWN(ROUND(SUM(BI34)-SUM(BI40)-SUM(BI46),5),事業者リスト一覧!$B$63)) ->  | BJ52: =IF(AND(BJ34="",BJ40="",BJ46=""),"",ROUNDDOWN(ROUND(SUM(BJ34)-SUM(BJ40)-SUM(BJ46),5),事業者リスト一覧!$B$63)) ->  | BK52: =IF(AND(BK34="",BK40="",BK46=""),"",ROUNDDOWN(ROUND(SUM(BK34)-SUM(BK40)-SUM(BK46),5),事業者リスト一覧!$B$63)) ->  | BL52: =IF(AND(BL34="",BL40="",BL46=""),"",ROUNDDOWN(ROUND(SUM(BL34)-SUM(BL40)-SUM(BL46),5),事業者リスト一覧!$B$63)) ->  | BM52: =IF(AND(BM34="",BM40="",BM46=""),"",ROUNDDOWN(ROUND(SUM(BM34)-SUM(BM40)-SUM(BM46),5),事業者リスト一覧!$B$63)) -> 
A53: ｋＷｈ | B53: エリア想定 | D53: 電力量 | E53: 合計 | G53: =IF(COUNT(G54:G55)=0,"",SUM(G54:G55)) ->  | I53: =IF(COUNT(I54:I55)=0,"",SUM(I54:I55)) ->  | BD53: =IF($D$3="","",SUM(G53:AD53)) ->  | BE53: =IF(COUNT(BE54:BE55)=0,"",SUM(BE54:BE55)) ->  | BF53: =IF(COUNT(BF54:BF55)=0,"",SUM(BF54:BF55)) -> 
F54: 全量 | G54: =IF($D$6="","",'②太陽光（全量）'!H29) ->  | I54: =IF($D$6="","",'②太陽光（全量）'!I29) ->  | K54: =IF($D$6="","",'②太陽光（全量）'!J29) ->  | M54: =IF($D$6="","",'②太陽光（全量）'!K29) ->  | O54: =IF($D$6="","",'②太陽光（全量）'!L29) ->  | Q54: =IF($D$6="","",'②太陽光（全量）'!M29) ->  | S54: =IF($D$6="","",'②太陽光（全量）'!N29) ->  | U54: =IF($D$6="","",'②太陽光（全量）'!O29) ->  | W54: =IF($D$6="","",'②太陽光（全量）'!P29) ->  | Y54: =IF($D$6="","",'②太陽光（全量）'!Q29) ->  | AA54: =IF($D$6="","",'②太陽光（全量）'!R29) ->  | AC54: =IF($D$6="","",'②太陽光（全量）'!S29) ->  | BE54: =IF($D$6="","",SUM('②太陽光（全量）'!H30:S30)) ->  | BF54: =IF($D$6="","",SUM('②太陽光（全量）'!H31:S31)) ->  | BG54: =IF($D$6="","",SUM('②太陽光（全量）'!H32:S32)) ->  | BH54: =IF($D$6="","",SUM('②太陽光（全量）'!H33:S33)) ->  | BI54: =IF($D$6="","",SUM('②太陽光（全量）'!H34:S34)) ->  | BJ54: =IF($D$6="","",SUM('②太陽光（全量）'!H35:S35)) ->  | BK54: =IF($D$6="","",SUM('②太陽光（全量）'!H36:S36)) ->  | BL54: =IF($D$6="","",SUM('②太陽光（全量）'!H37:S37)) ->  | BM54: =IF($D$6="","",SUM('②太陽光（全量）'!H38:S38)) -> 
F55: 余剰 | G55: =IF($D$6="","",'③太陽光（余剰）'!H29) ->  | I55: =IF($D$6="","",'③太陽光（余剰）'!I29) ->  | K55: =IF($D$6="","",'③太陽光（余剰）'!J29) ->  | M55: =IF($D$6="","",'③太陽光（余剰）'!K29) ->  | O55: =IF($D$6="","",'③太陽光（余剰）'!L29) ->  | Q55: =IF($D$6="","",'③太陽光（余剰）'!M29) ->  | S55: =IF($D$6="","",'③太陽光（余剰）'!N29) ->  | U55: =IF($D$6="","",'③太陽光（余剰）'!O29) ->  | W55: =IF($D$6="","",'③太陽光（余剰）'!P29) ->  | Y55: =IF($D$6="","",'③太陽光（余剰）'!Q29) ->  | AA55: =IF($D$6="","",'③太陽光（余剰）'!R29) ->  | AC55: =IF($D$6="","",'③太陽光（余剰）'!S29) ->  | BE55: =IF($D$6="","",SUM('③太陽光（余剰）'!H30:S30)) ->  | BF55: =IF($D$6="","",SUM('③太陽光（余剰）'!H31:S31)) ->  | BG55: =IF($D$6="","",SUM('③太陽光（余剰）'!H32:S32)) ->  | BH55: =IF($D$6="","",SUM('③太陽光（余剰）'!H33:S33)) ->  | BI55: =IF($D$6="","",SUM('③太陽光（余剰）'!H34:S34)) ->  | BJ55: =IF($D$6="","",SUM('③太陽光（余剰）'!H35:S35)) ->  | BK55: =IF($D$6="","",SUM('③太陽光（余剰）'!H36:S36)) ->  | BL55: =IF($D$6="","",SUM('③太陽光（余剰）'!H37:S37)) ->  | BM55: =IF($D$6="","",SUM('③太陽光（余剰）'!H38:S38)) -> 
B56: 各電気事業者の エリア内保有分 | D56: 電力量 | E56: 合計 | G56: =IF(COUNT(G57:G58)=0,"",SUM(G57:G58)) ->  | I56: =IF(COUNT(I57:I58)=0,"",SUM(I57:I58)) ->  | BE56: =IF(COUNT(BE57:BE58)=0,"",SUM(BE57:BE58)) ->  | BF56: =IF(COUNT(BF57:BF58)=0,"",SUM(BF57:BF58)) -> 
F57: 全量
F58: 余剰
B59: 各電気事業者の エリア内非電気事業者 からの調達分 | D59: 電力量 | E59: 合計 | G59: =IF(COUNT(G60:G61)=0,"",SUM(G60:G61)) ->  | I59: =IF(COUNT(I60:I61)=0,"",SUM(I60:I61)) ->  | BE59: =IF(COUNT(BE60:BE61)=0,"",SUM(BE60:BE61)) ->  | BF59: =IF(COUNT(BF60:BF61)=0,"",SUM(BF60:BF61)) -> 
F60: 全量
F61: 余剰
B62: 一般送配電想定との差分 | D62: 電力量 | E62: 合計 | G62: =IF(COUNT(G63:G64)=0,"",SUM(G63:G64)) ->  | I62: =IF(COUNT(I63:I64)=0,"",SUM(I63:I64)) ->  | BE62: =IF(COUNT(BE63:BE64)=0,"",SUM(BE63:BE64)) ->  | BF62: =IF(COUNT(BF63:BF64)=0,"",SUM(BF63:BF64)) -> 
F63: 全量 | G63: =IF(AND(G54="",G57="",G60=""),"",ROUNDDOWN(ROUND(SUM(G54)-SUM(G57)-SUM(G60),5),事業者リスト一覧!$B$63)) ->  | I63: =IF(AND(I54="",I57="",I60=""),"",ROUNDDOWN(ROUND(SUM(I54)-SUM(I57)-SUM(I60),5),事業者リスト一覧!$B$63)) ->  | K63: =IF(AND(K54="",K57="",K60=""),"",ROUNDDOWN(ROUND(SUM(K54)-SUM(K57)-SUM(K60),5),事業者リスト一覧!$B$63)) ->  | M63: =IF(AND(M54="",M57="",M60=""),"",ROUNDDOWN(ROUND(SUM(M54)-SUM(M57)-SUM(M60),5),事業者リスト一覧!$B$63)) ->  | O63: =IF(AND(O54="",O57="",O60=""),"",ROUNDDOWN(ROUND(SUM(O54)-SUM(O57)-SUM(O60),5),事業者リスト一覧!$B$63)) ->  | Q63: =IF(AND(Q54="",Q57="",Q60=""),"",ROUNDDOWN(ROUND(SUM(Q54)-SUM(Q57)-SUM(Q60),5),事業者リスト一覧!$B$63)) ->  | S63: =IF(AND(S54="",S57="",S60=""),"",ROUNDDOWN(ROUND(SUM(S54)-SUM(S57)-SUM(S60),5),事業者リスト一覧!$B$63)) ->  | U63: =IF(AND(U54="",U57="",U60=""),"",ROUNDDOWN(ROUND(SUM(U54)-SUM(U57)-SUM(U60),5),事業者リスト一覧!$B$63)) ->  | W63: =IF(AND(W54="",W57="",W60=""),"",ROUNDDOWN(ROUND(SUM(W54)-SUM(W57)-SUM(W60),5),事業者リスト一覧!$B$63)) ->  | Y63: =IF(AND(Y54="",Y57="",Y60=""),"",ROUNDDOWN(ROUND(SUM(Y54)-SUM(Y57)-SUM(Y60),5),事業者リスト一覧!$B$63)) ->  | AA63: =IF(AND(AA54="",AA57="",AA60=""),"",ROUNDDOWN(ROUND(SUM(AA54)-SUM(AA57)-SUM(AA60),5),事業者リスト一覧!$B$63)) ->  | AC63: =IF(AND(AC54="",AC57="",AC60=""),"",ROUNDDOWN(ROUND(SUM(AC54)-SUM(AC57)-SUM(AC60),5),事業者リスト一覧!$B$63)) ->  | BE63: =IF(AND(BE54="",BE57="",BE60=""),"",ROUNDDOWN(ROUND(SUM(BE54)-SUM(BE57)-SUM(BE60),5),事業者リスト一覧!$B$63)) ->  | BF63: =IF(AND(BF54="",BF57="",BF60=""),"",ROUNDDOWN(ROUND(SUM(BF54)-SUM(BF57)-SUM(BF60),5),事業者リスト一覧!$B$63)) ->  | BG63: =IF(AND(BG54="",BG57="",BG60=""),"",ROUNDDOWN(ROUND(SUM(BG54)-SUM(BG57)-SUM(BG60),5),事業者リスト一覧!$B$63)) ->  | BH63: =IF(AND(BH54="",BH57="",BH60=""),"",ROUNDDOWN(ROUND(SUM(BH54)-SUM(BH57)-SUM(BH60),5),事業者リスト一覧!$B$63)) ->  | BI63: =IF(AND(BI54="",BI57="",BI60=""),"",ROUNDDOWN(ROUND(SUM(BI54)-SUM(BI57)-SUM(BI60),5),事業者リスト一覧!$B$63)) ->  | BJ63: =IF(AND(BJ54="",BJ57="",BJ60=""),"",ROUNDDOWN(ROUND(SUM(BJ54)-SUM(BJ57)-SUM(BJ60),5),事業者リスト一覧!$B$63)) ->  | BK63: =IF(AND(BK54="",BK57="",BK60=""),"",ROUNDDOWN(ROUND(SUM(BK54)-SUM(BK57)-SUM(BK60),5),事業者リスト一覧!$B$63)) ->  | BL63: =IF(AND(BL54="",BL57="",BL60=""),"",ROUNDDOWN(ROUND(SUM(BL54)-SUM(BL57)-SUM(BL60),5),事業者リスト一覧!$B$63)) ->  | BM63: =IF(AND(BM54="",BM57="",BM60=""),"",ROUNDDOWN(ROUND(SUM(BM54)-SUM(BM57)-SUM(BM60),5),事業者リスト一覧!$B$63)) -> 
F64: 余剰 | G64: =IF(AND(G55="",G58="",G61=""),"",ROUNDDOWN(ROUND(SUM(G55)-SUM(G58)-SUM(G61),5),事業者リスト一覧!$B$63)) ->  | I64: =IF(AND(I55="",I58="",I61=""),"",ROUNDDOWN(ROUND(SUM(I55)-SUM(I58)-SUM(I61),5),事業者リスト一覧!$B$63)) ->  | K64: =IF(AND(K55="",K58="",K61=""),"",ROUNDDOWN(ROUND(SUM(K55)-SUM(K58)-SUM(K61),5),事業者リスト一覧!$B$63)) ->  | M64: =IF(AND(M55="",M58="",M61=""),"",ROUNDDOWN(ROUND(SUM(M55)-SUM(M58)-SUM(M61),5),事業者リスト一覧!$B$63)) ->  | O64: =IF(AND(O55="",O58="",O61=""),"",ROUNDDOWN(ROUND(SUM(O55)-SUM(O58)-SUM(O61),5),事業者リスト一覧!$B$63)) ->  | Q64: =IF(AND(Q55="",Q58="",Q61=""),"",ROUNDDOWN(ROUND(SUM(Q55)-SUM(Q58)-SUM(Q61),5),事業者リスト一覧!$B$63)) ->  | S64: =IF(AND(S55="",S58="",S61=""),"",ROUNDDOWN(ROUND(SUM(S55)-SUM(S58)-SUM(S61),5),事業者リスト一覧!$B$63)) ->  | U64: =IF(AND(U55="",U58="",U61=""),"",ROUNDDOWN(ROUND(SUM(U55)-SUM(U58)-SUM(U61),5),事業者リスト一覧!$B$63)) ->  | W64: =IF(AND(W55="",W58="",W61=""),"",ROUNDDOWN(ROUND(SUM(W55)-SUM(W58)-SUM(W61),5),事業者リスト一覧!$B$63)) ->  | Y64: =IF(AND(Y55="",Y58="",Y61=""),"",ROUNDDOWN(ROUND(SUM(Y55)-SUM(Y58)-SUM(Y61),5),事業者リスト一覧!$B$63)) ->  | AA64: =IF(AND(AA55="",AA58="",AA61=""),"",ROUNDDOWN(ROUND(SUM(AA55)-SUM(AA58)-SUM(AA61),5),事業者リスト一覧!$B$63)) ->  | AC64: =IF(AND(AC55="",AC58="",AC61=""),"",ROUNDDOWN(ROUND(SUM(AC55)-SUM(AC58)-SUM(AC61),5),事業者リスト一覧!$B$63)) ->  | BE64: =IF(AND(BE55="",BE58="",BE61=""),"",ROUNDDOWN(ROUND(SUM(BE55)-SUM(BE58)-SUM(BE61),5),事業者リスト一覧!$B$63)) ->  | BF64: =IF(AND(BF55="",BF58="",BF61=""),"",ROUNDDOWN(ROUND(SUM(BF55)-SUM(BF58)-SUM(BF61),5),事業者リスト一覧!$B$63)) ->  | BG64: =IF(AND(BG55="",BG58="",BG61=""),"",ROUNDDOWN(ROUND(SUM(BG55)-SUM(BG58)-SUM(BG61),5),事業者リスト一覧!$B$63)) ->  | BH64: =IF(AND(BH55="",BH58="",BH61=""),"",ROUNDDOWN(ROUND(SUM(BH55)-SUM(BH58)-SUM(BH61),5),事業者リスト一覧!$B$63)) ->  | BI64: =IF(AND(BI55="",BI58="",BI61=""),"",ROUNDDOWN(ROUND(SUM(BI55)-SUM(BI58)-SUM(BI61),5),事業者リスト一覧!$B$63)) ->  | BJ64: =IF(AND(BJ55="",BJ58="",BJ61=""),"",ROUNDDOWN(ROUND(SUM(BJ55)-SUM(BJ58)-SUM(BJ61),5),事業者リスト一覧!$B$63)) ->  | BK64: =IF(AND(BK55="",BK58="",BK61=""),"",ROUNDDOWN(ROUND(SUM(BK55)-SUM(BK58)-SUM(BK61),5),事業者リスト一覧!$B$63)) ->  | BL64: =IF(AND(BL55="",BL58="",BL61=""),"",ROUNDDOWN(ROUND(SUM(BL55)-SUM(BL58)-SUM(BL61),5),事業者リスト一覧!$B$63)) ->  | BM64: =IF(AND(BM55="",BM58="",BM61=""),"",ROUNDDOWN(ROUND(SUM(BM55)-SUM(BM58)-SUM(BM61),5),事業者リスト一覧!$B$63)) -> 

Sheet 補正（太陽光）指定２ (hidden)
A1: 太陽光補正シート | K1: 記載要領
H2: 入力箇所 | K2: ・エリア想定欄には、エリア全体（発電・小売分を含む）の設備量想定値を記載。尚、マクロ想定を行っていない項目は個別積み上げ値を記載。
A3: 供給区域 | B3: =IF('補正（ｋW）指定１'!$C$2="","",'補正（ｋW）指定１'!$C$2) ->  | C3: エリア | D3: =IF(B3="北海道",1,IF(B3="東北",2,IF(B3="北陸",5,IF(B3="","","作成不要")))) ->  | H3: リンク箇所 | K3: ・各電気事業者のエリア内保有分欄には、広域機関より提供する値を記載。
H4: 自動計算 | K4: ・各電気事業者のエリア内非電気事業者からの調達分欄には、整合性結果一覧より集約した値を記載。
A6: 受電取引帳票転記フォーマット | D6: =IF('補正（太陽光）指定１'!D6="","",'補正（太陽光）指定１'!D6) ->  | E6: 方式選択 | G6: Ⅰ：各月の設備量を反映 Ⅱ：当月と前月を比較し、少ない月の設備量を反映
A7: 項目 | G7: =事業者リスト一覧!$B$3 -> 2026 | H7: =G7+1 -> 2027 | I7: =H7+1 -> 2028 | J7: 2029 | K7: 2030 | L7: 2031 | M7: 2032 | N7: 2033 | O7: 2034 | P7: 2035 | Q7: 備考 （上中段：種別、下段：備考）
A10: 全量 | B10: 調達電力（MW） | D10: 8月電力 | Q10: 太陽光（全量）
D11: 1月電力 | G11: =IF(G51="","",ROUNDDOWN(G51,1)) ->  | Q11: 太陽光（全量）
B12: 月間調達電力量（GWh） | D12: 年間電力量
A14: 項目 | G14: =G7 -> 2026 | H14: =H7 -> 2027 | I14: =I7 -> 2028 | J14: =J7 -> 2029 | K14: 2030 | L14: 2031 | M14: 2032 | N14: 2033 | O14: 2034 | P14: 2035 | Q14: 備考 （上中段：種別、下段：備考）
A17: 余剰 | B17: 調達電力（MW） | D17: 8月電力 | Q17: 太陽光（余剰）
D18: 1月電力 | G18: =IF(G52="","",ROUNDDOWN(G52,1)) ->  | Q18: 太陽光（余剰）
B19: 月間調達電力量（GWh） | D19: 年間電力量
A23: 太陽光（指定２）
A24: 項目 | G24: =G7 -> 2026 | H24: =H7 -> 2027 | I24: =I7 -> 2028 | J24: 2029 | K24: 2030 | L24: 2031 | M24: 2032 | N24: 2033 | O24: 2034 | P24: 2035
A27: 調整係数出力比率 | E27: 全量 | I27: =IF(OR($D$3="",$D$3="作成不要"),"",OFFSET(調整係数!$B$12,I$24-$G$24,($D$3-1)*15+10)) ->  | J27: =IF(OR($D$3="",$D$3="作成不要"),"",OFFSET(調整係数!$B$12,J$24-$G$24,($D$3-1)*15+10)) ->  | K27: =IF(OR($D$3="",$D$3="作成不要"),"",OFFSET(調整係数!$B$12,K$24-$G$24,($D$3-1)*15+10)) ->  | L27: =IF(OR($D$3="",$D$3="作成不要"),"",OFFSET(調整係数!$B$12,L$24-$G$24,($D$3-1)*15+10)) ->  | M27: =IF(OR($D$3="",$D$3="作成不要"),"",OFFSET(調整係数!$B$12,M$24-$G$24,($D$3-1)*15+10)) ->  | N27: =IF(OR($D$3="",$D$3="作成不要"),"",OFFSET(調整係数!$B$12,N$24-$G$24,($D$3-1)*15+10)) ->  | O27: =IF(OR($D$3="",$D$3="作成不要"),"",OFFSET(調整係数!$B$12,O$24-$G$24,($D$3-1)*15+10)) ->  | P27: =IF(OR($D$3="",$D$3="作成不要"),"",OFFSET(調整係数!$B$12,P$24-$G$24,($D$3-1)*15+10)) -> 
E28: 余剰 | I28: =IF(OR($D$3="",$D$3="作成不要"),"",OFFSET(調整係数!$B$46,I$24-$G$24,($D$3-1)*15+10)) ->  | J28: =IF(OR($D$3="",$D$3="作成不要"),"",OFFSET(調整係数!$B$46,J$24-$G$24,($D$3-1)*15+10)) ->  | K28: =IF(OR($D$3="",$D$3="作成不要"),"",OFFSET(調整係数!$B$46,K$24-$G$24,($D$3-1)*15+10)) ->  | L28: =IF(OR($D$3="",$D$3="作成不要"),"",OFFSET(調整係数!$B$46,L$24-$G$24,($D$3-1)*15+10)) ->  | M28: =IF(OR($D$3="",$D$3="作成不要"),"",OFFSET(調整係数!$B$46,M$24-$G$24,($D$3-1)*15+10)) ->  | N28: =IF(OR($D$3="",$D$3="作成不要"),"",OFFSET(調整係数!$B$46,N$24-$G$24,($D$3-1)*15+10)) ->  | O28: =IF(OR($D$3="",$D$3="作成不要"),"",OFFSET(調整係数!$B$46,O$24-$G$24,($D$3-1)*15+10)) ->  | P28: =IF(OR($D$3="",$D$3="作成不要"),"",OFFSET(調整係数!$B$46,P$24-$G$24,($D$3-1)*15+10)) -> 
A29: ｋＷ | B29: エリア想定 | D29: 設備量 | E29: 合計 | I29: =IF(COUNT(I30:I31)=0,"",SUM(I30:I31)) ->  | J29: =IF(COUNT(J30:J31)=0,"",SUM(J30:J31)) -> 
F30: 全量 | I30: =IF($D$3="作成不要","",IF('補正（太陽光）指定１'!$D$6="","",IF('補正（太陽光）指定１'!$D$6="Ⅰ",'②太陽光（全量）'!Q15,MIN('②太陽光（全量）'!P15,'②太陽光（全量）'!Q15)))) ->  | J30: =IF($D$3="作成不要","",IF('補正（太陽光）指定１'!$D$6="","",IF('補正（太陽光）指定１'!$D$6="Ⅰ",'②太陽光（全量）'!Q16,MIN('②太陽光（全量）'!P16,'②太陽光（全量）'!Q16)))) ->  | K30: =IF($D$3="作成不要","",IF('補正（太陽光）指定１'!$D$6="","",IF('補正（太陽光）指定１'!$D$6="Ⅰ",'②太陽光（全量）'!Q17,MIN('②太陽光（全量）'!P17,'②太陽光（全量）'!Q17)))) ->  | L30: =IF($D$3="作成不要","",IF('補正（太陽光）指定１'!$D$6="","",IF('補正（太陽光）指定１'!$D$6="Ⅰ",'②太陽光（全量）'!Q18,MIN('②太陽光（全量）'!P18,'②太陽光（全量）'!Q18)))) ->  | M30: =IF($D$3="作成不要","",IF('補正（太陽光）指定１'!$D$6="","",IF('補正（太陽光）指定１'!$D$6="Ⅰ",'②太陽光（全量）'!Q19,MIN('②太陽光（全量）'!P19,'②太陽光（全量）'!Q19)))) ->  | N30: =IF($D$3="作成不要","",IF('補正（太陽光）指定１'!$D$6="","",IF('補正（太陽光）指定１'!$D$6="Ⅰ",'②太陽光（全量）'!Q20,MIN('②太陽光（全量）'!P20,'②太陽光（全量）'!Q20)))) ->  | O30: =IF($D$3="作成不要","",IF('補正（太陽光）指定１'!$D$6="","",IF('補正（太陽光）指定１'!$D$6="Ⅰ",'②太陽光（全量）'!Q21,MIN('②太陽光（全量）'!P21,'②太陽光（全量）'!Q21)))) ->  | P30: =IF($D$3="作成不要","",IF('補正（太陽光）指定１'!$D$6="","",IF('補正（太陽光）指定１'!$D$6="Ⅰ",'②太陽光（全量）'!Q22,MIN('②太陽光（全量）'!P22,'②太陽光（全量）'!Q22)))) -> 
F31: 余剰 | I31: =IF($D$3="作成不要","",IF('補正（太陽光）指定１'!$D$6="","",IF('補正（太陽光）指定１'!$D$6="Ⅰ",'③太陽光（余剰）'!Q15,MIN('③太陽光（余剰）'!P15,'③太陽光（余剰）'!Q15)))) ->  | J31: =IF($D$3="作成不要","",IF('補正（太陽光）指定１'!$D$6="","",IF('補正（太陽光）指定１'!$D$6="Ⅰ",'③太陽光（余剰）'!Q16,MIN('③太陽光（余剰）'!P16,'③太陽光（余剰）'!Q16)))) ->  | K31: =IF($D$3="作成不要","",IF('補正（太陽光）指定１'!$D$6="","",IF('補正（太陽光）指定１'!$D$6="Ⅰ",'③太陽光（余剰）'!Q17,MIN('③太陽光（余剰）'!P17,'③太陽光（余剰）'!Q17)))) ->  | L31: =IF($D$3="作成不要","",IF('補正（太陽光）指定１'!$D$6="","",IF('補正（太陽光）指定１'!$D$6="Ⅰ",'③太陽光（余剰）'!Q18,MIN('③太陽光（余剰）'!P18,'③太陽光（余剰）'!Q18)))) ->  | M31: =IF($D$3="作成不要","",IF('補正（太陽光）指定１'!$D$6="","",IF('補正（太陽光）指定１'!$D$6="Ⅰ",'③太陽光（余剰）'!Q19,MIN('③太陽光（余剰）'!P19,'③太陽光（余剰）'!Q19)))) ->  | N31: =IF($D$3="作成不要","",IF('補正（太陽光）指定１'!$D$6="","",IF('補正（太陽光）指定１'!$D$6="Ⅰ",'③太陽光（余剰）'!Q20,MIN('③太陽光（余剰）'!P20,'③太陽光（余剰）'!Q20)))) ->  | O31: =IF($D$3="作成不要","",IF('補正（太陽光）指定１'!$D$6="","",IF('補正（太陽光）指定１'!$D$6="Ⅰ",'③太陽光（余剰）'!Q21,MIN('③太陽光（余剰）'!P21,'③太陽光（余剰）'!Q21)))) ->  | P31: =IF($D$3="作成不要","",IF('補正（太陽光）指定１'!$D$6="","",IF('補正（太陽光）指定１'!$D$6="Ⅰ",'③太陽光（余剰）'!Q22,MIN('③太陽光（余剰）'!P22,'③太陽光（余剰）'!Q22)))) -> 
D32: 供給電力 （調整係数） | E32: 合計 | I32: =IF(COUNT(I33:I34)=0,"",SUM(I33:I34)) ->  | J32: =IF(COUNT(J33:J34)=0,"",SUM(J33:J34)) -> 
F33: 全量 | I33: =IF(COUNT(I27,I30)<2,"",ROUNDDOWN(I30*I27/100,2)) -> 
F34: 余剰
B35: 各電気事業者の エリア内保有分 | D35: 設備量 | E35: 合計 | I35: =IF(COUNT(I36:I37)=0,"",SUM(I36:I37)) ->  | J35: =IF(COUNT(J36:J37)=0,"",SUM(J36:J37)) -> 
F36: 全量 | I36: =IF(COUNT(I27,I39)<2,"",ROUNDDOWN(I39/I27*100,2)) ->  | Q36: =IF(Q39="","",IF(Q27=0,0,IF(Q27="","",ROUNDDOWN(Q39/(Q$27/100),2)))) -> 
F37: 余剰 | Q37: =IF(Q40="","",IF(Q28=0,0,IF(Q28="","",ROUNDDOWN(Q40/(Q$28/100),2)))) -> 
D38: 供給電力 （調整係数） | E38: 合計 | I38: =IF(COUNT(I39:I40)=0,"",SUM(I39:I40)) ->  | J38: =IF(COUNT(J39:J40)=0,"",SUM(J39:J40)) -> 
F39: 全量
F40: 余剰
B41: 各電気事業者の エリア内非電気事業者 からの調達分 | D41: 設備量 | E41: 合計 | I41: =IF(COUNT(I42:I43)=0,"",SUM(I42:I43)) ->  | J41: =IF(COUNT(J42:J43)=0,"",SUM(J42:J43)) -> 
F42: 全量 | I42: =IF(COUNT(I27,I45)<2,"",ROUNDDOWN(I45/I27*100,2)) ->  | Q42: =IF(Q45="","",IF(Q33=0,0,IF(Q33="","",ROUNDDOWN(Q45/(Q$27/100),2)))) ->  | R42: =IF(R45="","",IF(R33=0,0,IF(R33="","",ROUNDDOWN(R45/(R$27/100),2)))) -> 
F43: 余剰 | Q43: =IF(Q46="","",IF(Q34=0,0,IF(Q34="","",ROUNDDOWN(Q46/(Q$28/100),2)))) ->  | R43: =IF(R46="","",IF(R34=0,0,IF(R34="","",ROUNDDOWN(R46/(R$28/100),2)))) -> 
D44: 供給電力 （調整係数） | E44: 合計 | I44: =IF(COUNT(I45:I46)=0,"",SUM(I45:I46)) ->  | J44: =IF(COUNT(J45:J46)=0,"",SUM(J45:J46)) -> 
F45: 全量
F46: 余剰
B47: 一般送配電想定との差分 | D47: 設備量 | E47: 合計 | I47: =IF(COUNT(I48:I49)=0,"",SUM(I48:I49)) ->  | J47: =IF(COUNT(J48:J49)=0,"",SUM(J48:J49)) -> 
F48: 全量 | I48: =IF(AND(I30="",I36="",I42=""),"",SUM(I30)-SUM(I36)-SUM(I42)) -> 
F49: 余剰
D50: 供給電力 （調整係数） | E50: 合計 | G50: =IF(COUNT(G51:G52)=0,"",SUM(G51:G52)) ->  | I50: =IF(COUNT(I51:I52)=0,"",SUM(I51:I52)) ->  | J50: =IF(COUNT(J51:J52)=0,"",SUM(J51:J52)) ->  | K50: =IF(COUNT(K51:K52)=0,"",SUM(K51:K52)) ->  | L50: =IF(COUNT(L51:L52)=0,"",SUM(L51:L52)) ->  | M50: =IF(COUNT(M51:M52)=0,"",SUM(M51:M52)) ->  | N50: =IF(COUNT(N51:N52)=0,"",SUM(N51:N52)) ->  | O50: =IF(COUNT(O51:O52)=0,"",SUM(O51:O52)) ->  | P50: =IF(COUNT(P51:P52)=0,"",SUM(P51:P52)) -> 
F51: 全量 | G51: =IF(OR($D$3="",$D$3="作成不要",COUNT('補正（太陽光）指定１'!Y51,'補正（太陽光）指定１'!Z51)=0),"",ROUND(SUM(IFERROR('補正（太陽光）指定１'!Y51*15,0),IFERROR('補正（太陽光）指定１'!Z51*16,0))/31,事業者リスト一覧!$B$63)) ->  | H51: =IF(OR($D$3="",$D$3="作成不要",COUNT('補正（太陽光）指定１'!AW51,'補正（太陽光）指定１'!AX51)=0),"",ROUND(SUM(IFERROR('補正（太陽光）指定１'!AW51*15,0),IFERROR('補正（太陽光）指定１'!AX51*16,0))/31,事業者リスト一覧!$B$63)) ->  | I51: =IF(AND(I33="",I39="",I45=""),"",ROUNDDOWN(ROUND(SUM(I33)-SUM(I39)-SUM(I45),5),事業者リスト一覧!$B$63)) ->  | J51: =IF(AND(J33="",J39="",J45=""),"",ROUNDDOWN(ROUND(SUM(J33)-SUM(J39)-SUM(J45),5),事業者リスト一覧!$B$63)) ->  | K51: =IF(AND(K33="",K39="",K45=""),"",ROUNDDOWN(ROUND(SUM(K33)-SUM(K39)-SUM(K45),5),事業者リスト一覧!$B$63)) ->  | L51: =IF(AND(L33="",L39="",L45=""),"",ROUNDDOWN(ROUND(SUM(L33)-SUM(L39)-SUM(L45),5),事業者リスト一覧!$B$63)) ->  | M51: =IF(AND(M33="",M39="",M45=""),"",ROUNDDOWN(ROUND(SUM(M33)-SUM(M39)-SUM(M45),5),事業者リスト一覧!$B$63)) ->  | N51: =IF(AND(N33="",N39="",N45=""),"",ROUNDDOWN(ROUND(SUM(N33)-SUM(N39)-SUM(N45),5),事業者リスト一覧!$B$63)) ->  | O51: =IF(AND(O33="",O39="",O45=""),"",ROUNDDOWN(ROUND(SUM(O33)-SUM(O39)-SUM(O45),5),事業者リスト一覧!$B$63)) ->  | P51: =IF(AND(P33="",P39="",P45=""),"",ROUNDDOWN(ROUND(SUM(P33)-SUM(P39)-SUM(P45),5),事業者リスト一覧!$B$63)) -> 
F52: 余剰 | G52: =IF(OR($D$3="",$D$3="作成不要",COUNT('補正（太陽光）指定１'!Y52,'補正（太陽光）指定１'!Z52)=0),"",ROUND(SUM(IFERROR('補正（太陽光）指定１'!Y52*15,0),IFERROR('補正（太陽光）指定１'!Z52*16,0))/31,事業者リスト一覧!$B$63)) ->  | H52: =IF(OR($D$3="",$D$3="作成不要",COUNT('補正（太陽光）指定１'!AW52,'補正（太陽光）指定１'!AX52)=0),"",ROUND(SUM(IFERROR('補正（太陽光）指定１'!AW52*15,0),IFERROR('補正（太陽光）指定１'!AX52*16,0))/31,事業者リスト一覧!$B$63)) ->  | I52: =IF(AND(I34="",I40="",I46=""),"",ROUNDDOWN(ROUND(SUM(I34)-SUM(I40)-SUM(I46),5),事業者リスト一覧!$B$63)) ->  | J52: =IF(AND(J34="",J40="",J46=""),"",ROUNDDOWN(ROUND(SUM(J34)-SUM(J40)-SUM(J46),5),事業者リスト一覧!$B$63)) ->  | K52: =IF(AND(K34="",K40="",K46=""),"",ROUNDDOWN(ROUND(SUM(K34)-SUM(K40)-SUM(K46),5),事業者リスト一覧!$B$63)) ->  | L52: =IF(AND(L34="",L40="",L46=""),"",ROUNDDOWN(ROUND(SUM(L34)-SUM(L40)-SUM(L46),5),事業者リスト一覧!$B$63)) ->  | M52: =IF(AND(M34="",M40="",M46=""),"",ROUNDDOWN(ROUND(SUM(M34)-SUM(M40)-SUM(M46),5),事業者リスト一覧!$B$63)) ->  | N52: =IF(AND(N34="",N40="",N46=""),"",ROUNDDOWN(ROUND(SUM(N34)-SUM(N40)-SUM(N46),5),事業者リスト一覧!$B$63)) ->  | O52: =IF(AND(O34="",O40="",O46=""),"",ROUNDDOWN(ROUND(SUM(O34)-SUM(O40)-SUM(O46),5),事業者リスト一覧!$B$63)) ->  | P52: =IF(AND(P34="",P40="",P46=""),"",ROUNDDOWN(ROUND(SUM(P34)-SUM(P40)-SUM(P46),5),事業者リスト一覧!$B$63)) -> 
A53: ｋＷｈ | B53: エリア想定 | D53: 電力量 | E53: 合計
F54: 全量
F55: 余剰
B56: 各電気事業者の エリア内保有分 | D56: 電力量 | E56: 合計
F57: 全量
F58: 余剰
B59: 内訳 | C59: 非電気→小売 | D59: 電力量 | E59: 合計
F60: 全量
F61: 余剰
C62: 発電→小売 | D62: 電力量 | E62: 合計
F63: 全量
F64: 余剰
B65: 各電気事業者の エリア内非電気事業者 からの調達分 | D65: 電力量 | E65: 合計
F66: 全量
F67: 余剰
B68: 一般送配電想定との差分 | D68: 電力量 | E68: 合計
F69: 全量
F70: 余剰

Sheet 補正（風力）指定１ (hidden)
A1: 風力補正シート | N1: 記載要領
J2: 入力箇所 | N2: ・エリア想定欄には、エリア全体（発電・小売分を含む）の設備量想定値を記載。尚、マクロ想定を行っていない項目は個別積み上げ値を記載。
A3: 供給区域 | B3: =IF('補正（ｋW）指定１'!$C$2="","",'補正（ｋW）指定１'!$C$2) ->  | C3: エリア | D3: =IF(B3="北海道",1,IF(B3="東北",2,IF(B3="東京",3,IF(B3="中部",4,IF(B3="北陸",5,IF(B3="関西",6,IF(B3="中国",7,IF(B3="四国",8,IF(B3="九州",9,IF(B3="沖縄",10,IF(B3="","","正しいエリア名を入力してください"))))))))))) ->  | J3: リンク箇所 | N3: ・各電気事業者のエリア内保有分欄には、広域機関より提供する値を記載。
J4: 自動計算 | N4: ・各電気事業者のエリア内非電気事業者からの調達分欄には、整合性結果一覧より集約した値を記載。
N5: ・個別積み上げ方式を選択した場合、エリア内の非電気事業者からの調達分について、
A6: 受電取引帳票転記フォーマット | E6: 方式選択 | G6: Ⅰ：各月の設備量を反映 Ⅱ：当月と前月を比較し、少ない月の設備量を反映 | N6: 各電気事業者調達分欄には整合性結果一覧より集約した値を記載し、一般送配電事業者調達分欄には受電取引帳票より該当する取引の値を記載する。
A7: 項目 | G7: =事業者リスト一覧!$B$3 -> 2026 | AE7: =G7+1 -> 2027 | BC7: 項目 | BD7: =G7 -> 2026 | BE7: =BD7+1 -> 2027 | BF7: =BE7+1 -> 2028 | BG7: 2029 | BH7: 2030 | BI7: 2031 | BJ7: 2032 | BK7: 2033 | BL7: 2034 | BM7: 2035 | BN7: 備考 （上中段：種別、下段：備考）
G8: 4月 | I8: 5月 | K8: 6月 | M8: 7月 | O8: 8月 | Q8: 9月 | S8: 10月 | U8: 11月 | W8: 12月 | Y8: 1月 | AA8: 2月 | AC8: 3月 | AE8: 4月 | AG8: 5月 | AI8: 6月 | AK8: 7月 | AM8: 8月 | AO8: 9月 | AQ8: 10月 | AS8: 11月 | AU8: 12月 | AW8: 1月 | AY8: 2月 | BA8: 3月
G9: (前半) | H9: (後半) | I9: (前半) | J9: (後半) | K9: (前半) | L9: (後半) | M9: (前半) | N9: (後半) | O9: (前半) | P9: (後半) | Q9: (前半) | R9: (後半) | S9: (前半) | T9: (後半) | U9: (前半) | V9: (後半) | W9: (前半) | X9: (後半) | Y9: (前半) | Z9: (後半) | AA9: (前半) | AB9: (後半) | AC9: (前半) | AD9: (後半) | AE9: (前半) | AF9: (後半) | AG9: (前半) | AH9: (後半) | AI9: (前半) | AJ9: (後半) | AK9: (前半) | AL9: (後半) | AM9: (前半) | AN9: (後半) | AO9: (前半) | AP9: (後半) | AQ9: (前半) | AR9: (後半) | AS9: (前半) | AT9: (後半) | AU9: (前半) | AV9: (後半) | AW9: (前半) | AX9: (後半) | AY9: (前半) | AZ9: (後半) | BA9: (前半) | BB9: (後半)
A10: 風力 | B10: 調達電力（MW） | G10: =IF($D$14=2,0,IF(G28="","",ROUNDDOWN(G28,1))) ->  | H10: =IF($D$14=2,0,IF(H28="","",ROUNDDOWN(H28,1))) ->  | BC10: 8月電力 | BN10: 風力
BC11: 1月電力 | BD11: =IF(OR($D$3=1,$D$3=2,$D$3=5),'補正（風力）指定２'!G11,"") ->  | BE11: =IF(OR($D$3=1,$D$3=2,$D$3=5),'補正（風力）指定２'!H11,"") ->  | BF11: =IF(OR($D$3=1,$D$3=2,$D$3=5),'補正（風力）指定２'!I11,"") ->  | BG11: =IF(OR($D$3=1,$D$3=2,$D$3=5),'補正（風力）指定２'!J11,"") ->  | BH11: =IF(OR($D$3=1,$D$3=2,$D$3=5),'補正（風力）指定２'!K11,"") ->  | BI11: =IF(OR($D$3=1,$D$3=2,$D$3=5),'補正（風力）指定２'!L11,"") ->  | BJ11: =IF(OR($D$3=1,$D$3=2,$D$3=5),'補正（風力）指定２'!M11,"") ->  | BK11: =IF(OR($D$3=1,$D$3=2,$D$3=5),'補正（風力）指定２'!N11,"") ->  | BL11: =IF(OR($D$3=1,$D$3=2,$D$3=5),'補正（風力）指定２'!O11,"") ->  | BM11: =IF(OR($D$3=1,$D$3=2,$D$3=5),'補正（風力）指定２'!P11,"") ->  | BN11: 風力
B12: 月間調達電力量（GWh） | G12: =IF($D$14=2,0,IF(G32="","",ROUNDDOWN(G32,1))) ->  | H12: =IF($D$14=2,0,IF(H30="","",ROUNDDOWN(H30,1))) ->  | I12: =IF($D$14=2,0,IF(I32="","",ROUNDDOWN(I32,1))) ->  | K12: =IF($D$14=2,0,IF(K32="","",ROUNDDOWN(K32,1))) ->  | M12: =IF($D$14=2,0,IF(M32="","",ROUNDDOWN(M32,1))) ->  | O12: =IF($D$14=2,0,IF(O32="","",ROUNDDOWN(O32,1))) ->  | Q12: =IF($D$14=2,0,IF(Q32="","",ROUNDDOWN(Q32,1))) ->  | S12: =IF($D$14=2,0,IF(S32="","",ROUNDDOWN(S32,1))) ->  | U12: =IF($D$14=2,0,IF(U32="","",ROUNDDOWN(U32,1))) ->  | W12: =IF($D$14=2,0,IF(W32="","",ROUNDDOWN(W32,1))) ->  | Y12: =IF($D$14=2,0,IF(Y32="","",ROUNDDOWN(Y32,1))) ->  | AA12: =IF($D$14=2,0,IF(AA32="","",ROUNDDOWN(AA32,1))) ->  | AC12: =IF($D$14=2,0,IF(AC32="","",ROUNDDOWN(AC32,1))) ->  | BC12: 年間電力量 | BD12: =IF($D$14=2,0,IF(BD32="","",ROUNDDOWN(BD32,1))) ->  | BE12: =IF($D$14=2,0,IF(BE32="","",ROUNDDOWN(BE32,1))) -> 
E14: 方式選択 | G14: １：設備量想定方式 ２：個別積み上げ方式
A16: 風力（指定１） | C16: １：設備量想定方式用入力シート | BM16: 【ＭＷ、ＧＷｈ】
A17: 項目 | G17: =G7 -> 2026 | AE17: =AE7 -> 2027 | BD17: =BD7 -> 2026 | BE17: =BE7 -> 2027 | BF17: =BF7 -> 2028 | BG17: 2029 | BH17: 2030 | BI17: 2031 | BJ17: 2032 | BK17: 2033 | BL17: 2034 | BM17: 2035
G18: 4 | I18: 5 | K18: 6 | M18: 7 | O18: 8 | Q18: 9 | S18: 10 | U18: 11 | W18: 12 | Y18: 1 | AA18: 2 | AC18: 3 | AE18: 4 | AG18: 5 | AI18: 6 | AK18: 7 | AM18: 8 | AO18: 9 | AQ18: 10 | AS18: 11 | AU18: 12 | AW18: 1 | AY18: 2 | BA18: 3
G19: (前半) | H19: (後半) | I19: (前半) | J19: (後半) | K19: (前半) | L19: (後半) | M19: (前半) | N19: (後半) | O19: (前半) | P19: (後半) | Q19: (前半) | R19: (後半) | S19: (前半) | T19: (後半) | U19: (前半) | V19: (後半) | W19: (前半) | X19: (後半) | Y19: (前半) | Z19: (後半) | AA19: (前半) | AB19: (後半) | AC19: (前半) | AD19: (後半) | AE19: (前半) | AF19: (後半) | AG19: (前半) | AH19: (後半) | AI19: (前半) | AJ19: (後半) | AK19: (前半) | AL19: (後半) | AM19: (前半) | AN19: (後半) | AO19: (前半) | AP19: (後半) | AQ19: (前半) | AR19: (後半) | AS19: (前半) | AT19: (後半) | AU19: (前半) | AV19: (後半) | AW19: (前半) | AX19: (後半) | AY19: (前半) | AZ19: (後半) | BA19: (前半) | BB19: (後半)
A20: 調整係数出力比率 | G20: =IF(OR($D$3="",$D$14=2),"",OFFSET(調整係数!$B$25,0,($D$3-1)*15+IF(G18>3,G18-3,G18+9))) ->  | H20: =G20 ->  | I20: =IF(OR($D$3="",$D$14=2),"",OFFSET(調整係数!$B$25,0,($D$3-1)*15+IF(I18>3,I18-3,I18+9))) ->  | J20: =I20 ->  | K20: =IF(OR($D$3="",$D$14=2),"",OFFSET(調整係数!$B$25,0,($D$3-1)*15+IF(K18>3,K18-3,K18+9))) ->  | L20: =K20 ->  | M20: =IF(OR($D$3="",$D$14=2),"",OFFSET(調整係数!$B$25,0,($D$3-1)*15+IF(M18>3,M18-3,M18+9))) ->  | N20: =M20 ->  | O20: =IF(OR($D$3="",$D$14=2),"",OFFSET(調整係数!$B$25,0,($D$3-1)*15+IF(O18>3,O18-3,O18+9))) ->  | P20: =O20 ->  | Q20: =IF(OR($D$3="",$D$14=2),"",OFFSET(調整係数!$B$25,0,($D$3-1)*15+IF(Q18>3,Q18-3,Q18+9))) ->  | R20: =Q20 ->  | S20: =IF(OR($D$3="",$D$14=2),"",OFFSET(調整係数!$B$25,0,($D$3-1)*15+IF(S18>3,S18-3,S18+9))) ->  | T20: =S20 ->  | U20: =IF(OR($D$3="",$D$14=2),"",OFFSET(調整係数!$B$25,0,($D$3-1)*15+IF(U18>3,U18-3,U18+9))) ->  | V20: =U20 ->  | W20: =IF(OR($D$3="",$D$14=2),"",OFFSET(調整係数!$B$25,0,($D$3-1)*15+IF(W18>3,W18-3,W18+9))) ->  | X20: =W20 ->  | Y20: =IF(OR($D$3="",$D$14=2),"",OFFSET(調整係数!$B$25,0,($D$3-1)*15+IF(Y18>3,Y18-3,Y18+9))) ->  | Z20: =Y20 ->  | AA20: =IF(OR($D$3="",$D$14=2),"",OFFSET(調整係数!$B$25,0,($D$3-1)*15+IF(AA18>3,AA18-3,AA18+9))) ->  | AB20: =AA20 ->  | AC20: =IF(OR($D$3="",$D$14=2),"",OFFSET(調整係数!$B$25,0,($D$3-1)*15+IF(AC18>3,AC18-3,AC18+9))) ->  | AD20: =AC20 ->  | AE20: =IF(OR($D$3="",$D$14=2),"",OFFSET(調整係数!$B$25,1,($D$3-1)*15+IF(AE18>3,AE18-3,AE18+9))) ->  | AF20: =AE20 ->  | AG20: =IF(OR($D$3="",$D$14=2),"",OFFSET(調整係数!$B$25,1,($D$3-1)*15+IF(AG18>3,AG18-3,AG18+9))) ->  | AH20: =AG20 ->  | AI20: =IF(OR($D$3="",$D$14=2),"",OFFSET(調整係数!$B$25,1,($D$3-1)*15+IF(AI18>3,AI18-3,AI18+9))) ->  | AJ20: =AI20 ->  | AK20: =IF(OR($D$3="",$D$14=2),"",OFFSET(調整係数!$B$25,1,($D$3-1)*15+IF(AK18>3,AK18-3,AK18+9))) ->  | AL20: =AK20 ->  | AM20: =IF(OR($D$3="",$D$14=2),"",OFFSET(調整係数!$B$25,1,($D$3-1)*15+IF(AM18>3,AM18-3,AM18+9))) ->  | AN20: =AM20 ->  | AO20: =IF(OR($D$3="",$D$14=2),"",OFFSET(調整係数!$B$25,1,($D$3-1)*15+IF(AO18>3,AO18-3,AO18+9))) ->  | AP20: =AO20 ->  | AQ20: =IF(OR($D$3="",$D$14=2),"",OFFSET(調整係数!$B$25,1,($D$3-1)*15+IF(AQ18>3,AQ18-3,AQ18+9))) ->  | AR20: =AQ20 ->  | AS20: =IF(OR($D$3="",$D$14=2),"",OFFSET(調整係数!$B$25,1,($D$3-1)*15+IF(AS18>3,AS18-3,AS18+9))) ->  | AT20: =AS20 ->  | AU20: =IF(OR($D$3="",$D$14=2),"",OFFSET(調整係数!$B$25,1,($D$3-1)*15+IF(AU18>3,AU18-3,AU18+9))) ->  | AV20: =AU20 ->  | AW20: =IF(OR($D$3="",$D$14=2),"",OFFSET(調整係数!$B$25,1,($D$3-1)*15+IF(AW18>3,AW18-3,AW18+9))) ->  | AX20: =AW20 ->  | AY20: =IF(OR($D$3="",$D$14=2),"",OFFSET(調整係数!$B$25,1,($D$3-1)*15+IF(AY18>3,AY18-3,AY18+9))) ->  | AZ20: =AY20 ->  | BA20: =IF(OR($D$3="",$D$14=2),"",OFFSET(調整係数!$B$25,1,($D$3-1)*15+IF(BA18>3,BA18-3,BA18+9))) ->  | BB20: =BA20 ->  | BF20: =IF(OR($D$3="",$D$14=2),"",OFFSET(調整係数!$B$25,BF$17-$BD$17,($D$3-1)*15+5)) ->  | BG20: =IF(OR($D$3="",$D$14=2),"",OFFSET(調整係数!$B$25,BG$17-$BD$17,($D$3-1)*15+5)) ->  | BH20: =IF(OR($D$3="",$D$14=2),"",OFFSET(調整係数!$B$25,BH$17-$BD$17,($D$3-1)*15+5)) ->  | BI20: =IF(OR($D$3="",$D$14=2),"",OFFSET(調整係数!$B$25,BI$17-$BD$17,($D$3-1)*15+5)) ->  | BJ20: =IF(OR($D$3="",$D$14=2),"",OFFSET(調整係数!$B$25,BJ$17-$BD$17,($D$3-1)*15+5)) ->  | BK20: =IF(OR($D$3="",$D$14=2),"",OFFSET(調整係数!$B$25,BK$17-$BD$17,($D$3-1)*15+5)) ->  | BL20: =IF(OR($D$3="",$D$14=2),"",OFFSET(調整係数!$B$25,BL$17-$BD$17,($D$3-1)*15+5)) ->  | BM20: =IF(OR($D$3="",$D$14=2),"",OFFSET(調整係数!$B$25,BM$17-$BD$17,($D$3-1)*15+5)) -> 
A21: ｋＷ | B21: エリア想定 | D21: 設備量 | G21: =IF($D$14=1,IF($D$6="Ⅰ",①風力!H13,MIN(①風力!S12,①風力!H13)),"") ->  | H21: =G21 ->  | I21: =IF($D$14=1,IF($D$6="Ⅰ",①風力!I13,MIN(①風力!H13,①風力!I13)),"") ->  | J21: =I21 ->  | K21: =IF($D$14=1,IF($D$6="Ⅰ",①風力!J13,MIN(①風力!I13,①風力!J13)),"") ->  | L21: =K21 ->  | M21: =IF($D$14=1,IF($D$6="Ⅰ",①風力!K13,MIN(①風力!J13,①風力!K13)),"") ->  | N21: =M21 ->  | O21: =IF($D$14=1,IF($D$6="Ⅰ",①風力!L13,MIN(①風力!K13,①風力!L13)),"") ->  | P21: =O21 ->  | Q21: =IF($D$14=1,IF($D$6="Ⅰ",①風力!M13,MIN(①風力!L13,①風力!M13)),"") ->  | R21: =Q21 ->  | S21: =IF($D$14=1,IF($D$6="Ⅰ",①風力!N13,MIN(①風力!M13,①風力!N13)),"") ->  | T21: =S21 ->  | U21: =IF($D$14=1,IF($D$6="Ⅰ",①風力!O13,MIN(①風力!N13,①風力!O13)),"") ->  | V21: =U21 ->  | W21: =IF($D$14=1,IF($D$6="Ⅰ",①風力!P13,MIN(①風力!O13,①風力!P13)),"") ->  | X21: =W21 ->  | Y21: =IF($D$14=1,IF($D$6="Ⅰ",①風力!Q13,MIN(①風力!P13,①風力!Q13)),"") ->  | Z21: =Y21 ->  | AA21: =IF($D$14=1,IF($D$6="Ⅰ",①風力!R13,MIN(①風力!Q13,①風力!R13)),"") ->  | AB21: =AA21 ->  | AC21: =IF($D$14=1,IF($D$6="Ⅰ",①風力!S13,MIN(①風力!R13,①風力!S13)),"") ->  | AD21: =AC21 ->  | AE21: =IF($D$14=1,IF($D$6="Ⅰ",①風力!H14,MIN(①風力!S13,①風力!H14)),"") ->  | AF21: =AE21 ->  | AG21: =IF($D$14=1,IF($D$6="Ⅰ",①風力!I14,MIN(①風力!H14,①風力!I14)),"") ->  | AH21: =AG21 ->  | AI21: =IF($D$14=1,IF($D$6="Ⅰ",①風力!J14,MIN(①風力!I14,①風力!J14)),"") ->  | AJ21: =AI21 ->  | AK21: =IF($D$14=1,IF($D$6="Ⅰ",①風力!K14,MIN(①風力!J14,①風力!K14)),"") ->  | AL21: =AK21 ->  | AM21: =IF($D$14=1,IF($D$6="Ⅰ",①風力!L14,MIN(①風力!K14,①風力!L14)),"") ->  | AN21: =AM21 ->  | AO21: =IF($D$14=1,IF($D$6="Ⅰ",①風力!M14,MIN(①風力!L14,①風力!M14)),"") ->  | AP21: =AO21 ->  | AQ21: =IF($D$14=1,IF($D$6="Ⅰ",①風力!N14,MIN(①風力!M14,①風力!N14)),"") ->  | AR21: =AQ21 ->  | AS21: =IF($D$14=1,IF($D$6="Ⅰ",①風力!O14,MIN(①風力!N14,①風力!O14)),"") ->  | AT21: =AS21 ->  | AU21: =IF($D$14=1,IF($D$6="Ⅰ",①風力!P14,MIN(①風力!O14,①風力!P14)),"") ->  | AV21: =AU21 ->  | AW21: =IF($D$14=1,IF($D$6="Ⅰ",①風力!Q14,MIN(①風力!P14,①風力!Q14)),"") ->  | AX21: =AW21 ->  | AY21: =IF($D$14=1,IF($D$6="Ⅰ",①風力!R14,MIN(①風力!Q14,①風力!R14)),"") ->  | AZ21: =AY21 ->  | BA21: =IF($D$14=1,IF($D$6="Ⅰ",①風力!S14,MIN(①風力!R14,①風力!S14)),"") ->  | BB21: =BA21 ->  | BF21: =IF($D$14=1,IF($D$6="Ⅰ",①風力!L15,MIN(①風力!K15,①風力!L15)),"") ->  | BG21: =IF($D$14=1,IF($D$6="Ⅰ",①風力!L16,MIN(①風力!K16,①風力!L16)),"") ->  | BH21: =IF($D$14=1,IF($D$6="Ⅰ",①風力!L17,MIN(①風力!K17,①風力!L17)),"") ->  | BI21: =IF($D$14=1,IF($D$6="Ⅰ",①風力!L18,MIN(①風力!K18,①風力!L18)),"") ->  | BJ21: =IF($D$14=1,IF($D$6="Ⅰ",①風力!L19,MIN(①風力!K19,①風力!L19)),"") ->  | BK21: =IF($D$14=1,IF($D$6="Ⅰ",①風力!L20,MIN(①風力!K20,①風力!L20)),"") ->  | BL21: =IF($D$14=1,IF($D$6="Ⅰ",①風力!L21,MIN(①風力!K21,①風力!L21)),"") ->  | BM21: =IF($D$14=1,IF($D$6="Ⅰ",①風力!L22,MIN(①風力!K22,①風力!L22)),"") -> 
D22: 供給電力（調整係数） | G22: =IF(COUNT(G21,G20)<2,"",ROUNDDOWN(G21*G20/100,2)) ->  | H22: =IF(COUNT(H21,H20)<2,"",ROUNDDOWN(H21*H20/100,2)) ->  | BF22: =IF(COUNT(BF21,BF20)<2,"",ROUNDDOWN(BF21*BF$20/100,2)) ->  | BG22: =IF(COUNT(BG21,BG20)<2,"",ROUNDDOWN(BG21*BG$20/100,2)) -> 
B23: 各電気事業者の エリア内保有分 | D23: 設備量 | G23: =IF(COUNT(G24,G20)<2,"",ROUNDDOWN(G24/G20*100,2)) ->  | H23: =IF(COUNT(H24,H20)<2,"",ROUNDDOWN(H24/H20*100,2)) ->  | BF23: =IF(COUNT(BF24,BF20)<2,"",ROUNDDOWN(BF24/BF20*100,2)) ->  | BG23: =IF(COUNT(BG24,BG20)<2,"",ROUNDDOWN(BG24/BG20*100,2)) -> 
D24: 供給電力（調整係数）
B25: 各電気事業者の エリア内非電気事業者 からの調達分 | D25: 設備量 | G25: =IF(COUNT(G26,G20)<2,"",ROUNDDOWN(G26/G20*100,2)) ->  | H25: =IF(COUNT(H26,H20)<2,"",ROUNDDOWN(H26/H20*100,2)) ->  | BF25: =IF(COUNT(BF26,BF20)<2,"",ROUNDDOWN(BF26/BF20*100,2)) ->  | BG25: =IF(COUNT(BG26,BG20)<2,"",ROUNDDOWN(BG26/BG20*100,2)) -> 
D26: 供給電力（調整係数）
B27: 一般送配電想定との差分 | D27: 設備量 | G27: =IF(AND(G21="",G23="",G25=""),"",SUM(G21)-SUM(G23)-SUM(G25)) ->  | H27: =IF(AND(H21="",H23="",H25=""),"",SUM(H21)-SUM(H23)-SUM(H25)) ->  | BF27: =IF(AND(BF21="",BF23="",BF25=""),"",SUM(BF21)-SUM(BF23)-SUM(BF25)) ->  | BG27: =IF(AND(BG21="",BG23="",BG25=""),"",SUM(BG21)-SUM(BG23)-SUM(BG25)) -> 
D28: 供給電力（調整係数） | G28: =IF(AND(G22="",G24="",G26=""),"",ROUNDDOWN(ROUND(SUM(G22)-SUM(G24)-SUM(G26),5),事業者リスト一覧!$B$63)) ->  | H28: =IF(AND(H22="",H24="",H26=""),"",ROUNDDOWN(ROUND(SUM(H22)-SUM(H24)-SUM(H26),5),事業者リスト一覧!$B$63)) ->  | I28: =IF(AND(I22="",I24="",I26=""),"",ROUNDDOWN(ROUND(SUM(I22)-SUM(I24)-SUM(I26),5),事業者リスト一覧!$B$63)) ->  | J28: =IF(AND(J22="",J24="",J26=""),"",ROUNDDOWN(ROUND(SUM(J22)-SUM(J24)-SUM(J26),5),事業者リスト一覧!$B$63)) ->  | K28: =IF(AND(K22="",K24="",K26=""),"",ROUNDDOWN(ROUND(SUM(K22)-SUM(K24)-SUM(K26),5),事業者リスト一覧!$B$63)) ->  | L28: =IF(AND(L22="",L24="",L26=""),"",ROUNDDOWN(ROUND(SUM(L22)-SUM(L24)-SUM(L26),5),事業者リスト一覧!$B$63)) ->  | M28: =IF(AND(M22="",M24="",M26=""),"",ROUNDDOWN(ROUND(SUM(M22)-SUM(M24)-SUM(M26),5),事業者リスト一覧!$B$63)) ->  | N28: =IF(AND(N22="",N24="",N26=""),"",ROUNDDOWN(ROUND(SUM(N22)-SUM(N24)-SUM(N26),5),事業者リスト一覧!$B$63)) ->  | O28: =IF(AND(O22="",O24="",O26=""),"",ROUNDDOWN(ROUND(SUM(O22)-SUM(O24)-SUM(O26),5),事業者リスト一覧!$B$63)) ->  | P28: =IF(AND(P22="",P24="",P26=""),"",ROUNDDOWN(ROUND(SUM(P22)-SUM(P24)-SUM(P26),5),事業者リスト一覧!$B$63)) ->  | Q28: =IF(AND(Q22="",Q24="",Q26=""),"",ROUNDDOWN(ROUND(SUM(Q22)-SUM(Q24)-SUM(Q26),5),事業者リスト一覧!$B$63)) ->  | R28: =IF(AND(R22="",R24="",R26=""),"",ROUNDDOWN(ROUND(SUM(R22)-SUM(R24)-SUM(R26),5),事業者リスト一覧!$B$63)) ->  | S28: =IF(AND(S22="",S24="",S26=""),"",ROUNDDOWN(ROUND(SUM(S22)-SUM(S24)-SUM(S26),5),事業者リスト一覧!$B$63)) ->  | T28: =IF(AND(T22="",T24="",T26=""),"",ROUNDDOWN(ROUND(SUM(T22)-SUM(T24)-SUM(T26),5),事業者リスト一覧!$B$63)) ->  | U28: =IF(AND(U22="",U24="",U26=""),"",ROUNDDOWN(ROUND(SUM(U22)-SUM(U24)-SUM(U26),5),事業者リスト一覧!$B$63)) ->  | V28: =IF(AND(V22="",V24="",V26=""),"",ROUNDDOWN(ROUND(SUM(V22)-SUM(V24)-SUM(V26),5),事業者リスト一覧!$B$63)) ->  | W28: =IF(AND(W22="",W24="",W26=""),"",ROUNDDOWN(ROUND(SUM(W22)-SUM(W24)-SUM(W26),5),事業者リスト一覧!$B$63)) ->  | X28: =IF(AND(X22="",X24="",X26=""),"",ROUNDDOWN(ROUND(SUM(X22)-SUM(X24)-SUM(X26),5),事業者リスト一覧!$B$63)) ->  | Y28: =IF(AND(Y22="",Y24="",Y26=""),"",ROUNDDOWN(ROUND(SUM(Y22)-SUM(Y24)-SUM(Y26),5),事業者リスト一覧!$B$63)) ->  | Z28: =IF(AND(Z22="",Z24="",Z26=""),"",ROUNDDOWN(ROUND(SUM(Z22)-SUM(Z24)-SUM(Z26),5),事業者リスト一覧!$B$63)) ->  | AA28: =IF(AND(AA22="",AA24="",AA26=""),"",ROUNDDOWN(ROUND(SUM(AA22)-SUM(AA24)-SUM(AA26),5),事業者リスト一覧!$B$63)) ->  | AB28: =IF(AND(AB22="",AB24="",AB26=""),"",ROUNDDOWN(ROUND(SUM(AB22)-SUM(AB24)-SUM(AB26),5),事業者リスト一覧!$B$63)) ->  | AC28: =IF(AND(AC22="",AC24="",AC26=""),"",ROUNDDOWN(ROUND(SUM(AC22)-SUM(AC24)-SUM(AC26),5),事業者リスト一覧!$B$63)) ->  | AD28: =IF(AND(AD22="",AD24="",AD26=""),"",ROUNDDOWN(ROUND(SUM(AD22)-SUM(AD24)-SUM(AD26),5),事業者リスト一覧!$B$63)) ->  | AE28: =IF(AND(AE22="",AE24="",AE26=""),"",ROUNDDOWN(ROUND(SUM(AE22)-SUM(AE24)-SUM(AE26),5),事業者リスト一覧!$B$63)) ->  | AF28: =IF(AND(AF22="",AF24="",AF26=""),"",ROUNDDOWN(ROUND(SUM(AF22)-SUM(AF24)-SUM(AF26),5),事業者リスト一覧!$B$63)) ->  | AG28: =IF(AND(AG22="",AG24="",AG26=""),"",ROUNDDOWN(ROUND(SUM(AG22)-SUM(AG24)-SUM(AG26),5),事業者リスト一覧!$B$63)) ->  | AH28: =IF(AND(AH22="",AH24="",AH26=""),"",ROUNDDOWN(ROUND(SUM(AH22)-SUM(AH24)-SUM(AH26),5),事業者リスト一覧!$B$63)) ->  | AI28: =IF(AND(AI22="",AI24="",AI26=""),"",ROUNDDOWN(ROUND(SUM(AI22)-SUM(AI24)-SUM(AI26),5),事業者リスト一覧!$B$63)) ->  | AJ28: =IF(AND(AJ22="",AJ24="",AJ26=""),"",ROUNDDOWN(ROUND(SUM(AJ22)-SUM(AJ24)-SUM(AJ26),5),事業者リスト一覧!$B$63)) ->  | AK28: =IF(AND(AK22="",AK24="",AK26=""),"",ROUNDDOWN(ROUND(SUM(AK22)-SUM(AK24)-SUM(AK26),5),事業者リスト一覧!$B$63)) ->  | AL28: =IF(AND(AL22="",AL24="",AL26=""),"",ROUNDDOWN(ROUND(SUM(AL22)-SUM(AL24)-SUM(AL26),5),事業者リスト一覧!$B$63)) ->  | AM28: =IF(AND(AM22="",AM24="",AM26=""),"",ROUNDDOWN(ROUND(SUM(AM22)-SUM(AM24)-SUM(AM26),5),事業者リスト一覧!$B$63)) ->  | AN28: =IF(AND(AN22="",AN24="",AN26=""),"",ROUNDDOWN(ROUND(SUM(AN22)-SUM(AN24)-SUM(AN26),5),事業者リスト一覧!$B$63)) ->  | AO28: =IF(AND(AO22="",AO24="",AO26=""),"",ROUNDDOWN(ROUND(SUM(AO22)-SUM(AO24)-SUM(AO26),5),事業者リスト一覧!$B$63)) ->  | AP28: =IF(AND(AP22="",AP24="",AP26=""),"",ROUNDDOWN(ROUND(SUM(AP22)-SUM(AP24)-SUM(AP26),5),事業者リスト一覧!$B$63)) ->  | AQ28: =IF(AND(AQ22="",AQ24="",AQ26=""),"",ROUNDDOWN(ROUND(SUM(AQ22)-SUM(AQ24)-SUM(AQ26),5),事業者リスト一覧!$B$63)) ->  | AR28: =IF(AND(AR22="",AR24="",AR26=""),"",ROUNDDOWN(ROUND(SUM(AR22)-SUM(AR24)-SUM(AR26),5),事業者リスト一覧!$B$63)) ->  | AS28: =IF(AND(AS22="",AS24="",AS26=""),"",ROUNDDOWN(ROUND(SUM(AS22)-SUM(AS24)-SUM(AS26),5),事業者リスト一覧!$B$63)) ->  | AT28: =IF(AND(AT22="",AT24="",AT26=""),"",ROUNDDOWN(ROUND(SUM(AT22)-SUM(AT24)-SUM(AT26),5),事業者リスト一覧!$B$63)) ->  | AU28: =IF(AND(AU22="",AU24="",AU26=""),"",ROUNDDOWN(ROUND(SUM(AU22)-SUM(AU24)-SUM(AU26),5),事業者リスト一覧!$B$63)) ->  | AV28: =IF(AND(AV22="",AV24="",AV26=""),"",ROUNDDOWN(ROUND(SUM(AV22)-SUM(AV24)-SUM(AV26),5),事業者リスト一覧!$B$63)) ->  | AW28: =IF(AND(AW22="",AW24="",AW26=""),"",ROUNDDOWN(ROUND(SUM(AW22)-SUM(AW24)-SUM(AW26),5),事業者リスト一覧!$B$63)) ->  | AX28: =IF(AND(AX22="",AX24="",AX26=""),"",ROUNDDOWN(ROUND(SUM(AX22)-SUM(AX24)-SUM(AX26),5),事業者リスト一覧!$B$63)) ->  | AY28: =IF(AND(AY22="",AY24="",AY26=""),"",ROUNDDOWN(ROUND(SUM(AY22)-SUM(AY24)-SUM(AY26),5),事業者リスト一覧!$B$63)) ->  | AZ28: =IF(AND(AZ22="",AZ24="",AZ26=""),"",ROUNDDOWN(ROUND(SUM(AZ22)-SUM(AZ24)-SUM(AZ26),5),事業者リスト一覧!$B$63)) ->  | BA28: =IF(AND(BA22="",BA24="",BA26=""),"",ROUNDDOWN(ROUND(SUM(BA22)-SUM(BA24)-SUM(BA26),5),事業者リスト一覧!$B$63)) ->  | BB28: =IF(AND(BB22="",BB24="",BB26=""),"",ROUNDDOWN(ROUND(SUM(BB22)-SUM(BB24)-SUM(BB26),5),事業者リスト一覧!$B$63)) ->  | BD28: =IF(OR($D$3="",COUNT(O28,P28)=0),"",ROUND(SUM(IFERROR(O28*15,0),IFERROR(P28*16,0))/31,事業者リスト一覧!$B$63)) ->  | BE28: =IF(OR($D$3="",COUNT(AM28,AN28)=0),"",ROUND(SUM(IFERROR(AM28*15,0),IFERROR(AN28*16,0))/31,事業者リスト一覧!$B$63)) ->  | BF28: =IF(AND(BF22="",BF24="",BF26=""),"",ROUNDDOWN(ROUND(SUM(BF22)-SUM(BF24)-SUM(BF26),5),事業者リスト一覧!$B$63)) ->  | BG28: =IF(AND(BG22="",BG24="",BG26=""),"",ROUNDDOWN(ROUND(SUM(BG22)-SUM(BG24)-SUM(BG26),5),事業者リスト一覧!$B$63)) ->  | BH28: =IF(AND(BH22="",BH24="",BH26=""),"",ROUNDDOWN(ROUND(SUM(BH22)-SUM(BH24)-SUM(BH26),5),事業者リスト一覧!$B$63)) ->  | BI28: =IF(AND(BI22="",BI24="",BI26=""),"",ROUNDDOWN(ROUND(SUM(BI22)-SUM(BI24)-SUM(BI26),5),事業者リスト一覧!$B$63)) ->  | BJ28: =IF(AND(BJ22="",BJ24="",BJ26=""),"",ROUNDDOWN(ROUND(SUM(BJ22)-SUM(BJ24)-SUM(BJ26),5),事業者リスト一覧!$B$63)) ->  | BK28: =IF(AND(BK22="",BK24="",BK26=""),"",ROUNDDOWN(ROUND(SUM(BK22)-SUM(BK24)-SUM(BK26),5),事業者リスト一覧!$B$63)) ->  | BL28: =IF(AND(BL22="",BL24="",BL26=""),"",ROUNDDOWN(ROUND(SUM(BL22)-SUM(BL24)-SUM(BL26),5),事業者リスト一覧!$B$63)) ->  | BM28: =IF(AND(BM22="",BM24="",BM26=""),"",ROUNDDOWN(ROUND(SUM(BM22)-SUM(BM24)-SUM(BM26),5),事業者リスト一覧!$B$63)) -> 
A29: ｋＷｈ | B29: エリア想定 | D29: 電力量 | G29: =IF($D$14=1,①風力!H29,"") ->  | I29: =IF($D$14=1,①風力!I29,"") ->  | K29: =IF($D$14=1,①風力!J29,"") ->  | M29: =IF($D$14=1,①風力!K29,"") ->  | O29: =IF($D$14=1,①風力!L29,"") ->  | Q29: =IF($D$14=1,①風力!M29,"") ->  | S29: =IF($D$14=1,①風力!N29,"") ->  | U29: =IF($D$14=1,①風力!O29,"") ->  | W29: =IF($D$14=1,①風力!P29,"") ->  | Y29: =IF($D$14=1,①風力!Q29,"") ->  | AA29: =IF($D$14=1,①風力!R29,"") ->  | AC29: =IF($D$14=1,①風力!S29,"") ->  | BD29: =IF($D$3="","",IF($D$14=1,SUM(G29:AD29),"")) ->  | BE29: =IF($D$14=1,SUM(①風力!H30:S30),"") ->  | BF29: =IF($D$14=1,SUM(①風力!H31:S31),"") ->  | BG29: =IF($D$14=1,SUM(①風力!H32:S32),"") ->  | BH29: =IF($D$14=1,SUM(①風力!H33:S33),"") ->  | BI29: =IF($D$14=1,SUM(①風力!H34:S34),"") ->  | BJ29: =IF($D$14=1,SUM(①風力!H35:S35),"") ->  | BK29: =IF($D$14=1,SUM(①風力!H36:S36),"") ->  | BL29: =IF($D$14=1,SUM(①風力!H37:S37),"") ->  | BM29: =IF($D$14=1,SUM(①風力!H38:S38),"") -> 
B30: 各電気事業者の エリア内保有分 | D30: 電力量 | BD30: =IF($D$3="","",IF($D$14=1,SUM(G30:AD30),"")) -> 
B31: 各電気事業者の エリア内非電気事業者 からの調達分 | D31: 電力量 | BD31: =IF($D$3="","",IF($D$14=1,SUM(G31:AD31),"")) -> 
B32: 一般送配電想定との差分 | D32: 電力量 | G32: =IF(AND(G29="",G30="",G31=""),"",ROUNDDOWN(ROUND(SUM(G29)-SUM(G30)-SUM(G31),5),事業者リスト一覧!$B$63)) ->  | I32: =IF(AND(I29="",I30="",I31=""),"",ROUNDDOWN(ROUND(SUM(I29)-SUM(I30)-SUM(I31),5),事業者リスト一覧!$B$63)) ->  | K32: =IF(AND(K29="",K30="",K31=""),"",ROUNDDOWN(ROUND(SUM(K29)-SUM(K30)-SUM(K31),5),事業者リスト一覧!$B$63)) ->  | M32: =IF(AND(M29="",M30="",M31=""),"",ROUNDDOWN(ROUND(SUM(M29)-SUM(M30)-SUM(M31),5),事業者リスト一覧!$B$63)) ->  | O32: =IF(AND(O29="",O30="",O31=""),"",ROUNDDOWN(ROUND(SUM(O29)-SUM(O30)-SUM(O31),5),事業者リスト一覧!$B$63)) ->  | Q32: =IF(AND(Q29="",Q30="",Q31=""),"",ROUNDDOWN(ROUND(SUM(Q29)-SUM(Q30)-SUM(Q31),5),事業者リスト一覧!$B$63)) ->  | S32: =IF(AND(S29="",S30="",S31=""),"",ROUNDDOWN(ROUND(SUM(S29)-SUM(S30)-SUM(S31),5),事業者リスト一覧!$B$63)) ->  | U32: =IF(AND(U29="",U30="",U31=""),"",ROUNDDOWN(ROUND(SUM(U29)-SUM(U30)-SUM(U31),5),事業者リスト一覧!$B$63)) ->  | W32: =IF(AND(W29="",W30="",W31=""),"",ROUNDDOWN(ROUND(SUM(W29)-SUM(W30)-SUM(W31),5),事業者リスト一覧!$B$63)) ->  | Y32: =IF(AND(Y29="",Y30="",Y31=""),"",ROUNDDOWN(ROUND(SUM(Y29)-SUM(Y30)-SUM(Y31),5),事業者リスト一覧!$B$63)) ->  | AA32: =IF(AND(AA29="",AA30="",AA31=""),"",ROUNDDOWN(ROUND(SUM(AA29)-SUM(AA30)-SUM(AA31),5),事業者リスト一覧!$B$63)) ->  | AC32: =IF(AND(AC29="",AC30="",AC31=""),"",ROUNDDOWN(ROUND(SUM(AC29)-SUM(AC30)-SUM(AC31),5),事業者リスト一覧!$B$63)) ->  | BD32: =IF($D$3="","",IF($D$14=1,SUM(G32:AD32),"")) ->  | BE32: =IF(AND(BE29="",BE30="",BE31=""),"",ROUNDDOWN(ROUND(SUM(BE29)-SUM(BE30)-SUM(BE31),5),事業者リスト一覧!$B$63)) ->  | BF32: =IF(AND(BF29="",BF30="",BF31=""),"",ROUNDDOWN(ROUND(SUM(BF29)-SUM(BF30)-SUM(BF31),5),事業者リスト一覧!$B$63)) ->  | BG32: =IF(AND(BG29="",BG30="",BG31=""),"",ROUNDDOWN(ROUND(SUM(BG29)-SUM(BG30)-SUM(BG31),5),事業者リスト一覧!$B$63)) ->  | BH32: =IF(AND(BH29="",BH30="",BH31=""),"",ROUNDDOWN(ROUND(SUM(BH29)-SUM(BH30)-SUM(BH31),5),事業者リスト一覧!$B$63)) ->  | BI32: =IF(AND(BI29="",BI30="",BI31=""),"",ROUNDDOWN(ROUND(SUM(BI29)-SUM(BI30)-SUM(BI31),5),事業者リスト一覧!$B$63)) ->  | BJ32: =IF(AND(BJ29="",BJ30="",BJ31=""),"",ROUNDDOWN(ROUND(SUM(BJ29)-SUM(BJ30)-SUM(BJ31),5),事業者リスト一覧!$B$63)) ->  | BK32: =IF(AND(BK29="",BK30="",BK31=""),"",ROUNDDOWN(ROUND(SUM(BK29)-SUM(BK30)-SUM(BK31),5),事業者リスト一覧!$B$63)) ->  | BL32: =IF(AND(BL29="",BL30="",BL31=""),"",ROUNDDOWN(ROUND(SUM(BL29)-SUM(BL30)-SUM(BL31),5),事業者リスト一覧!$B$63)) ->  | BM32: =IF(AND(BM29="",BM30="",BM31=""),"",ROUNDDOWN(ROUND(SUM(BM29)-SUM(BM30)-SUM(BM31),5),事業者リスト一覧!$B$63)) -> 
A36: 風力（指定１） | C36: ２：個別積み上げ方式用入力シート | BM36: 【ＭＷ、ＧＷｈ】
A37: 項目 | G37: =G17 -> 2026 | AE37: =AE17 -> 2027 | BD37: =BD17 -> 2026 | BE37: 2027 | BF37: 2028 | BG37: 2029 | BH37: 2030 | BI37: 2031 | BJ37: 2032 | BK37: 2033 | BL37: 2034 | BM37: 2035
G38: 4 | I38: 5 | K38: 6 | M38: 7 | O38: 8 | Q38: 9 | S38: 10 | U38: 11 | W38: 12 | Y38: 1 | AA38: 2 | AC38: 3 | AE38: 4 | AG38: 5 | AI38: 6 | AK38: 7 | AM38: 8 | AO38: 9 | AQ38: 10 | AS38: 11 | AU38: 12 | AW38: 1 | AY38: 2 | BA38: 3
G39: (前半) | H39: (後半) | I39: (前半) | J39: (後半) | K39: (前半) | L39: (後半) | M39: (前半) | N39: (後半) | O39: (前半) | P39: (後半) | Q39: (前半) | R39: (後半) | S39: (前半) | T39: (後半) | U39: (前半) | V39: (後半) | W39: (前半) | X39: (後半) | Y39: (前半) | Z39: (後半) | AA39: (前半) | AB39: (後半) | AC39: (前半) | AD39: (後半) | AE39: (前半) | AF39: (後半) | AG39: (前半) | AH39: (後半) | AI39: (前半) | AJ39: (後半) | AK39: (前半) | AL39: (後半) | AM39: (前半) | AN39: (後半) | AO39: (前半) | AP39: (後半) | AQ39: (前半) | AR39: (後半) | AS39: (前半) | AT39: (後半) | AU39: (前半) | AV39: (後半) | AW39: (前半) | AX39: (後半) | AY39: (前半) | AZ39: (後半) | BA39: (前半) | BB39: (後半)
A40: 調整係数出力比率 | G40: =IF(OR($D$3="",$D$14=1),"",OFFSET(調整係数!$B$25,0,($D$3-1)*15+IF(G38>3,G38-3,G38+9))) ->  | H40: =G40 ->  | I40: =IF(OR($D$3="",$D$14=1),"",OFFSET(調整係数!$B$25,0,($D$3-1)*15+IF(I38>3,I38-3,I38+9))) ->  | J40: =I40 ->  | K40: =IF(OR($D$3="",$D$14=1),"",OFFSET(調整係数!$B$25,0,($D$3-1)*15+IF(K38>3,K38-3,K38+9))) ->  | L40: =K40 ->  | M40: =IF(OR($D$3="",$D$14=1),"",OFFSET(調整係数!$B$25,0,($D$3-1)*15+IF(M38>3,M38-3,M38+9))) ->  | N40: =M40 ->  | O40: =IF(OR($D$3="",$D$14=1),"",OFFSET(調整係数!$B$25,0,($D$3-1)*15+IF(O38>3,O38-3,O38+9))) ->  | P40: =O40 ->  | Q40: =IF(OR($D$3="",$D$14=1),"",OFFSET(調整係数!$B$25,0,($D$3-1)*15+IF(Q38>3,Q38-3,Q38+9))) ->  | R40: =Q40 ->  | S40: =IF(OR($D$3="",$D$14=1),"",OFFSET(調整係数!$B$25,0,($D$3-1)*15+IF(S38>3,S38-3,S38+9))) ->  | T40: =S40 ->  | U40: =IF(OR($D$3="",$D$14=1),"",OFFSET(調整係数!$B$25,0,($D$3-1)*15+IF(U38>3,U38-3,U38+9))) ->  | V40: =U40 ->  | W40: =IF(OR($D$3="",$D$14=1),"",OFFSET(調整係数!$B$25,0,($D$3-1)*15+IF(W38>3,W38-3,W38+9))) ->  | X40: =W40 ->  | Y40: =IF(OR($D$3="",$D$14=1),"",OFFSET(調整係数!$B$25,0,($D$3-1)*15+IF(Y38>3,Y38-3,Y38+9))) ->  | Z40: =Y40 ->  | AA40: =IF(OR($D$3="",$D$14=1),"",OFFSET(調整係数!$B$25,0,($D$3-1)*15+IF(AA38>3,AA38-3,AA38+9))) ->  | AB40: =AA40 ->  | AC40: =IF(OR($D$3="",$D$14=1),"",OFFSET(調整係数!$B$25,0,($D$3-1)*15+IF(AC38>3,AC38-3,AC38+9))) ->  | AD40: =AC40 ->  | AE40: =IF(OR($D$3="",$D$14=1),"",OFFSET(調整係数!$B$25,1,($D$3-1)*15+IF(AE38>3,AE38-3,AE38+9))) ->  | AF40: =AE40 ->  | AG40: =IF(OR($D$3="",$D$14=1),"",OFFSET(調整係数!$B$25,1,($D$3-1)*15+IF(AG38>3,AG38-3,AG38+9))) ->  | AH40: =AG40 ->  | AI40: =IF(OR($D$3="",$D$14=1),"",OFFSET(調整係数!$B$25,1,($D$3-1)*15+IF(AI38>3,AI38-3,AI38+9))) ->  | AJ40: =AI40 ->  | AK40: =IF(OR($D$3="",$D$14=1),"",OFFSET(調整係数!$B$25,1,($D$3-1)*15+IF(AK38>3,AK38-3,AK38+9))) ->  | AL40: =AK40 ->  | AM40: =IF(OR($D$3="",$D$14=1),"",OFFSET(調整係数!$B$25,1,($D$3-1)*15+IF(AM38>3,AM38-3,AM38+9))) ->  | AN40: =AM40 ->  | AO40: =IF(OR($D$3="",$D$14=1),"",OFFSET(調整係数!$B$25,1,($D$3-1)*15+IF(AO38>3,AO38-3,AO38+9))) ->  | AP40: =AO40 ->  | AQ40: =IF(OR($D$3="",$D$14=1),"",OFFSET(調整係数!$B$25,1,($D$3-1)*15+IF(AQ38>3,AQ38-3,AQ38+9))) ->  | AR40: =AQ40 ->  | AS40: =IF(OR($D$3="",$D$14=1),"",OFFSET(調整係数!$B$25,1,($D$3-1)*15+IF(AS38>3,AS38-3,AS38+9))) ->  | AT40: =AS40 ->  | AU40: =IF(OR($D$3="",$D$14=1),"",OFFSET(調整係数!$B$25,1,($D$3-1)*15+IF(AU38>3,AU38-3,AU38+9))) ->  | AV40: =AU40 ->  | AW40: =IF(OR($D$3="",$D$14=1),"",OFFSET(調整係数!$B$25,1,($D$3-1)*15+IF(AW38>3,AW38-3,AW38+9))) ->  | AX40: =AW40 ->  | AY40: =IF(OR($D$3="",$D$14=1),"",OFFSET(調整係数!$B$25,1,($D$3-1)*15+IF(AY38>3,AY38-3,AY38+9))) ->  | AZ40: =AY40 ->  | BA40: =IF(OR($D$3="",$D$14=1),"",OFFSET(調整係数!$B$25,1,($D$3-1)*15+IF(BA38>3,BA38-3,BA38+9))) ->  | BB40: =BA40 ->  | BD40: =IF(OR($D$3="",$D$14=1),"",O40) ->  | BE40: =IF(OR($D$3="",$D$14=1),"",AM40) ->  | BF40: =IF(OR($D$3="",$D$14=1),"",OFFSET(調整係数!$B$25,BF$37-$BD$37,($D$3-1)*15+5)) ->  | BG40: =IF(OR($D$3="",$D$14=1),"",OFFSET(調整係数!$B$25,BG$37-$BD$37,($D$3-1)*15+5)) ->  | BH40: =IF(OR($D$3="",$D$14=1),"",OFFSET(調整係数!$B$25,BH$37-$BD$37,($D$3-1)*15+5)) ->  | BI40: =IF(OR($D$3="",$D$14=1),"",OFFSET(調整係数!$B$25,BI$37-$BD$37,($D$3-1)*15+5)) ->  | BJ40: =IF(OR($D$3="",$D$14=1),"",OFFSET(調整係数!$B$25,BJ$37-$BD$37,($D$3-1)*15+5)) ->  | BK40: =IF(OR($D$3="",$D$14=1),"",OFFSET(調整係数!$B$25,BK$37-$BD$37,($D$3-1)*15+5)) ->  | BL40: =IF(OR($D$3="",$D$14=1),"",OFFSET(調整係数!$B$25,BL$37-$BD$37,($D$3-1)*15+5)) ->  | BM40: =IF(OR($D$3="",$D$14=1),"",OFFSET(調整係数!$B$25,BM$37-$BD$37,($D$3-1)*15+5)) -> 
A41: ｋＷ | B41: エリア想定 | D41: 設備量 | G41: =IF(COUNT(G43,G45,G47)=0,"",SUM(G43,G45,G47)) ->  | H41: =IF(COUNT(H43,H45,H47)=0,"",SUM(H43,H45,H47)) ->  | BD41: =IF(COUNT(BD42,BD40)<2,"",ROUNDDOWN(BD42/BD40*100,2)) ->  | BE41: =IF(COUNT(BE42,BE40)<2,"",ROUNDDOWN(BE42/BE40*100,2)) ->  | BF41: =IF(COUNT(BF43,BF45,BF47)=0,"",SUM(BF43,BF45,BF47)) ->  | BG41: =IF(COUNT(BG43,BG45,BG47)=0,"",SUM(BG43,BG45,BG47)) -> 
D42: 供給電力（調整係数） | G42: =IF(COUNT(G44,G46,G48)=0,"",SUM(G44,G46,G48)) ->  | H42: =IF(COUNT(H44,H46,H48)=0,"",SUM(H44,H46,H48)) ->  | BD42: =IF(OR($D$3="",COUNT(O42,P42)=0),"",ROUND(SUM(IFERROR(O42*15,0),IFERROR(P42*16,0))/31,事業者リスト一覧!$B$63)) ->  | BE42: =IF(OR($D$3="",COUNT(AM42,AN42)=0),"",ROUND(SUM(IFERROR(AM42*15,0),IFERROR(AN42*16,0))/31,事業者リスト一覧!$B$63)) ->  | BF42: =IF(COUNT(BF44,BF46,BF48)=0,"",SUM(BF44,BF46,BF48)) ->  | BG42: =IF(COUNT(BG44,BG46,BG48)=0,"",SUM(BG44,BG46,BG48)) -> 
B43: 各電気事業者の エリア内保有分 | D43: 設備量 | G43: =IF(COUNT(G44,G40)<2,"",ROUNDDOWN(G44/G40*100,2)) ->  | H43: =IF(COUNT(H44,H40)<2,"",ROUNDDOWN(H44/H40*100,2)) ->  | BG43: =IF(COUNT(BG44,BG40)<2,"",ROUNDDOWN(BG44/BG40*100,2)) ->  | BH43: =IF(COUNT(BH44,BH40)<2,"",ROUNDDOWN(BH44/BH40*100,2)) ->  | BI43: =IF(COUNT(BI44,BI40)<2,"",ROUNDDOWN(BI44/BI40*100,2)) ->  | BJ43: =IF(COUNT(BJ44,BJ40)<2,"",ROUNDDOWN(BJ44/BJ40*100,2)) ->  | BK43: =IF(COUNT(BK44,BK40)<2,"",ROUNDDOWN(BK44/BK40*100,2)) ->  | BL43: =IF(COUNT(BL44,BL40)<2,"",ROUNDDOWN(BL44/BL40*100,2)) ->  | BM43: =IF(COUNT(BM44,BM40)<2,"",ROUNDDOWN(BM44/BM40*100,2)) -> 
D44: 供給電力（調整係数）
B45: エリア内の非電気事業者からの調達分 | C45: 各電気事業者 調達分 | D45: 設備量 | G45: =IF(COUNT(G46,G40)<2,"",ROUNDDOWN(G46/G40*100,2)) ->  | H45: =IF(COUNT(H46,H40)<2,"",ROUNDDOWN(H46/H40*100,2)) ->  | BF45: =IF(COUNT(BF46,BF40)<2,"",ROUNDDOWN(BF46/BF40*100,2)) ->  | BG45: =IF(COUNT(BG46,BG40)<2,"",ROUNDDOWN(BG46/BG40*100,2)) ->  | BH45: =IF(COUNT(BH46,BH40)<2,"",ROUNDDOWN(BH46/BH40*100,2)) ->  | BI45: =IF(COUNT(BI46,BI40)<2,"",ROUNDDOWN(BI46/BI40*100,2)) ->  | BJ45: =IF(COUNT(BJ46,BJ40)<2,"",ROUNDDOWN(BJ46/BJ40*100,2)) ->  | BK45: =IF(COUNT(BK46,BK40)<2,"",ROUNDDOWN(BK46/BK40*100,2)) ->  | BL45: =IF(COUNT(BL46,BL40)<2,"",ROUNDDOWN(BL46/BL40*100,2)) ->  | BM45: =IF(COUNT(BM46,BM40)<2,"",ROUNDDOWN(BM46/BM40*100,2)) -> 
D46: 供給電力（調整係数）
C47: 一般送配電事業者調達分 | D47: 設備量 | G47: =IF(COUNT(G48,G40)<2,"",ROUNDDOWN(G48/G40*100,2)) ->  | H47: =IF(COUNT(H48,H40)<2,"",ROUNDDOWN(H48/H40*100,2)) ->  | BF47: =IF(COUNT(BF48,BF40)<2,"",ROUNDDOWN(BF48/BF40*100,2)) ->  | BG47: =IF(COUNT(BG48,BG40)<2,"",ROUNDDOWN(BG48/BG40*100,2)) ->  | BH47: =IF(COUNT(BH48,BH40)<2,"",ROUNDDOWN(BH48/BH40*100,2)) ->  | BI47: =IF(COUNT(BI48,BI40)<2,"",ROUNDDOWN(BI48/BI40*100,2)) ->  | BJ47: =IF(COUNT(BJ48,BJ40)<2,"",ROUNDDOWN(BJ48/BJ40*100,2)) ->  | BK47: =IF(COUNT(BK48,BK40)<2,"",ROUNDDOWN(BK48/BK40*100,2)) ->  | BL47: =IF(COUNT(BL48,BL40)<2,"",ROUNDDOWN(BL48/BL40*100,2)) ->  | BM47: =IF(COUNT(BM48,BM40)<2,"",ROUNDDOWN(BM48/BM40*100,2)) -> 
D48: 供給電力（調整係数）
B49: 一般送配電想定との差分 | D49: 設備量
D50: 供給電力（調整係数）
A51: ｋＷｈ | B51: エリア想定 | D51: 電力量 | G51: =IF(COUNT(G52,G53,G54)=0,"",SUM(G52,G53,G54)) ->  | BD51: =IF($D$3="","",IF($D$14=2,SUM(G51:AD51),"")) ->  | BE51: =IF(COUNT(BE52,BE53,BE54)=0,"",SUM(BE52,BE53,BE54)) -> 
B52: 各電気事業者の エリア内保有分 | D52: 電力量 | BD52: =IF($D$3="","",IF($D$14=2,SUM(G52:AD52),"")) -> 
B53: エリア内の非電気事業者からの調達分 | C53: 各電気事業者 調達分 | D53: 電力量 | BD53: =IF($D$3="","",IF($D$14=2,SUM(G53:AD53),"")) -> 
C54: 一般送配電事業者調達分 | D54: 電力量 | BD54: =IF($D$3="","",IF($D$14=2,SUM(G54:AD54),"")) -> 
B55: 一般送配電想定との差分 | D55: 電力量

Sheet 補正（風力）指定２ (hidden)
A1: 風力補正シート | K1: 記載要領
H2: 入力箇所 | K2: ・エリア想定欄には、エリア全体（発電・小売分を含む）の設備量想定値を記載。尚、マクロ想定を行っていない項目は個別積み上げ値を記載。
A3: 供給区域 | B3: =IF('補正（ｋW）指定１'!$C$2="","",'補正（ｋW）指定１'!$C$2) ->  | C3: エリア | D3: =IF(B3="北海道",1,IF(B3="東北",2,IF(B3="北陸",5,IF(B3="","","作成不要")))) ->  | H3: リンク箇所 | K3: ・各電気事業者のエリア内保有分欄には、広域機関より提供する値を記載。
H4: 自動計算 | K4: ・各電気事業者のエリア内非電気事業者からの調達分欄には、整合性結果一覧より集約した値を記載。
K5: ・個別積み上げ方式を選択した場合、エリア内の非電気事業者からの調達分について、各電気事業者調達分欄には整合性結果一覧より集約した値を記載し、一般送配電事業者調達分欄には受電取引帳票より該当する取引の値を記載する。
A6: 受電取引帳票転記フォーマット | D6: =IF('補正（風力）指定１'!D6="","",'補正（風力）指定１'!D6) ->  | E6: 方式選択 | G6: Ⅰ：各月の設備量を反映 Ⅱ：当月と前月を比較し、少ない月の設備量を反映
A7: 項目 | G7: =事業者リスト一覧!$B$3 -> 2026 | H7: =G7+1 -> 2027 | I7: =H7+1 -> 2028 | J7: 2029 | K7: 2030 | L7: 2031 | M7: 2032 | N7: 2033 | O7: 2034 | P7: 2035 | Q7: 備考 （上中段：種別、下段：備考）
A10: 風力 | B10: 調達電力（MW） | D10: 8月電力 | Q10: 風力
D11: 1月電力 | G11: =IF(OR($D$3=1,$D$3=2,$D$3=5),IF($D$14=2,0,ROUNDDOWN(G28,1)),"") ->  | H11: =IF(OR($D$3=1,$D$3=2,$D$3=5),IF($D$14=2,0,ROUNDDOWN(H28,1)),"") ->  | Q11: 風力
B12: 月間調達電力量（GWh） | D12: 年間電力量
D14: =IF('補正（風力）指定１'!D14="","",'補正（風力）指定１'!D14) ->  | E14: 方式選択
A16: 風力（指定２） | C16: １：設備量想定方式用入力シート | P16: 【ＭＷ、ＧＷｈ】
A17: 項目 | G17: =G7 -> 2026 | H17: =H7 -> 2027 | I17: =I7 -> 2028 | J17: 2029 | K17: 2030 | L17: 2031 | M17: 2032 | N17: 2033 | O17: 2034 | P17: 2035
A20: 調整係数出力比率 | I20: =IF(OR($D$3="",$D$3="作成不要",$D$14=2),"",OFFSET(調整係数!$B$25,I$17-$G$17,($D$3-1)*15+10)) ->  | J20: =IF(OR($D$3="",$D$3="作成不要",$D$14=2),"",OFFSET(調整係数!$B$25,J$17-$G$17,($D$3-1)*15+10)) ->  | K20: =IF(OR($D$3="",$D$3="作成不要",$D$14=2),"",OFFSET(調整係数!$B$25,K$17-$G$17,($D$3-1)*15+10)) ->  | L20: =IF(OR($D$3="",$D$3="作成不要",$D$14=2),"",OFFSET(調整係数!$B$25,L$17-$G$17,($D$3-1)*15+10)) ->  | M20: =IF(OR($D$3="",$D$3="作成不要",$D$14=2),"",OFFSET(調整係数!$B$25,M$17-$G$17,($D$3-1)*15+10)) ->  | N20: =IF(OR($D$3="",$D$3="作成不要",$D$14=2),"",OFFSET(調整係数!$B$25,N$17-$G$17,($D$3-1)*15+10)) ->  | O20: =IF(OR($D$3="",$D$3="作成不要",$D$14=2),"",OFFSET(調整係数!$B$25,O$17-$G$17,($D$3-1)*15+10)) ->  | P20: =IF(OR($D$3="",$D$3="作成不要",$D$14=2),"",OFFSET(調整係数!$B$25,P$17-$G$17,($D$3-1)*15+10)) -> 
A21: ｋＷ | B21: エリア想定 | D21: 設備量 | I21: =IF($D$3="作成不要","",IF($D$14=1,IF($D$6="Ⅰ",①風力!Q15,MIN(①風力!P15,①風力!Q15)),"")) ->  | J21: =IF($D$3="作成不要","",IF($D$14=1,IF($D$6="Ⅰ",①風力!Q16,MIN(①風力!P16,①風力!Q16)),"")) ->  | K21: =IF($D$3="作成不要","",IF($D$14=1,IF($D$6="Ⅰ",①風力!Q17,MIN(①風力!P17,①風力!Q17)),"")) ->  | L21: =IF($D$3="作成不要","",IF($D$14=1,IF($D$6="Ⅰ",①風力!Q18,MIN(①風力!P18,①風力!Q18)),"")) ->  | M21: =IF($D$3="作成不要","",IF($D$14=1,IF($D$6="Ⅰ",①風力!Q19,MIN(①風力!P19,①風力!Q19)),"")) ->  | N21: =IF($D$3="作成不要","",IF($D$14=1,IF($D$6="Ⅰ",①風力!Q20,MIN(①風力!P20,①風力!Q20)),"")) ->  | O21: =IF($D$3="作成不要","",IF($D$14=1,IF($D$6="Ⅰ",①風力!Q21,MIN(①風力!P21,①風力!Q21)),"")) ->  | P21: =IF($D$3="作成不要","",IF($D$14=1,IF($D$6="Ⅰ",①風力!Q22,MIN(①風力!P22,①風力!Q22)),"")) -> 
D22: 供給電力（調整係数） | I22: =IF(I21="","",IF(I20=0,0,IF(I20="","",ROUNDDOWN(SUM(I21)*SUM(I$20)/100,2)))) -> 
B23: 各電気事業者の エリア内保有分 | D23: 設備量 | I23: =IF(I24="","",IF(I20=0,"",ROUNDDOWN(SUM(I24)/(SUM(I20)/100),2))) -> 
D24: 供給電力（調整係数）
B25: 各電気事業者の エリア内非電気事業者 からの調達分 | D25: 設備量 | I25: =IF(I26="","",IF(I20=0,"",ROUNDDOWN(SUM(I26)/(SUM(I20)/100),2))) -> 
D26: 供給電力（調整係数）
B27: 一般送配電想定との差分 | D27: 設備量 | I27: =IF(AND(I21="",I23="",I25=""),"",SUM(I21)-SUM(I23)-SUM(I25)) -> 
D28: 供給電力（調整係数） | G28: =IF(OR($D$3="",$D$3="作成不要",COUNT('補正（風力）指定１'!Y28,'補正（風力）指定１'!Z28)=0),"",ROUND(SUM(IFERROR('補正（風力）指定１'!Y28*15,0),IFERROR('補正（風力）指定１'!Z28*16,0))/31,事業者リスト一覧!$B$63)) ->  | H28: =IF(OR($D$3="",$D$3="作成不要",COUNT('補正（風力）指定１'!AW28,'補正（風力）指定１'!AX28)=0),"",ROUND(SUM(IFERROR('補正（風力）指定１'!AW28*15,0),IFERROR('補正（風力）指定１'!AX28*16,0))/31,事業者リスト一覧!$B$63)) ->  | I28: =IF(AND(I22="",I24="",I26=""),"",ROUNDDOWN(ROUND(SUM(I22)-SUM(I24)-SUM(I26),5),事業者リスト一覧!$B$63)) ->  | J28: =IF(AND(J22="",J24="",J26=""),"",ROUNDDOWN(ROUND(SUM(J22)-SUM(J24)-SUM(J26),5),事業者リスト一覧!$B$63)) ->  | K28: =IF(AND(K22="",K24="",K26=""),"",ROUNDDOWN(ROUND(SUM(K22)-SUM(K24)-SUM(K26),5),事業者リスト一覧!$B$63)) ->  | L28: =IF(AND(L22="",L24="",L26=""),"",ROUNDDOWN(ROUND(SUM(L22)-SUM(L24)-SUM(L26),5),事業者リスト一覧!$B$63)) ->  | M28: =IF(AND(M22="",M24="",M26=""),"",ROUNDDOWN(ROUND(SUM(M22)-SUM(M24)-SUM(M26),5),事業者リスト一覧!$B$63)) ->  | N28: =IF(AND(N22="",N24="",N26=""),"",ROUNDDOWN(ROUND(SUM(N22)-SUM(N24)-SUM(N26),5),事業者リスト一覧!$B$63)) ->  | O28: =IF(AND(O22="",O24="",O26=""),"",ROUNDDOWN(ROUND(SUM(O22)-SUM(O24)-SUM(O26),5),事業者リスト一覧!$B$63)) ->  | P28: =IF(AND(P22="",P24="",P26=""),"",ROUNDDOWN(ROUND(SUM(P22)-SUM(P24)-SUM(P26),5),事業者リスト一覧!$B$63)) -> 
A29: ｋＷｈ | B29: エリア想定 | D29: 電力量
B30: 各電気事業者の エリア内保有分 | D30: 電力量
B31: 各電気事業者の エリア内非電気事業者 からの調達分 | D31: 電力量
B32: 一般送配電想定との差分 | D32: 電力量
A36: 風力（指定２） | C36: ２：個別積み上げ方式用入力シート | P36: 【ＭＷ、ＧＷｈ】
A37: 項目 | G37: =G17 -> 2026 | H37: 2027 | I37: 2028 | J37: 2029 | K37: 2030 | L37: 2031 | M37: 2032 | N37: 2033 | O37: 2034 | P37: 2035
A40: 調整係数出力比率 | G40: =IF(OR($D$3="",$D$3="作成不要",$D$14=1),"",OFFSET(調整係数!$B$25,G$37-$G$37,($D$3-1)*15+10)) ->  | H40: =IF(OR($D$3="",$D$3="作成不要",$D$14=1),"",OFFSET(調整係数!$B$25,H$37-$G$37,($D$3-1)*15+10)) ->  | I40: =IF(OR($D$3="",$D$3="作成不要",$D$14=1),"",OFFSET(調整係数!$B$25,I$37-$G$37,($D$3-1)*15+10)) ->  | J40: =IF(OR($D$3="",$D$3="作成不要",$D$14=1),"",OFFSET(調整係数!$B$25,J$37-$G$37,($D$3-1)*15+10)) ->  | K40: =IF(OR($D$3="",$D$3="作成不要",$D$14=1),"",OFFSET(調整係数!$B$25,K$37-$G$37,($D$3-1)*15+10)) ->  | L40: =IF(OR($D$3="",$D$3="作成不要",$D$14=1),"",OFFSET(調整係数!$B$25,L$37-$G$37,($D$3-1)*15+10)) ->  | M40: =IF(OR($D$3="",$D$3="作成不要",$D$14=1),"",OFFSET(調整係数!$B$25,M$37-$G$37,($D$3-1)*15+10)) ->  | N40: =IF(OR($D$3="",$D$3="作成不要",$D$14=1),"",OFFSET(調整係数!$B$25,N$37-$G$37,($D$3-1)*15+10)) ->  | O40: =IF(OR($D$3="",$D$3="作成不要",$D$14=1),"",OFFSET(調整係数!$B$25,O$37-$G$37,($D$3-1)*15+10)) ->  | P40: =IF(OR($D$3="",$D$3="作成不要",$D$14=1),"",OFFSET(調整係数!$B$25,P$37-$G$37,($D$3-1)*15+10)) -> 
A41: ｋＷ | B41: エリア想定 | D41: 設備量 | G41: =IF(G42="","",IF(G40=0,"",ROUNDDOWN(SUM(G42)/(SUM(G40)/100),2))) ->  | H41: =IF(H42="","",IF(H40=0,"",ROUNDDOWN(SUM(H42)/(SUM(H40)/100),2))) ->  | I41: =IF(COUNT(I43,I45,I47)=0,"",SUM(I43,I45,I47)) ->  | J41: =IF(COUNT(J43,J45,J47)=0,"",SUM(J43,J45,J47)) -> 
D42: 供給電力（調整係数） | G42: =IF(OR($D$3="",$D$3="作成不要",COUNT('補正（風力）指定１'!Y42,'補正（風力）指定１'!Z42)=0),"",ROUND(SUM(IFERROR('補正（風力）指定１'!Y42*15,0),IFERROR('補正（風力）指定１'!Z42*16,0))/31,事業者リスト一覧!$B$63)) ->  | H42: =IF(OR($D$3="",$D$3="作成不要",COUNT('補正（風力）指定１'!AW42,'補正（風力）指定１'!AX42)=0),"",ROUND(SUM(IFERROR('補正（風力）指定１'!AW42*15,0),IFERROR('補正（風力）指定１'!AX42*16,0))/31,事業者リスト一覧!$B$63)) ->  | I42: =IF(COUNT(I44,I46,I48)=0,"",SUM(I44,I46,I48)) ->  | J42: =IF(COUNT(J44,J46,J48)=0,"",SUM(J44,J46,J48)) -> 
B43: 各電気事業者の エリア内保有分 | D43: 設備量 | I43: =IF(I44="","",IF(I40=0,"",ROUNDDOWN(SUM(I44)/(SUM(I40)/100),2))) -> 
D44: 供給電力（調整係数）
B45: エリア内の非電気事業者からの調達分 | C45: 各電気事業者 調達分 | D45: 設備量 | I45: =IF(I46="","",IF(I40=0,"",ROUNDDOWN(SUM(I46)/(SUM(I40)/100),2))) -> 
D46: 供給電力（調整係数）
C47: 一般送配電事業者調達分 | D47: 設備量 | I47: =IF(I48="","",IF(I40=0,"",ROUNDDOWN(SUM(I48)/(SUM(I40)/100),2))) -> 
D48: 供給電力（調整係数）
B49: 一般送配電想定との差分 | D49: 設備量
D50: 供給電力（調整係数）
A51: ｋＷｈ | B51: エリア想定 | D51: 電力量
B52: 各電気事業者の エリア内保有分 | D52: 電力量
B53: エリア内の非電気事業者からの調達分 | C53: 各電気事業者 調達分 | D53: 電力量
C54: 一般送配電事業者調達分 | D54: 電力量
B55: 一般送配電想定との差分 | D55: 電力量

Sheet 時間帯別供給力（１２ｈ） (hidden)
A1: ８月点灯帯などのエリア最小予備率時刻のバランス記載（※沖縄電力のみ対象）
J2: 他シート値からの
A3: 供給区域 | B3: =IF('補正（ｋW）指定１'!$C$2="","",'補正（ｋW）指定１'!$C$2) ->  | C3: エリア | D3: =IF(B3="沖縄",10,IF(B3="","","作成不要")) ->  | G3: 入力箇所 | J3: リンク箇所 | M3: 自動計算
A5: ・第１年度及び第２年度において、８月の時間毎のエリア需要の記載をお願いします。表の青色部分に値を埋めてください。
A7: =CONCATENATE("○"&事業者リスト一覧!$B$3&"年度8月前半（",チェックシート!AH15,"時）") -> ○2026年度8月前半（12時） | AB7: 【ＭＷ、％】
A8: 項目 | E8: 時刻
E9: １時 | F9: ２時 | G9: ３時 | H9: ４時 | I9: ５時 | J9: ６時 | K9: ７時 | L9: ８時 | M9: ９時 | N9: １０時 | O9: １１時 | P9: １２時 | Q9: １３時 | R9: １４時 | S9: １５時 | T9: １６時 | U9: １７時 | V9: １８時 | W9: １９時 | X9: ２０時 | Y9: ２１時 | Z9: ２２時 | AA9: ２３時 | AB9: ２４時
A10: 太陽光L5出力比率 | D10: 全量 | J10: =IF($D$3="","",IF($D$3="作成不要","",最小予備率断面!AF14)) ->  | K10: =IF($D$3="","",IF($D$3="作成不要","",最小予備率断面!AG14)) ->  | L10: =IF($D$3="","",IF($D$3="作成不要","",最小予備率断面!AH14)) ->  | M10: =IF($D$3="","",IF($D$3="作成不要","",最小予備率断面!AI14)) ->  | N10: =IF($D$3="","",IF($D$3="作成不要","",最小予備率断面!AJ14)) ->  | O10: =IF($D$3="","",IF($D$3="作成不要","",最小予備率断面!AK14)) ->  | P10: =IF($D$3="","",IF($D$3="作成不要","",最小予備率断面!AL14)) ->  | Q10: =IF($D$3="","",IF($D$3="作成不要","",最小予備率断面!AM14)) ->  | R10: =IF($D$3="","",IF($D$3="作成不要","",最小予備率断面!AN14)) ->  | S10: =IF($D$3="","",IF($D$3="作成不要","",最小予備率断面!AO14)) ->  | T10: =IF($D$3="","",IF($D$3="作成不要","",最小予備率断面!AP14)) ->  | U10: =IF($D$3="","",IF($D$3="作成不要","",最小予備率断面!AQ14)) ->  | V10: =IF($D$3="","",IF($D$3="作成不要","",最小予備率断面!AR14)) ->  | W10: =IF($D$3="","",IF($D$3="作成不要","",最小予備率断面!AS14)) ->  | X10: =IF($D$3="","",IF($D$3="作成不要","",最小予備率断面!AT14)) -> 
D11: 余剰 | J11: =IF($D$3="","",IF($D$3="作成不要","",最小予備率断面!AF29)) ->  | K11: =IF($D$3="","",IF($D$3="作成不要","",最小予備率断面!AG29)) ->  | L11: =IF($D$3="","",IF($D$3="作成不要","",最小予備率断面!AH29)) ->  | M11: =IF($D$3="","",IF($D$3="作成不要","",最小予備率断面!AI29)) ->  | N11: =IF($D$3="","",IF($D$3="作成不要","",最小予備率断面!AJ29)) ->  | O11: =IF($D$3="","",IF($D$3="作成不要","",最小予備率断面!AK29)) ->  | P11: =IF($D$3="","",IF($D$3="作成不要","",最小予備率断面!AL29)) ->  | Q11: =IF($D$3="","",IF($D$3="作成不要","",最小予備率断面!AM29)) ->  | R11: =IF($D$3="","",IF($D$3="作成不要","",最小予備率断面!AN29)) ->  | S11: =IF($D$3="","",IF($D$3="作成不要","",最小予備率断面!AO29)) ->  | T11: =IF($D$3="","",IF($D$3="作成不要","",最小予備率断面!AP29)) ->  | U11: =IF($D$3="","",IF($D$3="作成不要","",最小予備率断面!AQ29)) ->  | V11: =IF($D$3="","",IF($D$3="作成不要","",最小予備率断面!AR29)) ->  | W11: =IF($D$3="","",IF($D$3="作成不要","",最小予備率断面!AS29)) ->  | X11: =IF($D$3="","",IF($D$3="作成不要","",最小予備率断面!AT29)) -> 
A12: エリア需要
A13: エリア供給力 | E13: =IF(OR($D$3="",$D$3="作成不要",'補正（ｋW）指定１'!$M$24=""),"",SUM('補正（ｋW）指定１'!$M$24,E14,E16)) ->  | F13: =IF(OR($D$3="",$D$3="作成不要",'補正（ｋW）指定１'!$M$24=""),"",SUM('補正（ｋW）指定１'!$M$24,F14,F16)) ->  | G13: =IF(OR($D$3="",$D$3="作成不要",'補正（ｋW）指定１'!$M$24=""),"",SUM('補正（ｋW）指定１'!$M$24,G14,G16)) ->  | H13: =IF(OR($D$3="",$D$3="作成不要",'補正（ｋW）指定１'!$M$24=""),"",SUM('補正（ｋW）指定１'!$M$24,H14,H16)) ->  | I13: =IF(OR($D$3="",$D$3="作成不要",'補正（ｋW）指定１'!$M$24=""),"",SUM('補正（ｋW）指定１'!$M$24,I14,I16)) ->  | J13: =IF(OR($D$3="",$D$3="作成不要",'補正（ｋW）指定１'!$M$24=""),"",SUM('補正（ｋW）指定１'!$M$24,J14,J16)) ->  | K13: =IF(OR($D$3="",$D$3="作成不要",'補正（ｋW）指定１'!$M$24=""),"",SUM('補正（ｋW）指定１'!$M$24,K14,K16)) ->  | L13: =IF(OR($D$3="",$D$3="作成不要",'補正（ｋW）指定１'!$M$24=""),"",SUM('補正（ｋW）指定１'!$M$24,L14,L16)) ->  | M13: =IF(OR($D$3="",$D$3="作成不要",'補正（ｋW）指定１'!$M$24=""),"",SUM('補正（ｋW）指定１'!$M$24,M14,M16)) ->  | N13: =IF(OR($D$3="",$D$3="作成不要",'補正（ｋW）指定１'!$M$24=""),"",SUM('補正（ｋW）指定１'!$M$24,N14,N16)) ->  | O13: =IF(OR($D$3="",$D$3="作成不要",'補正（ｋW）指定１'!$M$24=""),"",SUM('補正（ｋW）指定１'!$M$24,O14,O16)) ->  | P13: =IF(OR($D$3="",$D$3="作成不要",'補正（ｋW）指定１'!$M$24=""),"",SUM('補正（ｋW）指定１'!$M$24,P14,P16)) ->  | Q13: =IF(OR($D$3="",$D$3="作成不要",'補正（ｋW）指定１'!$M$24=""),"",SUM('補正（ｋW）指定１'!$M$24,Q14,Q16)) ->  | R13: =IF(OR($D$3="",$D$3="作成不要",'補正（ｋW）指定１'!$M$24=""),"",SUM('補正（ｋW）指定１'!$M$24,R14,R16)) ->  | S13: =IF(OR($D$3="",$D$3="作成不要",'補正（ｋW）指定１'!$M$24=""),"",SUM('補正（ｋW）指定１'!$M$24,S14,S16)) ->  | T13: =IF(OR($D$3="",$D$3="作成不要",'補正（ｋW）指定１'!$M$24=""),"",SUM('補正（ｋW）指定１'!$M$24,T14,T16)) ->  | U13: =IF(OR($D$3="",$D$3="作成不要",'補正（ｋW）指定１'!$M$24=""),"",SUM('補正（ｋW）指定１'!$M$24,U14,U16)) ->  | V13: =IF(OR($D$3="",$D$3="作成不要",'補正（ｋW）指定１'!$M$24=""),"",SUM('補正（ｋW）指定１'!$M$24,V14,V16)) ->  | W13: =IF(OR($D$3="",$D$3="作成不要",'補正（ｋW）指定１'!$M$24=""),"",SUM('補正（ｋW）指定１'!$M$24,W14,W16)) ->  | X13: =IF(OR($D$3="",$D$3="作成不要",'補正（ｋW）指定１'!$M$24=""),"",SUM('補正（ｋW）指定１'!$M$24,X14,X16)) ->  | Y13: =IF(OR($D$3="",$D$3="作成不要",'補正（ｋW）指定１'!$M$24=""),"",SUM('補正（ｋW）指定１'!$M$24,Y14,Y16)) ->  | Z13: =IF(OR($D$3="",$D$3="作成不要",'補正（ｋW）指定１'!$M$24=""),"",SUM('補正（ｋW）指定１'!$M$24,Z14,Z16)) ->  | AA13: =IF(OR($D$3="",$D$3="作成不要",'補正（ｋW）指定１'!$M$24=""),"",SUM('補正（ｋW）指定１'!$M$24,AA14,AA16)) ->  | AB13: =IF(OR($D$3="",$D$3="作成不要",'補正（ｋW）指定１'!$M$24=""),"",SUM('補正（ｋW）指定１'!$M$24,AB14,AB16)) -> 
A14: 補正 | B14: 太陽光供給力増減 | E14: =IF($D$3="","",IF(D3="作成不要","",IF('補正（太陽光）指定１'!$O$32="","",(ROUND(SUM('補正（太陽光）指定１'!$O$30)*E10/100,2)+ROUND(SUM('補正（太陽光）指定１'!$O$31)*E11/100,2))-(SUM('補正（太陽光）指定１'!$O$32))))) ->  | F14: =IF($D$3="","",IF(D3="作成不要","",IF('補正（太陽光）指定１'!$O$32="","",(ROUND(SUM('補正（太陽光）指定１'!$O$30)*F10/100,2)+ROUND(SUM('補正（太陽光）指定１'!$O$31)*F11/100,2))-(SUM('補正（太陽光）指定１'!$O$32))))) ->  | G14: =IF($D$3="","",IF(D3="作成不要","",IF('補正（太陽光）指定１'!$O$32="","",(ROUND(SUM('補正（太陽光）指定１'!$O$30)*G10/100,2)+ROUND(SUM('補正（太陽光）指定１'!$O$31)*G11/100,2))-(SUM('補正（太陽光）指定１'!$O$32))))) ->  | H14: =IF($D$3="","",IF(D3="作成不要","",IF('補正（太陽光）指定１'!$O$32="","",(ROUND(SUM('補正（太陽光）指定１'!$O$30)*H10/100,2)+ROUND(SUM('補正（太陽光）指定１'!$O$31)*H11/100,2))-(SUM('補正（太陽光）指定１'!$O$32))))) ->  | I14: =IF($D$3="","",IF(D3="作成不要","",IF('補正（太陽光）指定１'!$O$32="","",(ROUND(SUM('補正（太陽光）指定１'!$O$30)*I10/100,2)+ROUND(SUM('補正（太陽光）指定１'!$O$31)*I11/100,2))-(SUM('補正（太陽光）指定１'!$O$32))))) ->  | J14: =IF($D$3="","",IF(D3="作成不要","",IF('補正（太陽光）指定１'!$O$32="","",(ROUND(SUM('補正（太陽光）指定１'!$O$30)*J10/100,2)+ROUND(SUM('補正（太陽光）指定１'!$O$31)*J11/100,2))-(SUM('補正（太陽光）指定１'!$O$32))))) ->  | K14: =IF($D$3="","",IF(D3="作成不要","",IF('補正（太陽光）指定１'!$O$32="","",(ROUND(SUM('補正（太陽光）指定１'!$O$30)*K10/100,2)+ROUND(SUM('補正（太陽光）指定１'!$O$31)*K11/100,2))-(SUM('補正（太陽光）指定１'!$O$32))))) ->  | L14: =IF($D$3="","",IF(D3="作成不要","",IF('補正（太陽光）指定１'!$O$32="","",(ROUND(SUM('補正（太陽光）指定１'!$O$30)*L10/100,2)+ROUND(SUM('補正（太陽光）指定１'!$O$31)*L11/100,2))-(SUM('補正（太陽光）指定１'!$O$32))))) ->  | M14: =IF($D$3="","",IF(D3="作成不要","",IF('補正（太陽光）指定１'!$O$32="","",(ROUND(SUM('補正（太陽光）指定１'!$O$30)*M10/100,2)+ROUND(SUM('補正（太陽光）指定１'!$O$31)*M11/100,2))-(SUM('補正（太陽光）指定１'!$O$32))))) ->  | N14: =IF($D$3="","",IF(D3="作成不要","",IF('補正（太陽光）指定１'!$O$32="","",(ROUND(SUM('補正（太陽光）指定１'!$O$30)*N10/100,2)+ROUND(SUM('補正（太陽光）指定１'!$O$31)*N11/100,2))-(SUM('補正（太陽光）指定１'!$O$32))))) ->  | O14: =IF($D$3="","",IF(D3="作成不要","",IF('補正（太陽光）指定１'!$O$32="","",(ROUND(SUM('補正（太陽光）指定１'!$O$30)*O10/100,2)+ROUND(SUM('補正（太陽光）指定１'!$O$31)*O11/100,2))-(SUM('補正（太陽光）指定１'!$O$32))))) ->  | P14: =IF($D$3="","",IF(D3="作成不要","",IF('補正（太陽光）指定１'!$O$32="","",(ROUND(SUM('補正（太陽光）指定１'!$O$30)*P10/100,2)+ROUND(SUM('補正（太陽光）指定１'!$O$31)*P11/100,2))-(SUM('補正（太陽光）指定１'!$O$32))))) ->  | Q14: =IF($D$3="","",IF(D3="作成不要","",IF('補正（太陽光）指定１'!$O$32="","",(ROUND(SUM('補正（太陽光）指定１'!$O$30)*Q10/100,2)+ROUND(SUM('補正（太陽光）指定１'!$O$31)*Q11/100,2))-(SUM('補正（太陽光）指定１'!$O$32))))) ->  | R14: =IF($D$3="","",IF(D3="作成不要","",IF('補正（太陽光）指定１'!$O$32="","",(ROUND(SUM('補正（太陽光）指定１'!$O$30)*R10/100,2)+ROUND(SUM('補正（太陽光）指定１'!$O$31)*R11/100,2))-(SUM('補正（太陽光）指定１'!$O$32))))) ->  | S14: =IF($D$3="","",IF(C3="作成不要","",IF('補正（太陽光）指定１'!$O$32="","",(ROUND(SUM('補正（太陽光）指定１'!$O$30)*S10/100,2)+ROUND(SUM('補正（太陽光）指定１'!$O$31)*S11/100,2))-(SUM('補正（太陽光）指定１'!$O$32))))) ->  | T14: =IF($D$3="","",IF(D3="作成不要","",IF('補正（太陽光）指定１'!$O$32="","",(ROUND(SUM('補正（太陽光）指定１'!$O$30)*T10/100,2)+ROUND(SUM('補正（太陽光）指定１'!$O$31)*T11/100,2))-(SUM('補正（太陽光）指定１'!$O$32))))) ->  | U14: =IF($D$3="","",IF(D3="作成不要","",IF('補正（太陽光）指定１'!$O$32="","",(ROUND(SUM('補正（太陽光）指定１'!$O$30)*U10/100,2)+ROUND(SUM('補正（太陽光）指定１'!$O$31)*U11/100,2))-(SUM('補正（太陽光）指定１'!$O$32))))) ->  | V14: =IF($D$3="","",IF(D3="作成不要","",IF('補正（太陽光）指定１'!$O$32="","",(ROUND(SUM('補正（太陽光）指定１'!$O$30)*V10/100,2)+ROUND(SUM('補正（太陽光）指定１'!$O$31)*V11/100,2))-(SUM('補正（太陽光）指定１'!$O$32))))) ->  | W14: =IF($D$3="","",IF(D3="作成不要","",IF('補正（太陽光）指定１'!$O$32="","",(ROUND(SUM('補正（太陽光）指定１'!$O$30)*W10/100,2)+ROUND(SUM('補正（太陽光）指定１'!$O$31)*W11/100,2))-(SUM('補正（太陽光）指定１'!$O$32))))) ->  | X14: =IF($D$3="","",IF(D3="作成不要","",IF('補正（太陽光）指定１'!$O$32="","",(ROUND(SUM('補正（太陽光）指定１'!$O$30)*X10/100,2)+ROUND(SUM('補正（太陽光）指定１'!$O$31)*X11/100,2))-(SUM('補正（太陽光）指定１'!$O$32))))) ->  | Y14: =IF($D$3="","",IF(D3="作成不要","",IF('補正（太陽光）指定１'!$O$32="","",(ROUND(SUM('補正（太陽光）指定１'!$O$30)*Y10/100,2)+ROUND(SUM('補正（太陽光）指定１'!$O$31)*Y11/100,2))-(SUM('補正（太陽光）指定１'!$O$32))))) ->  | Z14: =IF($D$3="","",IF(D3="作成不要","",IF('補正（太陽光）指定１'!$O$32="","",(ROUND(SUM('補正（太陽光）指定１'!$O$30)*Z10/100,2)+ROUND(SUM('補正（太陽光）指定１'!$O$31)*Z11/100,2))-(SUM('補正（太陽光）指定１'!$O$32))))) ->  | AA14: =IF($D$3="","",IF(D3="作成不要","",IF('補正（太陽光）指定１'!$O$32="","",(ROUND(SUM('補正（太陽光）指定１'!$O$30)*AA10/100,2)+ROUND(SUM('補正（太陽光）指定１'!$O$31)*AA11/100,2))-(SUM('補正（太陽光）指定１'!$O$32))))) ->  | AB14: =IF($D$3="","",IF(D3="作成不要","",IF('補正（太陽光）指定１'!$O$32="","",(ROUND(SUM('補正（太陽光）指定１'!$O$30)*AB10/100,2)+ROUND(SUM('補正（太陽光）指定１'!$O$31)*AB11/100,2))-(SUM('補正（太陽光）指定１'!$O$32))))) -> 
B15: 送配電揚水潜在
B16: 送配電揚水増減（１５時との差分）
A17: エリア予備力 | E17: =IF(OR(E12="",E13=""),"",SUM(E13)-SUM(E12)) ->  | S17: =IF(OR(S12="",S13=""),"",SUM(S13)-SUM(S12)) ->  | Z17: =IF(OR(Z12="",Z13=""),"",SUM(Z13)-SUM(Z12)) ->  | AA17: =IF(OR(AA12="",AA13=""),"",SUM(AA13)-SUM(AA12)) ->  | AB17: =IF(OR(AB12="",AB13=""),"",SUM(AB13)-SUM(AB12)) -> 
A18: エリア予備率 | E18: =IF(E17="","",SUM(E17)/SUM(E12)) ->  | S18: =IF(S17="","",SUM(S17)/SUM(S12)) ->  | Y18: =IF(Y17="","",SUM(Y17)/SUM(Y12)) ->  | Z18: =IF(Z17="","",SUM(Z17)/SUM(Z12)) ->  | AA18: =IF(AA17="","",SUM(AA17)/SUM(AA12)) ->  | AB18: =IF(AB17="","",SUM(AB17)/SUM(AB12)) -> 
A20: =CONCATENATE("○"&事業者リスト一覧!$B$3&"年度8月後半（",チェックシート!AI15,"時）") -> ○2026年度8月後半（12時） | AB20: 【ＭＷ、％】
A21: 項目 | E21: 時刻
E22: １時 | F22: ２時 | G22: ３時 | H22: ４時 | I22: ５時 | J22: ６時 | K22: ７時 | L22: ８時 | M22: ９時 | N22: １０時 | O22: １１時 | P22: １２時 | Q22: １３時 | R22: １４時 | S22: １５時 | T22: １６時 | U22: １７時 | V22: １８時 | W22: １９時 | X22: ２０時 | Y22: ２１時 | Z22: ２２時 | AA22: ２３時 | AB22: ２４時
A23: 太陽光L5出力比率 | D23: 全量 | J23: =IF($D$3="","",IF($D$3="作成不要","",最小予備率断面!AF14)) ->  | K23: =IF($D$3="","",IF($D$3="作成不要","",最小予備率断面!AG14)) ->  | L23: =IF($D$3="","",IF($D$3="作成不要","",最小予備率断面!AH14)) ->  | M23: =IF($D$3="","",IF($D$3="作成不要","",最小予備率断面!AI14)) ->  | N23: =IF($D$3="","",IF($D$3="作成不要","",最小予備率断面!AJ14)) ->  | O23: =IF($D$3="","",IF($D$3="作成不要","",最小予備率断面!AK14)) ->  | P23: =IF($D$3="","",IF($D$3="作成不要","",最小予備率断面!AL14)) ->  | Q23: =IF($D$3="","",IF($D$3="作成不要","",最小予備率断面!AM14)) ->  | R23: =IF($D$3="","",IF($D$3="作成不要","",最小予備率断面!AN14)) ->  | S23: =IF($D$3="","",IF($D$3="作成不要","",最小予備率断面!AO14)) ->  | T23: =IF($D$3="","",IF($D$3="作成不要","",最小予備率断面!AP14)) ->  | U23: =IF($D$3="","",IF($D$3="作成不要","",最小予備率断面!AQ14)) ->  | V23: =IF($D$3="","",IF($D$3="作成不要","",最小予備率断面!AR14)) ->  | W23: =IF($D$3="","",IF($D$3="作成不要","",最小予備率断面!AS14)) ->  | X23: =IF($D$3="","",IF($D$3="作成不要","",最小予備率断面!AT14)) -> 
D24: 余剰 | J24: =IF($D$3="","",IF($D$3="作成不要","",最小予備率断面!AF29)) ->  | K24: =IF($D$3="","",IF($D$3="作成不要","",最小予備率断面!AG29)) ->  | L24: =IF($D$3="","",IF($D$3="作成不要","",最小予備率断面!AH29)) ->  | M24: =IF($D$3="","",IF($D$3="作成不要","",最小予備率断面!AI29)) ->  | N24: =IF($D$3="","",IF($D$3="作成不要","",最小予備率断面!AJ29)) ->  | O24: =IF($D$3="","",IF($D$3="作成不要","",最小予備率断面!AK29)) ->  | P24: =IF($D$3="","",IF($D$3="作成不要","",最小予備率断面!AL29)) ->  | Q24: =IF($D$3="","",IF($D$3="作成不要","",最小予備率断面!AM29)) ->  | R24: =IF($D$3="","",IF($D$3="作成不要","",最小予備率断面!AN29)) ->  | S24: =IF($D$3="","",IF($D$3="作成不要","",最小予備率断面!AO29)) ->  | T24: =IF($D$3="","",IF($D$3="作成不要","",最小予備率断面!AP29)) ->  | U24: =IF($D$3="","",IF($D$3="作成不要","",最小予備率断面!AQ29)) ->  | V24: =IF($D$3="","",IF($D$3="作成不要","",最小予備率断面!AR29)) ->  | W24: =IF($D$3="","",IF($D$3="作成不要","",最小予備率断面!AS29)) ->  | X24: =IF($D$3="","",IF($D$3="作成不要","",最小予備率断面!AT29)) -> 
A25: エリア需要 | E25: =E12 -> 0 | F25: 0 | G25: 0 | H25: 0 | I25: 0 | J25: 0 | K25: 0 | L25: 0 | M25: 0 | N25: 0 | O25: 0 | P25: 0 | Q25: 0 | R25: 0 | S25: 0 | T25: 0 | U25: 0 | V25: 0 | W25: 0 | X25: 0 | Y25: 0 | Z25: 0 | AA25: 0 | AB25: 0
A26: エリア供給力 | E26: =IF(OR($D$3="",$D$3="作成不要",'補正（ｋW）指定１'!$N$24=""),"",SUM('補正（ｋW）指定１'!$N$24,E27,E29)) ->  | F26: =IF(OR($D$3="",$D$3="作成不要",'補正（ｋW）指定１'!$N$24=""),"",SUM('補正（ｋW）指定１'!$N$24,F27,F29)) ->  | G26: =IF(OR($D$3="",$D$3="作成不要",'補正（ｋW）指定１'!$N$24=""),"",SUM('補正（ｋW）指定１'!$N$24,G27,G29)) ->  | H26: =IF(OR($D$3="",$D$3="作成不要",'補正（ｋW）指定１'!$N$24=""),"",SUM('補正（ｋW）指定１'!$N$24,H27,H29)) ->  | I26: =IF(OR($D$3="",$D$3="作成不要",'補正（ｋW）指定１'!$N$24=""),"",SUM('補正（ｋW）指定１'!$N$24,I27,I29)) ->  | J26: =IF(OR($D$3="",$D$3="作成不要",'補正（ｋW）指定１'!$N$24=""),"",SUM('補正（ｋW）指定１'!$N$24,J27,J29)) ->  | K26: =IF(OR($D$3="",$D$3="作成不要",'補正（ｋW）指定１'!$N$24=""),"",SUM('補正（ｋW）指定１'!$N$24,K27,K29)) ->  | L26: =IF(OR($D$3="",$D$3="作成不要",'補正（ｋW）指定１'!$N$24=""),"",SUM('補正（ｋW）指定１'!$N$24,L27,L29)) ->  | M26: =IF(OR($D$3="",$D$3="作成不要",'補正（ｋW）指定１'!$N$24=""),"",SUM('補正（ｋW）指定１'!$N$24,M27,M29)) ->  | N26: =IF(OR($D$3="",$D$3="作成不要",'補正（ｋW）指定１'!$N$24=""),"",SUM('補正（ｋW）指定１'!$N$24,N27,N29)) ->  | O26: =IF(OR($D$3="",$D$3="作成不要",'補正（ｋW）指定１'!$N$24=""),"",SUM('補正（ｋW）指定１'!$N$24,O27,O29)) ->  | P26: =IF(OR($D$3="",$D$3="作成不要",'補正（ｋW）指定１'!$N$24=""),"",SUM('補正（ｋW）指定１'!$N$24,P27,P29)) ->  | Q26: =IF(OR($D$3="",$D$3="作成不要",'補正（ｋW）指定１'!$N$24=""),"",SUM('補正（ｋW）指定１'!$N$24,Q27,Q29)) ->  | R26: =IF(OR($D$3="",$D$3="作成不要",'補正（ｋW）指定１'!$N$24=""),"",SUM('補正（ｋW）指定１'!$N$24,R27,R29)) ->  | S26: =IF(OR($D$3="",$D$3="作成不要",'補正（ｋW）指定１'!$N$24=""),"",SUM('補正（ｋW）指定１'!$N$24,S27,S29)) ->  | T26: =IF(OR($D$3="",$D$3="作成不要",'補正（ｋW）指定１'!$N$24=""),"",SUM('補正（ｋW）指定１'!$N$24,T27,T29)) ->  | U26: =IF(OR($D$3="",$D$3="作成不要",'補正（ｋW）指定１'!$N$24=""),"",SUM('補正（ｋW）指定１'!$N$24,U27,U29)) ->  | V26: =IF(OR($D$3="",$D$3="作成不要",'補正（ｋW）指定１'!$N$24=""),"",SUM('補正（ｋW）指定１'!$N$24,V27,V29)) ->  | W26: =IF(OR($D$3="",$D$3="作成不要",'補正（ｋW）指定１'!$N$24=""),"",SUM('補正（ｋW）指定１'!$N$24,W27,W29)) ->  | X26: =IF(OR($D$3="",$D$3="作成不要",'補正（ｋW）指定１'!$N$24=""),"",SUM('補正（ｋW）指定１'!$N$24,X27,X29)) ->  | Y26: =IF(OR($D$3="",$D$3="作成不要",'補正（ｋW）指定１'!$N$24=""),"",SUM('補正（ｋW）指定１'!$N$24,Y27,Y29)) ->  | Z26: =IF(OR($D$3="",$D$3="作成不要",'補正（ｋW）指定１'!$N$24=""),"",SUM('補正（ｋW）指定１'!$N$24,Z27,Z29)) ->  | AA26: =IF(OR($D$3="",$D$3="作成不要",'補正（ｋW）指定１'!$N$24=""),"",SUM('補正（ｋW）指定１'!$N$24,AA27,AA29)) ->  | AB26: =IF(OR($D$3="",$D$3="作成不要",'補正（ｋW）指定１'!$N$24=""),"",SUM('補正（ｋW）指定１'!$N$24,AB27,AB29)) -> 
A27: 補正 | B27: 太陽光供給力増減 | E27: =IF($D$3="","",IF($D$3="作成不要","",IF('補正（太陽光）指定１'!$P$32="","",(ROUND(SUM('補正（太陽光）指定１'!$P$30)*E23/100,2)+ROUND(SUM('補正（太陽光）指定１'!$P$31)*E24/100,2))-(SUM('補正（太陽光）指定１'!$P$32))))) ->  | F27: =IF($D$3="","",IF($D$3="作成不要","",IF('補正（太陽光）指定１'!$P$32="","",(ROUND(SUM('補正（太陽光）指定１'!$P$30)*F23/100,2)+ROUND(SUM('補正（太陽光）指定１'!$P$31)*F24/100,2))-(SUM('補正（太陽光）指定１'!$P$32))))) ->  | G27: =IF($D$3="","",IF($D$3="作成不要","",IF('補正（太陽光）指定１'!$P$32="","",(ROUND(SUM('補正（太陽光）指定１'!$P$30)*G23/100,2)+ROUND(SUM('補正（太陽光）指定１'!$P$31)*G24/100,2))-(SUM('補正（太陽光）指定１'!$P$32))))) ->  | H27: =IF($D$3="","",IF($D$3="作成不要","",IF('補正（太陽光）指定１'!$P$32="","",(ROUND(SUM('補正（太陽光）指定１'!$P$30)*H23/100,2)+ROUND(SUM('補正（太陽光）指定１'!$P$31)*H24/100,2))-(SUM('補正（太陽光）指定１'!$P$32))))) ->  | I27: =IF($D$3="","",IF($D$3="作成不要","",IF('補正（太陽光）指定１'!$P$32="","",(ROUND(SUM('補正（太陽光）指定１'!$P$30)*I23/100,2)+ROUND(SUM('補正（太陽光）指定１'!$P$31)*I24/100,2))-(SUM('補正（太陽光）指定１'!$P$32))))) ->  | J27: =IF($D$3="","",IF($D$3="作成不要","",IF('補正（太陽光）指定１'!$P$32="","",(ROUND(SUM('補正（太陽光）指定１'!$P$30)*J23/100,2)+ROUND(SUM('補正（太陽光）指定１'!$P$31)*J24/100,2))-(SUM('補正（太陽光）指定１'!$P$32))))) ->  | K27: =IF($D$3="","",IF($D$3="作成不要","",IF('補正（太陽光）指定１'!$P$32="","",(ROUND(SUM('補正（太陽光）指定１'!$P$30)*K23/100,2)+ROUND(SUM('補正（太陽光）指定１'!$P$31)*K24/100,2))-(SUM('補正（太陽光）指定１'!$P$32))))) ->  | L27: =IF($D$3="","",IF($D$3="作成不要","",IF('補正（太陽光）指定１'!$P$32="","",(ROUND(SUM('補正（太陽光）指定１'!$P$30)*L23/100,2)+ROUND(SUM('補正（太陽光）指定１'!$P$31)*L24/100,2))-(SUM('補正（太陽光）指定１'!$P$32))))) ->  | M27: =IF($D$3="","",IF($D$3="作成不要","",IF('補正（太陽光）指定１'!$P$32="","",(ROUND(SUM('補正（太陽光）指定１'!$P$30)*M23/100,2)+ROUND(SUM('補正（太陽光）指定１'!$P$31)*M24/100,2))-(SUM('補正（太陽光）指定１'!$P$32))))) ->  | N27: =IF($D$3="","",IF($D$3="作成不要","",IF('補正（太陽光）指定１'!$P$32="","",(ROUND(SUM('補正（太陽光）指定１'!$P$30)*N23/100,2)+ROUND(SUM('補正（太陽光）指定１'!$P$31)*N24/100,2))-(SUM('補正（太陽光）指定１'!$P$32))))) ->  | O27: =IF($D$3="","",IF($D$3="作成不要","",IF('補正（太陽光）指定１'!$P$32="","",(ROUND(SUM('補正（太陽光）指定１'!$P$30)*O23/100,2)+ROUND(SUM('補正（太陽光）指定１'!$P$31)*O24/100,2))-(SUM('補正（太陽光）指定１'!$P$32))))) ->  | P27: =IF($D$3="","",IF($D$3="作成不要","",IF('補正（太陽光）指定１'!$P$32="","",(ROUND(SUM('補正（太陽光）指定１'!$P$30)*P23/100,2)+ROUND(SUM('補正（太陽光）指定１'!$P$31)*P24/100,2))-(SUM('補正（太陽光）指定１'!$P$32))))) ->  | Q27: =IF($D$3="","",IF($D$3="作成不要","",IF('補正（太陽光）指定１'!$P$32="","",(ROUND(SUM('補正（太陽光）指定１'!$P$30)*Q23/100,2)+ROUND(SUM('補正（太陽光）指定１'!$P$31)*Q24/100,2))-(SUM('補正（太陽光）指定１'!$P$32))))) ->  | R27: =IF($D$3="","",IF($D$3="作成不要","",IF('補正（太陽光）指定１'!$P$32="","",(ROUND(SUM('補正（太陽光）指定１'!$P$30)*R23/100,2)+ROUND(SUM('補正（太陽光）指定１'!$P$31)*R24/100,2))-(SUM('補正（太陽光）指定１'!$P$32))))) ->  | S27: =IF($D$3="","",IF($D$3="作成不要","",IF('補正（太陽光）指定１'!$P$32="","",(ROUND(SUM('補正（太陽光）指定１'!$P$30)*S23/100,2)+ROUND(SUM('補正（太陽光）指定１'!$P$31)*S24/100,2))-(SUM('補正（太陽光）指定１'!$P$32))))) ->  | T27: =IF($D$3="","",IF($D$3="作成不要","",IF('補正（太陽光）指定１'!$P$32="","",(ROUND(SUM('補正（太陽光）指定１'!$P$30)*T23/100,2)+ROUND(SUM('補正（太陽光）指定１'!$P$31)*T24/100,2))-(SUM('補正（太陽光）指定１'!$P$32))))) ->  | U27: =IF($D$3="","",IF($D$3="作成不要","",IF('補正（太陽光）指定１'!$P$32="","",(ROUND(SUM('補正（太陽光）指定１'!$P$30)*U23/100,2)+ROUND(SUM('補正（太陽光）指定１'!$P$31)*U24/100,2))-(SUM('補正（太陽光）指定１'!$P$32))))) ->  | V27: =IF($D$3="","",IF($D$3="作成不要","",IF('補正（太陽光）指定１'!$P$32="","",(ROUND(SUM('補正（太陽光）指定１'!$P$30)*V23/100,2)+ROUND(SUM('補正（太陽光）指定１'!$P$31)*V24/100,2))-(SUM('補正（太陽光）指定１'!$P$32))))) ->  | W27: =IF($D$3="","",IF($D$3="作成不要","",IF('補正（太陽光）指定１'!$P$32="","",(ROUND(SUM('補正（太陽光）指定１'!$P$30)*W23/100,2)+ROUND(SUM('補正（太陽光）指定１'!$P$31)*W24/100,2))-(SUM('補正（太陽光）指定１'!$P$32))))) ->  | X27: =IF($D$3="","",IF($D$3="作成不要","",IF('補正（太陽光）指定１'!$P$32="","",(ROUND(SUM('補正（太陽光）指定１'!$P$30)*X23/100,2)+ROUND(SUM('補正（太陽光）指定１'!$P$31)*X24/100,2))-(SUM('補正（太陽光）指定１'!$P$32))))) ->  | Y27: =IF($D$3="","",IF($D$3="作成不要","",IF('補正（太陽光）指定１'!$P$32="","",(ROUND(SUM('補正（太陽光）指定１'!$P$30)*Y23/100,2)+ROUND(SUM('補正（太陽光）指定１'!$P$31)*Y24/100,2))-(SUM('補正（太陽光）指定１'!$P$32))))) ->  | Z27: =IF($D$3="","",IF($D$3="作成不要","",IF('補正（太陽光）指定１'!$P$32="","",(ROUND(SUM('補正（太陽光）指定１'!$P$30)*Z23/100,2)+ROUND(SUM('補正（太陽光）指定１'!$P$31)*Z24/100,2))-(SUM('補正（太陽光）指定１'!$P$32))))) ->  | AA27: =IF($D$3="","",IF($D$3="作成不要","",IF('補正（太陽光）指定１'!$P$32="","",(ROUND(SUM('補正（太陽光）指定１'!$P$30)*AA23/100,2)+ROUND(SUM('補正（太陽光）指定１'!$P$31)*AA24/100,2))-(SUM('補正（太陽光）指定１'!$P$32))))) ->  | AB27: =IF($D$3="","",IF($D$3="作成不要","",IF('補正（太陽光）指定１'!$P$32="","",(ROUND(SUM('補正（太陽光）指定１'!$P$30)*AB23/100,2)+ROUND(SUM('補正（太陽光）指定１'!$P$31)*AB24/100,2))-(SUM('補正（太陽光）指定１'!$P$32))))) -> 
B28: 送配電揚水潜在
B29: 送配電揚水増減（１５時との差分）
A30: エリア予備力 | E30: =IF(OR(E25="",E26=""),"",SUM(E26)-SUM(E25)) ->  | S30: =IF(OR(S25="",S26=""),"",SUM(S26)-SUM(S25)) ->  | Z30: =IF(OR(Z25="",Z26=""),"",SUM(Z26)-SUM(Z25)) ->  | AA30: =IF(OR(AA25="",AA26=""),"",SUM(AA26)-SUM(AA25)) ->  | AB30: =IF(OR(AB25="",AB26=""),"",SUM(AB26)-SUM(AB25)) -> 
A31: エリア予備率 | E31: =IF(E30="","",SUM(E30)/SUM(E25)) ->  | S31: =IF(S30="","",SUM(S30)/SUM(S25)) ->  | Y31: =IF(Y30="","",SUM(Y30)/SUM(Y25)) ->  | Z31: =IF(Z30="","",SUM(Z30)/SUM(Z25)) ->  | AA31: =IF(AA30="","",SUM(AA30)/SUM(AA25)) ->  | AB31: =IF(AB30="","",SUM(AB30)/SUM(AB25)) -> 
A33: =CONCATENATE("○"&事業者リスト一覧!$B$3+1&"年度8月前半（",チェックシート!AH15,"時）") -> ○2027年度8月前半（12時） | AB33: 【ＭＷ、％】
A34: 項目 | E34: 時刻
E35: １時 | F35: ２時 | G35: ３時 | H35: ４時 | I35: ５時 | J35: ６時 | K35: ７時 | L35: ８時 | M35: ９時 | N35: １０時 | O35: １１時 | P35: １２時 | Q35: １３時 | R35: １４時 | S35: １５時 | T35: １６時 | U35: １７時 | V35: １８時 | W35: １９時 | X35: ２０時 | Y35: ２１時 | Z35: ２２時 | AA35: ２３時 | AB35: ２４時
A36: 太陽光L5出力比率 | D36: 全量 | J36: =+J10 -> 
D37: 余剰 | J37: =+J11 -> 
A38: エリア需要
A39: エリア供給力 | E39: =IF(OR($D$3="",$D$3="作成不要",'補正（ｋW）指定１'!$AK$24=""),"",SUM('補正（ｋW）指定１'!$AK$24,E40,E42)) ->  | F39: =IF(OR($D$3="",$D$3="作成不要",'補正（ｋW）指定１'!$AK$24=""),"",SUM('補正（ｋW）指定１'!$AK$24,F40,F42)) ->  | G39: =IF(OR($D$3="",$D$3="作成不要",'補正（ｋW）指定１'!$AK$24=""),"",SUM('補正（ｋW）指定１'!$AK$24,G40,G42)) ->  | H39: =IF(OR($D$3="",$D$3="作成不要",'補正（ｋW）指定１'!$AK$24=""),"",SUM('補正（ｋW）指定１'!$AK$24,H40,H42)) ->  | I39: =IF(OR($D$3="",$D$3="作成不要",'補正（ｋW）指定１'!$AK$24=""),"",SUM('補正（ｋW）指定１'!$AK$24,I40,I42)) ->  | J39: =IF(OR($D$3="",$D$3="作成不要",'補正（ｋW）指定１'!$AK$24=""),"",SUM('補正（ｋW）指定１'!$AK$24,J40,J42)) ->  | K39: =IF(OR($D$3="",$D$3="作成不要",'補正（ｋW）指定１'!$AK$24=""),"",SUM('補正（ｋW）指定１'!$AK$24,K40,K42)) ->  | L39: =IF(OR($D$3="",$D$3="作成不要",'補正（ｋW）指定１'!$AK$24=""),"",SUM('補正（ｋW）指定１'!$AK$24,L40,L42)) ->  | M39: =IF(OR($D$3="",$D$3="作成不要",'補正（ｋW）指定１'!$AK$24=""),"",SUM('補正（ｋW）指定１'!$AK$24,M40,M42)) ->  | N39: =IF(OR($D$3="",$D$3="作成不要",'補正（ｋW）指定１'!$AK$24=""),"",SUM('補正（ｋW）指定１'!$AK$24,N40,N42)) ->  | O39: =IF(OR($D$3="",$D$3="作成不要",'補正（ｋW）指定１'!$AK$24=""),"",SUM('補正（ｋW）指定１'!$AK$24,O40,O42)) ->  | P39: =IF(OR($D$3="",$D$3="作成不要",'補正（ｋW）指定１'!$AK$24=""),"",SUM('補正（ｋW）指定１'!$AK$24,P40,P42)) ->  | Q39: =IF(OR($D$3="",$D$3="作成不要",'補正（ｋW）指定１'!$AK$24=""),"",SUM('補正（ｋW）指定１'!$AK$24,Q40,Q42)) ->  | R39: =IF(OR($D$3="",$D$3="作成不要",'補正（ｋW）指定１'!$AK$24=""),"",SUM('補正（ｋW）指定１'!$AK$24,R40,R42)) ->  | S39: =IF(OR($D$3="",$D$3="作成不要",'補正（ｋW）指定１'!$AK$24=""),"",SUM('補正（ｋW）指定１'!$AK$24,S40,S42)) ->  | T39: =IF(OR($D$3="",$D$3="作成不要",'補正（ｋW）指定１'!$AK$24=""),"",SUM('補正（ｋW）指定１'!$AK$24,T40,T42)) ->  | U39: =IF(OR($D$3="",$D$3="作成不要",'補正（ｋW）指定１'!$AK$24=""),"",SUM('補正（ｋW）指定１'!$AK$24,U40,U42)) ->  | V39: =IF(OR($D$3="",$D$3="作成不要",'補正（ｋW）指定１'!$AK$24=""),"",SUM('補正（ｋW）指定１'!$AK$24,V40,V42)) ->  | W39: =IF(OR($D$3="",$D$3="作成不要",'補正（ｋW）指定１'!$AK$24=""),"",SUM('補正（ｋW）指定１'!$AK$24,W40,W42)) ->  | X39: =IF(OR($D$3="",$D$3="作成不要",'補正（ｋW）指定１'!$AK$24=""),"",SUM('補正（ｋW）指定１'!$AK$24,X40,X42)) ->  | Y39: =IF(OR($D$3="",$D$3="作成不要",'補正（ｋW）指定１'!$AK$24=""),"",SUM('補正（ｋW）指定１'!$AK$24,Y40,Y42)) ->  | Z39: =IF(OR($D$3="",$D$3="作成不要",'補正（ｋW）指定１'!$AK$24=""),"",SUM('補正（ｋW）指定１'!$AK$24,Z40,Z42)) ->  | AA39: =IF(OR($D$3="",$D$3="作成不要",'補正（ｋW）指定１'!$AK$24=""),"",SUM('補正（ｋW）指定１'!$AK$24,AA40,AA42)) ->  | AB39: =IF(OR($D$3="",$D$3="作成不要",'補正（ｋW）指定１'!$AK$24=""),"",SUM('補正（ｋW）指定１'!$AK$24,AB40,AB42)) -> 
A40: 補正 | B40: 太陽光供給力増減 | E40: =IF($D$3="","",IF($D$3="作成不要","",IF('補正（太陽光）指定１'!$AM$32="","",(ROUND(SUM('補正（太陽光）指定１'!$AM$30)*E36/100,2)+ROUND(SUM('補正（太陽光）指定１'!$AM$31)*E37/100,2))-(SUM('補正（太陽光）指定１'!$AM$32))))) ->  | F40: =IF($D$3="","",IF($D$3="作成不要","",IF('補正（太陽光）指定１'!$AM$32="","",(ROUND(SUM('補正（太陽光）指定１'!$AM$30)*F36/100,2)+ROUND(SUM('補正（太陽光）指定１'!$AM$31)*F37/100,2))-(SUM('補正（太陽光）指定１'!$AM$32))))) ->  | G40: =IF($D$3="","",IF($D$3="作成不要","",IF('補正（太陽光）指定１'!$AM$32="","",(ROUND(SUM('補正（太陽光）指定１'!$AM$30)*G36/100,2)+ROUND(SUM('補正（太陽光）指定１'!$AM$31)*G37/100,2))-(SUM('補正（太陽光）指定１'!$AM$32))))) ->  | H40: =IF($D$3="","",IF($D$3="作成不要","",IF('補正（太陽光）指定１'!$AM$32="","",(ROUND(SUM('補正（太陽光）指定１'!$AM$30)*H36/100,2)+ROUND(SUM('補正（太陽光）指定１'!$AM$31)*H37/100,2))-(SUM('補正（太陽光）指定１'!$AM$32))))) ->  | I40: =IF($D$3="","",IF($D$3="作成不要","",IF('補正（太陽光）指定１'!$AM$32="","",(ROUND(SUM('補正（太陽光）指定１'!$AM$30)*I36/100,2)+ROUND(SUM('補正（太陽光）指定１'!$AM$31)*I37/100,2))-(SUM('補正（太陽光）指定１'!$AM$32))))) ->  | J40: =IF($D$3="","",IF($D$3="作成不要","",IF('補正（太陽光）指定１'!$AM$32="","",(ROUND(SUM('補正（太陽光）指定１'!$AM$30)*J36/100,2)+ROUND(SUM('補正（太陽光）指定１'!$AM$31)*J37/100,2))-(SUM('補正（太陽光）指定１'!$AM$32))))) ->  | K40: =IF($D$3="","",IF($D$3="作成不要","",IF('補正（太陽光）指定１'!$AM$32="","",(ROUND(SUM('補正（太陽光）指定１'!$AM$30)*K36/100,2)+ROUND(SUM('補正（太陽光）指定１'!$AM$31)*K37/100,2))-(SUM('補正（太陽光）指定１'!$AM$32))))) ->  | L40: =IF($D$3="","",IF($D$3="作成不要","",IF('補正（太陽光）指定１'!$AM$32="","",(ROUND(SUM('補正（太陽光）指定１'!$AM$30)*L36/100,2)+ROUND(SUM('補正（太陽光）指定１'!$AM$31)*L37/100,2))-(SUM('補正（太陽光）指定１'!$AM$32))))) ->  | M40: =IF($D$3="","",IF($D$3="作成不要","",IF('補正（太陽光）指定１'!$AM$32="","",(ROUND(SUM('補正（太陽光）指定１'!$AM$30)*M36/100,2)+ROUND(SUM('補正（太陽光）指定１'!$AM$31)*M37/100,2))-(SUM('補正（太陽光）指定１'!$AM$32))))) ->  | N40: =IF($D$3="","",IF($D$3="作成不要","",IF('補正（太陽光）指定１'!$AM$32="","",(ROUND(SUM('補正（太陽光）指定１'!$AM$30)*N36/100,2)+ROUND(SUM('補正（太陽光）指定１'!$AM$31)*N37/100,2))-(SUM('補正（太陽光）指定１'!$AM$32))))) ->  | O40: =IF($D$3="","",IF($D$3="作成不要","",IF('補正（太陽光）指定１'!$AM$32="","",(ROUND(SUM('補正（太陽光）指定１'!$AM$30)*O36/100,2)+ROUND(SUM('補正（太陽光）指定１'!$AM$31)*O37/100,2))-(SUM('補正（太陽光）指定１'!$AM$32))))) ->  | P40: =IF($D$3="","",IF($D$3="作成不要","",IF('補正（太陽光）指定１'!$AM$32="","",(ROUND(SUM('補正（太陽光）指定１'!$AM$30)*P36/100,2)+ROUND(SUM('補正（太陽光）指定１'!$AM$31)*P37/100,2))-(SUM('補正（太陽光）指定１'!$AM$32))))) ->  | Q40: =IF($D$3="","",IF($D$3="作成不要","",IF('補正（太陽光）指定１'!$AM$32="","",(ROUND(SUM('補正（太陽光）指定１'!$AM$30)*Q36/100,2)+ROUND(SUM('補正（太陽光）指定１'!$AM$31)*Q37/100,2))-(SUM('補正（太陽光）指定１'!$AM$32))))) ->  | R40: =IF($D$3="","",IF($D$3="作成不要","",IF('補正（太陽光）指定１'!$AM$32="","",(ROUND(SUM('補正（太陽光）指定１'!$AM$30)*R36/100,2)+ROUND(SUM('補正（太陽光）指定１'!$AM$31)*R37/100,2))-(SUM('補正（太陽光）指定１'!$AM$32))))) ->  | S40: =IF($D$3="","",IF($D$3="作成不要","",IF('補正（太陽光）指定１'!$AM$32="","",(ROUND(SUM('補正（太陽光）指定１'!$AM$30)*S36/100,2)+ROUND(SUM('補正（太陽光）指定１'!$AM$31)*S37/100,2))-(SUM('補正（太陽光）指定１'!$AM$32))))) ->  | T40: =IF($D$3="","",IF($D$3="作成不要","",IF('補正（太陽光）指定１'!$AM$32="","",(ROUND(SUM('補正（太陽光）指定１'!$AM$30)*T36/100,2)+ROUND(SUM('補正（太陽光）指定１'!$AM$31)*T37/100,2))-(SUM('補正（太陽光）指定１'!$AM$32))))) ->  | U40: =IF($D$3="","",IF($D$3="作成不要","",IF('補正（太陽光）指定１'!$AM$32="","",(ROUND(SUM('補正（太陽光）指定１'!$AM$30)*U36/100,2)+ROUND(SUM('補正（太陽光）指定１'!$AM$31)*U37/100,2))-(SUM('補正（太陽光）指定１'!$AM$32))))) ->  | V40: =IF($D$3="","",IF($D$3="作成不要","",IF('補正（太陽光）指定１'!$AM$32="","",(ROUND(SUM('補正（太陽光）指定１'!$AM$30)*V36/100,2)+ROUND(SUM('補正（太陽光）指定１'!$AM$31)*V37/100,2))-(SUM('補正（太陽光）指定１'!$AM$32))))) ->  | W40: =IF($D$3="","",IF($D$3="作成不要","",IF('補正（太陽光）指定１'!$AM$32="","",(ROUND(SUM('補正（太陽光）指定１'!$AM$30)*W36/100,2)+ROUND(SUM('補正（太陽光）指定１'!$AM$31)*W37/100,2))-(SUM('補正（太陽光）指定１'!$AM$32))))) ->  | X40: =IF($D$3="","",IF($D$3="作成不要","",IF('補正（太陽光）指定１'!$AM$32="","",(ROUND(SUM('補正（太陽光）指定１'!$AM$30)*X36/100,2)+ROUND(SUM('補正（太陽光）指定１'!$AM$31)*X37/100,2))-(SUM('補正（太陽光）指定１'!$AM$32))))) ->  | Y40: =IF($D$3="","",IF($D$3="作成不要","",IF('補正（太陽光）指定１'!$AM$32="","",(ROUND(SUM('補正（太陽光）指定１'!$AM$30)*Y36/100,2)+ROUND(SUM('補正（太陽光）指定１'!$AM$31)*Y37/100,2))-(SUM('補正（太陽光）指定１'!$AM$32))))) ->  | Z40: =IF($D$3="","",IF($D$3="作成不要","",IF('補正（太陽光）指定１'!$AM$32="","",(ROUND(SUM('補正（太陽光）指定１'!$AM$30)*Z36/100,2)+ROUND(SUM('補正（太陽光）指定１'!$AM$31)*Z37/100,2))-(SUM('補正（太陽光）指定１'!$AM$32))))) ->  | AA40: =IF($D$3="","",IF($D$3="作成不要","",IF('補正（太陽光）指定１'!$AM$32="","",(ROUND(SUM('補正（太陽光）指定１'!$AM$30)*AA36/100,2)+ROUND(SUM('補正（太陽光）指定１'!$AM$31)*AA37/100,2))-(SUM('補正（太陽光）指定１'!$AM$32))))) ->  | AB40: =IF($D$3="","",IF($D$3="作成不要","",IF('補正（太陽光）指定１'!$AM$32="","",(ROUND(SUM('補正（太陽光）指定１'!$AM$30)*AB36/100,2)+ROUND(SUM('補正（太陽光）指定１'!$AM$31)*AB37/100,2))-(SUM('補正（太陽光）指定１'!$AM$32))))) -> 
B41: 送配電揚水潜在
B42: 送配電揚水増減（１５時との差分）
A43: エリア予備力 | E43: =IF(OR(E38="",E39=""),"",SUM(E39)-SUM(E38)) ->  | S43: =IF(OR(S38="",S39=""),"",SUM(S39)-SUM(S38)) ->  | Z43: =IF(OR(Z38="",Z39=""),"",SUM(Z39)-SUM(Z38)) ->  | AA43: =IF(OR(AA38="",AA39=""),"",SUM(AA39)-SUM(AA38)) ->  | AB43: =IF(OR(AB38="",AB39=""),"",SUM(AB39)-SUM(AB38)) -> 
A44: エリア予備率 | E44: =IF(E43="","",SUM(E43)/SUM(E38)) ->  | S44: =IF(S43="","",SUM(S43)/SUM(S38)) ->  | Y44: =IF(Y43="","",SUM(Y43)/SUM(Y38)) ->  | Z44: =IF(Z43="","",SUM(Z43)/SUM(Z38)) ->  | AA44: =IF(AA43="","",SUM(AA43)/SUM(AA38)) ->  | AB44: =IF(AB43="","",SUM(AB43)/SUM(AB38)) -> 
A46: =CONCATENATE("○"&事業者リスト一覧!$B$3+1&"年度8月後半（",チェックシート!AI15,"時）") -> ○2027年度8月後半（12時） | AB46: 【ＭＷ、％】
A47: 項目 | E47: 時刻
E48: １時 | F48: ２時 | G48: ３時 | H48: ４時 | I48: ５時 | J48: ６時 | K48: ７時 | L48: ８時 | M48: ９時 | N48: １０時 | O48: １１時 | P48: １２時 | Q48: １３時 | R48: １４時 | S48: １５時 | T48: １６時 | U48: １７時 | V48: １８時 | W48: １９時 | X48: ２０時 | Y48: ２１時 | Z48: ２２時 | AA48: ２３時 | AB48: ２４時
A49: 太陽光L5出力比率 | D49: 全量 | J49: =+J23 -> 
D50: 余剰 | J50: =+J24 -> 
A51: エリア需要 | E51: =E38 -> 0 | F51: 0 | G51: 0 | H51: 0 | I51: 0 | J51: 0 | K51: 0 | L51: 0 | M51: 0 | N51: 0 | O51: 0 | P51: 0 | Q51: 0 | R51: 0 | S51: 0 | T51: 0 | U51: 0 | V51: 0 | W51: 0 | X51: 0 | Y51: 0 | Z51: 0 | AA51: 0 | AB51: 0
A52: エリア供給力 | E52: =IF(OR($D$3="",$D$3="作成不要",'補正（ｋW）指定１'!$AL$24=""),"",SUM('補正（ｋW）指定１'!$AL$24,E53,E55)) ->  | F52: =IF(OR($D$3="",$D$3="作成不要",'補正（ｋW）指定１'!$AL$24=""),"",SUM('補正（ｋW）指定１'!$AL$24,F53,F55)) ->  | G52: =IF(OR($D$3="",$D$3="作成不要",'補正（ｋW）指定１'!$AL$24=""),"",SUM('補正（ｋW）指定１'!$AL$24,G53,G55)) ->  | H52: =IF(OR($D$3="",$D$3="作成不要",'補正（ｋW）指定１'!$AL$24=""),"",SUM('補正（ｋW）指定１'!$AL$24,H53,H55)) ->  | I52: =IF(OR($D$3="",$D$3="作成不要",'補正（ｋW）指定１'!$AL$24=""),"",SUM('補正（ｋW）指定１'!$AL$24,I53,I55)) ->  | J52: =IF(OR($D$3="",$D$3="作成不要",'補正（ｋW）指定１'!$AL$24=""),"",SUM('補正（ｋW）指定１'!$AL$24,J53,J55)) ->  | K52: =IF(OR($D$3="",$D$3="作成不要",'補正（ｋW）指定１'!$AL$24=""),"",SUM('補正（ｋW）指定１'!$AL$24,K53,K55)) ->  | L52: =IF(OR($D$3="",$D$3="作成不要",'補正（ｋW）指定１'!$AL$24=""),"",SUM('補正（ｋW）指定１'!$AL$24,L53,L55)) ->  | M52: =IF(OR($D$3="",$D$3="作成不要",'補正（ｋW）指定１'!$AL$24=""),"",SUM('補正（ｋW）指定１'!$AL$24,M53,M55)) ->  | N52: =IF(OR($D$3="",$D$3="作成不要",'補正（ｋW）指定１'!$AL$24=""),"",SUM('補正（ｋW）指定１'!$AL$24,N53,N55)) ->  | O52: =IF(OR($D$3="",$D$3="作成不要",'補正（ｋW）指定１'!$AL$24=""),"",SUM('補正（ｋW）指定１'!$AL$24,O53,O55)) ->  | P52: =IF(OR($D$3="",$D$3="作成不要",'補正（ｋW）指定１'!$AL$24=""),"",SUM('補正（ｋW）指定１'!$AL$24,P53,P55)) ->  | Q52: =IF(OR($D$3="",$D$3="作成不要",'補正（ｋW）指定１'!$AL$24=""),"",SUM('補正（ｋW）指定１'!$AL$24,Q53,Q55)) ->  | R52: =IF(OR($D$3="",$D$3="作成不要",'補正（ｋW）指定１'!$AL$24=""),"",SUM('補正（ｋW）指定１'!$AL$24,R53,R55)) ->  | S52: =IF(OR($D$3="",$D$3="作成不要",'補正（ｋW）指定１'!$AL$24=""),"",SUM('補正（ｋW）指定１'!$AL$24,S53,S55)) ->  | T52: =IF(OR($D$3="",$D$3="作成不要",'補正（ｋW）指定１'!$AL$24=""),"",SUM('補正（ｋW）指定１'!$AL$24,T53,T55)) ->  | U52: =IF(OR($D$3="",$D$3="作成不要",'補正（ｋW）指定１'!$AL$24=""),"",SUM('補正（ｋW）指定１'!$AL$24,U53,U55)) ->  | V52: =IF(OR($D$3="",$D$3="作成不要",'補正（ｋW）指定１'!$AL$24=""),"",SUM('補正（ｋW）指定１'!$AL$24,V53,V55)) ->  | W52: =IF(OR($D$3="",$D$3="作成不要",'補正（ｋW）指定１'!$AL$24=""),"",SUM('補正（ｋW）指定１'!$AL$24,W53,W55)) ->  | X52: =IF(OR($D$3="",$D$3="作成不要",'補正（ｋW）指定１'!$AL$24=""),"",SUM('補正（ｋW）指定１'!$AL$24,X53,X55)) ->  | Y52: =IF(OR($D$3="",$D$3="作成不要",'補正（ｋW）指定１'!$AL$24=""),"",SUM('補正（ｋW）指定１'!$AL$24,Y53,Y55)) ->  | Z52: =IF(OR($D$3="",$D$3="作成不要",'補正（ｋW）指定１'!$AL$24=""),"",SUM('補正（ｋW）指定１'!$AL$24,Z53,Z55)) ->  | AA52: =IF(OR($D$3="",$D$3="作成不要",'補正（ｋW）指定１'!$AL$24=""),"",SUM('補正（ｋW）指定１'!$AL$24,AA53,AA55)) ->  | AB52: =IF(OR($D$3="",$D$3="作成不要",'補正（ｋW）指定１'!$AL$24=""),"",SUM('補正（ｋW）指定１'!$AL$24,AB53,AB55)) -> 
A53: 補正 | B53: 太陽光供給力増減 | E53: =IF($D$3="","",IF($D$3="作成不要","",IF('補正（太陽光）指定１'!$AN$32="","",(ROUND(SUM('補正（太陽光）指定１'!$AN$30)*E49/100,2)+ROUND(SUM('補正（太陽光）指定１'!$AN$31)*E50/100,2))-(SUM('補正（太陽光）指定１'!$AN$32))))) ->  | F53: =IF($D$3="","",IF($D$3="作成不要","",IF('補正（太陽光）指定１'!$AN$32="","",(ROUND(SUM('補正（太陽光）指定１'!$AN$30)*F49/100,2)+ROUND(SUM('補正（太陽光）指定１'!$AN$31)*F50/100,2))-(SUM('補正（太陽光）指定１'!$AN$32))))) ->  | G53: =IF($D$3="","",IF($D$3="作成不要","",IF('補正（太陽光）指定１'!$AN$32="","",(ROUND(SUM('補正（太陽光）指定１'!$AN$30)*G49/100,2)+ROUND(SUM('補正（太陽光）指定１'!$AN$31)*G50/100,2))-(SUM('補正（太陽光）指定１'!$AN$32))))) ->  | H53: =IF($D$3="","",IF($D$3="作成不要","",IF('補正（太陽光）指定１'!$AN$32="","",(ROUND(SUM('補正（太陽光）指定１'!$AN$30)*H49/100,2)+ROUND(SUM('補正（太陽光）指定１'!$AN$31)*H50/100,2))-(SUM('補正（太陽光）指定１'!$AN$32))))) ->  | I53: =IF($D$3="","",IF($D$3="作成不要","",IF('補正（太陽光）指定１'!$AN$32="","",(ROUND(SUM('補正（太陽光）指定１'!$AN$30)*I49/100,2)+ROUND(SUM('補正（太陽光）指定１'!$AN$31)*I50/100,2))-(SUM('補正（太陽光）指定１'!$AN$32))))) ->  | J53: =IF($D$3="","",IF($D$3="作成不要","",IF('補正（太陽光）指定１'!$AN$32="","",(ROUND(SUM('補正（太陽光）指定１'!$AN$30)*J49/100,2)+ROUND(SUM('補正（太陽光）指定１'!$AN$31)*J50/100,2))-(SUM('補正（太陽光）指定１'!$AN$32))))) ->  | K53: =IF($D$3="","",IF($D$3="作成不要","",IF('補正（太陽光）指定１'!$AN$32="","",(ROUND(SUM('補正（太陽光）指定１'!$AN$30)*K49/100,2)+ROUND(SUM('補正（太陽光）指定１'!$AN$31)*K50/100,2))-(SUM('補正（太陽光）指定１'!$AN$32))))) ->  | L53: =IF($D$3="","",IF($D$3="作成不要","",IF('補正（太陽光）指定１'!$AN$32="","",(ROUND(SUM('補正（太陽光）指定１'!$AN$30)*L49/100,2)+ROUND(SUM('補正（太陽光）指定１'!$AN$31)*L50/100,2))-(SUM('補正（太陽光）指定１'!$AN$32))))) ->  | M53: =IF($D$3="","",IF($D$3="作成不要","",IF('補正（太陽光）指定１'!$AN$32="","",(ROUND(SUM('補正（太陽光）指定１'!$AN$30)*M49/100,2)+ROUND(SUM('補正（太陽光）指定１'!$AN$31)*M50/100,2))-(SUM('補正（太陽光）指定１'!$AN$32))))) ->  | N53: =IF($D$3="","",IF($D$3="作成不要","",IF('補正（太陽光）指定１'!$AN$32="","",(ROUND(SUM('補正（太陽光）指定１'!$AN$30)*N49/100,2)+ROUND(SUM('補正（太陽光）指定１'!$AN$31)*N50/100,2))-(SUM('補正（太陽光）指定１'!$AN$32))))) ->  | O53: =IF($D$3="","",IF($D$3="作成不要","",IF('補正（太陽光）指定１'!$AN$32="","",(ROUND(SUM('補正（太陽光）指定１'!$AN$30)*O49/100,2)+ROUND(SUM('補正（太陽光）指定１'!$AN$31)*O50/100,2))-(SUM('補正（太陽光）指定１'!$AN$32))))) ->  | P53: =IF($D$3="","",IF($D$3="作成不要","",IF('補正（太陽光）指定１'!$AN$32="","",(ROUND(SUM('補正（太陽光）指定１'!$AN$30)*P49/100,2)+ROUND(SUM('補正（太陽光）指定１'!$AN$31)*P50/100,2))-(SUM('補正（太陽光）指定１'!$AN$32))))) ->  | Q53: =IF($D$3="","",IF($D$3="作成不要","",IF('補正（太陽光）指定１'!$AN$32="","",(ROUND(SUM('補正（太陽光）指定１'!$AN$30)*Q49/100,2)+ROUND(SUM('補正（太陽光）指定１'!$AN$31)*Q50/100,2))-(SUM('補正（太陽光）指定１'!$AN$32))))) ->  | R53: =IF($D$3="","",IF($D$3="作成不要","",IF('補正（太陽光）指定１'!$AN$32="","",(ROUND(SUM('補正（太陽光）指定１'!$AN$30)*R49/100,2)+ROUND(SUM('補正（太陽光）指定１'!$AN$31)*R50/100,2))-(SUM('補正（太陽光）指定１'!$AN$32))))) ->  | S53: =IF($D$3="","",IF($D$3="作成不要","",IF('補正（太陽光）指定１'!$AN$32="","",(ROUND(SUM('補正（太陽光）指定１'!$AN$30)*S49/100,2)+ROUND(SUM('補正（太陽光）指定１'!$AN$31)*S50/100,2))-(SUM('補正（太陽光）指定１'!$AN$32))))) ->  | T53: =IF($D$3="","",IF($D$3="作成不要","",IF('補正（太陽光）指定１'!$AN$32="","",(ROUND(SUM('補正（太陽光）指定１'!$AN$30)*T49/100,2)+ROUND(SUM('補正（太陽光）指定１'!$AN$31)*T50/100,2))-(SUM('補正（太陽光）指定１'!$AN$32))))) ->  | U53: =IF($D$3="","",IF($D$3="作成不要","",IF('補正（太陽光）指定１'!$AN$32="","",(ROUND(SUM('補正（太陽光）指定１'!$AN$30)*U49/100,2)+ROUND(SUM('補正（太陽光）指定１'!$AN$31)*U50/100,2))-(SUM('補正（太陽光）指定１'!$AN$32))))) ->  | V53: =IF($D$3="","",IF($D$3="作成不要","",IF('補正（太陽光）指定１'!$AN$32="","",(ROUND(SUM('補正（太陽光）指定１'!$AN$30)*V49/100,2)+ROUND(SUM('補正（太陽光）指定１'!$AN$31)*V50/100,2))-(SUM('補正（太陽光）指定１'!$AN$32))))) ->  | W53: =IF($D$3="","",IF($D$3="作成不要","",IF('補正（太陽光）指定１'!$AN$32="","",(ROUND(SUM('補正（太陽光）指定１'!$AN$30)*W49/100,2)+ROUND(SUM('補正（太陽光）指定１'!$AN$31)*W50/100,2))-(SUM('補正（太陽光）指定１'!$AN$32))))) ->  | X53: =IF($D$3="","",IF($D$3="作成不要","",IF('補正（太陽光）指定１'!$AN$32="","",(ROUND(SUM('補正（太陽光）指定１'!$AN$30)*X49/100,2)+ROUND(SUM('補正（太陽光）指定１'!$AN$31)*X50/100,2))-(SUM('補正（太陽光）指定１'!$AN$32))))) ->  | Y53: =IF($D$3="","",IF($D$3="作成不要","",IF('補正（太陽光）指定１'!$AN$32="","",(ROUND(SUM('補正（太陽光）指定１'!$AN$30)*Y49/100,2)+ROUND(SUM('補正（太陽光）指定１'!$AN$31)*Y50/100,2))-(SUM('補正（太陽光）指定１'!$AN$32))))) ->  | Z53: =IF($D$3="","",IF($D$3="作成不要","",IF('補正（太陽光）指定１'!$AN$32="","",(ROUND(SUM('補正（太陽光）指定１'!$AN$30)*Z49/100,2)+ROUND(SUM('補正（太陽光）指定１'!$AN$31)*Z50/100,2))-(SUM('補正（太陽光）指定１'!$AN$32))))) ->  | AA53: =IF($D$3="","",IF($D$3="作成不要","",IF('補正（太陽光）指定１'!$AN$32="","",(ROUND(SUM('補正（太陽光）指定１'!$AN$30)*AA49/100,2)+ROUND(SUM('補正（太陽光）指定１'!$AN$31)*AA50/100,2))-(SUM('補正（太陽光）指定１'!$AN$32))))) ->  | AB53: =IF($D$3="","",IF($D$3="作成不要","",IF('補正（太陽光）指定１'!$AN$32="","",(ROUND(SUM('補正（太陽光）指定１'!$AN$30)*AB49/100,2)+ROUND(SUM('補正（太陽光）指定１'!$AN$31)*AB50/100,2))-(SUM('補正（太陽光）指定１'!$AN$32))))) -> 
B54: 送配電揚水潜在
B55: 送配電揚水増減（１５時との差分）
A56: エリア予備力 | E56: =IF(OR(E51="",E52=""),"",SUM(E52)-SUM(E51)) ->  | S56: =IF(OR(S51="",S52=""),"",SUM(S52)-SUM(S51)) ->  | Z56: =IF(OR(Z51="",Z52=""),"",SUM(Z52)-SUM(Z51)) ->  | AA56: =IF(OR(AA51="",AA52=""),"",SUM(AA52)-SUM(AA51)) ->  | AB56: =IF(OR(AB51="",AB52=""),"",SUM(AB52)-SUM(AB51)) -> 
A57: エリア予備率 | E57: =IF(E56="","",SUM(E56)/SUM(E51)) ->  | S57: =IF(S56="","",SUM(S56)/SUM(S51)) ->  | Y57: =IF(Y56="","",SUM(Y56)/SUM(Y51)) ->  | Z57: =IF(Z56="","",SUM(Z56)/SUM(Z51)) ->  | AA57: =IF(AA56="","",SUM(AA56)/SUM(AA51)) ->  | AB57: =IF(AB56="","",SUM(AB56)/SUM(AB51)) -> 

Sheet 最小予備率断面 (hidden)
A1: 各月エリア最小予備率時刻のバランス記載（※沖縄電力のみ対象） | AE1: 最小予備率断面算定用L5出力入力表
K2: 他シート値からの
A3: 供給区域 | B3: =IF('補正（ｋW）指定１'!$C$2="","",'補正（ｋW）指定１'!$C$2) ->  | C3: エリア | D3: =IF(B3="沖縄",10,IF(B3="","","作成不要")) ->  | H3: 入力箇所 | K3: リンク箇所 | N3: 自動計算 | AE3: 以下の値は、エリアの一般送配電事業者による算出値を記載願います。
A5: ・第１年度及び第２年度において、各月のエリア最小予備率断面の時間およびエリア需要の記載をお願いします。表の青色部分に値を埋めてください。 | AE5: エリア： | AF5: =+B3 -> 
A7: ='補正（ｋW）指定１'!E5 -> 2026-01-01 | AB7: 【ＭＷ、％】 | AE7: 太陽光
A8: 項目 | E8: 4 | G8: 5 | I8: 6 | K8: 7 | M8: 8 | O8: 9 | Q8: 10 | S8: 11 | U8: 12 | W8: 1 | Y8: 2 | AA8: 3 | AE8: ①L5出力比率（%） | AH8: ※全量分の供給力算定に使用
E9: 前半 | F9: 後半 | G9: 前半 | H9: 後半 | I9: 前半 | J9: 後半 | K9: 前半 | L9: 後半 | M9: 前半 | N9: 後半 | O9: 前半 | P9: 後半 | Q9: 前半 | R9: 後半 | S9: 前半 | T9: 後半 | U9: 前半 | V9: 後半 | W9: 前半 | X9: 後半 | Y9: 前半 | Z9: 後半 | AA9: 前半 | AB9: 後半 | AF9: 6 | AG9: =1+AF9 -> 7 | AH9: =1+AG9 -> 8 | AI9: 9 | AJ9: 10 | AK9: 11 | AL9: 12 | AM9: 13 | AN9: 14 | AO9: 15 | AP9: 16 | AQ9: 17 | AR9: 18 | AS9: 19 | AT9: 20
A10: 記載 断面 | B10: 時間 | E10: =IF($D$3="","",IF($D$3="作成不要","",AF56)) ->  | F10: =IF($D$3="","",IF($D$3="作成不要","",AG56)) ->  | AE10: 4
B11: 太陽光L5出力比率（参考） | D11: 全量 | E11: =IF(OR($D$3="",$D$3="作成不要"),"",OFFSET($AE$9,MATCH(IF(E$8="",D$8,E$8),$AE$10:$AE$21,0),MATCH(E$10,$AF$9:$AT$9,0))) ->  | F11: =IF(OR($D$3="",$D$3="作成不要"),"",OFFSET($AE$9,MATCH(IF(F$8="",E$8,F$8),$AE$10:$AE$21,0),MATCH(F$10,$AF$9:$AT$9,0))) ->  | AE11: =1+AE10 -> 5
D12: 余剰 | E12: =IF(OR($D$3="",$D$3="作成不要"),"",OFFSET($AE$24,MATCH(IF(E$8="",D$8,E$8),$AE$25:$AE$36,0),MATCH(E$10,$AF$24:$AT$24,0))) ->  | F12: =IF(OR($D$3="",$D$3="作成不要"),"",OFFSET($AE$24,MATCH(IF(F$8="",E$8,F$8),$AE$25:$AE$36,0),MATCH(F$10,$AF$24:$AT$24,0))) ->  | AE12: =1+AE11 -> 6
